{"text_format":"1","workbook":"xlsx","n_sheets":14,"sheets":["Paramètres","Jours fériés (2)","Janvier","Février","Mars","Avril","Mai","Juin","Juillet","Août","Septembre","Octobre","Novembre","Décembre"],"not_rendered":{"charts":0,"images":0,"macros":1,"external_links":0,"defined_names":10,"comments":0,"pivot_tables":0},"unopened":[],"bounds":{"document_bytes":16777216,"sheet_cells":100000,"rows_first":2000,"rows_last":500,"rows_between":2000,"halvings":0,"cell_chars":16384,"cell_head_chars":4096},"cells_cut":0,"cells_raw":0,"read":"whole","date_system":"1900"}

{"sheet":"Paramètres","index":0,"n_rows":40,"n_cols":32,"rows_kept":40,"cut":false,"hidden":false,"merged":[[32,1,32,7],[4,19,11,30],[2,10,2,12],[23,9,23,15],[23,17,23,23],[23,25,23,31],[14,1,14,7],[23,1,23,7],[14,17,14,23],[14,25,14,31]]}
[null,"PARAMETRES DU CALENDRIER"]
[]
[null,"DEBUT DE LA SEMAINE",null,null,null,null,null,null,null,null,"LUNDI"]
[]
[null,"AFFICHER LES JOURS FERIES",null,null,null,null,null,null,null,true,null,null,null,null,null,null,null,null,null,2024]
[null,"AFFICHER LES JOURS FERIES OBSERVES",null,null,null,null,null,null,null,true]
[null,null,null,null,null,null,null,null,null,{"$f":"IF(AfficherJoursFériés,Observés,AfficherJoursFériés)","v":true}]
[]
[null,"AFFICHAGE ANNUEL"]
[]
[]
[]
[]
[]
[null,{"$f":"DATE(AnnéeCal,1,1)","v":"2024-01-01"},null,null,null,null,null,null,{"$f":"DATE(AnnéeCal,1,1)","v":"2024-01-01"},{"$f":"DATE(AnnéeCal,2,1)","v":"2024-02-01"},{"$f":"DATE(AnnéeCal,1,1)","v":"2024-01-01"},"2024-01-01","2024-01-01","2024-01-01","2024-01-01","2024-01-01","2024-01-01",{"$f":"DATE(AnnéeCal,3,1)","v":"2024-03-01"},null,null,null,null,null,null,{"$f":"DATE(AnnéeCal,1,1)","v":"2024-01-01"},{"$f":"DATE(AnnéeCal,4,1)","v":"2024-04-01"}]
[null,{"$f":"UPPER(TEXT(B15,\"MMMM\"))","v":"JANVIER"},null,null,null,null,null,null,null,{"$f":"UPPER(TEXT(J15,\"MMMM\"))","v":"FÉVRIER"},null,null,null,null,null,null,null,"MARS",null,null,null,null,null,null,null,"AVRIL"]
[1,{"$f":"Jours+DATE(AnnéeCal,MONTH($A$15),1)-WEEKDAY(DATE(AnnéeCal,MONTH($A$15),1),(DébutSemaine=\"LUNDI\")+1)+$A17*7-6","v":"2024-01-01"},{"$f":"Jours+DATE(AnnéeCal,MONTH($A$15),1)-WEEKDAY(DATE(AnnéeCal,MONTH($A$15),1),(DébutSemaine=\"LUNDI\")+1)+$A17*7-6+1","v":"2024-01-02"},{"$f":"Jours+DATE(AnnéeCal,MONTH($A$15),1)-WEEKDAY(DATE(AnnéeCal,MONTH($A$15),1),(DébutSemaine=\"LUNDI\")+1)+$A17*7-6+2","v":"2024-01-03"},{"$f":"Jours+DATE(AnnéeCal,MONTH($A$15),1)-WEEKDAY(DATE(AnnéeCal,MONTH($A$15),1),(DébutSemaine=\"LUNDI\")+1)+$A17*7-6+3","v":"2024-01-04"},{"$f":"Jours+DATE(AnnéeCal,MONTH($A$15),1)-WEEKDAY(DATE(AnnéeCal,MONTH($A$15),1),(DébutSemaine=\"LUNDI\")+1)+$A17*7-6+4","v":"2024-01-05"},{"$f":"Jours+DATE(AnnéeCal,MONTH($A$15),1)-WEEKDAY(DATE(AnnéeCal,MONTH($A$15),1),(DébutSemaine=\"LUNDI\")+1)+$A17*7-6+5","v":"2024-01-06"},{"$f":"Jours+DATE(AnnéeCal,MONTH($A$15),1)-WEEKDAY(DATE(AnnéeCal,MONTH($A$15),1),(DébutSemaine=\"LUNDI\")+1)+$A17*7-6+6","v":"2024-01-07"},null,{"$f":"Jours+DATE(AnnéeCal,MONTH($J$15),1)-WEEKDAY(DATE(AnnéeCal,MONTH($J$15),1),(DébutSemaine=\"LUNDI\")+1)+$A17*7-6","v":"2024-01-29"},{"$f":"Jours+DATE(AnnéeCal,MONTH($J$15),1)-WEEKDAY(DATE(AnnéeCal,MONTH($J$15),1),(DébutSemaine=\"LUNDI\")+1)+$A17*7-6+1","v":"2024-01-30"},{"$f":"Jours+DATE(AnnéeCal,MONTH($J$15),1)-WEEKDAY(DATE(AnnéeCal,MONTH($J$15),1),(DébutSemaine=\"LUNDI\")+1)+$A17*7-6+2","v":"2024-01-31"},{"$f":"Jours+DATE(AnnéeCal,MONTH($J$15),1)-WEEKDAY(DATE(AnnéeCal,MONTH($J$15),1),(DébutSemaine=\"LUNDI\")+1)+$A17*7-6+3","v":"2024-02-01"},{"$f":"Jours+DATE(AnnéeCal,MONTH($J$15),1)-WEEKDAY(DATE(AnnéeCal,MONTH($J$15),1),(DébutSemaine=\"LUNDI\")+1)+$A17*7-6+4","v":"2024-02-02"},{"$f":"Jours+DATE(AnnéeCal,MONTH($J$15),1)-WEEKDAY(DATE(AnnéeCal,MONTH($J$15),1),(DébutSemaine=\"LUNDI\")+1)+$A17*7-6+5","v":"2024-02-03"},{"$f":"Jours+DATE(AnnéeCal,MONTH($J$15),1)-WEEKDAY(DATE(AnnéeCal,MONTH($J$15),1),(DébutSemaine=\"LUNDI\")+1)+$A17*7-6+6","v":"2024-02-04"},null,{"$f":"Jours+DATE(AnnéeCal,MONTH($R$15),1)-WEEKDAY(DATE(AnnéeCal,MONTH($R$15),1),(DébutSemaine=\"LUNDI\")+1)+$A17*7-6","v":"2024-02-26"},{"$f":"Jours+DATE(AnnéeCal,MONTH($R$15),1)-WEEKDAY(DATE(AnnéeCal,MONTH($R$15),1),(DébutSemaine=\"LUNDI\")+1)+$A17*7-6+1","v":"2024-02-27"},{"$f":"Jours+DATE(AnnéeCal,MONTH($R$15),1)-WEEKDAY(DATE(AnnéeCal,MONTH($R$15),1),(DébutSemaine=\"LUNDI\")+1)+$A17*7-6+2","v":"2024-02-28"},{"$f":"Jours+DATE(AnnéeCal,MONTH($R$15),1)-WEEKDAY(DATE(AnnéeCal,MONTH($R$15),1),(DébutSemaine=\"LUNDI\")+1)+$A17*7-6+3","v":"2024-02-29"},{"$f":"Jours+DATE(AnnéeCal,MONTH($R$15),1)-WEEKDAY(DATE(AnnéeCal,MONTH($R$15),1),(DébutSemaine=\"LUNDI\")+1)+$A17*7-6+4","v":"2024-03-01"},{"$f":"Jours+DATE(AnnéeCal,MONTH($R$15),1)-WEEKDAY(DATE(AnnéeCal,MONTH($R$15),1),(DébutSemaine=\"LUNDI\")+1)+$A17*7-6+5","v":"2024-03-02"},{"$f":"Jours+DATE(AnnéeCal,MONTH($R$15),1)-WEEKDAY(DATE(AnnéeCal,MONTH($R$15),1),(DébutSemaine=\"LUNDI\")+1)+$A17*7-6+6","v":"2024-03-03"},null,{"$f":"Jours+DATE(AnnéeCal,MONTH($Z$15),1)-WEEKDAY(DATE(AnnéeCal,MONTH($Z$15),1),(DébutSemaine=\"LUNDI\")+1)+$A17*7-6","v":"2024-04-01"},{"$f":"Jours+DATE(AnnéeCal,MONTH($Z$15),1)-WEEKDAY(DATE(AnnéeCal,MONTH($Z$15),1),(DébutSemaine=\"LUNDI\")+1)+$A17*7-6+1","v":"2024-04-02"},{"$f":"Jours+DATE(AnnéeCal,MONTH($Z$15),1)-WEEKDAY(DATE(AnnéeCal,MONTH($Z$15),1),(DébutSemaine=\"LUNDI\")+1)+$A17*7-6+2","v":"2024-04-03"},{"$f":"Jours+DATE(AnnéeCal,MONTH($Z$15),1)-WEEKDAY(DATE(AnnéeCal,MONTH($Z$15),1),(DébutSemaine=\"LUNDI\")+1)+$A17*7-6+3","v":"2024-04-04"},{"$f":"Jours+DATE(AnnéeCal,MONTH($Z$15),1)-WEEKDAY(DATE(AnnéeCal,MONTH($Z$15),1),(DébutSemaine=\"LUNDI\")+1)+$A17*7-6+4","v":"2024-04-05"},{"$f":"Jours+DATE(AnnéeCal,MONTH($Z$15),1)-WEEKDAY(DATE(AnnéeCal,MONTH($Z$15),1),(DébutSemaine=\"LUNDI\")+1)+$A17*7-6+5","v":"2024-04-06"},{"$f":"Jours+DATE(AnnéeCal,MONTH($Z$15),1)-WEEKDAY(DATE(AnnéeCal,MONTH($Z$15),1),(DébutSemaine=\"LUNDI\")+1)+$A17*7-6+6","v":"2024-04-07"}]
[2,"2024-01-08","2024-01-09","2024-01-10","2024-01-11","2024-01-12","2024-01-13","2024-01-14",null,"2024-02-05","2024-02-06","2024-02-07","2024-02-08","2024-02-09","2024-02-10","2024-02-11",null,"2024-03-04","2024-03-05","2024-03-06","2024-03-07","2024-03-08","2024-03-09","2024-03-10",null,"2024-04-08","2024-04-09","2024-04-10","2024-04-11","2024-04-12","2024-04-13","2024-04-14"]
[3,"2024-01-15","2024-01-16","2024-01-17","2024-01-18","2024-01-19","2024-01-20","2024-01-21",null,"2024-02-12","2024-02-13","2024-02-14","2024-02-15","2024-02-16","2024-02-17","2024-02-18",null,"2024-03-11","2024-03-12","2024-03-13","2024-03-14","2024-03-15","2024-03-16","2024-03-17",null,"2024-04-15","2024-04-16","2024-04-17","2024-04-18","2024-04-19","2024-04-20","2024-04-21"]
[4,"2024-01-22","2024-01-23","2024-01-24","2024-01-25","2024-01-26","2024-01-27","2024-01-28",null,"2024-02-19","2024-02-20","2024-02-21","2024-02-22","2024-02-23","2024-02-24","2024-02-25",null,"2024-03-18","2024-03-19","2024-03-20","2024-03-21","2024-03-22","2024-03-23","2024-03-24",null,"2024-04-22","2024-04-23","2024-04-24","2024-04-25","2024-04-26","2024-04-27","2024-04-28"]
[5,"2024-01-29","2024-01-30","2024-01-31","2024-02-01","2024-02-02","2024-02-03","2024-02-04",null,"2024-02-26","2024-02-27","2024-02-28","2024-02-29","2024-03-01","2024-03-02","2024-03-03",null,"2024-03-25","2024-03-26","2024-03-27","2024-03-28","2024-03-29","2024-03-30","2024-03-31",null,"2024-04-29","2024-04-30","2024-05-01","2024-05-02","2024-05-03","2024-05-04","2024-05-05"]
[6,"2024-02-05","2024-02-06","2024-02-07","2024-02-08","2024-02-09","2024-02-10","2024-02-11",null,"2024-03-04","2024-03-05","2024-03-06","2024-03-07","2024-03-08","2024-03-09","2024-03-10",null,"2024-04-01","2024-04-02","2024-04-03","2024-04-04","2024-04-05","2024-04-06","2024-04-07",null,"2024-05-06","2024-05-07","2024-05-08","2024-05-09","2024-05-10","2024-05-11","2024-05-12"]
[]
[null,{"$f":"DATE(AnnéeCal,5,1)","v":"2024-05-01"},null,null,null,null,null,null,{"$f":"DATE(AnnéeCal,5,1)","v":"2024-05-01"},{"$f":"DATE(AnnéeCal,6,1)","v":"2024-06-01"},null,null,null,null,null,null,null,{"$f":"DATE(AnnéeCal,7,1)","v":"2024-07-01"},null,null,null,null,null,null,null,{"$f":"DATE(AnnéeCal,8,1)","v":"2024-08-01"}]
[null,{"$f":"UPPER(TEXT(B24,\"MMMM\"))","v":"MAI"},null,null,null,null,null,null,null,{"$f":"UPPER(TEXT(J24,\"MMMM\"))","v":"JUIN"},null,null,null,null,null,null,null,"JUILLET",null,null,null,null,null,null,null,"AOÛT"]
[1,{"$f":"Jours+DATE(AnnéeCal,MONTH($B$24),1)-WEEKDAY(DATE(AnnéeCal,MONTH($B$24),1),(DébutSemaine=\"LUNDI\")+1)+$A26*7-6","v":"2024-04-29"},{"$f":"Jours+DATE(AnnéeCal,MONTH($B$24),1)-WEEKDAY(DATE(AnnéeCal,MONTH($B$24),1),(DébutSemaine=\"LUNDI\")+1)+$A26*7-6+1","v":"2024-04-30"},{"$f":"Jours+DATE(AnnéeCal,MONTH($B$24),1)-WEEKDAY(DATE(AnnéeCal,MONTH($B$24),1),(DébutSemaine=\"LUNDI\")+1)+$A26*7-6+2","v":"2024-05-01"},{"$f":"Jours+DATE(AnnéeCal,MONTH($B$24),1)-WEEKDAY(DATE(AnnéeCal,MONTH($B$24),1),(DébutSemaine=\"LUNDI\")+1)+$A26*7-6+3","v":"2024-05-02"},{"$f":"Jours+DATE(AnnéeCal,MONTH($B$24),1)-WEEKDAY(DATE(AnnéeCal,MONTH($B$24),1),(DébutSemaine=\"LUNDI\")+1)+$A26*7-6+4","v":"2024-05-03"},{"$f":"Jours+DATE(AnnéeCal,MONTH($B$24),1)-WEEKDAY(DATE(AnnéeCal,MONTH($B$24),1),(DébutSemaine=\"LUNDI\")+1)+$A26*7-6+5","v":"2024-05-04"},{"$f":"Jours+DATE(AnnéeCal,MONTH($B$24),1)-WEEKDAY(DATE(AnnéeCal,MONTH($B$24),1),(DébutSemaine=\"LUNDI\")+1)+$A26*7-6+6","v":"2024-05-05"},null,{"$f":"Jours+DATE(AnnéeCal,MONTH($J$24),1)-WEEKDAY(DATE(AnnéeCal,MONTH($J$24),1),(DébutSemaine=\"LUNDI\")+1)+$A26*7-6","v":"2024-05-27"},{"$f":"Jours+DATE(AnnéeCal,MONTH($J$24),1)-WEEKDAY(DATE(AnnéeCal,MONTH($J$24),1),(DébutSemaine=\"LUNDI\")+1)+$A26*7-6+1","v":"2024-05-28"},{"$f":"Jours+DATE(AnnéeCal,MONTH($J$24),1)-WEEKDAY(DATE(AnnéeCal,MONTH($J$24),1),(DébutSemaine=\"LUNDI\")+1)+$A26*7-6+2","v":"2024-05-29"},{"$f":"Jours+DATE(AnnéeCal,MONTH($J$24),1)-WEEKDAY(DATE(AnnéeCal,MONTH($J$24),1),(DébutSemaine=\"LUNDI\")+1)+$A26*7-6+3","v":"2024-05-30"},{"$f":"Jours+DATE(AnnéeCal,MONTH($J$24),1)-WEEKDAY(DATE(AnnéeCal,MONTH($J$24),1),(DébutSemaine=\"LUNDI\")+1)+$A26*7-6+4","v":"2024-05-31"},{"$f":"Jours+DATE(AnnéeCal,MONTH($J$24),1)-WEEKDAY(DATE(AnnéeCal,MONTH($J$24),1),(DébutSemaine=\"LUNDI\")+1)+$A26*7-6+5","v":"2024-06-01"},{"$f":"Jours+DATE(AnnéeCal,MONTH($J$24),1)-WEEKDAY(DATE(AnnéeCal,MONTH($J$24),1),(DébutSemaine=\"LUNDI\")+1)+$A26*7-6+6","v":"2024-06-02"},null,{"$f":"Jours+DATE(AnnéeCal,MONTH($R$24),1)-WEEKDAY(DATE(AnnéeCal,MONTH($R$24),1),(DébutSemaine=\"LUNDI\")+1)+$A26*7-6","v":"2024-07-01"},{"$f":"Jours+DATE(AnnéeCal,MONTH($R$24),1)-WEEKDAY(DATE(AnnéeCal,MONTH($R$24),1),(DébutSemaine=\"LUNDI\")+1)+$A26*7-6+1","v":"2024-07-02"},{"$f":"Jours+DATE(AnnéeCal,MONTH($R$24),1)-WEEKDAY(DATE(AnnéeCal,MONTH($R$24),1),(DébutSemaine=\"LUNDI\")+1)+$A26*7-6+2","v":"2024-07-03"},{"$f":"Jours+DATE(AnnéeCal,MONTH($R$24),1)-WEEKDAY(DATE(AnnéeCal,MONTH($R$24),1),(DébutSemaine=\"LUNDI\")+1)+$A26*7-6+3","v":"2024-07-04"},{"$f":"Jours+DATE(AnnéeCal,MONTH($R$24),1)-WEEKDAY(DATE(AnnéeCal,MONTH($R$24),1),(DébutSemaine=\"LUNDI\")+1)+$A26*7-6+4","v":"2024-07-05"},{"$f":"Jours+DATE(AnnéeCal,MONTH($R$24),1)-WEEKDAY(DATE(AnnéeCal,MONTH($R$24),1),(DébutSemaine=\"LUNDI\")+1)+$A26*7-6+5","v":"2024-07-06"},{"$f":"Jours+DATE(AnnéeCal,MONTH($R$24),1)-WEEKDAY(DATE(AnnéeCal,MONTH($R$24),1),(DébutSemaine=\"LUNDI\")+1)+$A26*7-6+6","v":"2024-07-07"},null,{"$f":"Jours+DATE(AnnéeCal,MONTH($Z$24),1)-WEEKDAY(DATE(AnnéeCal,MONTH($Z$24),1),(DébutSemaine=\"LUNDI\")+1)+$A26*7-6","v":"2024-07-29"},{"$f":"Jours+DATE(AnnéeCal,MONTH($Z$24),1)-WEEKDAY(DATE(AnnéeCal,MONTH($Z$24),1),(DébutSemaine=\"LUNDI\")+1)+$A26*7-6+1","v":"2024-07-30"},{"$f":"Jours+DATE(AnnéeCal,MONTH($Z$24),1)-WEEKDAY(DATE(AnnéeCal,MONTH($Z$24),1),(DébutSemaine=\"LUNDI\")+1)+$A26*7-6+2","v":"2024-07-31"},{"$f":"Jours+DATE(AnnéeCal,MONTH($Z$24),1)-WEEKDAY(DATE(AnnéeCal,MONTH($Z$24),1),(DébutSemaine=\"LUNDI\")+1)+$A26*7-6+3","v":"2024-08-01"},{"$f":"Jours+DATE(AnnéeCal,MONTH($Z$24),1)-WEEKDAY(DATE(AnnéeCal,MONTH($Z$24),1),(DébutSemaine=\"LUNDI\")+1)+$A26*7-6+4","v":"2024-08-02"},{"$f":"Jours+DATE(AnnéeCal,MONTH($Z$24),1)-WEEKDAY(DATE(AnnéeCal,MONTH($Z$24),1),(DébutSemaine=\"LUNDI\")+1)+$A26*7-6+5","v":"2024-08-03"},{"$f":"Jours+DATE(AnnéeCal,MONTH($Z$24),1)-WEEKDAY(DATE(AnnéeCal,MONTH($Z$24),1),(DébutSemaine=\"LUNDI\")+1)+$A26*7-6+6","v":"2024-08-04"}]
[2,"2024-05-06","2024-05-07","2024-05-08","2024-05-09","2024-05-10","2024-05-11","2024-05-12",null,"2024-06-03","2024-06-04","2024-06-05","2024-06-06","2024-06-07","2024-06-08","2024-06-09",null,"2024-07-08","2024-07-09","2024-07-10","2024-07-11","2024-07-12","2024-07-13","2024-07-14",null,"2024-08-05","2024-08-06","2024-08-07","2024-08-08","2024-08-09","2024-08-10","2024-08-11"]
[3,"2024-05-13","2024-05-14","2024-05-15","2024-05-16","2024-05-17","2024-05-18","2024-05-19",null,"2024-06-10","2024-06-11","2024-06-12","2024-06-13","2024-06-14","2024-06-15","2024-06-16",null,"2024-07-15","2024-07-16","2024-07-17","2024-07-18","2024-07-19","2024-07-20","2024-07-21",null,"2024-08-12","2024-08-13","2024-08-14","2024-08-15","2024-08-16","2024-08-17","2024-08-18"]
[4,"2024-05-20","2024-05-21","2024-05-22","2024-05-23","2024-05-24","2024-05-25","2024-05-26",null,"2024-06-17","2024-06-18","2024-06-19","2024-06-20","2024-06-21","2024-06-22","2024-06-23",null,"2024-07-22","2024-07-23","2024-07-24","2024-07-25","2024-07-26","2024-07-27","2024-07-28",null,"2024-08-19","2024-08-20","2024-08-21","2024-08-22","2024-08-23","2024-08-24","2024-08-25"]
[5,"2024-05-27","2024-05-28","2024-05-29","2024-05-30","2024-05-31","2024-06-01","2024-06-02",null,"2024-06-24","2024-06-25","2024-06-26","2024-06-27","2024-06-28","2024-06-29","2024-06-30",null,"2024-07-29","2024-07-30","2024-07-31","2024-08-01","2024-08-02","2024-08-03","2024-08-04",null,"2024-08-26","2024-08-27","2024-08-28","2024-08-29","2024-08-30","2024-08-31","2024-09-01"]
[6,"2024-06-03","2024-06-04","2024-06-05","2024-06-06","2024-06-07","2024-06-08","2024-06-09",null,"2024-07-01","2024-07-02","2024-07-03","2024-07-04","2024-07-05","2024-07-06","2024-07-07",null,"2024-08-05","2024-08-06","2024-08-07","2024-08-08","2024-08-09","2024-08-10","2024-08-11",null,"2024-09-02","2024-09-03","2024-09-04","2024-09-05","2024-09-06","2024-09-07","2024-09-08"]
[]
[null,{"$f":"DATE(AnnéeCal,9,1)","v":"2024-09-01"},null,null,null,null,null,null,{"$f":"DATE(AnnéeCal,1,1)","v":"2024-01-01"},{"$f":"DATE(AnnéeCal,10,1)","v":"2024-10-01"},{"$f":"DATE(AnnéeCal,1,1)","v":"2024-01-01"},"2024-01-01","2024-01-01","2024-01-01","2024-01-01","2024-01-01","2024-01-01",{"$f":"DATE(AnnéeCal,11,1)","v":"2024-11-01"},{"$f":"DATE(AnnéeCal,1,1)","v":"2024-01-01"},"2024-01-01","2024-01-01","2024-01-01","2024-01-01","2024-01-01","2024-01-01",{"$f":"DATE(AnnéeCal,12,1)","v":"2024-12-01"},{"$f":"DATE(AnnéeCal,1,1)","v":"2024-01-01"},"2024-01-01","2024-01-01","2024-01-01","2024-01-01","2024-01-01"]
[null,{"$f":"UPPER(TEXT(B33,\"MMMM\"))","v":"SEPTEMBRE"},null,null,null,null,null,null,null,{"$f":"UPPER(TEXT(J33,\"MMMM\"))","v":"OCTOBRE"},null,null,null,null,null,null,null,{"$f":"UPPER(TEXT(R33,\"MMMM\"))","v":"NOVEMBRE"},null,null,null,null,null,null,null,{"$f":"UPPER(TEXT(Z33,\"MMMM\"))","v":"DÉCEMBRE"}]
[1,{"$f":"Jours+DATE(AnnéeCal,MONTH($B$33),1)-WEEKDAY(DATE(AnnéeCal,MONTH($B$33),1),(DébutSemaine=\"LUNDI\")+1)+$A35*7-6","v":"2024-08-26"},{"$f":"Jours+DATE(AnnéeCal,MONTH($B$33),1)-WEEKDAY(DATE(AnnéeCal,MONTH($B$33),1),(DébutSemaine=\"LUNDI\")+1)+$A35*7-6+1","v":"2024-08-27"},{"$f":"Jours+DATE(AnnéeCal,MONTH($B$33),1)-WEEKDAY(DATE(AnnéeCal,MONTH($B$33),1),(DébutSemaine=\"LUNDI\")+1)+$A35*7-6+2","v":"2024-08-28"},{"$f":"Jours+DATE(AnnéeCal,MONTH($B$33),1)-WEEKDAY(DATE(AnnéeCal,MONTH($B$33),1),(DébutSemaine=\"LUNDI\")+1)+$A35*7-6+3","v":"2024-08-29"},{"$f":"Jours+DATE(AnnéeCal,MONTH($B$33),1)-WEEKDAY(DATE(AnnéeCal,MONTH($B$33),1),(DébutSemaine=\"LUNDI\")+1)+$A35*7-6+4","v":"2024-08-30"},{"$f":"Jours+DATE(AnnéeCal,MONTH($B$33),1)-WEEKDAY(DATE(AnnéeCal,MONTH($B$33),1),(DébutSemaine=\"LUNDI\")+1)+$A35*7-6+5","v":"2024-08-31"},{"$f":"Jours+DATE(AnnéeCal,MONTH($B$33),1)-WEEKDAY(DATE(AnnéeCal,MONTH($B$33),1),(DébutSemaine=\"LUNDI\")+1)+$A35*7-6+6","v":"2024-09-01"},null,{"$f":"Jours+DATE(AnnéeCal,MONTH($J$33),1)-WEEKDAY(DATE(AnnéeCal,MONTH($J$33),1),(DébutSemaine=\"LUNDI\")+1)+$A35*7-6","v":"2024-09-30"},{"$f":"Jours+DATE(AnnéeCal,MONTH($J$33),1)-WEEKDAY(DATE(AnnéeCal,MONTH($J$33),1),(DébutSemaine=\"LUNDI\")+1)+$A35*7-6+1","v":"2024-10-01"},{"$f":"Jours+DATE(AnnéeCal,MONTH($J$33),1)-WEEKDAY(DATE(AnnéeCal,MONTH($J$33),1),(DébutSemaine=\"LUNDI\")+1)+$A35*7-6+2","v":"2024-10-02"},{"$f":"Jours+DATE(AnnéeCal,MONTH($J$33),1)-WEEKDAY(DATE(AnnéeCal,MONTH($J$33),1),(DébutSemaine=\"LUNDI\")+1)+$A35*7-6+3","v":"2024-10-03"},{"$f":"Jours+DATE(AnnéeCal,MONTH($J$33),1)-WEEKDAY(DATE(AnnéeCal,MONTH($J$33),1),(DébutSemaine=\"LUNDI\")+1)+$A35*7-6+4","v":"2024-10-04"},{"$f":"Jours+DATE(AnnéeCal,MONTH($J$33),1)-WEEKDAY(DATE(AnnéeCal,MONTH($J$33),1),(DébutSemaine=\"LUNDI\")+1)+$A35*7-6+5","v":"2024-10-05"},{"$f":"Jours+DATE(AnnéeCal,MONTH($J$33),1)-WEEKDAY(DATE(AnnéeCal,MONTH($J$33),1),(DébutSemaine=\"LUNDI\")+1)+$A35*7-6+6","v":"2024-10-06"},null,{"$f":"Jours+DATE(AnnéeCal,MONTH($R$33),1)-WEEKDAY(DATE(AnnéeCal,MONTH($R$33),1),(DébutSemaine=\"LUNDI\")+1)+$A35*7-6","v":"2024-10-28"},{"$f":"Jours+DATE(AnnéeCal,MONTH($R$33),1)-WEEKDAY(DATE(AnnéeCal,MONTH($R$33),1),(DébutSemaine=\"LUNDI\")+1)+$A35*7-6+1","v":"2024-10-29"},{"$f":"Jours+DATE(AnnéeCal,MONTH($R$33),1)-WEEKDAY(DATE(AnnéeCal,MONTH($R$33),1),(DébutSemaine=\"LUNDI\")+1)+$A35*7-6+2","v":"2024-10-30"},{"$f":"Jours+DATE(AnnéeCal,MONTH($R$33),1)-WEEKDAY(DATE(AnnéeCal,MONTH($R$33),1),(DébutSemaine=\"LUNDI\")+1)+$A35*7-6+3","v":"2024-10-31"},{"$f":"Jours+DATE(AnnéeCal,MONTH($R$33),1)-WEEKDAY(DATE(AnnéeCal,MONTH($R$33),1),(DébutSemaine=\"LUNDI\")+1)+$A35*7-6+4","v":"2024-11-01"},{"$f":"Jours+DATE(AnnéeCal,MONTH($R$33),1)-WEEKDAY(DATE(AnnéeCal,MONTH($R$33),1),(DébutSemaine=\"LUNDI\")+1)+$A35*7-6+5","v":"2024-11-02"},{"$f":"Jours+DATE(AnnéeCal,MONTH($R$33),1)-WEEKDAY(DATE(AnnéeCal,MONTH($R$15),1),(DébutSemaine=\"LUNDI\")+1)+$A35*7-6+6","v":"2024-11-03"},null,{"$f":"Jours+DATE(AnnéeCal,MONTH($Z$33),1)-WEEKDAY(DATE(AnnéeCal,MONTH($Z$33),1),(DébutSemaine=\"LUNDI\")+1)+$A35*7-6","v":"2024-11-25"},{"$f":"Jours+DATE(AnnéeCal,MONTH($Z$33),1)-WEEKDAY(DATE(AnnéeCal,MONTH($Z$33),1),(DébutSemaine=\"LUNDI\")+1)+$A35*7-6+1","v":"2024-11-26"},{"$f":"Jours+DATE(AnnéeCal,MONTH($Z$33),1)-WEEKDAY(DATE(AnnéeCal,MONTH($Z$33),1),(DébutSemaine=\"LUNDI\")+1)+$A35*7-6+2","v":"2024-11-27"},{"$f":"Jours+DATE(AnnéeCal,MONTH($Z$33),1)-WEEKDAY(DATE(AnnéeCal,MONTH($Z$33),1),(DébutSemaine=\"LUNDI\")+1)+$A35*7-6+3","v":"2024-11-28"},{"$f":"Jours+DATE(AnnéeCal,MONTH($Z$33),1)-WEEKDAY(DATE(AnnéeCal,MONTH($Z$33),1),(DébutSemaine=\"LUNDI\")+1)+$A35*7-6+4","v":"2024-11-29"},{"$f":"Jours+DATE(AnnéeCal,MONTH($Z$33),1)-WEEKDAY(DATE(AnnéeCal,MONTH($Z$33),1),(DébutSemaine=\"LUNDI\")+1)+$A35*7-6+5","v":"2024-11-30"},{"$f":"Jours+DATE(AnnéeCal,MONTH($Z$33),1)-WEEKDAY(DATE(AnnéeCal,MONTH($Z$33),1),(DébutSemaine=\"LUNDI\")+1)+$A35*7-6+6","v":"2024-12-01"}]
[2,"2024-09-02","2024-09-03","2024-09-04","2024-09-05","2024-09-06","2024-09-07","2024-09-08",null,"2024-10-07","2024-10-08","2024-10-09","2024-10-10","2024-10-11","2024-10-12","2024-10-13",null,"2024-11-04","2024-11-05","2024-11-06","2024-11-07","2024-11-08","2024-11-09","2024-11-10",null,"2024-12-02","2024-12-03","2024-12-04","2024-12-05","2024-12-06","2024-12-07","2024-12-08"]
[3,"2024-09-09","2024-09-10","2024-09-11","2024-09-12","2024-09-13","2024-09-14","2024-09-15",null,"2024-10-14","2024-10-15","2024-10-16","2024-10-17","2024-10-18","2024-10-19","2024-10-20",null,"2024-11-11","2024-11-12","2024-11-13","2024-11-14","2024-11-15","2024-11-16","2024-11-17",null,"2024-12-09","2024-12-10","2024-12-11","2024-12-12","2024-12-13","2024-12-14","2024-12-15"]
[4,"2024-09-16","2024-09-17","2024-09-18","2024-09-19","2024-09-20","2024-09-21","2024-09-22",null,"2024-10-21","2024-10-22","2024-10-23","2024-10-24","2024-10-25","2024-10-26","2024-10-27",null,"2024-11-18","2024-11-19","2024-11-20","2024-11-21","2024-11-22","2024-11-23","2024-11-24",null,"2024-12-16","2024-12-17","2024-12-18","2024-12-19","2024-12-20","2024-12-21","2024-12-22"]
[5,"2024-09-23","2024-09-24","2024-09-25","2024-09-26","2024-09-27","2024-09-28","2024-09-29",null,"2024-10-28","2024-10-29","2024-10-30","2024-10-31","2024-11-01","2024-11-02","2024-11-03",null,"2024-11-25","2024-11-26","2024-11-27","2024-11-28","2024-11-29","2024-11-30","2024-12-01",null,"2024-12-23","2024-12-24","2024-12-25","2024-12-26","2024-12-27","2024-12-28","2024-12-29"]
[6,"2024-09-30","2024-10-01","2024-10-02","2024-10-03","2024-10-04","2024-10-05","2024-10-06",null,"2024-11-04","2024-11-05","2024-11-06","2024-11-07","2024-11-08","2024-11-09","2024-11-10",null,"2024-12-02","2024-12-03","2024-12-04","2024-12-05","2024-12-06","2024-12-07","2024-12-08",null,"2024-12-30","2024-12-31","2025-01-01","2025-01-02","2025-01-03","2025-01-04","2025-01-05"]

{"sheet":"Jours fériés (2)","index":1,"n_rows":17,"n_cols":11,"rows_kept":17,"cut":false,"hidden":false,"merged":[]}
[]
[null,"Jours fériés",{"$f":"AnnéeCal","v":2024},null,null,null," "]
[]
[null,"JOUR","JOUR FÉRIÉ","JOUR DE LA SEMAINE","CORRIGÉ","AFFICHER"]
[null,"2024-01-01","Premier jour de l’an",{"$f":"IFERROR(WEEKDAY(TableauJoursFériés2[[#This Row],[JOUR]],IF(DébutSemaine=\"LUNDI\",2,1)),0)","v":1},{"$f":"DATE(AnnéeCal,1,1)","v":"2024-01-01"},"VRAI"]
[null,{"$f":"ROUND(DATE(C2,4,MOD(234-11*MOD(B1,19),30))/7,0)*7-6","v":"2024-04-21"},"Pâques",{"$f":"IFERROR(WEEKDAY(TableauJoursFériés2[[#This Row],[JOUR]],IF(DébutSemaine=\"LUNDI\",2,1)),0)","v":7},{"$f":"ROUND(DATE(C2,4,MOD(234-11*MOD(E1,19),30))/7,0)*7-6","v":"2024-04-21"},"VRAI",null,null,"Date de Début","Date de fin","Nom du groupe"]
[null,{"$f":"B6+1","v":"2024-04-22"},"Lundi de Pâques",{"$f":"IFERROR(WEEKDAY(TableauJoursFériés2[[#This Row],[JOUR]],IF(DébutSemaine=\"LUNDI\",2,1)),0)","v":1},{"$f":"E6+1","v":"2024-04-22"},"VRAI",null,"2024-01-01","2024-01-01","2024-01-10","SFR"]
[null,{"$f":"DATE(C2,5,1)","v":"2024-05-01"},"Fête du travail",{"$f":"IFERROR(WEEKDAY(TableauJoursFériés2[[#This Row],[JOUR]],IF(DébutSemaine=\"LUNDI\",2,1)),0)","v":3},{"$f":"DATE(C2,5,1)","v":"2024-05-01"},"VRAI",null,null,"2024-01-20","2024-01-25","kuoni"]
[null,{"$f":"DATE(C2,5,8)","v":"2024-05-08"},"Victoire 1945",{"$f":"IFERROR(WEEKDAY(TableauJoursFériés2[[#This Row],[JOUR]],IF(DébutSemaine=\"LUNDI\",2,1)),0)","v":3},{"$f":"DATE(C2,5,8)","v":"2024-05-08"},"VRAI",null,null,"2024-01-12","2024-01-15","ACCOR"]
[null,{"$f":"B6+39","v":"2024-05-30"},"Ascension",{"$f":"IFERROR(WEEKDAY(TableauJoursFériés2[[#This Row],[JOUR]],IF(DébutSemaine=\"LUNDI\",2,1)),0)","v":4},{"$f":"C2+39","v":"1905-08-24"},"VRAI",null,null,"2024-01-01","2024-01-10","michelin"]
[null,{"$f":"B6+49","v":"2024-06-09"},"Pentecôte",{"$f":"IFERROR(WEEKDAY(TableauJoursFériés2[[#This Row],[JOUR]],IF(DébutSemaine=\"LUNDI\",2,1)),0)","v":7},{"$f":"C2+49","v":"1905-09-03"},"VRAI"]
[null,{"$f":"B6+50","v":"2024-06-10"},"Lundi de Pentecôte",{"$f":"IFERROR(WEEKDAY(TableauJoursFériés2[[#This Row],[JOUR]],IF(DébutSemaine=\"LUNDI\",2,1)),0)","v":1},{"$f":"C2+50","v":"1905-09-04"},"VRAI"]
[null,{"$f":"DATE(C2,7,14)","v":"2024-07-14"},"Fête Nationale",{"$f":"IFERROR(WEEKDAY(TableauJoursFériés2[[#This Row],[JOUR]],IF(DébutSemaine=\"LUNDI\",2,1)),0)","v":7},{"$f":"DATE(C2,7,14)","v":"2024-07-14"},"VRAI"]
[null,{"$f":"DATE(C2,8,15)","v":"2024-08-15"},"Assomption",{"$f":"IFERROR(WEEKDAY(TableauJoursFériés2[[#This Row],[JOUR]],IF(DébutSemaine=\"LUNDI\",2,1)),0)","v":4},{"$f":"DATE(C2,8,15)","v":"2024-08-15"},"VRAI"]
[null,{"$f":"DATE(C2,11,1)","v":"2024-11-01"},"Toussaint",{"$f":"IFERROR(WEEKDAY(TableauJoursFériés2[[#This Row],[JOUR]],IF(DébutSemaine=\"LUNDI\",2,1)),0)","v":5},{"$f":"DATE(C2,11,1)","v":"2024-11-01"},"VRAI"]
[null,{"$f":"DATE(C2,11,11)","v":"2024-11-11"},"Armistice 1918",{"$f":"IFERROR(WEEKDAY(TableauJoursFériés2[[#This Row],[JOUR]],IF(DébutSemaine=\"LUNDI\",2,1)),0)","v":1},{"$f":"DATE(C2,11,11)","v":"2024-11-11"},"VRAI"]
[null,{"$f":"DATE(C2,12,25)","v":"2024-12-25"},"Noël",{"$f":"IFERROR(WEEKDAY(TableauJoursFériés2[[#This Row],[JOUR]],IF(DébutSemaine=\"LUNDI\",2,1)),0)","v":3},{"$f":"DATE(C2,12,25)","v":"2024-12-25"},true]

{"sheet":"Janvier","index":2,"n_rows":28,"n_cols":8,"rows_kept":28,"cut":false,"hidden":false,"merged":[[1,1,1,2]]}
[]
[null,{"$f":"B10","v":"2024-01-08"}]
[]
[]
[]
[null,{"$f":"DébutSemaine","v":"LUNDI"},{"$f":"UPPER(TEXT(C7,\"jjjj\"))","v":"MARDI"},{"$f":"UPPER(TEXT(D7,\"jjjj\"))","v":"MERCREDI"},{"$f":"UPPER(TEXT(E7,\"jjjj\"))","v":"JEUDI"},"VENDREDI","SAMEDI","DIMANCHE"]
[null,{"$f":"Jours+DATE(AnnéeCal,1,1)-WEEKDAY(DATE(AnnéeCal,1,1),(DébutSemaine=\"LUNDI\")+1)+1","v":"2024-01-01"},{"$f":"Jours+DATE(AnnéeCal,1,1)-WEEKDAY(DATE(AnnéeCal,1,1),(DébutSemaine=\"LUNDI\")+1)+2","v":"2024-01-02"},{"$f":"Jours+DATE(AnnéeCal,1,1)-WEEKDAY(DATE(AnnéeCal,1,1),(DébutSemaine=\"LUNDI\")+1)+3","v":"2024-01-03"},{"$f":"Jours+DATE(AnnéeCal,1,1)-WEEKDAY(DATE(AnnéeCal,1,1),(DébutSemaine=\"LUNDI\")+1)+4","v":"2024-01-04"},{"$f":"Jours+DATE(AnnéeCal,1,1)-WEEKDAY(DATE(AnnéeCal,1,1),(DébutSemaine=\"LUNDI\")+1)+5","v":"2024-01-05"},{"$f":"Jours+DATE(AnnéeCal,1,1)-WEEKDAY(DATE(AnnéeCal,1,1),(DébutSemaine=\"LUNDI\")+1)+6","v":"2024-01-06"},{"$f":"Jours+DATE(AnnéeCal,1,1)-WEEKDAY(DATE(AnnéeCal,1,1),(DébutSemaine=\"LUNDI\")+1)+7","v":"2024-01-07"}]
[null,{"$f":"groupes(B7)","v":"SFR - michelin"},{"$f":"groupes(C7)","v":"SFR - michelin"},{"$f":"groupes(D7)","v":"SFR - michelin"},{"$f":"groupes(E7)","v":"SFR - michelin"},{"$f":"groupes(F7)","v":"SFR - michelin"},{"$f":"groupes(G7)","v":"SFR - michelin"},{"$f":"groupes(H7)","v":"SFR - michelin"}]
[null,{"$f":"IFERROR(IF(AfficherJoursFériés,IF(INDEX(TableauJoursFériés2[],MATCH(DATE(AnnéeCal,MONTH(B$7),DAY(B$7)),IF(AfficherObservés,TableauJoursFériés2[CORRIGÉ],TableauJoursFériés2[JOUR]),0),5),INDEX(TableauJoursFériés2[],MATCH(DATE(AnnéeCal,MONTH(B$7),DAY(B$7)),IF(AfficherObservés,TableauJoursFériés2[CORRIGÉ],TableauJoursFériés2[JOUR]),0),2),\"\"),\"\"),\"\")","v":"Premier jour de l’an"},{"$f":"IFERROR(IF(AfficherJoursFériés,IF(INDEX(TableauJoursFériés2[],MATCH(DATE(AnnéeCal,MONTH(C$7),DAY(C$7)),IF(AfficherObservés,TableauJoursFériés2[CORRIGÉ],TableauJoursFériés2[JOUR]),0),5),INDEX(TableauJoursFériés2[],MATCH(DATE(AnnéeCal,MONTH(C$7),DAY(C$7)),IF(AfficherObservés,TableauJoursFériés2[CORRIGÉ],TableauJoursFériés2[JOUR]),0),2),\"\"),\"\"),\"\")","v":""},{"$f":"IFERROR(IF(AfficherJoursFériés,IF(INDEX(TableauJoursFériés2[],MATCH(DATE(AnnéeCal,MONTH(D$7),DAY(D$7)),IF(AfficherObservés,TableauJoursFériés2[CORRIGÉ],TableauJoursFériés2[JOUR]),0),5),INDEX(TableauJoursFériés2[],MATCH(DATE(AnnéeCal,MONTH(D$7),DAY(D$7)),IF(AfficherObservés,TableauJoursFériés2[CORRIGÉ],TableauJoursFériés2[JOUR]),0),2),\"\"),\"\"),\"\")","v":""},{"$f":"IFERROR(IF(AfficherJoursFériés,IF(INDEX(TableauJoursFériés2[],MATCH(DATE(AnnéeCal,MONTH(E$7),DAY(E$7)),IF(AfficherObservés,TableauJoursFériés2[CORRIGÉ],TableauJoursFériés2[JOUR]),0),5),INDEX(TableauJoursFériés2[],MATCH(DATE(AnnéeCal,MONTH(E$7),DAY(E$7)),IF(AfficherObservés,TableauJoursFériés2[CORRIGÉ],TableauJoursFériés2[JOUR]),0),2),\"\"),\"\"),\"\")","v":""},{"$f":"IFERROR(IF(AfficherJoursFériés,IF(INDEX(TableauJoursFériés2[],MATCH(DATE(AnnéeCal,MONTH(F$7),DAY(F$7)),IF(AfficherObservés,TableauJoursFériés2[CORRIGÉ],TableauJoursFériés2[JOUR]),0),5),INDEX(TableauJoursFériés2[],MATCH(DATE(AnnéeCal,MONTH(F$7),DAY(F$7)),IF(AfficherObservés,TableauJoursFériés2[CORRIGÉ],TableauJoursFériés2[JOUR]),0),2),\"\"),\"\"),\"\")","v":""},{"$f":"IFERROR(IF(AfficherJoursFériés,IF(INDEX(TableauJoursFériés2[],MATCH(DATE(AnnéeCal,MONTH(G$7),DAY(G$7)),IF(AfficherObservés,TableauJoursFériés2[CORRIGÉ],TableauJoursFériés2[JOUR]),0),5),INDEX(TableauJoursFériés2[],MATCH(DATE(AnnéeCal,MONTH(G$7),DAY(G$7)),IF(AfficherObservés,TableauJoursFériés2[CORRIGÉ],TableauJoursFériés2[JOUR]),0),2),\"\"),\"\"),\"\")","v":""},{"$f":"IFERROR(IF(AfficherJoursFériés,IF(INDEX(TableauJoursFériés2[],MATCH(DATE(AnnéeCal,MONTH(H$7),DAY(H$7)),IF(AfficherObservés,TableauJoursFériés2[CORRIGÉ],TableauJoursFériés2[JOUR]),0),5),INDEX(TableauJoursFériés2[],MATCH(DATE(AnnéeCal,MONTH(H$7),DAY(H$7)),IF(AfficherObservés,TableauJoursFériés2[CORRIGÉ],TableauJoursFériés2[JOUR]),0),2),\"\"),\"\"),\"\")","v":""}]
[null,{"$f":"Jours+DATE(AnnéeCal,1,1)-WEEKDAY(DATE(AnnéeCal,1,1),(DébutSemaine=\"LUNDI\")+1)+8","v":"2024-01-08"},{"$f":"Jours+DATE(AnnéeCal,MONTH(Paramètres!$A$15),1)-WEEKDAY(DATE(AnnéeCal,MONTH(Paramètres!$A$15),1),(DébutSemaine=\"LUNDI\")+1)+Paramètres!$A18*7-6+1","v":"2024-01-09"},{"$f":"Jours+DATE(AnnéeCal,MONTH(Paramètres!$A$15),1)-WEEKDAY(DATE(AnnéeCal,MONTH(Paramètres!$A$15),1),(DébutSemaine=\"LUNDI\")+1)+Paramètres!$A18*7-6+2","v":"2024-01-10"},{"$f":"Jours+DATE(AnnéeCal,MONTH(Paramètres!$A$15),1)-WEEKDAY(DATE(AnnéeCal,MONTH(Paramètres!$A$15),1),(DébutSemaine=\"LUNDI\")+1)+Paramètres!$A18*7-6+3","v":"2024-01-11"},{"$f":"Jours+DATE(AnnéeCal,MONTH(Paramètres!$A$15),1)-WEEKDAY(DATE(AnnéeCal,MONTH(Paramètres!$A$15),1),(DébutSemaine=\"LUNDI\")+1)+Paramètres!$A18*7-6+4","v":"2024-01-12"},{"$f":"Jours+DATE(AnnéeCal,MONTH(Paramètres!$A$15),1)-WEEKDAY(DATE(AnnéeCal,MONTH(Paramètres!$A$15),1),(DébutSemaine=\"LUNDI\")+1)+Paramètres!$A18*7-6+5","v":"2024-01-13"},{"$f":"Jours+DATE(AnnéeCal,MONTH(Paramètres!$A$15),1)-WEEKDAY(DATE(AnnéeCal,MONTH(Paramètres!$A$15),1),(DébutSemaine=\"LUNDI\")+1)+Paramètres!$A18*7-6+6","v":"2024-01-14"}]
[null,{"$f":"groupes(B10)","v":"SFR - michelin"},{"$f":"groupes(C10)","v":"SFR - michelin"},{"$f":"groupes(D10)","v":"SFR - michelin"},{"$f":"groupes(E10)","v":" "},{"$f":"groupes(F10)","v":"ACCOR"},{"$f":"groupes(G10)","v":"ACCOR"},{"$f":"groupes(H10)","v":"ACCOR"}]
[null,{"$f":"IFERROR(IF(AfficherJoursFériés,IF(INDEX(TableauJoursFériés2[],MATCH(DATE(AnnéeCal,MONTH(B10),DAY(B10)),IF(AfficherObservés,TableauJoursFériés2[CORRIGÉ],TableauJoursFériés2[JOUR]),0),5),INDEX(TableauJoursFériés2[],MATCH(DATE(AnnéeCal,MONTH(B10),DAY(B10)),IF(AfficherObservés,TableauJoursFériés2[CORRIGÉ],TableauJoursFériés2[JOUR]),0),2),\"\"),\"\"),\"\")","v":""},{"$f":"IFERROR(IF(AfficherJoursFériés,IF(INDEX(TableauJoursFériés2[],MATCH(DATE(AnnéeCal,MONTH(C10),DAY(C10)),IF(AfficherObservés,TableauJoursFériés2[CORRIGÉ],TableauJoursFériés2[JOUR]),0),5),INDEX(TableauJoursFériés2[],MATCH(DATE(AnnéeCal,MONTH(C10),DAY(C10)),IF(AfficherObservés,TableauJoursFériés2[CORRIGÉ],TableauJoursFériés2[JOUR]),0),2),\"\"),\"\"),\"\")","v":""},{"$f":"IFERROR(IF(AfficherJoursFériés,IF(INDEX(TableauJoursFériés2[],MATCH(DATE(AnnéeCal,MONTH(D10),DAY(D10)),IF(AfficherObservés,TableauJoursFériés2[CORRIGÉ],TableauJoursFériés2[JOUR]),0),5),INDEX(TableauJoursFériés2[],MATCH(DATE(AnnéeCal,MONTH(D10),DAY(D10)),IF(AfficherObservés,TableauJoursFériés2[CORRIGÉ],TableauJoursFériés2[JOUR]),0),2),\"\"),\"\"),\"\")","v":""},{"$f":"IFERROR(IF(AfficherJoursFériés,IF(INDEX(TableauJoursFériés2[],MATCH(DATE(AnnéeCal,MONTH(E10),DAY(E10)),IF(AfficherObservés,TableauJoursFériés2[CORRIGÉ],TableauJoursFériés2[JOUR]),0),5),INDEX(TableauJoursFériés2[],MATCH(DATE(AnnéeCal,MONTH(E10),DAY(E10)),IF(AfficherObservés,TableauJoursFériés2[CORRIGÉ],TableauJoursFériés2[JOUR]),0),2),\"\"),\"\"),\"\")","v":""},{"$f":"IFERROR(IF(AfficherJoursFériés,IF(INDEX(TableauJoursFériés2[],MATCH(DATE(AnnéeCal,MONTH(F10),DAY(F10)),IF(AfficherObservés,TableauJoursFériés2[CORRIGÉ],TableauJoursFériés2[JOUR]),0),5),INDEX(TableauJoursFériés2[],MATCH(DATE(AnnéeCal,MONTH(F10),DAY(F10)),IF(AfficherObservés,TableauJoursFériés2[CORRIGÉ],TableauJoursFériés2[JOUR]),0),2),\"\"),\"\"),\"\")","v":""},{"$f":"IFERROR(IF(AfficherJoursFériés,IF(INDEX(TableauJoursFériés2[],MATCH(DATE(AnnéeCal,MONTH(G10),DAY(G10)),IF(AfficherObservés,TableauJoursFériés2[CORRIGÉ],TableauJoursFériés2[JOUR]),0),5),INDEX(TableauJoursFériés2[],MATCH(DATE(AnnéeCal,MONTH(G10),DAY(G10)),IF(AfficherObservés,TableauJoursFériés2[CORRIGÉ],TableauJoursFériés2[JOUR]),0),2),\"\"),\"\"),\"\")","v":""},{"$f":"IFERROR(IF(AfficherJoursFériés,IF(INDEX(TableauJoursFériés2[],MATCH(DATE(AnnéeCal,MONTH(H10),DAY(H10)),IF(AfficherObservés,TableauJoursFériés2[CORRIGÉ],TableauJoursFériés2[JOUR]),0),5),INDEX(TableauJoursFériés2[],MATCH(DATE(AnnéeCal,MONTH(H10),DAY(H10)),IF(AfficherObservés,TableauJoursFériés2[CORRIGÉ],TableauJoursFériés2[JOUR]),0),2),\"\"),\"\"),\"\")","v":""}]
[null,{"$f":"Jours+DATE(AnnéeCal,MONTH(Paramètres!$A$15),1)-WEEKDAY(DATE(AnnéeCal,MONTH(Paramètres!$A$15),1),(DébutSemaine=\"LUNDI\")+1)+Paramètres!$A19*7-6","v":"2024-01-15"},{"$f":"Jours+DATE(AnnéeCal,MONTH(Paramètres!$A$15),1)-WEEKDAY(DATE(AnnéeCal,MONTH(Paramètres!$A$15),1),(DébutSemaine=\"LUNDI\")+1)+Paramètres!$A19*7-6+1","v":"2024-01-16"},{"$f":"Jours+DATE(AnnéeCal,MONTH(Paramètres!$A$15),1)-WEEKDAY(DATE(AnnéeCal,MONTH(Paramètres!$A$15),1),(DébutSemaine=\"LUNDI\")+1)+Paramètres!$A19*7-6+2","v":"2024-01-17"},{"$f":"Jours+DATE(AnnéeCal,MONTH(Paramètres!$A$15),1)-WEEKDAY(DATE(AnnéeCal,MONTH(Paramètres!$A$15),1),(DébutSemaine=\"LUNDI\")+1)+Paramètres!$A19*7-6+3","v":"2024-01-18"},{"$f":"Jours+DATE(AnnéeCal,MONTH(Paramètres!$A$15),1)-WEEKDAY(DATE(AnnéeCal,MONTH(Paramètres!$A$15),1),(DébutSemaine=\"LUNDI\")+1)+Paramètres!$A19*7-6+4","v":"2024-01-19"},{"$f":"Jours+DATE(AnnéeCal,MONTH(Paramètres!$A$15),1)-WEEKDAY(DATE(AnnéeCal,MONTH(Paramètres!$A$15),1),(DébutSemaine=\"LUNDI\")+1)+Paramètres!$A19*7-6+5","v":"2024-01-20"},{"$f":"Jours+DATE(AnnéeCal,MONTH(Paramètres!$A$15),1)-WEEKDAY(DATE(AnnéeCal,MONTH(Paramètres!$A$15),1),(DébutSemaine=\"LUNDI\")+1)+Paramètres!$A19*7-6+6","v":"2024-01-21"}]
[null,{"$f":"groupes(B13)","v":"ACCOR"},{"$f":"groupes(C13)","v":" "},{"$f":"groupes(D13)","v":" "},{"$f":"groupes(E13)","v":" "},{"$f":"groupes(F13)","v":" "},{"$f":"groupes(G13)","v":"kuoni"},{"$f":"groupes(H13)","v":"kuoni"}]
[null,{"$f":"IFERROR(IF(AfficherJoursFériés,IF(INDEX(TableauJoursFériés2[],MATCH(DATE(AnnéeCal,MONTH(B13),DAY(B13)),IF(AfficherObservés,TableauJoursFériés2[CORRIGÉ],TableauJoursFériés2[JOUR]),0),5),INDEX(TableauJoursFériés2[],MATCH(DATE(AnnéeCal,MONTH(B13),DAY(B13)),IF(AfficherObservés,TableauJoursFériés2[CORRIGÉ],TableauJoursFériés2[JOUR]),0),2),\"\"),\"\"),\"\")","v":""},{"$f":"IFERROR(IF(AfficherJoursFériés,IF(INDEX(TableauJoursFériés2[],MATCH(DATE(AnnéeCal,MONTH(C13),DAY(C13)),IF(AfficherObservés,TableauJoursFériés2[CORRIGÉ],TableauJoursFériés2[JOUR]),0),5),INDEX(TableauJoursFériés2[],MATCH(DATE(AnnéeCal,MONTH(C13),DAY(C13)),IF(AfficherObservés,TableauJoursFériés2[CORRIGÉ],TableauJoursFériés2[JOUR]),0),2),\"\"),\"\"),\"\")","v":""},{"$f":"IFERROR(IF(AfficherJoursFériés,IF(INDEX(TableauJoursFériés2[],MATCH(DATE(AnnéeCal,MONTH(D13),DAY(D13)),IF(AfficherObservés,TableauJoursFériés2[CORRIGÉ],TableauJoursFériés2[JOUR]),0),5),INDEX(TableauJoursFériés2[],MATCH(DATE(AnnéeCal,MONTH(D13),DAY(D13)),IF(AfficherObservés,TableauJoursFériés2[CORRIGÉ],TableauJoursFériés2[JOUR]),0),2),\"\"),\"\"),\"\")","v":""},{"$f":"IFERROR(IF(AfficherJoursFériés,IF(INDEX(TableauJoursFériés2[],MATCH(DATE(AnnéeCal,MONTH(E13),DAY(E13)),IF(AfficherObservés,TableauJoursFériés2[CORRIGÉ],TableauJoursFériés2[JOUR]),0),5),INDEX(TableauJoursFériés2[],MATCH(DATE(AnnéeCal,MONTH(E13),DAY(E13)),IF(AfficherObservés,TableauJoursFériés2[CORRIGÉ],TableauJoursFériés2[JOUR]),0),2),\"\"),\"\"),\"\")","v":""},{"$f":"IFERROR(IF(AfficherJoursFériés,IF(INDEX(TableauJoursFériés2[],MATCH(DATE(AnnéeCal,MONTH(F13),DAY(F13)),IF(AfficherObservés,TableauJoursFériés2[CORRIGÉ],TableauJoursFériés2[JOUR]),0),5),INDEX(TableauJoursFériés2[],MATCH(DATE(AnnéeCal,MONTH(F13),DAY(F13)),IF(AfficherObservés,TableauJoursFériés2[CORRIGÉ],TableauJoursFériés2[JOUR]),0),2),\"\"),\"\"),\"\")","v":""},{"$f":"IFERROR(IF(AfficherJoursFériés,IF(INDEX(TableauJoursFériés2[],MATCH(DATE(AnnéeCal,MONTH(G13),DAY(G13)),IF(AfficherObservés,TableauJoursFériés2[CORRIGÉ],TableauJoursFériés2[JOUR]),0),5),INDEX(TableauJoursFériés2[],MATCH(DATE(AnnéeCal,MONTH(G13),DAY(G13)),IF(AfficherObservés,TableauJoursFériés2[CORRIGÉ],TableauJoursFériés2[JOUR]),0),2),\"\"),\"\"),\"\")","v":""},{"$f":"IFERROR(IF(AfficherJoursFériés,IF(INDEX(TableauJoursFériés2[],MATCH(DATE(AnnéeCal,MONTH(H13),DAY(H13)),IF(AfficherObservés,TableauJoursFériés2[CORRIGÉ],TableauJoursFériés2[JOUR]),0),5),INDEX(TableauJoursFériés2[],MATCH(DATE(AnnéeCal,MONTH(H13),DAY(H13)),IF(AfficherObservés,TableauJoursFériés2[CORRIGÉ],TableauJoursFériés2[JOUR]),0),2),\"\"),\"\"),\"\")","v":""}]
[null,{"$f":"Jours+DATE(AnnéeCal,MONTH(Paramètres!$A$15),1)-WEEKDAY(DATE(AnnéeCal,MONTH(Paramètres!$A$15),1),(DébutSemaine=\"LUNDI\")+1)+Paramètres!$A20*7-6","v":"2024-01-22"},{"$f":"Jours+DATE(AnnéeCal,MONTH(Paramètres!$A$15),1)-WEEKDAY(DATE(AnnéeCal,MONTH(Paramètres!$A$15),1),(DébutSemaine=\"LUNDI\")+1)+Paramètres!$A20*7-6+1","v":"2024-01-23"},{"$f":"Jours+DATE(AnnéeCal,MONTH(Paramètres!$A$15),1)-WEEKDAY(DATE(AnnéeCal,MONTH(Paramètres!$A$15),1),(DébutSemaine=\"LUNDI\")+1)+Paramètres!$A20*7-6+2","v":"2024-01-24"},{"$f":"Jours+DATE(AnnéeCal,MONTH(Paramètres!$A$15),1)-WEEKDAY(DATE(AnnéeCal,MONTH(Paramètres!$A$15),1),(DébutSemaine=\"LUNDI\")+1)+Paramètres!$A20*7-6+3","v":"2024-01-25"},{"$f":"Jours+DATE(AnnéeCal,MONTH(Paramètres!$A$15),1)-WEEKDAY(DATE(AnnéeCal,MONTH(Paramètres!$A$15),1),(DébutSemaine=\"LUNDI\")+1)+Paramètres!$A20*7-6+4","v":"2024-01-26"},{"$f":"Jours+DATE(AnnéeCal,MONTH(Paramètres!$A$15),1)-WEEKDAY(DATE(AnnéeCal,MONTH(Paramètres!$A$15),1),(DébutSemaine=\"LUNDI\")+1)+Paramètres!$A20*7-6+5","v":"2024-01-27"},{"$f":"Jours+DATE(AnnéeCal,MONTH(Paramètres!$A$15),1)-WEEKDAY(DATE(AnnéeCal,MONTH(Paramètres!$A$15),1),(DébutSemaine=\"LUNDI\")+1)+Paramètres!$A20*7-6+6","v":"2024-01-28"}]
[null,{"$f":"groupes(B16)","v":"kuoni"},{"$f":"groupes(C16)","v":"kuoni"},{"$f":"groupes(D16)","v":"kuoni"},{"$f":"groupes(E16)","v":"kuoni"},{"$f":"groupes(F16)","v":" "},{"$f":"groupes(G16)","v":" "},{"$f":"groupes(H16)","v":" "}]
[null,{"$f":"IFERROR(IF(AfficherJoursFériés,IF(INDEX(TableauJoursFériés2[],MATCH(DATE(AnnéeCal,MONTH(B16),DAY(B16)),IF(AfficherObservés,TableauJoursFériés2[CORRIGÉ],TableauJoursFériés2[JOUR]),0),5),INDEX(TableauJoursFériés2[],MATCH(DATE(AnnéeCal,MONTH(B16),DAY(B16)),IF(AfficherObservés,TableauJoursFériés2[CORRIGÉ],TableauJoursFériés2[JOUR]),0),2),\"\"),\"\"),\"\")","v":""},{"$f":"IFERROR(IF(AfficherJoursFériés,IF(INDEX(TableauJoursFériés2[],MATCH(DATE(AnnéeCal,MONTH(C16),DAY(C16)),IF(AfficherObservés,TableauJoursFériés2[CORRIGÉ],TableauJoursFériés2[JOUR]),0),5),INDEX(TableauJoursFériés2[],MATCH(DATE(AnnéeCal,MONTH(C16),DAY(C16)),IF(AfficherObservés,TableauJoursFériés2[CORRIGÉ],TableauJoursFériés2[JOUR]),0),2),\"\"),\"\"),\"\")","v":""},{"$f":"IFERROR(IF(AfficherJoursFériés,IF(INDEX(TableauJoursFériés2[],MATCH(DATE(AnnéeCal,MONTH(D16),DAY(D16)),IF(AfficherObservés,TableauJoursFériés2[CORRIGÉ],TableauJoursFériés2[JOUR]),0),5),INDEX(TableauJoursFériés2[],MATCH(DATE(AnnéeCal,MONTH(D16),DAY(D16)),IF(AfficherObservés,TableauJoursFériés2[CORRIGÉ],TableauJoursFériés2[JOUR]),0),2),\"\"),\"\"),\"\")","v":""},{"$f":"IFERROR(IF(AfficherJoursFériés,IF(INDEX(TableauJoursFériés2[],MATCH(DATE(AnnéeCal,MONTH(E16),DAY(E16)),IF(AfficherObservés,TableauJoursFériés2[CORRIGÉ],TableauJoursFériés2[JOUR]),0),5),INDEX(TableauJoursFériés2[],MATCH(DATE(AnnéeCal,MONTH(E16),DAY(E16)),IF(AfficherObservés,TableauJoursFériés2[CORRIGÉ],TableauJoursFériés2[JOUR]),0),2),\"\"),\"\"),\"\")","v":""},{"$f":"IFERROR(IF(AfficherJoursFériés,IF(INDEX(TableauJoursFériés2[],MATCH(DATE(AnnéeCal,MONTH(F16),DAY(F16)),IF(AfficherObservés,TableauJoursFériés2[CORRIGÉ],TableauJoursFériés2[JOUR]),0),5),INDEX(TableauJoursFériés2[],MATCH(DATE(AnnéeCal,MONTH(F16),DAY(F16)),IF(AfficherObservés,TableauJoursFériés2[CORRIGÉ],TableauJoursFériés2[JOUR]),0),2),\"\"),\"\"),\"\")","v":""},{"$f":"IFERROR(IF(AfficherJoursFériés,IF(INDEX(TableauJoursFériés2[],MATCH(DATE(AnnéeCal,MONTH(G16),DAY(G16)),IF(AfficherObservés,TableauJoursFériés2[CORRIGÉ],TableauJoursFériés2[JOUR]),0),5),INDEX(TableauJoursFériés2[],MATCH(DATE(AnnéeCal,MONTH(G16),DAY(G16)),IF(AfficherObservés,TableauJoursFériés2[CORRIGÉ],TableauJoursFériés2[JOUR]),0),2),\"\"),\"\"),\"\")","v":""},{"$f":"IFERROR(IF(AfficherJoursFériés,IF(INDEX(TableauJoursFériés2[],MATCH(DATE(AnnéeCal,MONTH(H16),DAY(H16)),IF(AfficherObservés,TableauJoursFériés2[CORRIGÉ],TableauJoursFériés2[JOUR]),0),5),INDEX(TableauJoursFériés2[],MATCH(DATE(AnnéeCal,MONTH(H16),DAY(H16)),IF(AfficherObservés,TableauJoursFériés2[CORRIGÉ],TableauJoursFériés2[JOUR]),0),2),\"\"),\"\"),\"\")","v":""}]
[null,{"$f":"Jours+DATE(AnnéeCal,MONTH(Paramètres!$A$15),1)-WEEKDAY(DATE(AnnéeCal,MONTH(Paramètres!$A$15),1),(DébutSemaine=\"LUNDI\")+1)+Paramètres!$A21*7-6","v":"2024-01-29"},{"$f":"Jours+DATE(AnnéeCal,MONTH(Paramètres!$A$15),1)-WEEKDAY(DATE(AnnéeCal,MONTH(Paramètres!$A$15),1),(DébutSemaine=\"LUNDI\")+1)+Paramètres!$A21*7-6+1","v":"2024-01-30"},{"$f":"Jours+DATE(AnnéeCal,MONTH(Paramètres!$A$15),1)-WEEKDAY(DATE(AnnéeCal,MONTH(Paramètres!$A$15),1),(DébutSemaine=\"LUNDI\")+1)+Paramètres!$A21*7-6+2","v":"2024-01-31"},{"$f":"Jours+DATE(AnnéeCal,MONTH(Paramètres!$A$15),1)-WEEKDAY(DATE(AnnéeCal,MONTH(Paramètres!$A$15),1),(DébutSemaine=\"LUNDI\")+1)+Paramètres!$A21*7-6+3","v":"2024-02-01"},{"$f":"Jours+DATE(AnnéeCal,MONTH(Paramètres!$A$15),1)-WEEKDAY(DATE(AnnéeCal,MONTH(Paramètres!$A$15),1),(DébutSemaine=\"LUNDI\")+1)+Paramètres!$A21*7-6+4","v":"2024-02-02"},{"$f":"Jours+DATE(AnnéeCal,MONTH(Paramètres!$A$15),1)-WEEKDAY(DATE(AnnéeCal,MONTH(Paramètres!$A$15),1),(DébutSemaine=\"LUNDI\")+1)+Paramètres!$A21*7-6+5","v":"2024-02-03"},{"$f":"Jours+DATE(AnnéeCal,MONTH(Paramètres!$A$15),1)-WEEKDAY(DATE(AnnéeCal,MONTH(Paramètres!$A$15),1),(DébutSemaine=\"LUNDI\")+1)+Paramètres!$A21*7-6+6","v":"2024-02-04"}]
[null,{"$f":"groupes(B19)","v":" "},{"$f":"groupes(C19)","v":" "},{"$f":"groupes(D19)","v":" "},{"$f":"groupes(E19)","v":" "},{"$f":"groupes(F19)","v":" "},{"$f":"groupes(G19)","v":" "},{"$f":"groupes(H19)","v":" "}]
[null,{"$f":"IFERROR(IF(AfficherJoursFériés,IF(INDEX(TableauJoursFériés2[],MATCH(DATE(AnnéeCal,MONTH(B19),DAY(B19)),IF(AfficherObservés,TableauJoursFériés2[CORRIGÉ],TableauJoursFériés2[JOUR]),0),5),INDEX(TableauJoursFériés2[],MATCH(DATE(AnnéeCal,MONTH(B19),DAY(B19)),IF(AfficherObservés,TableauJoursFériés2[CORRIGÉ],TableauJoursFériés2[JOUR]),0),2),\"\"),\"\"),\"\")","v":""},{"$f":"IFERROR(IF(AfficherJoursFériés,IF(INDEX(TableauJoursFériés2[],MATCH(DATE(AnnéeCal,MONTH(C19),DAY(C19)),IF(AfficherObservés,TableauJoursFériés2[CORRIGÉ],TableauJoursFériés2[JOUR]),0),5),INDEX(TableauJoursFériés2[],MATCH(DATE(AnnéeCal,MONTH(C19),DAY(C19)),IF(AfficherObservés,TableauJoursFériés2[CORRIGÉ],TableauJoursFériés2[JOUR]),0),2),\"\"),\"\"),\"\")","v":""},{"$f":"IFERROR(IF(AfficherJoursFériés,IF(INDEX(TableauJoursFériés2[],MATCH(DATE(AnnéeCal,MONTH(D19),DAY(D19)),IF(AfficherObservés,TableauJoursFériés2[CORRIGÉ],TableauJoursFériés2[JOUR]),0),5),INDEX(TableauJoursFériés2[],MATCH(DATE(AnnéeCal,MONTH(D19),DAY(D19)),IF(AfficherObservés,TableauJoursFériés2[CORRIGÉ],TableauJoursFériés2[JOUR]),0),2),\"\"),\"\"),\"\")","v":""},{"$f":"IFERROR(IF(AfficherJoursFériés,IF(INDEX(TableauJoursFériés2[],MATCH(DATE(AnnéeCal,MONTH(E19),DAY(E19)),IF(AfficherObservés,TableauJoursFériés2[CORRIGÉ],TableauJoursFériés2[JOUR]),0),5),INDEX(TableauJoursFériés2[],MATCH(DATE(AnnéeCal,MONTH(E19),DAY(E19)),IF(AfficherObservés,TableauJoursFériés2[CORRIGÉ],TableauJoursFériés2[JOUR]),0),2),\"\"),\"\"),\"\")","v":""},{"$f":"IFERROR(IF(AfficherJoursFériés,IF(INDEX(TableauJoursFériés2[],MATCH(DATE(AnnéeCal,MONTH(F19),DAY(F19)),IF(AfficherObservés,TableauJoursFériés2[CORRIGÉ],TableauJoursFériés2[JOUR]),0),5),INDEX(TableauJoursFériés2[],MATCH(DATE(AnnéeCal,MONTH(F19),DAY(F19)),IF(AfficherObservés,TableauJoursFériés2[CORRIGÉ],TableauJoursFériés2[JOUR]),0),2),\"\"),\"\"),\"\")","v":""},{"$f":"IFERROR(IF(AfficherJoursFériés,IF(INDEX(TableauJoursFériés2[],MATCH(DATE(AnnéeCal,MONTH(G19),DAY(G19)),IF(AfficherObservés,TableauJoursFériés2[CORRIGÉ],TableauJoursFériés2[JOUR]),0),5),INDEX(TableauJoursFériés2[],MATCH(DATE(AnnéeCal,MONTH(G19),DAY(G19)),IF(AfficherObservés,TableauJoursFériés2[CORRIGÉ],TableauJoursFériés2[JOUR]),0),2),\"\"),\"\"),\"\")","v":""},{"$f":"IFERROR(IF(AfficherJoursFériés,IF(INDEX(TableauJoursFériés2[],MATCH(DATE(AnnéeCal,MONTH(H19),DAY(H19)),IF(AfficherObservés,TableauJoursFériés2[CORRIGÉ],TableauJoursFériés2[JOUR]),0),5),INDEX(TableauJoursFériés2[],MATCH(DATE(AnnéeCal,MONTH(H19),DAY(H19)),IF(AfficherObservés,TableauJoursFériés2[CORRIGÉ],TableauJoursFériés2[JOUR]),0),2),\"\"),\"\"),\"\")","v":""}]
[]
[]
[]
[null,null,"Fonction personnalisée groupes"]
[null,null,"syntaxe :    =groupes(cellule de la date du jour)"]
[]
[null,null,"ALT+F11 pour ouvrir éditeur VBA puis aller dans Module 1 pour voir code commenté"]

{"sheet":"Février","index":3,"n_rows":15,"n_cols":8,"rows_kept":15,"cut":false,"hidden":false,"merged":[[0,1,0,3]]}
[null,{"$f":"C9","v":"2024-02-13"}]
[]
[]
[null,{"$f":"DébutSemaine","v":"LUNDI"},{"$f":"UPPER(TEXT(C5,\"jjjj\"))","v":"MARDI"},{"$f":"UPPER(TEXT(D5,\"jjjj\"))","v":"MERCREDI"},"JEUDI","VENDREDI","SAMEDI","DIMANCHE"]
[null,{"$f":"Jours+DATE(AnnéeCal,2,1)-WEEKDAY(DATE(AnnéeCal,2,1),(DébutSemaine=\"LUNDI\")+1)+1","v":"2024-01-29"},"2024-01-30","2024-01-31","2024-02-01","2024-02-02","2024-02-03","2024-02-04"]
[null,{"$f":"IFERROR(IF(AfficherJoursFériés,IF(INDEX(TableauJoursFériés2[],MATCH(DATE(AnnéeCal,MONTH(B$5),DAY(B$5)),IF(AfficherObservés,TableauJoursFériés2[CORRIGÉ],TableauJoursFériés2[JOUR]),0),5),INDEX(TableauJoursFériés2[],MATCH(DATE(AnnéeCal,MONTH(B$5),DAY(B$5)),IF(AfficherObservés,TableauJoursFériés2[CORRIGÉ],TableauJoursFériés2[JOUR]),0),2),\"\"),\"\"),\"\")","v":""},{"$f":"IFERROR(IF(AfficherJoursFériés,IF(INDEX(TableauJoursFériés2[],MATCH(DATE(AnnéeCal,MONTH(C$5),DAY(C$5)),IF(AfficherObservés,TableauJoursFériés2[AFFICHER],TableauJoursFériés2[JOUR FÉRIÉ]),0),5),INDEX(TableauJoursFériés2[],MATCH(DATE(AnnéeCal,MONTH(C$5),DAY(C$5)),IF(AfficherObservés,TableauJoursFériés2[AFFICHER],TableauJoursFériés2[JOUR FÉRIÉ]),0),2),\"\"),\"\"),\"\")","v":""},{"$f":"IFERROR(IF(AfficherJoursFériés,IF(INDEX(TableauJoursFériés2[],MATCH(DATE(AnnéeCal,MONTH(D$5),DAY(D$5)),IF(AfficherObservés,TableauJoursFériés2[JOUR],TableauJoursFériés2[JOUR DE LA SEMAINE]),0),5),INDEX(TableauJoursFériés2[],MATCH(DATE(AnnéeCal,MONTH(D$5),DAY(D$5)),IF(AfficherObservés,TableauJoursFériés2[JOUR],TableauJoursFériés2[JOUR DE LA SEMAINE]),0),2),\"\"),\"\"),\"\")","v":""},{"$f":"IFERROR(IF(AfficherJoursFériés,IF(INDEX(TableauJoursFériés2[],MATCH(DATE(AnnéeCal,MONTH(E$5),DAY(E$5)),IF(AfficherObservés,TableauJoursFériés2[JOUR FÉRIÉ],TableauJoursFériés2[CORRIGÉ]),0),5),INDEX(TableauJoursFériés2[],MATCH(DATE(AnnéeCal,MONTH(E$5),DAY(E$5)),IF(AfficherObservés,TableauJoursFériés2[JOUR FÉRIÉ],TableauJoursFériés2[CORRIGÉ]),0),2),\"\"),\"\"),\"\")","v":""},{"$f":"IFERROR(IF(AfficherJoursFériés,IF(INDEX(TableauJoursFériés2[],MATCH(DATE(AnnéeCal,MONTH(F$5),DAY(F$5)),IF(AfficherObservés,TableauJoursFériés2[JOUR DE LA SEMAINE],TableauJoursFériés2[AFFICHER]),0),5),INDEX(TableauJoursFériés2[],MATCH(DATE(AnnéeCal,MONTH(F$5),DAY(F$5)),IF(AfficherObservés,TableauJoursFériés2[JOUR DE LA SEMAINE],TableauJoursFériés2[AFFICHER]),0),2),\"\"),\"\"),\"\")","v":""},{"$f":"IFERROR(IF(AfficherJoursFériés,IF(INDEX(TableauJoursFériés2[],MATCH(DATE(AnnéeCal,MONTH(G$5),DAY(G$5)),IF(AfficherObservés,TableauJoursFériés2[CORRIGÉ],TableauJoursFériés2[JOUR]),0),5),INDEX(TableauJoursFériés2[],MATCH(DATE(AnnéeCal,MONTH(G$5),DAY(G$5)),IF(AfficherObservés,TableauJoursFériés2[CORRIGÉ],TableauJoursFériés2[JOUR]),0),2),\"\"),\"\"),\"\")","v":""},{"$f":"IFERROR(IF(AfficherJoursFériés,IF(INDEX(TableauJoursFériés2[],MATCH(DATE(AnnéeCal,MONTH(H$5),DAY(H$5)),IF(AfficherObservés,TableauJoursFériés2[AFFICHER],TableauJoursFériés2[JOUR FÉRIÉ]),0),5),INDEX(TableauJoursFériés2[],MATCH(DATE(AnnéeCal,MONTH(H$5),DAY(H$5)),IF(AfficherObservés,TableauJoursFériés2[AFFICHER],TableauJoursFériés2[JOUR FÉRIÉ]),0),2),\"\"),\"\"),\"\")","v":""}]
[null,{"$f":"Jours+DATE(AnnéeCal,2,1)-WEEKDAY(DATE(AnnéeCal,2,1),(DébutSemaine=\"LUNDI\")+1)+8","v":"2024-02-05"},"2024-02-06","2024-02-07","2024-02-08","2024-02-09","2024-02-10","2024-02-11"]
[null,{"$f":"IFERROR(IF(AfficherJoursFériés,IF(INDEX(TableauJoursFériés2[],MATCH(DATE(AnnéeCal,MONTH(B7),DAY(B7)),IF(AfficherObservés,TableauJoursFériés2[CORRIGÉ],TableauJoursFériés2[JOUR]),0),6),INDEX(TableauJoursFériés2[],MATCH(DATE(AnnéeCal,MONTH(B7),DAY(B7)),IF(AfficherObservés,TableauJoursFériés2[CORRIGÉ],TableauJoursFériés2[JOUR]),0),2),\"\"),\"\"),\"\")","v":""},{"$f":"IFERROR(IF(AfficherJoursFériés,IF(INDEX(TableauJoursFériés2[],MATCH(DATE(AnnéeCal,MONTH(C7),DAY(C7)),IF(AfficherObservés,TableauJoursFériés2[AFFICHER],TableauJoursFériés2[JOUR FÉRIÉ]),0),6),INDEX(TableauJoursFériés2[],MATCH(DATE(AnnéeCal,MONTH(C7),DAY(C7)),IF(AfficherObservés,TableauJoursFériés2[AFFICHER],TableauJoursFériés2[JOUR FÉRIÉ]),0),2),\"\"),\"\"),\"\")","v":""},{"$f":"IFERROR(IF(AfficherJoursFériés,IF(INDEX(TableauJoursFériés2[],MATCH(DATE(AnnéeCal,MONTH(D7),DAY(D7)),IF(AfficherObservés,TableauJoursFériés2[JOUR],TableauJoursFériés2[JOUR DE LA SEMAINE]),0),6),INDEX(TableauJoursFériés2[],MATCH(DATE(AnnéeCal,MONTH(D7),DAY(D7)),IF(AfficherObservés,TableauJoursFériés2[JOUR],TableauJoursFériés2[JOUR DE LA SEMAINE]),0),2),\"\"),\"\"),\"\")","v":""},{"$f":"IFERROR(IF(AfficherJoursFériés,IF(INDEX(TableauJoursFériés2[],MATCH(DATE(AnnéeCal,MONTH(E7),DAY(E7)),IF(AfficherObservés,TableauJoursFériés2[JOUR FÉRIÉ],TableauJoursFériés2[CORRIGÉ]),0),6),INDEX(TableauJoursFériés2[],MATCH(DATE(AnnéeCal,MONTH(E7),DAY(E7)),IF(AfficherObservés,TableauJoursFériés2[JOUR FÉRIÉ],TableauJoursFériés2[CORRIGÉ]),0),2),\"\"),\"\"),\"\")","v":""},{"$f":"IFERROR(IF(AfficherJoursFériés,IF(INDEX(TableauJoursFériés2[],MATCH(DATE(AnnéeCal,MONTH(F7),DAY(F7)),IF(AfficherObservés,TableauJoursFériés2[JOUR DE LA SEMAINE],TableauJoursFériés2[AFFICHER]),0),6),INDEX(TableauJoursFériés2[],MATCH(DATE(AnnéeCal,MONTH(F7),DAY(F7)),IF(AfficherObservés,TableauJoursFériés2[JOUR DE LA SEMAINE],TableauJoursFériés2[AFFICHER]),0),2),\"\"),\"\"),\"\")","v":""},{"$f":"IFERROR(IF(AfficherJoursFériés,IF(INDEX(TableauJoursFériés2[],MATCH(DATE(AnnéeCal,MONTH(G7),DAY(G7)),IF(AfficherObservés,TableauJoursFériés2[CORRIGÉ],TableauJoursFériés2[JOUR]),0),6),INDEX(TableauJoursFériés2[],MATCH(DATE(AnnéeCal,MONTH(G7),DAY(G7)),IF(AfficherObservés,TableauJoursFériés2[CORRIGÉ],TableauJoursFériés2[JOUR]),0),2),\"\"),\"\"),\"\")","v":""},{"$f":"IFERROR(IF(AfficherJoursFériés,IF(INDEX(TableauJoursFériés2[],MATCH(DATE(AnnéeCal,MONTH(H7),DAY(H7)),IF(AfficherObservés,TableauJoursFériés2[AFFICHER],TableauJoursFériés2[JOUR FÉRIÉ]),0),6),INDEX(TableauJoursFériés2[],MATCH(DATE(AnnéeCal,MONTH(H7),DAY(H7)),IF(AfficherObservés,TableauJoursFériés2[AFFICHER],TableauJoursFériés2[JOUR FÉRIÉ]),0),2),\"\"),\"\"),\"\")","v":""}]
[null,{"$f":"Jours+DATE(AnnéeCal,2,1)-WEEKDAY(DATE(AnnéeCal,2,1),(DébutSemaine=\"LUNDI\")+1)+15","v":"2024-02-12"},"2024-02-13","2024-02-14","2024-02-15","2024-02-16","2024-02-17","2024-02-18"]
[null,{"$f":"IFERROR(IF(AfficherJoursFériés,IF(INDEX(TableauJoursFériés2[],MATCH(DATE(AnnéeCal,MONTH(B9),DAY(B9)),IF(AfficherObservés,TableauJoursFériés2[CORRIGÉ],TableauJoursFériés2[JOUR]),0),6),INDEX(TableauJoursFériés2[],MATCH(DATE(AnnéeCal,MONTH(B9),DAY(B9)),IF(AfficherObservés,TableauJoursFériés2[CORRIGÉ],TableauJoursFériés2[JOUR]),0),2),\"\"),\"\"),\"\")","v":""},{"$f":"IFERROR(IF(AfficherJoursFériés,IF(INDEX(TableauJoursFériés2[],MATCH(DATE(AnnéeCal,MONTH(C9),DAY(C9)),IF(AfficherObservés,TableauJoursFériés2[AFFICHER],TableauJoursFériés2[JOUR FÉRIÉ]),0),6),INDEX(TableauJoursFériés2[],MATCH(DATE(AnnéeCal,MONTH(C9),DAY(C9)),IF(AfficherObservés,TableauJoursFériés2[AFFICHER],TableauJoursFériés2[JOUR FÉRIÉ]),0),2),\"\"),\"\"),\"\")","v":""},{"$f":"IFERROR(IF(AfficherJoursFériés,IF(INDEX(TableauJoursFériés2[],MATCH(DATE(AnnéeCal,MONTH(D9),DAY(D9)),IF(AfficherObservés,TableauJoursFériés2[JOUR],TableauJoursFériés2[JOUR DE LA SEMAINE]),0),6),INDEX(TableauJoursFériés2[],MATCH(DATE(AnnéeCal,MONTH(D9),DAY(D9)),IF(AfficherObservés,TableauJoursFériés2[JOUR],TableauJoursFériés2[JOUR DE LA SEMAINE]),0),2),\"\"),\"\"),\"\")","v":""},{"$f":"IFERROR(IF(AfficherJoursFériés,IF(INDEX(TableauJoursFériés2[],MATCH(DATE(AnnéeCal,MONTH(E9),DAY(E9)),IF(AfficherObservés,TableauJoursFériés2[JOUR FÉRIÉ],TableauJoursFériés2[CORRIGÉ]),0),6),INDEX(TableauJoursFériés2[],MATCH(DATE(AnnéeCal,MONTH(E9),DAY(E9)),IF(AfficherObservés,TableauJoursFériés2[JOUR FÉRIÉ],TableauJoursFériés2[CORRIGÉ]),0),2),\"\"),\"\"),\"\")","v":""},{"$f":"IFERROR(IF(AfficherJoursFériés,IF(INDEX(TableauJoursFériés2[],MATCH(DATE(AnnéeCal,MONTH(F9),DAY(F9)),IF(AfficherObservés,TableauJoursFériés2[JOUR DE LA SEMAINE],TableauJoursFériés2[AFFICHER]),0),6),INDEX(TableauJoursFériés2[],MATCH(DATE(AnnéeCal,MONTH(F9),DAY(F9)),IF(AfficherObservés,TableauJoursFériés2[JOUR DE LA SEMAINE],TableauJoursFériés2[AFFICHER]),0),2),\"\"),\"\"),\"\")","v":""},{"$f":"IFERROR(IF(AfficherJoursFériés,IF(INDEX(TableauJoursFériés2[],MATCH(DATE(AnnéeCal,MONTH(G9),DAY(G9)),IF(AfficherObservés,TableauJoursFériés2[CORRIGÉ],TableauJoursFériés2[JOUR]),0),6),INDEX(TableauJoursFériés2[],MATCH(DATE(AnnéeCal,MONTH(G9),DAY(G9)),IF(AfficherObservés,TableauJoursFériés2[CORRIGÉ],TableauJoursFériés2[JOUR]),0),2),\"\"),\"\"),\"\")","v":""},{"$f":"IFERROR(IF(AfficherJoursFériés,IF(INDEX(TableauJoursFériés2[],MATCH(DATE(AnnéeCal,MONTH(H9),DAY(H9)),IF(AfficherObservés,TableauJoursFériés2[AFFICHER],TableauJoursFériés2[JOUR FÉRIÉ]),0),6),INDEX(TableauJoursFériés2[],MATCH(DATE(AnnéeCal,MONTH(H9),DAY(H9)),IF(AfficherObservés,TableauJoursFériés2[AFFICHER],TableauJoursFériés2[JOUR FÉRIÉ]),0),2),\"\"),\"\"),\"\")","v":""}]
[null,{"$f":"Jours+DATE(AnnéeCal,2,1)-WEEKDAY(DATE(AnnéeCal,2,1),(DébutSemaine=\"LUNDI\")+1)+22","v":"2024-02-19"},"2024-02-20","2024-02-21","2024-02-22","2024-02-23","2024-02-24","2024-02-25"]
[null,{"$f":"IFERROR(IF(AfficherJoursFériés,IF(INDEX(TableauJoursFériés2[],MATCH(DATE(AnnéeCal,MONTH(B11),DAY(B11)),IF(AfficherObservés,TableauJoursFériés2[CORRIGÉ],TableauJoursFériés2[JOUR]),0),6),INDEX(TableauJoursFériés2[],MATCH(DATE(AnnéeCal,MONTH(B11),DAY(B11)),IF(AfficherObservés,TableauJoursFériés2[CORRIGÉ],TableauJoursFériés2[JOUR]),0),2),\"\"),\"\"),\"\")","v":""},{"$f":"IFERROR(IF(AfficherJoursFériés,IF(INDEX(TableauJoursFériés2[],MATCH(DATE(AnnéeCal,MONTH(C11),DAY(C11)),IF(AfficherObservés,TableauJoursFériés2[AFFICHER],TableauJoursFériés2[JOUR FÉRIÉ]),0),6),INDEX(TableauJoursFériés2[],MATCH(DATE(AnnéeCal,MONTH(C11),DAY(C11)),IF(AfficherObservés,TableauJoursFériés2[AFFICHER],TableauJoursFériés2[JOUR FÉRIÉ]),0),2),\"\"),\"\"),\"\")","v":""},{"$f":"IFERROR(IF(AfficherJoursFériés,IF(INDEX(TableauJoursFériés2[],MATCH(DATE(AnnéeCal,MONTH(D11),DAY(D11)),IF(AfficherObservés,TableauJoursFériés2[JOUR],TableauJoursFériés2[JOUR DE LA SEMAINE]),0),6),INDEX(TableauJoursFériés2[],MATCH(DATE(AnnéeCal,MONTH(D11),DAY(D11)),IF(AfficherObservés,TableauJoursFériés2[JOUR],TableauJoursFériés2[JOUR DE LA SEMAINE]),0),2),\"\"),\"\"),\"\")","v":""},{"$f":"IFERROR(IF(AfficherJoursFériés,IF(INDEX(TableauJoursFériés2[],MATCH(DATE(AnnéeCal,MONTH(E11),DAY(E11)),IF(AfficherObservés,TableauJoursFériés2[JOUR FÉRIÉ],TableauJoursFériés2[CORRIGÉ]),0),6),INDEX(TableauJoursFériés2[],MATCH(DATE(AnnéeCal,MONTH(E11),DAY(E11)),IF(AfficherObservés,TableauJoursFériés2[JOUR FÉRIÉ],TableauJoursFériés2[CORRIGÉ]),0),2),\"\"),\"\"),\"\")","v":""},{"$f":"IFERROR(IF(AfficherJoursFériés,IF(INDEX(TableauJoursFériés2[],MATCH(DATE(AnnéeCal,MONTH(F11),DAY(F11)),IF(AfficherObservés,TableauJoursFériés2[JOUR DE LA SEMAINE],TableauJoursFériés2[AFFICHER]),0),6),INDEX(TableauJoursFériés2[],MATCH(DATE(AnnéeCal,MONTH(F11),DAY(F11)),IF(AfficherObservés,TableauJoursFériés2[JOUR DE LA SEMAINE],TableauJoursFériés2[AFFICHER]),0),2),\"\"),\"\"),\"\")","v":""},{"$f":"IFERROR(IF(AfficherJoursFériés,IF(INDEX(TableauJoursFériés2[],MATCH(DATE(AnnéeCal,MONTH(G11),DAY(G11)),IF(AfficherObservés,TableauJoursFériés2[CORRIGÉ],TableauJoursFériés2[JOUR]),0),6),INDEX(TableauJoursFériés2[],MATCH(DATE(AnnéeCal,MONTH(G11),DAY(G11)),IF(AfficherObservés,TableauJoursFériés2[CORRIGÉ],TableauJoursFériés2[JOUR]),0),2),\"\"),\"\"),\"\")","v":""},{"$f":"IFERROR(IF(AfficherJoursFériés,IF(INDEX(TableauJoursFériés2[],MATCH(DATE(AnnéeCal,MONTH(H11),DAY(H11)),IF(AfficherObservés,TableauJoursFériés2[AFFICHER],TableauJoursFériés2[JOUR FÉRIÉ]),0),6),INDEX(TableauJoursFériés2[],MATCH(DATE(AnnéeCal,MONTH(H11),DAY(H11)),IF(AfficherObservés,TableauJoursFériés2[AFFICHER],TableauJoursFériés2[JOUR FÉRIÉ]),0),2),\"\"),\"\"),\"\")","v":""}]
[null,{"$f":"Jours+DATE(AnnéeCal,2,1)-WEEKDAY(DATE(AnnéeCal,2,1),(DébutSemaine=\"LUNDI\")+1)+29","v":"2024-02-26"},"2024-02-27","2024-02-28","2024-02-29","2024-03-01","2024-03-02","2024-03-03"]
[null,{"$f":"IFERROR(IF(AfficherJoursFériés,IF(INDEX(TableauJoursFériés2[],MATCH(DATE(AnnéeCal,MONTH(B13),DAY(B13)),IF(AfficherObservés,TableauJoursFériés2[CORRIGÉ],TableauJoursFériés2[JOUR]),0),6),INDEX(TableauJoursFériés2[],MATCH(DATE(AnnéeCal,MONTH(B13),DAY(B13)),IF(AfficherObservés,TableauJoursFériés2[CORRIGÉ],TableauJoursFériés2[JOUR]),0),2),\"\"),\"\"),\"\")","v":""},{"$f":"IFERROR(IF(AfficherJoursFériés,IF(INDEX(TableauJoursFériés2[],MATCH(DATE(AnnéeCal,MONTH(C13),DAY(C13)),IF(AfficherObservés,TableauJoursFériés2[AFFICHER],TableauJoursFériés2[JOUR FÉRIÉ]),0),6),INDEX(TableauJoursFériés2[],MATCH(DATE(AnnéeCal,MONTH(C13),DAY(C13)),IF(AfficherObservés,TableauJoursFériés2[AFFICHER],TableauJoursFériés2[JOUR FÉRIÉ]),0),2),\"\"),\"\"),\"\")","v":""},{"$f":"IFERROR(IF(AfficherJoursFériés,IF(INDEX(TableauJoursFériés2[],MATCH(DATE(AnnéeCal,MONTH(D13),DAY(D13)),IF(AfficherObservés,TableauJoursFériés2[JOUR],TableauJoursFériés2[JOUR DE LA SEMAINE]),0),6),INDEX(TableauJoursFériés2[],MATCH(DATE(AnnéeCal,MONTH(D13),DAY(D13)),IF(AfficherObservés,TableauJoursFériés2[JOUR],TableauJoursFériés2[JOUR DE LA SEMAINE]),0),2),\"\"),\"\"),\"\")","v":""},{"$f":"IFERROR(IF(AfficherJoursFériés,IF(INDEX(TableauJoursFériés2[],MATCH(DATE(AnnéeCal,MONTH(E13),DAY(E13)),IF(AfficherObservés,TableauJoursFériés2[JOUR FÉRIÉ],TableauJoursFériés2[CORRIGÉ]),0),6),INDEX(TableauJoursFériés2[],MATCH(DATE(AnnéeCal,MONTH(E13),DAY(E13)),IF(AfficherObservés,TableauJoursFériés2[JOUR FÉRIÉ],TableauJoursFériés2[CORRIGÉ]),0),2),\"\"),\"\"),\"\")","v":""},{"$f":"IFERROR(IF(AfficherJoursFériés,IF(INDEX(TableauJoursFériés2[],MATCH(DATE(AnnéeCal,MONTH(F13),DAY(F13)),IF(AfficherObservés,TableauJoursFériés2[JOUR DE LA SEMAINE],TableauJoursFériés2[AFFICHER]),0),6),INDEX(TableauJoursFériés2[],MATCH(DATE(AnnéeCal,MONTH(F13),DAY(F13)),IF(AfficherObservés,TableauJoursFériés2[JOUR DE LA SEMAINE],TableauJoursFériés2[AFFICHER]),0),2),\"\"),\"\"),\"\")","v":""},{"$f":"IFERROR(IF(AfficherJoursFériés,IF(INDEX(TableauJoursFériés2[],MATCH(DATE(AnnéeCal,MONTH(G13),DAY(G13)),IF(AfficherObservés,TableauJoursFériés2[CORRIGÉ],TableauJoursFériés2[JOUR]),0),6),INDEX(TableauJoursFériés2[],MATCH(DATE(AnnéeCal,MONTH(G13),DAY(G13)),IF(AfficherObservés,TableauJoursFériés2[CORRIGÉ],TableauJoursFériés2[JOUR]),0),2),\"\"),\"\"),\"\")","v":""},{"$f":"IFERROR(IF(AfficherJoursFériés,IF(INDEX(TableauJoursFériés2[],MATCH(DATE(AnnéeCal,MONTH(H13),DAY(H13)),IF(AfficherObservés,TableauJoursFériés2[AFFICHER],TableauJoursFériés2[JOUR FÉRIÉ]),0),6),INDEX(TableauJoursFériés2[],MATCH(DATE(AnnéeCal,MONTH(H13),DAY(H13)),IF(AfficherObservés,TableauJoursFériés2[AFFICHER],TableauJoursFériés2[JOUR FÉRIÉ]),0),2),\"\"),\"\"),\"\")","v":""}]
[null,{"$f":"Jours+DATE(AnnéeCal,2,1)-WEEKDAY(DATE(AnnéeCal,2,1),(DébutSemaine=\"LUNDI\")+1)+36","v":"2024-03-04"},"2024-03-05","NOTES"]

{"sheet":"Mars","index":4,"n_rows":20,"n_cols":8,"rows_kept":20,"cut":false,"hidden":false,"merged":[[18,3,18,7],[19,3,19,7]]}
[]
[null,{"$f":"C11","v":"2024-03-05"}]
[]
[]
[]
[]
[]
[null,{"$f":"DébutSemaine","v":"LUNDI"},{"$f":"UPPER(TEXT(C9,\"jjjj\"))","v":"MARDI"},{"$f":"UPPER(TEXT(D9,\"jjjj\"))","v":"MERCREDI"},"JEUDI","VENDREDI","SAMEDI","DIMANCHE"]
[null,{"$f":"Jours+DATE(AnnéeCal,3,1)-WEEKDAY(DATE(AnnéeCal,3,1),(DébutSemaine=\"LUNDI\")+1)+1","v":"2024-02-26"},"2024-02-27","2024-02-28","2024-02-29","2024-03-01","2024-03-02","2024-03-03"]
[null,{"$f":"IFERROR(IF(AfficherJoursFériés,IF(INDEX(TableauJoursFériés2[],MATCH(DATE(AnnéeCal,MONTH(B$9),DAY(B$9)),IF(AfficherObservés,TableauJoursFériés2[CORRIGÉ],TableauJoursFériés2[JOUR]),0),5),INDEX(TableauJoursFériés2[],MATCH(DATE(AnnéeCal,MONTH(B$9),DAY(B$9)),IF(AfficherObservés,TableauJoursFériés2[CORRIGÉ],TableauJoursFériés2[JOUR]),0),2),\"\"),\"\"),\"\")","v":""},{"$f":"IFERROR(IF(AfficherJoursFériés,IF(INDEX(TableauJoursFériés2[],MATCH(DATE(AnnéeCal,MONTH(C$9),DAY(C$9)),IF(AfficherObservés,TableauJoursFériés2[AFFICHER],TableauJoursFériés2[JOUR FÉRIÉ]),0),5),INDEX(TableauJoursFériés2[],MATCH(DATE(AnnéeCal,MONTH(C$9),DAY(C$9)),IF(AfficherObservés,TableauJoursFériés2[AFFICHER],TableauJoursFériés2[JOUR FÉRIÉ]),0),2),\"\"),\"\"),\"\")","v":""},{"$f":"IFERROR(IF(AfficherJoursFériés,IF(INDEX(TableauJoursFériés2[],MATCH(DATE(AnnéeCal,MONTH(D$9),DAY(D$9)),IF(AfficherObservés,TableauJoursFériés2[JOUR],TableauJoursFériés2[JOUR DE LA SEMAINE]),0),5),INDEX(TableauJoursFériés2[],MATCH(DATE(AnnéeCal,MONTH(D$9),DAY(D$9)),IF(AfficherObservés,TableauJoursFériés2[JOUR],TableauJoursFériés2[JOUR DE LA SEMAINE]),0),2),\"\"),\"\"),\"\")","v":""},{"$f":"IFERROR(IF(AfficherJoursFériés,IF(INDEX(TableauJoursFériés2[],MATCH(DATE(AnnéeCal,MONTH(E$9),DAY(E$9)),IF(AfficherObservés,TableauJoursFériés2[JOUR FÉRIÉ],TableauJoursFériés2[CORRIGÉ]),0),5),INDEX(TableauJoursFériés2[],MATCH(DATE(AnnéeCal,MONTH(E$9),DAY(E$9)),IF(AfficherObservés,TableauJoursFériés2[JOUR FÉRIÉ],TableauJoursFériés2[CORRIGÉ]),0),2),\"\"),\"\"),\"\")","v":""},{"$f":"IFERROR(IF(AfficherJoursFériés,IF(INDEX(TableauJoursFériés2[],MATCH(DATE(AnnéeCal,MONTH(F$9),DAY(F$9)),IF(AfficherObservés,TableauJoursFériés2[JOUR DE LA SEMAINE],TableauJoursFériés2[AFFICHER]),0),5),INDEX(TableauJoursFériés2[],MATCH(DATE(AnnéeCal,MONTH(F$9),DAY(F$9)),IF(AfficherObservés,TableauJoursFériés2[JOUR DE LA SEMAINE],TableauJoursFériés2[AFFICHER]),0),2),\"\"),\"\"),\"\")","v":""},{"$f":"IFERROR(IF(AfficherJoursFériés,IF(INDEX(TableauJoursFériés2[],MATCH(DATE(AnnéeCal,MONTH(G$9),DAY(G$9)),IF(AfficherObservés,TableauJoursFériés2[CORRIGÉ],TableauJoursFériés2[JOUR]),0),5),INDEX(TableauJoursFériés2[],MATCH(DATE(AnnéeCal,MONTH(G$9),DAY(G$9)),IF(AfficherObservés,TableauJoursFériés2[CORRIGÉ],TableauJoursFériés2[JOUR]),0),2),\"\"),\"\"),\"\")","v":""},{"$f":"IFERROR(IF(AfficherJoursFériés,IF(INDEX(TableauJoursFériés2[],MATCH(DATE(AnnéeCal,MONTH(H$9),DAY(H$9)),IF(AfficherObservés,TableauJoursFériés2[AFFICHER],TableauJoursFériés2[JOUR FÉRIÉ]),0),5),INDEX(TableauJoursFériés2[],MATCH(DATE(AnnéeCal,MONTH(H$9),DAY(H$9)),IF(AfficherObservés,TableauJoursFériés2[AFFICHER],TableauJoursFériés2[JOUR FÉRIÉ]),0),2),\"\"),\"\"),\"\")","v":""}]
[null,{"$f":"Jours+DATE(AnnéeCal,3,1)-WEEKDAY(DATE(AnnéeCal,3,1),(DébutSemaine=\"LUNDI\")+1)+8","v":"2024-03-04"},"2024-03-05","2024-03-06","2024-03-07","2024-03-08","2024-03-09","2024-03-10"]
[null,{"$f":"IFERROR(IF(AfficherJoursFériés,IF(INDEX(TableauJoursFériés2[],MATCH(DATE(AnnéeCal,MONTH(B11),DAY(B11)),IF(AfficherObservés,TableauJoursFériés2[CORRIGÉ],TableauJoursFériés2[JOUR]),0),6),INDEX(TableauJoursFériés2[],MATCH(DATE(AnnéeCal,MONTH(B11),DAY(B11)),IF(AfficherObservés,TableauJoursFériés2[CORRIGÉ],TableauJoursFériés2[JOUR]),0),2),\"\"),\"\"),\"\")","v":""},{"$f":"IFERROR(IF(AfficherJoursFériés,IF(INDEX(TableauJoursFériés2[],MATCH(DATE(AnnéeCal,MONTH(C11),DAY(C11)),IF(AfficherObservés,TableauJoursFériés2[AFFICHER],TableauJoursFériés2[JOUR FÉRIÉ]),0),6),INDEX(TableauJoursFériés2[],MATCH(DATE(AnnéeCal,MONTH(C11),DAY(C11)),IF(AfficherObservés,TableauJoursFériés2[AFFICHER],TableauJoursFériés2[JOUR FÉRIÉ]),0),2),\"\"),\"\"),\"\")","v":""},{"$f":"IFERROR(IF(AfficherJoursFériés,IF(INDEX(TableauJoursFériés2[],MATCH(DATE(AnnéeCal,MONTH(D11),DAY(D11)),IF(AfficherObservés,TableauJoursFériés2[JOUR],TableauJoursFériés2[JOUR DE LA SEMAINE]),0),6),INDEX(TableauJoursFériés2[],MATCH(DATE(AnnéeCal,MONTH(D11),DAY(D11)),IF(AfficherObservés,TableauJoursFériés2[JOUR],TableauJoursFériés2[JOUR DE LA SEMAINE]),0),2),\"\"),\"\"),\"\")","v":""},{"$f":"IFERROR(IF(AfficherJoursFériés,IF(INDEX(TableauJoursFériés2[],MATCH(DATE(AnnéeCal,MONTH(E11),DAY(E11)),IF(AfficherObservés,TableauJoursFériés2[JOUR FÉRIÉ],TableauJoursFériés2[CORRIGÉ]),0),6),INDEX(TableauJoursFériés2[],MATCH(DATE(AnnéeCal,MONTH(E11),DAY(E11)),IF(AfficherObservés,TableauJoursFériés2[JOUR FÉRIÉ],TableauJoursFériés2[CORRIGÉ]),0),2),\"\"),\"\"),\"\")","v":""},{"$f":"IFERROR(IF(AfficherJoursFériés,IF(INDEX(TableauJoursFériés2[],MATCH(DATE(AnnéeCal,MONTH(F11),DAY(F11)),IF(AfficherObservés,TableauJoursFériés2[JOUR DE LA SEMAINE],TableauJoursFériés2[AFFICHER]),0),6),INDEX(TableauJoursFériés2[],MATCH(DATE(AnnéeCal,MONTH(F11),DAY(F11)),IF(AfficherObservés,TableauJoursFériés2[JOUR DE LA SEMAINE],TableauJoursFériés2[AFFICHER]),0),2),\"\"),\"\"),\"\")","v":""},{"$f":"IFERROR(IF(AfficherJoursFériés,IF(INDEX(TableauJoursFériés2[],MATCH(DATE(AnnéeCal,MONTH(G11),DAY(G11)),IF(AfficherObservés,TableauJoursFériés2[CORRIGÉ],TableauJoursFériés2[JOUR]),0),6),INDEX(TableauJoursFériés2[],MATCH(DATE(AnnéeCal,MONTH(G11),DAY(G11)),IF(AfficherObservés,TableauJoursFériés2[CORRIGÉ],TableauJoursFériés2[JOUR]),0),2),\"\"),\"\"),\"\")","v":""},{"$f":"IFERROR(IF(AfficherJoursFériés,IF(INDEX(TableauJoursFériés2[],MATCH(DATE(AnnéeCal,MONTH(H11),DAY(H11)),IF(AfficherObservés,TableauJoursFériés2[AFFICHER],TableauJoursFériés2[JOUR FÉRIÉ]),0),6),INDEX(TableauJoursFériés2[],MATCH(DATE(AnnéeCal,MONTH(H11),DAY(H11)),IF(AfficherObservés,TableauJoursFériés2[AFFICHER],TableauJoursFériés2[JOUR FÉRIÉ]),0),2),\"\"),\"\"),\"\")","v":""}]
[null,{"$f":"Jours+DATE(AnnéeCal,3,1)-WEEKDAY(DATE(AnnéeCal,3,1),(DébutSemaine=\"LUNDI\")+1)+15","v":"2024-03-11"},"2024-03-12","2024-03-13","2024-03-14","2024-03-15","2024-03-16","2024-03-17"]
[null,{"$f":"IFERROR(IF(AfficherJoursFériés,IF(INDEX(TableauJoursFériés2[],MATCH(DATE(AnnéeCal,MONTH(B13),DAY(B13)),IF(AfficherObservés,TableauJoursFériés2[CORRIGÉ],TableauJoursFériés2[JOUR]),0),6),INDEX(TableauJoursFériés2[],MATCH(DATE(AnnéeCal,MONTH(B13),DAY(B13)),IF(AfficherObservés,TableauJoursFériés2[CORRIGÉ],TableauJoursFériés2[JOUR]),0),2),\"\"),\"\"),\"\")","v":""},{"$f":"IFERROR(IF(AfficherJoursFériés,IF(INDEX(TableauJoursFériés2[],MATCH(DATE(AnnéeCal,MONTH(C13),DAY(C13)),IF(AfficherObservés,TableauJoursFériés2[AFFICHER],TableauJoursFériés2[JOUR FÉRIÉ]),0),6),INDEX(TableauJoursFériés2[],MATCH(DATE(AnnéeCal,MONTH(C13),DAY(C13)),IF(AfficherObservés,TableauJoursFériés2[AFFICHER],TableauJoursFériés2[JOUR FÉRIÉ]),0),2),\"\"),\"\"),\"\")","v":""},{"$f":"IFERROR(IF(AfficherJoursFériés,IF(INDEX(TableauJoursFériés2[],MATCH(DATE(AnnéeCal,MONTH(D13),DAY(D13)),IF(AfficherObservés,TableauJoursFériés2[JOUR],TableauJoursFériés2[JOUR DE LA SEMAINE]),0),6),INDEX(TableauJoursFériés2[],MATCH(DATE(AnnéeCal,MONTH(D13),DAY(D13)),IF(AfficherObservés,TableauJoursFériés2[JOUR],TableauJoursFériés2[JOUR DE LA SEMAINE]),0),2),\"\"),\"\"),\"\")","v":""},{"$f":"IFERROR(IF(AfficherJoursFériés,IF(INDEX(TableauJoursFériés2[],MATCH(DATE(AnnéeCal,MONTH(E13),DAY(E13)),IF(AfficherObservés,TableauJoursFériés2[JOUR FÉRIÉ],TableauJoursFériés2[CORRIGÉ]),0),6),INDEX(TableauJoursFériés2[],MATCH(DATE(AnnéeCal,MONTH(E13),DAY(E13)),IF(AfficherObservés,TableauJoursFériés2[JOUR FÉRIÉ],TableauJoursFériés2[CORRIGÉ]),0),2),\"\"),\"\"),\"\")","v":""},{"$f":"IFERROR(IF(AfficherJoursFériés,IF(INDEX(TableauJoursFériés2[],MATCH(DATE(AnnéeCal,MONTH(F13),DAY(F13)),IF(AfficherObservés,TableauJoursFériés2[JOUR DE LA SEMAINE],TableauJoursFériés2[AFFICHER]),0),6),INDEX(TableauJoursFériés2[],MATCH(DATE(AnnéeCal,MONTH(F13),DAY(F13)),IF(AfficherObservés,TableauJoursFériés2[JOUR DE LA SEMAINE],TableauJoursFériés2[AFFICHER]),0),2),\"\"),\"\"),\"\")","v":""},{"$f":"IFERROR(IF(AfficherJoursFériés,IF(INDEX(TableauJoursFériés2[],MATCH(DATE(AnnéeCal,MONTH(G13),DAY(G13)),IF(AfficherObservés,TableauJoursFériés2[CORRIGÉ],TableauJoursFériés2[JOUR]),0),6),INDEX(TableauJoursFériés2[],MATCH(DATE(AnnéeCal,MONTH(G13),DAY(G13)),IF(AfficherObservés,TableauJoursFériés2[CORRIGÉ],TableauJoursFériés2[JOUR]),0),2),\"\"),\"\"),\"\")","v":""},{"$f":"IFERROR(IF(AfficherJoursFériés,IF(INDEX(TableauJoursFériés2[],MATCH(DATE(AnnéeCal,MONTH(H13),DAY(H13)),IF(AfficherObservés,TableauJoursFériés2[AFFICHER],TableauJoursFériés2[JOUR FÉRIÉ]),0),6),INDEX(TableauJoursFériés2[],MATCH(DATE(AnnéeCal,MONTH(H13),DAY(H13)),IF(AfficherObservés,TableauJoursFériés2[AFFICHER],TableauJoursFériés2[JOUR FÉRIÉ]),0),2),\"\"),\"\"),\"\")","v":""}]
[null,{"$f":"Jours+DATE(AnnéeCal,3,1)-WEEKDAY(DATE(AnnéeCal,3,1),(DébutSemaine=\"LUNDI\")+1)+22","v":"2024-03-18"},"2024-03-19","2024-03-20","2024-03-21","2024-03-22","2024-03-23","2024-03-24"]
[null,{"$f":"IFERROR(IF(AfficherJoursFériés,IF(INDEX(TableauJoursFériés2[],MATCH(DATE(AnnéeCal,MONTH(B15),DAY(B15)),IF(AfficherObservés,TableauJoursFériés2[CORRIGÉ],TableauJoursFériés2[JOUR]),0),6),INDEX(TableauJoursFériés2[],MATCH(DATE(AnnéeCal,MONTH(B15),DAY(B15)),IF(AfficherObservés,TableauJoursFériés2[CORRIGÉ],TableauJoursFériés2[JOUR]),0),2),\"\"),\"\"),\"\")","v":""},{"$f":"IFERROR(IF(AfficherJoursFériés,IF(INDEX(TableauJoursFériés2[],MATCH(DATE(AnnéeCal,MONTH(C15),DAY(C15)),IF(AfficherObservés,TableauJoursFériés2[AFFICHER],TableauJoursFériés2[JOUR FÉRIÉ]),0),6),INDEX(TableauJoursFériés2[],MATCH(DATE(AnnéeCal,MONTH(C15),DAY(C15)),IF(AfficherObservés,TableauJoursFériés2[AFFICHER],TableauJoursFériés2[JOUR FÉRIÉ]),0),2),\"\"),\"\"),\"\")","v":""},{"$f":"IFERROR(IF(AfficherJoursFériés,IF(INDEX(TableauJoursFériés2[],MATCH(DATE(AnnéeCal,MONTH(D15),DAY(D15)),IF(AfficherObservés,TableauJoursFériés2[JOUR],TableauJoursFériés2[JOUR DE LA SEMAINE]),0),6),INDEX(TableauJoursFériés2[],MATCH(DATE(AnnéeCal,MONTH(D15),DAY(D15)),IF(AfficherObservés,TableauJoursFériés2[JOUR],TableauJoursFériés2[JOUR DE LA SEMAINE]),0),2),\"\"),\"\"),\"\")","v":""},{"$f":"IFERROR(IF(AfficherJoursFériés,IF(INDEX(TableauJoursFériés2[],MATCH(DATE(AnnéeCal,MONTH(E15),DAY(E15)),IF(AfficherObservés,TableauJoursFériés2[JOUR FÉRIÉ],TableauJoursFériés2[CORRIGÉ]),0),6),INDEX(TableauJoursFériés2[],MATCH(DATE(AnnéeCal,MONTH(E15),DAY(E15)),IF(AfficherObservés,TableauJoursFériés2[JOUR FÉRIÉ],TableauJoursFériés2[CORRIGÉ]),0),2),\"\"),\"\"),\"\")","v":""},{"$f":"IFERROR(IF(AfficherJoursFériés,IF(INDEX(TableauJoursFériés2[],MATCH(DATE(AnnéeCal,MONTH(F15),DAY(F15)),IF(AfficherObservés,TableauJoursFériés2[JOUR DE LA SEMAINE],TableauJoursFériés2[AFFICHER]),0),6),INDEX(TableauJoursFériés2[],MATCH(DATE(AnnéeCal,MONTH(F15),DAY(F15)),IF(AfficherObservés,TableauJoursFériés2[JOUR DE LA SEMAINE],TableauJoursFériés2[AFFICHER]),0),2),\"\"),\"\"),\"\")","v":""},{"$f":"IFERROR(IF(AfficherJoursFériés,IF(INDEX(TableauJoursFériés2[],MATCH(DATE(AnnéeCal,MONTH(G15),DAY(G15)),IF(AfficherObservés,TableauJoursFériés2[CORRIGÉ],TableauJoursFériés2[JOUR]),0),6),INDEX(TableauJoursFériés2[],MATCH(DATE(AnnéeCal,MONTH(G15),DAY(G15)),IF(AfficherObservés,TableauJoursFériés2[CORRIGÉ],TableauJoursFériés2[JOUR]),0),2),\"\"),\"\"),\"\")","v":""},{"$f":"IFERROR(IF(AfficherJoursFériés,IF(INDEX(TableauJoursFériés2[],MATCH(DATE(AnnéeCal,MONTH(H15),DAY(H15)),IF(AfficherObservés,TableauJoursFériés2[AFFICHER],TableauJoursFériés2[JOUR FÉRIÉ]),0),6),INDEX(TableauJoursFériés2[],MATCH(DATE(AnnéeCal,MONTH(H15),DAY(H15)),IF(AfficherObservés,TableauJoursFériés2[AFFICHER],TableauJoursFériés2[JOUR FÉRIÉ]),0),2),\"\"),\"\"),\"\")","v":""}]
[null,{"$f":"Jours+DATE(AnnéeCal,3,1)-WEEKDAY(DATE(AnnéeCal,3,1),(DébutSemaine=\"LUNDI\")+1)+29","v":"2024-03-25"},"2024-03-26","2024-03-27","2024-03-28","2024-03-29","2024-03-30","2024-03-31"]
[null,{"$f":"IFERROR(IF(AfficherJoursFériés,IF(INDEX(TableauJoursFériés2[],MATCH(DATE(AnnéeCal,MONTH(B17),DAY(B17)),IF(AfficherObservés,TableauJoursFériés2[CORRIGÉ],TableauJoursFériés2[JOUR]),0),6),INDEX(TableauJoursFériés2[],MATCH(DATE(AnnéeCal,MONTH(B17),DAY(B17)),IF(AfficherObservés,TableauJoursFériés2[CORRIGÉ],TableauJoursFériés2[JOUR]),0),2),\"\"),\"\"),\"\")","v":""},{"$f":"IFERROR(IF(AfficherJoursFériés,IF(INDEX(TableauJoursFériés2[],MATCH(DATE(AnnéeCal,MONTH(C17),DAY(C17)),IF(AfficherObservés,TableauJoursFériés2[AFFICHER],TableauJoursFériés2[JOUR FÉRIÉ]),0),6),INDEX(TableauJoursFériés2[],MATCH(DATE(AnnéeCal,MONTH(C17),DAY(C17)),IF(AfficherObservés,TableauJoursFériés2[AFFICHER],TableauJoursFériés2[JOUR FÉRIÉ]),0),2),\"\"),\"\"),\"\")","v":""},{"$f":"IFERROR(IF(AfficherJoursFériés,IF(INDEX(TableauJoursFériés2[],MATCH(DATE(AnnéeCal,MONTH(D17),DAY(D17)),IF(AfficherObservés,TableauJoursFériés2[JOUR],TableauJoursFériés2[JOUR DE LA SEMAINE]),0),6),INDEX(TableauJoursFériés2[],MATCH(DATE(AnnéeCal,MONTH(D17),DAY(D17)),IF(AfficherObservés,TableauJoursFériés2[JOUR],TableauJoursFériés2[JOUR DE LA SEMAINE]),0),2),\"\"),\"\"),\"\")","v":""},{"$f":"IFERROR(IF(AfficherJoursFériés,IF(INDEX(TableauJoursFériés2[],MATCH(DATE(AnnéeCal,MONTH(E17),DAY(E17)),IF(AfficherObservés,TableauJoursFériés2[JOUR FÉRIÉ],TableauJoursFériés2[CORRIGÉ]),0),6),INDEX(TableauJoursFériés2[],MATCH(DATE(AnnéeCal,MONTH(E17),DAY(E17)),IF(AfficherObservés,TableauJoursFériés2[JOUR FÉRIÉ],TableauJoursFériés2[CORRIGÉ]),0),2),\"\"),\"\"),\"\")","v":""},{"$f":"IFERROR(IF(AfficherJoursFériés,IF(INDEX(TableauJoursFériés2[],MATCH(DATE(AnnéeCal,MONTH(F17),DAY(F17)),IF(AfficherObservés,TableauJoursFériés2[JOUR DE LA SEMAINE],TableauJoursFériés2[AFFICHER]),0),6),INDEX(TableauJoursFériés2[],MATCH(DATE(AnnéeCal,MONTH(F17),DAY(F17)),IF(AfficherObservés,TableauJoursFériés2[JOUR DE LA SEMAINE],TableauJoursFériés2[AFFICHER]),0),2),\"\"),\"\"),\"\")","v":""},{"$f":"IFERROR(IF(AfficherJoursFériés,IF(INDEX(TableauJoursFériés2[],MATCH(DATE(AnnéeCal,MONTH(G17),DAY(G17)),IF(AfficherObservés,TableauJoursFériés2[CORRIGÉ],TableauJoursFériés2[JOUR]),0),6),INDEX(TableauJoursFériés2[],MATCH(DATE(AnnéeCal,MONTH(G17),DAY(G17)),IF(AfficherObservés,TableauJoursFériés2[CORRIGÉ],TableauJoursFériés2[JOUR]),0),2),\"\"),\"\"),\"\")","v":""},{"$f":"IFERROR(IF(AfficherJoursFériés,IF(INDEX(TableauJoursFériés2[],MATCH(DATE(AnnéeCal,MONTH(H17),DAY(H17)),IF(AfficherObservés,TableauJoursFériés2[AFFICHER],TableauJoursFériés2[JOUR FÉRIÉ]),0),6),INDEX(TableauJoursFériés2[],MATCH(DATE(AnnéeCal,MONTH(H17),DAY(H17)),IF(AfficherObservés,TableauJoursFériés2[AFFICHER],TableauJoursFériés2[JOUR FÉRIÉ]),0),2),\"\"),\"\"),\"\")","v":""}]
[null,{"$f":"Jours+DATE(AnnéeCal,3,1)-WEEKDAY(DATE(AnnéeCal,3,1),(DébutSemaine=\"LUNDI\")+1)+36","v":"2024-04-01"},"2024-04-02","NOTES"]
[null,{"$f":"IFERROR(IF(AfficherJoursFériés,IF(INDEX(TableauJoursFériés2[],MATCH(DATE(AnnéeCal,MONTH(B19),DAY(B19)),IF(AfficherObservés,TableauJoursFériés2[CORRIGÉ],TableauJoursFériés2[JOUR]),0),6),INDEX(TableauJoursFériés2[],MATCH(DATE(AnnéeCal,MONTH(B19),DAY(B19)),IF(AfficherObservés,TableauJoursFériés2[CORRIGÉ],TableauJoursFériés2[JOUR]),0),2),\"\"),\"\"),\"\")","v":""},{"$f":"IFERROR(IF(AfficherJoursFériés,IF(INDEX(TableauJoursFériés2[],MATCH(DATE(AnnéeCal,MONTH(C19),DAY(C19)),IF(AfficherObservés,TableauJoursFériés2[AFFICHER],TableauJoursFériés2[JOUR FÉRIÉ]),0),6),INDEX(TableauJoursFériés2[],MATCH(DATE(AnnéeCal,MONTH(C19),DAY(C19)),IF(AfficherObservés,TableauJoursFériés2[AFFICHER],TableauJoursFériés2[JOUR FÉRIÉ]),0),2),\"\"),\"\"),\"\")","v":""}]

{"sheet":"Avril","index":5,"n_rows":16,"n_cols":8,"rows_kept":16,"cut":false,"hidden":false,"merged":[]}
[]
[null,{"$f":"Paramètres!Z15","v":"2024-04-01"}]
[]
[]
[null,{"$f":"DébutSemaine","v":"LUNDI"},{"$f":"UPPER(TEXT(C6,\"jjjj\"))","v":"MARDI"},{"$f":"UPPER(TEXT(D6,\"jjjj\"))","v":"MERCREDI"},{"$f":"UPPER(TEXT(E6,\"jjjj\"))","v":"JEUDI"},"VENDREDI","SAMEDI","DIMANCHE"]
[null,{"$f":"Jours+DATE(AnnéeCal,4,1)-WEEKDAY(DATE(AnnéeCal,4,1),(DébutSemaine=\"LUNDI\")+1)+1","v":"2024-04-01"},{"$f":"Jours+DATE(AnnéeCal,4,1)-WEEKDAY(DATE(AnnéeCal,4,1),(DébutSemaine=\"LUNDI\")+1)+2","v":"2024-04-02"},{"$f":"Jours+DATE(AnnéeCal,4,1)-WEEKDAY(DATE(AnnéeCal,4,1),(DébutSemaine=\"LUNDI\")+1)+3","v":"2024-04-03"},{"$f":"Jours+DATE(AnnéeCal,4,1)-WEEKDAY(DATE(AnnéeCal,4,1),(DébutSemaine=\"LUNDI\")+1)+4","v":"2024-04-04"},{"$f":"Jours+DATE(AnnéeCal,4,1)-WEEKDAY(DATE(AnnéeCal,4,1),(DébutSemaine=\"LUNDI\")+1)+5","v":"2024-04-05"},{"$f":"Jours+DATE(AnnéeCal,4,1)-WEEKDAY(DATE(AnnéeCal,4,1),(DébutSemaine=\"LUNDI\")+1)+6","v":"2024-04-06"},{"$f":"Jours+DATE(AnnéeCal,4,1)-WEEKDAY(DATE(AnnéeCal,4,1),(DébutSemaine=\"LUNDI\")+1)+7","v":"2024-04-07"}]
[]
[null,{"$f":"Jours+DATE(AnnéeCal,MONTH($B$2),1)-WEEKDAY(DATE(AnnéeCal,MONTH($B$2),1),(DébutSemaine=\"LUNDI\")+1)+Paramètres!$A18*7-6","v":"2024-04-08"},{"$f":"Jours+DATE(AnnéeCal,MONTH($B$2),1)-WEEKDAY(DATE(AnnéeCal,MONTH($B$2),1),(DébutSemaine=\"LUNDI\")+1)+Paramètres!$A18*7-6+1","v":"2024-04-09"},{"$f":"Jours+DATE(AnnéeCal,MONTH($B$2),1)-WEEKDAY(DATE(AnnéeCal,MONTH($B$2),1),(DébutSemaine=\"LUNDI\")+1)+Paramètres!$A18*7-6+2","v":"2024-04-10"},{"$f":"Jours+DATE(AnnéeCal,MONTH($B$2),1)-WEEKDAY(DATE(AnnéeCal,MONTH($B$2),1),(DébutSemaine=\"LUNDI\")+1)+Paramètres!$A18*7-6+3","v":"2024-04-11"},{"$f":"Jours+DATE(AnnéeCal,MONTH($B$2),1)-WEEKDAY(DATE(AnnéeCal,MONTH($B$2),1),(DébutSemaine=\"LUNDI\")+1)+Paramètres!$A18*7-6+4","v":"2024-04-12"},{"$f":"Jours+DATE(AnnéeCal,MONTH($B$2),1)-WEEKDAY(DATE(AnnéeCal,MONTH($B$2),1),(DébutSemaine=\"LUNDI\")+1)+Paramètres!$A18*7-6+5","v":"2024-04-13"},{"$f":"Jours+DATE(AnnéeCal,MONTH($B$2),1)-WEEKDAY(DATE(AnnéeCal,MONTH($B$2),1),(DébutSemaine=\"LUNDI\")+1)+Paramètres!$A18*7-6+6","v":"2024-04-14"}]
[]
[null,{"$f":"Jours+DATE(AnnéeCal,MONTH($B$2),1)-WEEKDAY(DATE(AnnéeCal,MONTH($B$2),1),(DébutSemaine=\"LUNDI\")+1)+Paramètres!$A19*7-6","v":"2024-04-15"},{"$f":"Jours+DATE(AnnéeCal,MONTH($B$2),1)-WEEKDAY(DATE(AnnéeCal,MONTH($B$2),1),(DébutSemaine=\"LUNDI\")+1)+Paramètres!$A19*7-6+1","v":"2024-04-16"},{"$f":"Jours+DATE(AnnéeCal,MONTH($B$2),1)-WEEKDAY(DATE(AnnéeCal,MONTH($B$2),1),(DébutSemaine=\"LUNDI\")+1)+Paramètres!$A19*7-6+2","v":"2024-04-17"},{"$f":"Jours+DATE(AnnéeCal,MONTH($B$2),1)-WEEKDAY(DATE(AnnéeCal,MONTH($B$2),1),(DébutSemaine=\"LUNDI\")+1)+Paramètres!$A19*7-6+3","v":"2024-04-18"},{"$f":"Jours+DATE(AnnéeCal,MONTH($B$2),1)-WEEKDAY(DATE(AnnéeCal,MONTH($B$2),1),(DébutSemaine=\"LUNDI\")+1)+Paramètres!$A19*7-6+4","v":"2024-04-19"},{"$f":"Jours+DATE(AnnéeCal,MONTH($B$2),1)-WEEKDAY(DATE(AnnéeCal,MONTH($B$2),1),(DébutSemaine=\"LUNDI\")+1)+Paramètres!$A19*7-6+5","v":"2024-04-20"},{"$f":"Jours+DATE(AnnéeCal,MONTH($B$2),1)-WEEKDAY(DATE(AnnéeCal,MONTH($B$2),1),(DébutSemaine=\"LUNDI\")+1)+Paramètres!$A19*7-6+6","v":"2024-04-21"}]
[]
[null,{"$f":"Jours+DATE(AnnéeCal,MONTH($B$2),1)-WEEKDAY(DATE(AnnéeCal,MONTH($B$2),1),(DébutSemaine=\"LUNDI\")+1)+Paramètres!$A20*7-6","v":"2024-04-22"},{"$f":"Jours+DATE(AnnéeCal,MONTH($B$2),1)-WEEKDAY(DATE(AnnéeCal,MONTH($B$2),1),(DébutSemaine=\"LUNDI\")+1)+Paramètres!$A20*7-6+1","v":"2024-04-23"},{"$f":"Jours+DATE(AnnéeCal,MONTH($B$2),1)-WEEKDAY(DATE(AnnéeCal,MONTH($B$2),1),(DébutSemaine=\"LUNDI\")+1)+Paramètres!$A20*7-6+2","v":"2024-04-24"},{"$f":"Jours+DATE(AnnéeCal,MONTH($B$2),1)-WEEKDAY(DATE(AnnéeCal,MONTH($B$2),1),(DébutSemaine=\"LUNDI\")+1)+Paramètres!$A20*7-6+3","v":"2024-04-25"},{"$f":"Jours+DATE(AnnéeCal,MONTH($B$2),1)-WEEKDAY(DATE(AnnéeCal,MONTH($B$2),1),(DébutSemaine=\"LUNDI\")+1)+Paramètres!$A20*7-6+4","v":"2024-04-26"},{"$f":"Jours+DATE(AnnéeCal,MONTH($B$2),1)-WEEKDAY(DATE(AnnéeCal,MONTH($B$2),1),(DébutSemaine=\"LUNDI\")+1)+Paramètres!$A20*7-6+5","v":"2024-04-27"},{"$f":"Jours+DATE(AnnéeCal,MONTH($B$2),1)-WEEKDAY(DATE(AnnéeCal,MONTH($B$2),1),(DébutSemaine=\"LUNDI\")+1)+Paramètres!$A20*7-6+6","v":"2024-04-28"}]
[]
[null,{"$f":"Jours+DATE(AnnéeCal,MONTH($B$2),1)-WEEKDAY(DATE(AnnéeCal,MONTH($B$2),1),(DébutSemaine=\"LUNDI\")+1)+Paramètres!$A21*7-6","v":"2024-04-29"},{"$f":"Jours+DATE(AnnéeCal,MONTH($B$2),1)-WEEKDAY(DATE(AnnéeCal,MONTH($B$2),1),(DébutSemaine=\"LUNDI\")+1)+Paramètres!$A21*7-6+1","v":"2024-04-30"},{"$f":"Jours+DATE(AnnéeCal,MONTH($B$2),1)-WEEKDAY(DATE(AnnéeCal,MONTH($B$2),1),(DébutSemaine=\"LUNDI\")+1)+Paramètres!$A21*7-6+2","v":"2024-05-01"},{"$f":"Jours+DATE(AnnéeCal,MONTH($B$2),1)-WEEKDAY(DATE(AnnéeCal,MONTH($B$2),1),(DébutSemaine=\"LUNDI\")+1)+Paramètres!$A21*7-6+3","v":"2024-05-02"},{"$f":"Jours+DATE(AnnéeCal,MONTH($B$2),1)-WEEKDAY(DATE(AnnéeCal,MONTH($B$2),1),(DébutSemaine=\"LUNDI\")+1)+Paramètres!$A21*7-6+4","v":"2024-05-03"},{"$f":"Jours+DATE(AnnéeCal,MONTH($B$2),1)-WEEKDAY(DATE(AnnéeCal,MONTH($B$2),1),(DébutSemaine=\"LUNDI\")+1)+Paramètres!$A21*7-6+5","v":"2024-05-04"},{"$f":"Jours+DATE(AnnéeCal,MONTH($B$2),1)-WEEKDAY(DATE(AnnéeCal,MONTH($B$2),1),(DébutSemaine=\"LUNDI\")+1)+Paramètres!$A21*7-6+6","v":"2024-05-05"}]
[]
[null,{"$f":"Jours+DATE(AnnéeCal,MONTH($B$2),1)-WEEKDAY(DATE(AnnéeCal,MONTH($B$2),1),(DébutSemaine=\"LUNDI\")+1)+Paramètres!$A22*7-6","v":"2024-05-06"},{"$f":"Jours+DATE(AnnéeCal,MONTH($B$2),1)-WEEKDAY(DATE(AnnéeCal,MONTH($B$2),1),(DébutSemaine=\"LUNDI\")+1)+Paramètres!$A22*7-6+1","v":"2024-05-07"},{"$f":"Jours+DATE(AnnéeCal,MONTH($B$2),1)-WEEKDAY(DATE(AnnéeCal,MONTH($B$2),1),(DébutSemaine=\"LUNDI\")+1)+Paramètres!$A22*7-6+2","v":"2024-05-08"},{"$f":"Jours+DATE(AnnéeCal,MONTH($B$2),1)-WEEKDAY(DATE(AnnéeCal,MONTH($B$2),1),(DébutSemaine=\"LUNDI\")+1)+Paramètres!$A22*7-6+3","v":"2024-05-09"},{"$f":"Jours+DATE(AnnéeCal,MONTH($B$2),1)-WEEKDAY(DATE(AnnéeCal,MONTH($B$2),1),(DébutSemaine=\"LUNDI\")+1)+Paramètres!$A22*7-6+4","v":"2024-05-10"},{"$f":"Jours+DATE(AnnéeCal,MONTH($B$2),1)-WEEKDAY(DATE(AnnéeCal,MONTH($B$2),1),(DébutSemaine=\"LUNDI\")+1)+Paramètres!$A22*7-6+5","v":"2024-05-11"},{"$f":"Jours+DATE(AnnéeCal,MONTH($B$2),1)-WEEKDAY(DATE(AnnéeCal,MONTH($B$2),1),(DébutSemaine=\"LUNDI\")+1)+Paramètres!$A22*7-6+6","v":"2024-05-12"}]

{"sheet":"Mai","index":6,"n_rows":18,"n_cols":8,"rows_kept":18,"cut":false,"hidden":false,"merged":[]}
[]
[null,null,{"$f":"UPPER(TEXT(Paramètres!B24,\"MMMM AAAA\"))","v":"MAI 2024"}]
[]
[]
[]
[null,{"$f":"DébutSemaine","v":"LUNDI"},{"$f":"UPPER(TEXT(C7,\"jjjj\"))","v":"MARDI"},{"$f":"UPPER(TEXT(D7,\"jjjj\"))","v":"MERCREDI"},{"$f":"UPPER(TEXT(E7,\"jjjj\"))","v":"JEUDI"},"VENDREDI","SAMEDI","DIMANCHE"]
[null,{"$f":"Jours+DATE(AnnéeCal,5,1)-WEEKDAY(DATE(AnnéeCal,5,1),(DébutSemaine=\"LUNDI\")+1)+1","v":"2024-04-29"},{"$f":"Jours+DATE(AnnéeCal,5,1)-WEEKDAY(DATE(AnnéeCal,5,1),(DébutSemaine=\"LUNDI\")+1)+2","v":"2024-04-30"},{"$f":"Jours+DATE(AnnéeCal,5,1)-WEEKDAY(DATE(AnnéeCal,5,1),(DébutSemaine=\"LUNDI\")+1)+3","v":"2024-05-01"},{"$f":"Jours+DATE(AnnéeCal,5,1)-WEEKDAY(DATE(AnnéeCal,5,1),(DébutSemaine=\"LUNDI\")+1)+4","v":"2024-05-02"},{"$f":"Jours+DATE(AnnéeCal,MONTH(C2),1)-WEEKDAY(DATE(AnnéeCal,MONTH(C2),1),(DébutSemaine=\"LUNDI\")+1)+5","v":"2024-05-03"},{"$f":"Jours+DATE(AnnéeCal,5,1)-WEEKDAY(DATE(AnnéeCal,5,1),(DébutSemaine=\"LUNDI\")+1)+6","v":"2024-05-04"},{"$f":"Jours+DATE(AnnéeCal,5,1)-WEEKDAY(DATE(AnnéeCal,5,1),(DébutSemaine=\"LUNDI\")+1)+7","v":"2024-05-05"}]
[null,{"$f":"IFERROR(IF(AfficherJoursFériés,IF(INDEX(TableauJoursFériés2[],MATCH(DATE(AnnéeCal,MONTH(B$7),DAY(B$7)),IF(AfficherObservés,TableauJoursFériés2[CORRIGÉ],TableauJoursFériés2[JOUR]),0),5),INDEX(TableauJoursFériés2[],MATCH(DATE(AnnéeCal,MONTH(B$7),DAY(B$7)),IF(AfficherObservés,TableauJoursFériés2[CORRIGÉ],TableauJoursFériés2[JOUR]),0),2),\"\"),\"\"),\"\")","v":""},{"$f":"IFERROR(IF(AfficherJoursFériés,IF(INDEX(TableauJoursFériés2[],MATCH(DATE(AnnéeCal,MONTH(C$7),DAY(C$7)),IF(AfficherObservés,TableauJoursFériés2[AFFICHER],TableauJoursFériés2[JOUR FÉRIÉ]),0),5),INDEX(TableauJoursFériés2[],MATCH(DATE(AnnéeCal,MONTH(C$7),DAY(C$7)),IF(AfficherObservés,TableauJoursFériés2[AFFICHER],TableauJoursFériés2[JOUR FÉRIÉ]),0),2),\"\"),\"\"),\"\")","v":""},{"$f":"IFERROR(IF(AfficherJoursFériés,IF(INDEX(TableauJoursFériés2[],MATCH(DATE(AnnéeCal,MONTH(D$7),DAY(D$7)),IF(AfficherObservés,TableauJoursFériés2[JOUR],TableauJoursFériés2[JOUR DE LA SEMAINE]),0),5),INDEX(TableauJoursFériés2[],MATCH(DATE(AnnéeCal,MONTH(D$7),DAY(D$7)),IF(AfficherObservés,TableauJoursFériés2[JOUR],TableauJoursFériés2[JOUR DE LA SEMAINE]),0),2),\"\"),\"\"),\"\")","v":"Fête du travail"},{"$f":"IFERROR(IF(AfficherJoursFériés,IF(INDEX(TableauJoursFériés2[],MATCH(DATE(AnnéeCal,MONTH(E$7),DAY(E$7)),IF(AfficherObservés,TableauJoursFériés2[JOUR FÉRIÉ],TableauJoursFériés2[CORRIGÉ]),0),5),INDEX(TableauJoursFériés2[],MATCH(DATE(AnnéeCal,MONTH(E$7),DAY(E$7)),IF(AfficherObservés,TableauJoursFériés2[JOUR FÉRIÉ],TableauJoursFériés2[CORRIGÉ]),0),2),\"\"),\"\"),\"\")","v":""},{"$f":"IFERROR(IF(AfficherJoursFériés,IF(INDEX(TableauJoursFériés2[],MATCH(DATE(AnnéeCal,MONTH(F$7),DAY(F$7)),IF(AfficherObservés,TableauJoursFériés2[JOUR DE LA SEMAINE],TableauJoursFériés2[AFFICHER]),0),5),INDEX(TableauJoursFériés2[],MATCH(DATE(AnnéeCal,MONTH(F$7),DAY(F$7)),IF(AfficherObservés,TableauJoursFériés2[JOUR DE LA SEMAINE],TableauJoursFériés2[AFFICHER]),0),2),\"\"),\"\"),\"\")","v":""},{"$f":"IFERROR(IF(AfficherJoursFériés,IF(INDEX(TableauJoursFériés2[],MATCH(DATE(AnnéeCal,MONTH(G$7),DAY(G$7)),IF(AfficherObservés,TableauJoursFériés2[CORRIGÉ],TableauJoursFériés2[JOUR]),0),5),INDEX(TableauJoursFériés2[],MATCH(DATE(AnnéeCal,MONTH(G$7),DAY(G$7)),IF(AfficherObservés,TableauJoursFériés2[CORRIGÉ],TableauJoursFériés2[JOUR]),0),2),\"\"),\"\"),\"\")","v":""},{"$f":"IFERROR(IF(AfficherJoursFériés,IF(INDEX(TableauJoursFériés2[],MATCH(DATE(AnnéeCal,MONTH(H$7),DAY(H$7)),IF(AfficherObservés,TableauJoursFériés2[AFFICHER],TableauJoursFériés2[JOUR FÉRIÉ]),0),5),INDEX(TableauJoursFériés2[],MATCH(DATE(AnnéeCal,MONTH(H$7),DAY(H$7)),IF(AfficherObservés,TableauJoursFériés2[AFFICHER],TableauJoursFériés2[JOUR FÉRIÉ]),0),2),\"\"),\"\"),\"\")","v":""}]
[null,{"$f":"Jours+DATE(AnnéeCal,MONTH(C2),1)-WEEKDAY(DATE(AnnéeCal,MONTH(C2),1),(DébutSemaine=\"LUNDI\")+1)+Paramètres!$A27*7-6","v":"2024-05-06"},{"$f":"Jours+DATE(AnnéeCal,MONTH($C$2),1)-WEEKDAY(DATE(AnnéeCal,MONTH($C$2),1),(DébutSemaine=\"LUNDI\")+1)+Paramètres!$A27*7-6+1","v":"2024-05-07"},{"$f":"Jours+DATE(AnnéeCal,MONTH($C$2),1)-WEEKDAY(DATE(AnnéeCal,MONTH($C$2),1),(DébutSemaine=\"LUNDI\")+1)+Paramètres!$A27*7-6+2","v":"2024-05-08"},{"$f":"Jours+DATE(AnnéeCal,MONTH($C$2),1)-WEEKDAY(DATE(AnnéeCal,MONTH($C$2),1),(DébutSemaine=\"LUNDI\")+1)+Paramètres!$A27*7-6+3","v":"2024-05-09"},{"$f":"Jours+DATE(AnnéeCal,MONTH($C$2),1)-WEEKDAY(DATE(AnnéeCal,MONTH($C$2),1),(DébutSemaine=\"LUNDI\")+1)+Paramètres!$A27*7-6+4","v":"2024-05-10"},{"$f":"Jours+DATE(AnnéeCal,MONTH($C$2),1)-WEEKDAY(DATE(AnnéeCal,MONTH($C$2),1),(DébutSemaine=\"LUNDI\")+1)+Paramètres!$A27*7-6+5","v":"2024-05-11"},{"$f":"Jours+DATE(AnnéeCal,MONTH($C$2),1)-WEEKDAY(DATE(AnnéeCal,MONTH($C$2),1),(DébutSemaine=\"LUNDI\")+1)+Paramètres!$A27*7-6+6","v":"2024-05-12"}]
[null,{"$f":"IFERROR(IF(AfficherJoursFériés,IF(INDEX(TableauJoursFériés2[],MATCH(DATE(AnnéeCal,MONTH(B9),DAY(B9)),IF(AfficherObservés,TableauJoursFériés2[CORRIGÉ],TableauJoursFériés2[JOUR]),0),5),INDEX(TableauJoursFériés2[],MATCH(DATE(AnnéeCal,MONTH(B9),DAY(B9)),IF(AfficherObservés,TableauJoursFériés2[CORRIGÉ],TableauJoursFériés2[JOUR]),0),2),\"\"),\"\"),\"\")","v":""},{"$f":"IFERROR(IF(AfficherJoursFériés,IF(INDEX(TableauJoursFériés2[],MATCH(DATE(AnnéeCal,MONTH(C9),DAY(C9)),IF(AfficherObservés,TableauJoursFériés2[CORRIGÉ],TableauJoursFériés2[JOUR]),0),5),INDEX(TableauJoursFériés2[],MATCH(DATE(AnnéeCal,MONTH(C9),DAY(C9)),IF(AfficherObservés,TableauJoursFériés2[CORRIGÉ],TableauJoursFériés2[JOUR]),0),2),\"\"),\"\"),\"\")","v":""},{"$f":"IFERROR(IF(AfficherJoursFériés,IF(INDEX(TableauJoursFériés2[],MATCH(DATE(AnnéeCal,MONTH(D9),DAY(D9)),IF(AfficherObservés,TableauJoursFériés2[CORRIGÉ],TableauJoursFériés2[JOUR]),0),5),INDEX(TableauJoursFériés2[],MATCH(DATE(AnnéeCal,MONTH(D9),DAY(D9)),IF(AfficherObservés,TableauJoursFériés2[CORRIGÉ],TableauJoursFériés2[JOUR]),0),2),\"\"),\"\"),\"\")","v":"Victoire 1945"},{"$f":"IFERROR(IF(AfficherJoursFériés,IF(INDEX(TableauJoursFériés2[],MATCH(DATE(AnnéeCal,MONTH(E9),DAY(E9)),IF(AfficherObservés,TableauJoursFériés2[CORRIGÉ],TableauJoursFériés2[JOUR]),0),5),INDEX(TableauJoursFériés2[],MATCH(DATE(AnnéeCal,MONTH(E9),DAY(E9)),IF(AfficherObservés,TableauJoursFériés2[CORRIGÉ],TableauJoursFériés2[JOUR]),0),2),\"\"),\"\"),\"\")","v":""},{"$f":"IFERROR(IF(AfficherJoursFériés,IF(INDEX(TableauJoursFériés2[],MATCH(DATE(AnnéeCal,MONTH(F9),DAY(F9)),IF(AfficherObservés,TableauJoursFériés2[CORRIGÉ],TableauJoursFériés2[JOUR]),0),5),INDEX(TableauJoursFériés2[],MATCH(DATE(AnnéeCal,MONTH(F9),DAY(F9)),IF(AfficherObservés,TableauJoursFériés2[CORRIGÉ],TableauJoursFériés2[JOUR]),0),2),\"\"),\"\"),\"\")","v":""},{"$f":"IFERROR(IF(AfficherJoursFériés,IF(INDEX(TableauJoursFériés2[],MATCH(DATE(AnnéeCal,MONTH(G9),DAY(G9)),IF(AfficherObservés,TableauJoursFériés2[CORRIGÉ],TableauJoursFériés2[JOUR]),0),5),INDEX(TableauJoursFériés2[],MATCH(DATE(AnnéeCal,MONTH(G9),DAY(G9)),IF(AfficherObservés,TableauJoursFériés2[CORRIGÉ],TableauJoursFériés2[JOUR]),0),2),\"\"),\"\"),\"\")","v":""},{"$f":"IFERROR(IF(AfficherJoursFériés,IF(INDEX(TableauJoursFériés2[],MATCH(DATE(AnnéeCal,MONTH(H9),DAY(H9)),IF(AfficherObservés,TableauJoursFériés2[CORRIGÉ],TableauJoursFériés2[JOUR]),0),5),INDEX(TableauJoursFériés2[],MATCH(DATE(AnnéeCal,MONTH(H9),DAY(H9)),IF(AfficherObservés,TableauJoursFériés2[CORRIGÉ],TableauJoursFériés2[JOUR]),0),2),\"\"),\"\"),\"\")","v":""}]
[null,{"$f":"Jours+DATE(AnnéeCal,MONTH($C$2),1)-WEEKDAY(DATE(AnnéeCal,MONTH($C$2),1),(DébutSemaine=\"LUNDI\")+1)+Paramètres!$A28*7-6","v":"2024-05-13"},{"$f":"Jours+DATE(AnnéeCal,MONTH($C$2),1)-WEEKDAY(DATE(AnnéeCal,MONTH($C$2),1),(DébutSemaine=\"LUNDI\")+1)+Paramètres!$A28*7-6+1","v":"2024-05-14"},{"$f":"Jours+DATE(AnnéeCal,MONTH($C$2),1)-WEEKDAY(DATE(AnnéeCal,MONTH($C$2),1),(DébutSemaine=\"LUNDI\")+1)+Paramètres!$A28*7-6+2","v":"2024-05-15"},{"$f":"Jours+DATE(AnnéeCal,MONTH($C$2),1)-WEEKDAY(DATE(AnnéeCal,MONTH($C$2),1),(DébutSemaine=\"LUNDI\")+1)+Paramètres!$A28*7-6+3","v":"2024-05-16"},{"$f":"Jours+DATE(AnnéeCal,MONTH($C$2),1)-WEEKDAY(DATE(AnnéeCal,MONTH($C$2),1),(DébutSemaine=\"LUNDI\")+1)+Paramètres!$A28*7-6+4","v":"2024-05-17"},{"$f":"Jours+DATE(AnnéeCal,MONTH($C$2),1)-WEEKDAY(DATE(AnnéeCal,MONTH($C$2),1),(DébutSemaine=\"LUNDI\")+1)+Paramètres!$A28*7-6+5","v":"2024-05-18"},{"$f":"Jours+DATE(AnnéeCal,MONTH($C$2),1)-WEEKDAY(DATE(AnnéeCal,MONTH($C$2),1),(DébutSemaine=\"LUNDI\")+1)+Paramètres!$A28*7-6+6","v":"2024-05-19"}]
[null,{"$f":"IFERROR(IF(AfficherJoursFériés,IF(INDEX(TableauJoursFériés2[],MATCH(DATE(AnnéeCal,MONTH(B11),DAY(B11)),IF(AfficherObservés,TableauJoursFériés2[CORRIGÉ],TableauJoursFériés2[JOUR]),0),5),INDEX(TableauJoursFériés2[],MATCH(DATE(AnnéeCal,MONTH(B11),DAY(B11)),IF(AfficherObservés,TableauJoursFériés2[CORRIGÉ],TableauJoursFériés2[JOUR]),0),2),\"\"),\"\"),\"\")","v":""},{"$f":"IFERROR(IF(AfficherJoursFériés,IF(INDEX(TableauJoursFériés2[],MATCH(DATE(AnnéeCal,MONTH(C11),DAY(C11)),IF(AfficherObservés,TableauJoursFériés2[CORRIGÉ],TableauJoursFériés2[JOUR]),0),5),INDEX(TableauJoursFériés2[],MATCH(DATE(AnnéeCal,MONTH(C11),DAY(C11)),IF(AfficherObservés,TableauJoursFériés2[CORRIGÉ],TableauJoursFériés2[JOUR]),0),2),\"\"),\"\"),\"\")","v":""},{"$f":"IFERROR(IF(AfficherJoursFériés,IF(INDEX(TableauJoursFériés2[],MATCH(DATE(AnnéeCal,MONTH(D11),DAY(D11)),IF(AfficherObservés,TableauJoursFériés2[CORRIGÉ],TableauJoursFériés2[JOUR]),0),5),INDEX(TableauJoursFériés2[],MATCH(DATE(AnnéeCal,MONTH(D11),DAY(D11)),IF(AfficherObservés,TableauJoursFériés2[CORRIGÉ],TableauJoursFériés2[JOUR]),0),2),\"\"),\"\"),\"\")","v":""},{"$f":"IFERROR(IF(AfficherJoursFériés,IF(INDEX(TableauJoursFériés2[],MATCH(DATE(AnnéeCal,MONTH(E11),DAY(E11)),IF(AfficherObservés,TableauJoursFériés2[CORRIGÉ],TableauJoursFériés2[JOUR]),0),5),INDEX(TableauJoursFériés2[],MATCH(DATE(AnnéeCal,MONTH(E11),DAY(E11)),IF(AfficherObservés,TableauJoursFériés2[CORRIGÉ],TableauJoursFériés2[JOUR]),0),2),\"\"),\"\"),\"\")","v":""},{"$f":"IFERROR(IF(AfficherJoursFériés,IF(INDEX(TableauJoursFériés2[],MATCH(DATE(AnnéeCal,MONTH(F11),DAY(F11)),IF(AfficherObservés,TableauJoursFériés2[CORRIGÉ],TableauJoursFériés2[JOUR]),0),5),INDEX(TableauJoursFériés2[],MATCH(DATE(AnnéeCal,MONTH(F11),DAY(F11)),IF(AfficherObservés,TableauJoursFériés2[CORRIGÉ],TableauJoursFériés2[JOUR]),0),2),\"\"),\"\"),\"\")","v":""},{"$f":"IFERROR(IF(AfficherJoursFériés,IF(INDEX(TableauJoursFériés2[],MATCH(DATE(AnnéeCal,MONTH(G11),DAY(G11)),IF(AfficherObservés,TableauJoursFériés2[CORRIGÉ],TableauJoursFériés2[JOUR]),0),5),INDEX(TableauJoursFériés2[],MATCH(DATE(AnnéeCal,MONTH(G11),DAY(G11)),IF(AfficherObservés,TableauJoursFériés2[CORRIGÉ],TableauJoursFériés2[JOUR]),0),2),\"\"),\"\"),\"\")","v":""},{"$f":"IFERROR(IF(AfficherJoursFériés,IF(INDEX(TableauJoursFériés2[],MATCH(DATE(AnnéeCal,MONTH(H11),DAY(H11)),IF(AfficherObservés,TableauJoursFériés2[CORRIGÉ],TableauJoursFériés2[JOUR]),0),5),INDEX(TableauJoursFériés2[],MATCH(DATE(AnnéeCal,MONTH(H11),DAY(H11)),IF(AfficherObservés,TableauJoursFériés2[CORRIGÉ],TableauJoursFériés2[JOUR]),0),2),\"\"),\"\"),\"\")","v":""}]
[null,{"$f":"Jours+DATE(AnnéeCal,MONTH($C$2),1)-WEEKDAY(DATE(AnnéeCal,MONTH($C$2),1),(DébutSemaine=\"LUNDI\")+1)+Paramètres!$A29*7-6","v":"2024-05-20"},{"$f":"Jours+DATE(AnnéeCal,MONTH($C$2),1)-WEEKDAY(DATE(AnnéeCal,MONTH($C$2),1),(DébutSemaine=\"LUNDI\")+1)+Paramètres!$A29*7-6+1","v":"2024-05-21"},{"$f":"Jours+DATE(AnnéeCal,MONTH($C$2),1)-WEEKDAY(DATE(AnnéeCal,MONTH($C$2),1),(DébutSemaine=\"LUNDI\")+1)+Paramètres!$A29*7-6+2","v":"2024-05-22"},{"$f":"Jours+DATE(AnnéeCal,MONTH($C$2),1)-WEEKDAY(DATE(AnnéeCal,MONTH($C$2),1),(DébutSemaine=\"LUNDI\")+1)+Paramètres!$A29*7-6+3","v":"2024-05-23"},{"$f":"Jours+DATE(AnnéeCal,MONTH($C$2),1)-WEEKDAY(DATE(AnnéeCal,MONTH($C$2),1),(DébutSemaine=\"LUNDI\")+1)+Paramètres!$A29*7-6+4","v":"2024-05-24"},{"$f":"Jours+DATE(AnnéeCal,MONTH($C$2),1)-WEEKDAY(DATE(AnnéeCal,MONTH($C$2),1),(DébutSemaine=\"LUNDI\")+1)+Paramètres!$A29*7-6+5","v":"2024-05-25"},{"$f":"Jours+DATE(AnnéeCal,MONTH($C$2),1)-WEEKDAY(DATE(AnnéeCal,MONTH($C$2),1),(DébutSemaine=\"LUNDI\")+1)+Paramètres!$A29*7-6+6","v":"2024-05-26"}]
[null,{"$f":"IFERROR(IF(AfficherJoursFériés,IF(INDEX(TableauJoursFériés2[],MATCH(DATE(AnnéeCal,MONTH(B13),DAY(B13)),IF(AfficherObservés,TableauJoursFériés2[CORRIGÉ],TableauJoursFériés2[JOUR]),0),5),INDEX(TableauJoursFériés2[],MATCH(DATE(AnnéeCal,MONTH(B13),DAY(B13)),IF(AfficherObservés,TableauJoursFériés2[CORRIGÉ],TableauJoursFériés2[JOUR]),0),2),\"\"),\"\"),\"\")","v":""},{"$f":"IFERROR(IF(AfficherJoursFériés,IF(INDEX(TableauJoursFériés2[],MATCH(DATE(AnnéeCal,MONTH(C13),DAY(C13)),IF(AfficherObservés,TableauJoursFériés2[CORRIGÉ],TableauJoursFériés2[JOUR]),0),5),INDEX(TableauJoursFériés2[],MATCH(DATE(AnnéeCal,MONTH(C13),DAY(C13)),IF(AfficherObservés,TableauJoursFériés2[CORRIGÉ],TableauJoursFériés2[JOUR]),0),2),\"\"),\"\"),\"\")","v":""},{"$f":"IFERROR(IF(AfficherJoursFériés,IF(INDEX(TableauJoursFériés2[],MATCH(DATE(AnnéeCal,MONTH(D13),DAY(D13)),IF(AfficherObservés,TableauJoursFériés2[CORRIGÉ],TableauJoursFériés2[JOUR]),0),5),INDEX(TableauJoursFériés2[],MATCH(DATE(AnnéeCal,MONTH(D13),DAY(D13)),IF(AfficherObservés,TableauJoursFériés2[CORRIGÉ],TableauJoursFériés2[JOUR]),0),2),\"\"),\"\"),\"\")","v":""},{"$f":"IFERROR(IF(AfficherJoursFériés,IF(INDEX(TableauJoursFériés2[],MATCH(DATE(AnnéeCal,MONTH(E13),DAY(E13)),IF(AfficherObservés,TableauJoursFériés2[CORRIGÉ],TableauJoursFériés2[JOUR]),0),5),INDEX(TableauJoursFériés2[],MATCH(DATE(AnnéeCal,MONTH(E13),DAY(E13)),IF(AfficherObservés,TableauJoursFériés2[CORRIGÉ],TableauJoursFériés2[JOUR]),0),2),\"\"),\"\"),\"\")","v":""},{"$f":"IFERROR(IF(AfficherJoursFériés,IF(INDEX(TableauJoursFériés2[],MATCH(DATE(AnnéeCal,MONTH(F13),DAY(F13)),IF(AfficherObservés,TableauJoursFériés2[CORRIGÉ],TableauJoursFériés2[JOUR]),0),5),INDEX(TableauJoursFériés2[],MATCH(DATE(AnnéeCal,MONTH(F13),DAY(F13)),IF(AfficherObservés,TableauJoursFériés2[CORRIGÉ],TableauJoursFériés2[JOUR]),0),2),\"\"),\"\"),\"\")","v":""},{"$f":"IFERROR(IF(AfficherJoursFériés,IF(INDEX(TableauJoursFériés2[],MATCH(DATE(AnnéeCal,MONTH(G13),DAY(G13)),IF(AfficherObservés,TableauJoursFériés2[CORRIGÉ],TableauJoursFériés2[JOUR]),0),5),INDEX(TableauJoursFériés2[],MATCH(DATE(AnnéeCal,MONTH(G13),DAY(G13)),IF(AfficherObservés,TableauJoursFériés2[CORRIGÉ],TableauJoursFériés2[JOUR]),0),2),\"\"),\"\"),\"\")","v":""},{"$f":"IFERROR(IF(AfficherJoursFériés,IF(INDEX(TableauJoursFériés2[],MATCH(DATE(AnnéeCal,MONTH(H13),DAY(H13)),IF(AfficherObservés,TableauJoursFériés2[CORRIGÉ],TableauJoursFériés2[JOUR]),0),5),INDEX(TableauJoursFériés2[],MATCH(DATE(AnnéeCal,MONTH(H13),DAY(H13)),IF(AfficherObservés,TableauJoursFériés2[CORRIGÉ],TableauJoursFériés2[JOUR]),0),2),\"\"),\"\"),\"\")","v":""}]
[null,{"$f":"Jours+DATE(AnnéeCal,MONTH($C$2),1)-WEEKDAY(DATE(AnnéeCal,MONTH($C$2),1),(DébutSemaine=\"LUNDI\")+1)+Paramètres!$A30*7-6","v":"2024-05-27"},{"$f":"Jours+DATE(AnnéeCal,MONTH($C$2),1)-WEEKDAY(DATE(AnnéeCal,MONTH($C$2),1),(DébutSemaine=\"LUNDI\")+1)+Paramètres!$A30*7-6+1","v":"2024-05-28"},{"$f":"Jours+DATE(AnnéeCal,MONTH($C$2),1)-WEEKDAY(DATE(AnnéeCal,MONTH($C$2),1),(DébutSemaine=\"LUNDI\")+1)+Paramètres!$A30*7-6+2","v":"2024-05-29"},{"$f":"Jours+DATE(AnnéeCal,MONTH($C$2),1)-WEEKDAY(DATE(AnnéeCal,MONTH($C$2),1),(DébutSemaine=\"LUNDI\")+1)+Paramètres!$A30*7-6+3","v":"2024-05-30"},{"$f":"Jours+DATE(AnnéeCal,MONTH($C$2),1)-WEEKDAY(DATE(AnnéeCal,MONTH($C$2),1),(DébutSemaine=\"LUNDI\")+1)+Paramètres!$A30*7-6+4","v":"2024-05-31"},{"$f":"Jours+DATE(AnnéeCal,MONTH($C$2),1)-WEEKDAY(DATE(AnnéeCal,MONTH($C$2),1),(DébutSemaine=\"LUNDI\")+1)+Paramètres!$A30*7-6+5","v":"2024-06-01"},{"$f":"Jours+DATE(AnnéeCal,MONTH($C$2),1)-WEEKDAY(DATE(AnnéeCal,MONTH($C$2),1),(DébutSemaine=\"LUNDI\")+1)+Paramètres!$A30*7-6+6","v":"2024-06-02"}]
[null,{"$f":"IFERROR(IF(AfficherJoursFériés,IF(INDEX(TableauJoursFériés2[],MATCH(DATE(AnnéeCal,MONTH(B15),DAY(B15)),IF(AfficherObservés,TableauJoursFériés2[CORRIGÉ],TableauJoursFériés2[JOUR]),0),5),INDEX(TableauJoursFériés2[],MATCH(DATE(AnnéeCal,MONTH(B15),DAY(B15)),IF(AfficherObservés,TableauJoursFériés2[CORRIGÉ],TableauJoursFériés2[JOUR]),0),2),\"\"),\"\"),\"\")","v":""},{"$f":"IFERROR(IF(AfficherJoursFériés,IF(INDEX(TableauJoursFériés2[],MATCH(DATE(AnnéeCal,MONTH(C15),DAY(C15)),IF(AfficherObservés,TableauJoursFériés2[CORRIGÉ],TableauJoursFériés2[JOUR]),0),5),INDEX(TableauJoursFériés2[],MATCH(DATE(AnnéeCal,MONTH(C15),DAY(C15)),IF(AfficherObservés,TableauJoursFériés2[CORRIGÉ],TableauJoursFériés2[JOUR]),0),2),\"\"),\"\"),\"\")","v":""},{"$f":"IFERROR(IF(AfficherJoursFériés,IF(INDEX(TableauJoursFériés2[],MATCH(DATE(AnnéeCal,MONTH(D15),DAY(D15)),IF(AfficherObservés,TableauJoursFériés2[CORRIGÉ],TableauJoursFériés2[JOUR]),0),5),INDEX(TableauJoursFériés2[],MATCH(DATE(AnnéeCal,MONTH(D15),DAY(D15)),IF(AfficherObservés,TableauJoursFériés2[CORRIGÉ],TableauJoursFériés2[JOUR]),0),2),\"\"),\"\"),\"\")","v":""},{"$f":"IFERROR(IF(AfficherJoursFériés,IF(INDEX(TableauJoursFériés2[],MATCH(DATE(AnnéeCal,MONTH(E15),DAY(E15)),IF(AfficherObservés,TableauJoursFériés2[CORRIGÉ],TableauJoursFériés2[JOUR]),0),5),INDEX(TableauJoursFériés2[],MATCH(DATE(AnnéeCal,MONTH(E15),DAY(E15)),IF(AfficherObservés,TableauJoursFériés2[CORRIGÉ],TableauJoursFériés2[JOUR]),0),2),\"\"),\"\"),\"\")","v":""},{"$f":"IFERROR(IF(AfficherJoursFériés,IF(INDEX(TableauJoursFériés2[],MATCH(DATE(AnnéeCal,MONTH(F15),DAY(F15)),IF(AfficherObservés,TableauJoursFériés2[CORRIGÉ],TableauJoursFériés2[JOUR]),0),5),INDEX(TableauJoursFériés2[],MATCH(DATE(AnnéeCal,MONTH(F15),DAY(F15)),IF(AfficherObservés,TableauJoursFériés2[CORRIGÉ],TableauJoursFériés2[JOUR]),0),2),\"\"),\"\"),\"\")","v":""},{"$f":"IFERROR(IF(AfficherJoursFériés,IF(INDEX(TableauJoursFériés2[],MATCH(DATE(AnnéeCal,MONTH(G15),DAY(G15)),IF(AfficherObservés,TableauJoursFériés2[CORRIGÉ],TableauJoursFériés2[JOUR]),0),5),INDEX(TableauJoursFériés2[],MATCH(DATE(AnnéeCal,MONTH(G15),DAY(G15)),IF(AfficherObservés,TableauJoursFériés2[CORRIGÉ],TableauJoursFériés2[JOUR]),0),2),\"\"),\"\"),\"\")","v":""},{"$f":"IFERROR(IF(AfficherJoursFériés,IF(INDEX(TableauJoursFériés2[],MATCH(DATE(AnnéeCal,MONTH(H15),DAY(H15)),IF(AfficherObservés,TableauJoursFériés2[CORRIGÉ],TableauJoursFériés2[JOUR]),0),5),INDEX(TableauJoursFériés2[],MATCH(DATE(AnnéeCal,MONTH(H15),DAY(H15)),IF(AfficherObservés,TableauJoursFériés2[CORRIGÉ],TableauJoursFériés2[JOUR]),0),2),\"\"),\"\"),\"\")","v":""}]
[null,{"$f":"Jours+DATE(AnnéeCal,MONTH($C$2),1)-WEEKDAY(DATE(AnnéeCal,MONTH($C$2),1),(DébutSemaine=\"LUNDI\")+1)+Paramètres!$A31*7-6","v":"2024-06-03"},{"$f":"Jours+DATE(AnnéeCal,MONTH($C$2),1)-WEEKDAY(DATE(AnnéeCal,MONTH($C$2),1),(DébutSemaine=\"LUNDI\")+1)+Paramètres!$A31*7-6+1","v":"2024-06-04"},{"$f":"Jours+DATE(AnnéeCal,MONTH($C$2),1)-WEEKDAY(DATE(AnnéeCal,MONTH($C$2),1),(DébutSemaine=\"LUNDI\")+1)+Paramètres!$A31*7-6+2","v":"2024-06-05"},{"$f":"Jours+DATE(AnnéeCal,MONTH($C$2),1)-WEEKDAY(DATE(AnnéeCal,MONTH($C$2),1),(DébutSemaine=\"LUNDI\")+1)+Paramètres!$A31*7-6+3","v":"2024-06-06"},{"$f":"Jours+DATE(AnnéeCal,MONTH($C$2),1)-WEEKDAY(DATE(AnnéeCal,MONTH($C$2),1),(DébutSemaine=\"LUNDI\")+1)+Paramètres!$A31*7-6+4","v":"2024-06-07"},{"$f":"Jours+DATE(AnnéeCal,MONTH($C$2),1)-WEEKDAY(DATE(AnnéeCal,MONTH($C$2),1),(DébutSemaine=\"LUNDI\")+1)+Paramètres!$A31*7-6+5","v":"2024-06-08"},{"$f":"Jours+DATE(AnnéeCal,MONTH($C$2),1)-WEEKDAY(DATE(AnnéeCal,MONTH($C$2),1),(DébutSemaine=\"LUNDI\")+1)+Paramètres!$A31*7-6+6","v":"2024-06-09"}]
[null,{"$f":"IFERROR(IF(AfficherJoursFériés,IF(INDEX(TableauJoursFériés2[],MATCH(DATE(AnnéeCal,MONTH(B17),DAY(B17)),IF(AfficherObservés,TableauJoursFériés2[CORRIGÉ],TableauJoursFériés2[JOUR]),0),5),INDEX(TableauJoursFériés2[],MATCH(DATE(AnnéeCal,MONTH(B17),DAY(B17)),IF(AfficherObservés,TableauJoursFériés2[CORRIGÉ],TableauJoursFériés2[JOUR]),0),2),\"\"),\"\"),\"\")","v":""},{"$f":"IFERROR(IF(AfficherJoursFériés,IF(INDEX(TableauJoursFériés2[],MATCH(DATE(AnnéeCal,MONTH(C17),DAY(C17)),IF(AfficherObservés,TableauJoursFériés2[CORRIGÉ],TableauJoursFériés2[JOUR]),0),5),INDEX(TableauJoursFériés2[],MATCH(DATE(AnnéeCal,MONTH(C17),DAY(C17)),IF(AfficherObservés,TableauJoursFériés2[CORRIGÉ],TableauJoursFériés2[JOUR]),0),2),\"\"),\"\"),\"\")","v":""},{"$f":"IFERROR(IF(AfficherJoursFériés,IF(INDEX(TableauJoursFériés2[],MATCH(DATE(AnnéeCal,MONTH(D17),DAY(D17)),IF(AfficherObservés,TableauJoursFériés2[CORRIGÉ],TableauJoursFériés2[JOUR]),0),5),INDEX(TableauJoursFériés2[],MATCH(DATE(AnnéeCal,MONTH(D17),DAY(D17)),IF(AfficherObservés,TableauJoursFériés2[CORRIGÉ],TableauJoursFériés2[JOUR]),0),2),\"\"),\"\"),\"\")","v":""},{"$f":"IFERROR(IF(AfficherJoursFériés,IF(INDEX(TableauJoursFériés2[],MATCH(DATE(AnnéeCal,MONTH(E17),DAY(E17)),IF(AfficherObservés,TableauJoursFériés2[CORRIGÉ],TableauJoursFériés2[JOUR]),0),5),INDEX(TableauJoursFériés2[],MATCH(DATE(AnnéeCal,MONTH(E17),DAY(E17)),IF(AfficherObservés,TableauJoursFériés2[CORRIGÉ],TableauJoursFériés2[JOUR]),0),2),\"\"),\"\"),\"\")","v":""},{"$f":"IFERROR(IF(AfficherJoursFériés,IF(INDEX(TableauJoursFériés2[],MATCH(DATE(AnnéeCal,MONTH(F17),DAY(F17)),IF(AfficherObservés,TableauJoursFériés2[CORRIGÉ],TableauJoursFériés2[JOUR]),0),5),INDEX(TableauJoursFériés2[],MATCH(DATE(AnnéeCal,MONTH(F17),DAY(F17)),IF(AfficherObservés,TableauJoursFériés2[CORRIGÉ],TableauJoursFériés2[JOUR]),0),2),\"\"),\"\"),\"\")","v":""},{"$f":"IFERROR(IF(AfficherJoursFériés,IF(INDEX(TableauJoursFériés2[],MATCH(DATE(AnnéeCal,MONTH(G17),DAY(G17)),IF(AfficherObservés,TableauJoursFériés2[CORRIGÉ],TableauJoursFériés2[JOUR]),0),5),INDEX(TableauJoursFériés2[],MATCH(DATE(AnnéeCal,MONTH(G17),DAY(G17)),IF(AfficherObservés,TableauJoursFériés2[CORRIGÉ],TableauJoursFériés2[JOUR]),0),2),\"\"),\"\"),\"\")","v":""},{"$f":"IFERROR(IF(AfficherJoursFériés,IF(INDEX(TableauJoursFériés2[],MATCH(DATE(AnnéeCal,MONTH(H17),DAY(H17)),IF(AfficherObservés,TableauJoursFériés2[CORRIGÉ],TableauJoursFériés2[JOUR]),0),5),INDEX(TableauJoursFériés2[],MATCH(DATE(AnnéeCal,MONTH(H17),DAY(H17)),IF(AfficherObservés,TableauJoursFériés2[CORRIGÉ],TableauJoursFériés2[JOUR]),0),2),\"\"),\"\"),\"\")","v":""}]

{"sheet":"Juin","index":7,"n_rows":17,"n_cols":8,"rows_kept":17,"cut":false,"hidden":false,"merged":[]}
[]
[null,{"$f":"UPPER(TEXT(Paramètres!J24,\"MMMM AAAA\"))","v":"JUIN 2024"}]
[]
[]
[]
[null,{"$f":"DébutSemaine","v":"LUNDI"},{"$f":"UPPER(TEXT(C7,\"jjjj\"))","v":"MARDI"},{"$f":"UPPER(TEXT(D7,\"jjjj\"))","v":"MERCREDI"},{"$f":"UPPER(TEXT(E7,\"jjjj\"))","v":"JEUDI"},"VENDREDI","SAMEDI","DIMANCHE"]
[null,{"$f":"Jours+DATE(AnnéeCal,MONTH($B$2),1)-WEEKDAY(DATE(AnnéeCal,MONTH($B$2),1),(DébutSemaine=\"LUNDI\")+1)+1","v":"2024-05-27"},{"$f":"Jours+DATE(AnnéeCal,MONTH($B$2),1)-WEEKDAY(DATE(AnnéeCal,MONTH($B2),1),(DébutSemaine=\"LUNDI\")+1)+2","v":"2024-05-28"},{"$f":"Jours+DATE(AnnéeCal,MONTH($B$2),1)-WEEKDAY(DATE(AnnéeCal,MONTH($B2),1),(DébutSemaine=\"LUNDI\")+1)+3","v":"2024-05-29"},{"$f":"Jours+DATE(AnnéeCal,MONTH($B$2),1)-WEEKDAY(DATE(AnnéeCal,MONTH($B2),1),(DébutSemaine=\"LUNDI\")+1)+4","v":"2024-05-30"},{"$f":"Jours+DATE(AnnéeCal,MONTH($B$2),1)-WEEKDAY(DATE(AnnéeCal,MONTH($B2),1),(DébutSemaine=\"LUNDI\")+1)+5","v":"2024-05-31"},{"$f":"Jours+DATE(AnnéeCal,MONTH($B$2),1)-WEEKDAY(DATE(AnnéeCal,MONTH($B2),1),(DébutSemaine=\"LUNDI\")+1)+6","v":"2024-06-01"},{"$f":"Jours+DATE(AnnéeCal,MONTH($B$2),1)-WEEKDAY(DATE(AnnéeCal,MONTH($B2),1),(DébutSemaine=\"LUNDI\")+1)+7","v":"2024-06-02"}]
[]
[null,{"$f":"Jours+DATE(AnnéeCal,MONTH($B$2),1)-WEEKDAY(DATE(AnnéeCal,MONTH($B$2),1),(DébutSemaine=\"LUNDI\")+1)+Paramètres!$A27*7-6","v":"2024-06-03"},{"$f":"Jours+DATE(AnnéeCal,MONTH($B$2),1)-WEEKDAY(DATE(AnnéeCal,MONTH($B$2),1),(DébutSemaine=\"LUNDI\")+1)+Paramètres!$A27*7-6+1","v":"2024-06-04"},{"$f":"Jours+DATE(AnnéeCal,MONTH($B$2),1)-WEEKDAY(DATE(AnnéeCal,MONTH($B$2),1),(DébutSemaine=\"LUNDI\")+1)+Paramètres!$A27*7-6+2","v":"2024-06-05"},{"$f":"Jours+DATE(AnnéeCal,MONTH($B$2),1)-WEEKDAY(DATE(AnnéeCal,MONTH($B$2),1),(DébutSemaine=\"LUNDI\")+1)+Paramètres!$A27*7-6+3","v":"2024-06-06"},{"$f":"Jours+DATE(AnnéeCal,MONTH($B$2),1)-WEEKDAY(DATE(AnnéeCal,MONTH($B$2),1),(DébutSemaine=\"LUNDI\")+1)+Paramètres!$A27*7-6+4","v":"2024-06-07"},{"$f":"Jours+DATE(AnnéeCal,MONTH($B$2),1)-WEEKDAY(DATE(AnnéeCal,MONTH($B$2),1),(DébutSemaine=\"LUNDI\")+1)+Paramètres!$A27*7-6+5","v":"2024-06-08"},{"$f":"Jours+DATE(AnnéeCal,MONTH($B$2),1)-WEEKDAY(DATE(AnnéeCal,MONTH($B$2),1),(DébutSemaine=\"LUNDI\")+1)+Paramètres!$A27*7-6+6","v":"2024-06-09"}]
[]
[null,{"$f":"Jours+DATE(AnnéeCal,MONTH($B$2),1)-WEEKDAY(DATE(AnnéeCal,MONTH($B$2),1),(DébutSemaine=\"LUNDI\")+1)+Paramètres!$A28*7-6","v":"2024-06-10"},{"$f":"Jours+DATE(AnnéeCal,MONTH($B$2),1)-WEEKDAY(DATE(AnnéeCal,MONTH($B$2),1),(DébutSemaine=\"LUNDI\")+1)+Paramètres!$A28*7-6+1","v":"2024-06-11"},{"$f":"Jours+DATE(AnnéeCal,MONTH($B$2),1)-WEEKDAY(DATE(AnnéeCal,MONTH($B$2),1),(DébutSemaine=\"LUNDI\")+1)+Paramètres!$A28*7-6+2","v":"2024-06-12"},{"$f":"Jours+DATE(AnnéeCal,MONTH($B$2),1)-WEEKDAY(DATE(AnnéeCal,MONTH($B$2),1),(DébutSemaine=\"LUNDI\")+1)+Paramètres!$A28*7-6+3","v":"2024-06-13"},{"$f":"Jours+DATE(AnnéeCal,MONTH($B$2),1)-WEEKDAY(DATE(AnnéeCal,MONTH($B$2),1),(DébutSemaine=\"LUNDI\")+1)+Paramètres!$A28*7-6+4","v":"2024-06-14"},{"$f":"Jours+DATE(AnnéeCal,MONTH($B$2),1)-WEEKDAY(DATE(AnnéeCal,MONTH($B$2),1),(DébutSemaine=\"LUNDI\")+1)+Paramètres!$A28*7-6+5","v":"2024-06-15"},{"$f":"Jours+DATE(AnnéeCal,MONTH($B$2),1)-WEEKDAY(DATE(AnnéeCal,MONTH($B$2),1),(DébutSemaine=\"LUNDI\")+1)+Paramètres!$A28*7-6+6","v":"2024-06-16"}]
[]
[null,{"$f":"Jours+DATE(AnnéeCal,MONTH($B$2),1)-WEEKDAY(DATE(AnnéeCal,MONTH($B$2),1),(DébutSemaine=\"LUNDI\")+1)+Paramètres!$A29*7-6","v":"2024-06-17"},{"$f":"Jours+DATE(AnnéeCal,MONTH($B$2),1)-WEEKDAY(DATE(AnnéeCal,MONTH($B$2),1),(DébutSemaine=\"LUNDI\")+1)+Paramètres!$A29*7-6+1","v":"2024-06-18"},{"$f":"Jours+DATE(AnnéeCal,MONTH($B$2),1)-WEEKDAY(DATE(AnnéeCal,MONTH($B$2),1),(DébutSemaine=\"LUNDI\")+1)+Paramètres!$A29*7-6+2","v":"2024-06-19"},{"$f":"Jours+DATE(AnnéeCal,MONTH($B$2),1)-WEEKDAY(DATE(AnnéeCal,MONTH($B$2),1),(DébutSemaine=\"LUNDI\")+1)+Paramètres!$A29*7-6+3","v":"2024-06-20"},{"$f":"Jours+DATE(AnnéeCal,MONTH($B$2),1)-WEEKDAY(DATE(AnnéeCal,MONTH($B$2),1),(DébutSemaine=\"LUNDI\")+1)+Paramètres!$A29*7-6+4","v":"2024-06-21"},{"$f":"Jours+DATE(AnnéeCal,MONTH($B$2),1)-WEEKDAY(DATE(AnnéeCal,MONTH($B$2),1),(DébutSemaine=\"LUNDI\")+1)+Paramètres!$A29*7-6+5","v":"2024-06-22"},{"$f":"Jours+DATE(AnnéeCal,MONTH($B$2),1)-WEEKDAY(DATE(AnnéeCal,MONTH($B$2),1),(DébutSemaine=\"LUNDI\")+1)+Paramètres!$A29*7-6+6","v":"2024-06-23"}]
[]
[null,{"$f":"Jours+DATE(AnnéeCal,MONTH($B$2),1)-WEEKDAY(DATE(AnnéeCal,MONTH($B$2),1),(DébutSemaine=\"LUNDI\")+1)+Paramètres!$A30*7-6","v":"2024-06-24"},{"$f":"Jours+DATE(AnnéeCal,MONTH($B$2),1)-WEEKDAY(DATE(AnnéeCal,MONTH($B$2),1),(DébutSemaine=\"LUNDI\")+1)+Paramètres!$A30*7-6+1","v":"2024-06-25"},{"$f":"Jours+DATE(AnnéeCal,MONTH($B$2),1)-WEEKDAY(DATE(AnnéeCal,MONTH($B$2),1),(DébutSemaine=\"LUNDI\")+1)+Paramètres!$A30*7-6+2","v":"2024-06-26"},{"$f":"Jours+DATE(AnnéeCal,MONTH($B$2),1)-WEEKDAY(DATE(AnnéeCal,MONTH($B$2),1),(DébutSemaine=\"LUNDI\")+1)+Paramètres!$A30*7-6+3","v":"2024-06-27"},{"$f":"Jours+DATE(AnnéeCal,MONTH($B$2),1)-WEEKDAY(DATE(AnnéeCal,MONTH($B$2),1),(DébutSemaine=\"LUNDI\")+1)+Paramètres!$A30*7-6+4","v":"2024-06-28"},{"$f":"Jours+DATE(AnnéeCal,MONTH($B$2),1)-WEEKDAY(DATE(AnnéeCal,MONTH($B$2),1),(DébutSemaine=\"LUNDI\")+1)+Paramètres!$A30*7-6+5","v":"2024-06-29"},{"$f":"Jours+DATE(AnnéeCal,MONTH($B$2),1)-WEEKDAY(DATE(AnnéeCal,MONTH($B$2),1),(DébutSemaine=\"LUNDI\")+1)+Paramètres!$A30*7-6+6","v":"2024-06-30"}]
[]
[null,{"$f":"Jours+DATE(AnnéeCal,MONTH($B$2),1)-WEEKDAY(DATE(AnnéeCal,MONTH($B$2),1),(DébutSemaine=\"LUNDI\")+1)+Paramètres!$A31*7-6","v":"2024-07-01"},{"$f":"Jours+DATE(AnnéeCal,MONTH($B$2),1)-WEEKDAY(DATE(AnnéeCal,MONTH($B$2),1),(DébutSemaine=\"LUNDI\")+1)+Paramètres!$A31*7-6+1","v":"2024-07-02"},{"$f":"Jours+DATE(AnnéeCal,MONTH($B$2),1)-WEEKDAY(DATE(AnnéeCal,MONTH($B$2),1),(DébutSemaine=\"LUNDI\")+1)+Paramètres!$A31*7-6+2","v":"2024-07-03"},{"$f":"Jours+DATE(AnnéeCal,MONTH($B$2),1)-WEEKDAY(DATE(AnnéeCal,MONTH($B$2),1),(DébutSemaine=\"LUNDI\")+1)+Paramètres!$A31*7-6+3","v":"2024-07-04"},{"$f":"Jours+DATE(AnnéeCal,MONTH($B$2),1)-WEEKDAY(DATE(AnnéeCal,MONTH($B$2),1),(DébutSemaine=\"LUNDI\")+1)+Paramètres!$A31*7-6+4","v":"2024-07-05"},{"$f":"Jours+DATE(AnnéeCal,MONTH($B$2),1)-WEEKDAY(DATE(AnnéeCal,MONTH($B$2),1),(DébutSemaine=\"LUNDI\")+1)+Paramètres!$A31*7-6+5","v":"2024-07-06"},{"$f":"Jours+DATE(AnnéeCal,MONTH($B$2),1)-WEEKDAY(DATE(AnnéeCal,MONTH($B$2),1),(DébutSemaine=\"LUNDI\")+1)+Paramètres!$A31*7-6+6","v":"2024-07-07"}]

{"sheet":"Juillet","index":8,"n_rows":18,"n_cols":8,"rows_kept":18,"cut":false,"hidden":false,"merged":[]}
[]
[null,{"$f":"UPPER(TEXT(Paramètres!R24,\"MMMM AAAA\"))","v":"JUILLET 2024"}]
[]
[]
[]
[null,{"$f":"DébutSemaine","v":"LUNDI"},{"$f":"UPPER(TEXT(C7,\"jjjj\"))","v":"MARDI"},{"$f":"UPPER(TEXT(D7,\"jjjj\"))","v":"MERCREDI"},{"$f":"UPPER(TEXT(E7,\"jjjj\"))","v":"JEUDI"},"VENDREDI","SAMEDI","DIMANCHE"]
[null,{"$f":"Jours+DATE(AnnéeCal,MONTH($B$2),1)-WEEKDAY(DATE(AnnéeCal,MONTH($B$2),1),(DébutSemaine=\"LUNDI\")+1)+1","v":"2024-07-01"},{"$f":"Jours+DATE(AnnéeCal,MONTH($B$2),1)-WEEKDAY(DATE(AnnéeCal,MONTH($B2),1),(DébutSemaine=\"LUNDI\")+1)+2","v":"2024-07-02"},{"$f":"Jours+DATE(AnnéeCal,MONTH($B$2),1)-WEEKDAY(DATE(AnnéeCal,MONTH($B2),1),(DébutSemaine=\"LUNDI\")+1)+3","v":"2024-07-03"},{"$f":"Jours+DATE(AnnéeCal,MONTH($B$2),1)-WEEKDAY(DATE(AnnéeCal,MONTH($B2),1),(DébutSemaine=\"LUNDI\")+1)+4","v":"2024-07-04"},{"$f":"Jours+DATE(AnnéeCal,MONTH($B$2),1)-WEEKDAY(DATE(AnnéeCal,MONTH($B2),1),(DébutSemaine=\"LUNDI\")+1)+5","v":"2024-07-05"},{"$f":"Jours+DATE(AnnéeCal,MONTH($B$2),1)-WEEKDAY(DATE(AnnéeCal,MONTH($B2),1),(DébutSemaine=\"LUNDI\")+1)+6","v":"2024-07-06"},{"$f":"Jours+DATE(AnnéeCal,MONTH($B$2),1)-WEEKDAY(DATE(AnnéeCal,MONTH($B2),1),(DébutSemaine=\"LUNDI\")+1)+7","v":"2024-07-07"}]
[null,{"$f":"IFERROR(IF(AfficherJoursFériés,IF(INDEX(TableauJoursFériés2[],MATCH(DATE(AnnéeCal,MONTH(B$7),DAY(B$7)),IF(AfficherObservés,TableauJoursFériés2[CORRIGÉ],TableauJoursFériés2[JOUR]),0),5),INDEX(TableauJoursFériés2[],MATCH(DATE(AnnéeCal,MONTH(B$7),DAY(B$7)),IF(AfficherObservés,TableauJoursFériés2[CORRIGÉ],TableauJoursFériés2[JOUR]),0),2),\"\"),\"\"),\"\")","v":""},{"$f":"IFERROR(IF(AfficherJoursFériés,IF(INDEX(TableauJoursFériés2[],MATCH(DATE(AnnéeCal,MONTH(C$7),DAY(C$7)),IF(AfficherObservés,TableauJoursFériés2[CORRIGÉ],TableauJoursFériés2[JOUR]),0),5),INDEX(TableauJoursFériés2[],MATCH(DATE(AnnéeCal,MONTH(C$7),DAY(C$7)),IF(AfficherObservés,TableauJoursFériés2[CORRIGÉ],TableauJoursFériés2[JOUR]),0),2),\"\"),\"\"),\"\")","v":""},{"$f":"IFERROR(IF(AfficherJoursFériés,IF(INDEX(TableauJoursFériés2[],MATCH(DATE(AnnéeCal,MONTH(D$7),DAY(D$7)),IF(AfficherObservés,TableauJoursFériés2[CORRIGÉ],TableauJoursFériés2[JOUR]),0),5),INDEX(TableauJoursFériés2[],MATCH(DATE(AnnéeCal,MONTH(D$7),DAY(D$7)),IF(AfficherObservés,TableauJoursFériés2[CORRIGÉ],TableauJoursFériés2[JOUR]),0),2),\"\"),\"\"),\"\")","v":""},{"$f":"IFERROR(IF(AfficherJoursFériés,IF(INDEX(TableauJoursFériés2[],MATCH(DATE(AnnéeCal,MONTH(E$7),DAY(E$7)),IF(AfficherObservés,TableauJoursFériés2[CORRIGÉ],TableauJoursFériés2[JOUR]),0),5),INDEX(TableauJoursFériés2[],MATCH(DATE(AnnéeCal,MONTH(E$7),DAY(E$7)),IF(AfficherObservés,TableauJoursFériés2[CORRIGÉ],TableauJoursFériés2[JOUR]),0),2),\"\"),\"\"),\"\")","v":""},{"$f":"IFERROR(IF(AfficherJoursFériés,IF(INDEX(TableauJoursFériés2[],MATCH(DATE(AnnéeCal,MONTH(F$7),DAY(F$7)),IF(AfficherObservés,TableauJoursFériés2[CORRIGÉ],TableauJoursFériés2[JOUR]),0),5),INDEX(TableauJoursFériés2[],MATCH(DATE(AnnéeCal,MONTH(F$7),DAY(F$7)),IF(AfficherObservés,TableauJoursFériés2[CORRIGÉ],TableauJoursFériés2[JOUR]),0),2),\"\"),\"\"),\"\")","v":""},{"$f":"IFERROR(IF(AfficherJoursFériés,IF(INDEX(TableauJoursFériés2[],MATCH(DATE(AnnéeCal,MONTH(G$7),DAY(G$7)),IF(AfficherObservés,TableauJoursFériés2[CORRIGÉ],TableauJoursFériés2[JOUR]),0),5),INDEX(TableauJoursFériés2[],MATCH(DATE(AnnéeCal,MONTH(G$7),DAY(G$7)),IF(AfficherObservés,TableauJoursFériés2[CORRIGÉ],TableauJoursFériés2[JOUR]),0),2),\"\"),\"\"),\"\")","v":""},{"$f":"IFERROR(IF(AfficherJoursFériés,IF(INDEX(TableauJoursFériés2[],MATCH(DATE(AnnéeCal,MONTH(H$7),DAY(H$7)),IF(AfficherObservés,TableauJoursFériés2[CORRIGÉ],TableauJoursFériés2[JOUR]),0),5),INDEX(TableauJoursFériés2[],MATCH(DATE(AnnéeCal,MONTH(H$7),DAY(H$7)),IF(AfficherObservés,TableauJoursFériés2[CORRIGÉ],TableauJoursFériés2[JOUR]),0),2),\"\"),\"\"),\"\")","v":""}]
[null,{"$f":"Jours+DATE(AnnéeCal,MONTH($B$2),1)-WEEKDAY(DATE(AnnéeCal,MONTH($B$2),1),(DébutSemaine=\"LUNDI\")+1)+Paramètres!$A$27*7-6","v":"2024-07-08"},{"$f":"Jours+DATE(AnnéeCal,MONTH($B$2),1)-WEEKDAY(DATE(AnnéeCal,MONTH($B$2),1),(DébutSemaine=\"LUNDI\")+1)+Paramètres!$A$27*7-6+1","v":"2024-07-09"},{"$f":"Jours+DATE(AnnéeCal,MONTH($B$2),1)-WEEKDAY(DATE(AnnéeCal,MONTH($B$2),1),(DébutSemaine=\"LUNDI\")+1)+Paramètres!$A$27*7-6+2","v":"2024-07-10"},{"$f":"Jours+DATE(AnnéeCal,MONTH($B$2),1)-WEEKDAY(DATE(AnnéeCal,MONTH($B$2),1),(DébutSemaine=\"LUNDI\")+1)+Paramètres!$A$27*7-6+3","v":"2024-07-11"},{"$f":"Jours+DATE(AnnéeCal,MONTH($B$2),1)-WEEKDAY(DATE(AnnéeCal,MONTH($B$2),1),(DébutSemaine=\"LUNDI\")+1)+Paramètres!$A$27*7-6+4","v":"2024-07-12"},{"$f":"Jours+DATE(AnnéeCal,MONTH($B$2),1)-WEEKDAY(DATE(AnnéeCal,MONTH($B$2),1),(DébutSemaine=\"LUNDI\")+1)+Paramètres!$A$27*7-6+5","v":"2024-07-13"},{"$f":"Jours+DATE(AnnéeCal,MONTH($B$2),1)-WEEKDAY(DATE(AnnéeCal,MONTH($B$2),1),(DébutSemaine=\"LUNDI\")+1)+Paramètres!$A$27*7-6+6","v":"2024-07-14"}]
[null,{"$f":"IFERROR(IF(AfficherJoursFériés,IF(INDEX(TableauJoursFériés2[],MATCH(DATE(AnnéeCal,MONTH(B$9),DAY(B$9)),IF(AfficherObservés,TableauJoursFériés2[CORRIGÉ],TableauJoursFériés2[JOUR]),0),5),INDEX(TableauJoursFériés2[],MATCH(DATE(AnnéeCal,MONTH(B$9),DAY(B$9)),IF(AfficherObservés,TableauJoursFériés2[CORRIGÉ],TableauJoursFériés2[JOUR]),0),2),\"\"),\"\"),\"\")","v":""},{"$f":"IFERROR(IF(AfficherJoursFériés,IF(INDEX(TableauJoursFériés2[],MATCH(DATE(AnnéeCal,MONTH(C$9),DAY(C$9)),IF(AfficherObservés,TableauJoursFériés2[CORRIGÉ],TableauJoursFériés2[JOUR]),0),5),INDEX(TableauJoursFériés2[],MATCH(DATE(AnnéeCal,MONTH(C$9),DAY(C$9)),IF(AfficherObservés,TableauJoursFériés2[CORRIGÉ],TableauJoursFériés2[JOUR]),0),2),\"\"),\"\"),\"\")","v":""},{"$f":"IFERROR(IF(AfficherJoursFériés,IF(INDEX(TableauJoursFériés2[],MATCH(DATE(AnnéeCal,MONTH(D$9),DAY(D$9)),IF(AfficherObservés,TableauJoursFériés2[CORRIGÉ],TableauJoursFériés2[JOUR]),0),5),INDEX(TableauJoursFériés2[],MATCH(DATE(AnnéeCal,MONTH(D$9),DAY(D$9)),IF(AfficherObservés,TableauJoursFériés2[CORRIGÉ],TableauJoursFériés2[JOUR]),0),2),\"\"),\"\"),\"\")","v":""},{"$f":"IFERROR(IF(AfficherJoursFériés,IF(INDEX(TableauJoursFériés2[],MATCH(DATE(AnnéeCal,MONTH(E$9),DAY(E$9)),IF(AfficherObservés,TableauJoursFériés2[CORRIGÉ],TableauJoursFériés2[JOUR]),0),5),INDEX(TableauJoursFériés2[],MATCH(DATE(AnnéeCal,MONTH(E$9),DAY(E$9)),IF(AfficherObservés,TableauJoursFériés2[CORRIGÉ],TableauJoursFériés2[JOUR]),0),2),\"\"),\"\"),\"\")","v":""},{"$f":"IFERROR(IF(AfficherJoursFériés,IF(INDEX(TableauJoursFériés2[],MATCH(DATE(AnnéeCal,MONTH(F$9),DAY(F$9)),IF(AfficherObservés,TableauJoursFériés2[CORRIGÉ],TableauJoursFériés2[JOUR]),0),5),INDEX(TableauJoursFériés2[],MATCH(DATE(AnnéeCal,MONTH(F$9),DAY(F$9)),IF(AfficherObservés,TableauJoursFériés2[CORRIGÉ],TableauJoursFériés2[JOUR]),0),2),\"\"),\"\"),\"\")","v":""},{"$f":"IFERROR(IF(AfficherJoursFériés,IF(INDEX(TableauJoursFériés2[],MATCH(DATE(AnnéeCal,MONTH(G$9),DAY(G$9)),IF(AfficherObservés,TableauJoursFériés2[CORRIGÉ],TableauJoursFériés2[JOUR]),0),5),INDEX(TableauJoursFériés2[],MATCH(DATE(AnnéeCal,MONTH(G$9),DAY(G$9)),IF(AfficherObservés,TableauJoursFériés2[CORRIGÉ],TableauJoursFériés2[JOUR]),0),2),\"\"),\"\"),\"\")","v":""},{"$f":"IFERROR(IF(AfficherJoursFériés,IF(INDEX(TableauJoursFériés2[],MATCH(DATE(AnnéeCal,MONTH(H9),DAY(H9)),IF(AfficherObservés,TableauJoursFériés2[CORRIGÉ],TableauJoursFériés2[JOUR]),0),5),INDEX(TableauJoursFériés2[],MATCH(DATE(AnnéeCal,MONTH(H9),DAY(H9)),IF(AfficherObservés,TableauJoursFériés2[CORRIGÉ],TableauJoursFériés2[JOUR]),0),2),\"\"),\"\"),\"\")","v":"Fête Nationale"}]
[null,{"$f":"Jours+DATE(AnnéeCal,MONTH($B$2),1)-WEEKDAY(DATE(AnnéeCal,MONTH($B$2),1),(DébutSemaine=\"LUNDI\")+1)+Paramètres!$A$28*7-6","v":"2024-07-15"},{"$f":"Jours+DATE(AnnéeCal,MONTH($B$2),1)-WEEKDAY(DATE(AnnéeCal,MONTH($B$2),1),(DébutSemaine=\"LUNDI\")+1)+Paramètres!$A$28*7-6+1","v":"2024-07-16"},{"$f":"Jours+DATE(AnnéeCal,MONTH($B$2),1)-WEEKDAY(DATE(AnnéeCal,MONTH($B$2),1),(DébutSemaine=\"LUNDI\")+1)+Paramètres!$A$28*7-6+2","v":"2024-07-17"},{"$f":"Jours+DATE(AnnéeCal,MONTH($B$2),1)-WEEKDAY(DATE(AnnéeCal,MONTH($B$2),1),(DébutSemaine=\"LUNDI\")+1)+Paramètres!$A$28*7-6+3","v":"2024-07-18"},{"$f":"Jours+DATE(AnnéeCal,MONTH($B$2),1)-WEEKDAY(DATE(AnnéeCal,MONTH($B$2),1),(DébutSemaine=\"LUNDI\")+1)+Paramètres!$A$28*7-6+4","v":"2024-07-19"},{"$f":"Jours+DATE(AnnéeCal,MONTH($B$2),1)-WEEKDAY(DATE(AnnéeCal,MONTH($B$2),1),(DébutSemaine=\"LUNDI\")+1)+Paramètres!$A$28*7-6+5","v":"2024-07-20"},{"$f":"Jours+DATE(AnnéeCal,MONTH($B$2),1)-WEEKDAY(DATE(AnnéeCal,MONTH($B$2),1),(DébutSemaine=\"LUNDI\")+1)+Paramètres!$A$28*7-6+6","v":"2024-07-21"}]
[null,{"$f":"IFERROR(IF(AfficherJoursFériés,IF(INDEX(TableauJoursFériés2[],MATCH(DATE(AnnéeCal,MONTH(B11),DAY(B11)),IF(AfficherObservés,TableauJoursFériés2[CORRIGÉ],TableauJoursFériés2[JOUR]),0),5),INDEX(TableauJoursFériés2[],MATCH(DATE(AnnéeCal,MONTH(B11),DAY(B11)),IF(AfficherObservés,TableauJoursFériés2[CORRIGÉ],TableauJoursFériés2[JOUR]),0),2),\"\"),\"\"),\"\")","v":""},{"$f":"IFERROR(IF(AfficherJoursFériés,IF(INDEX(TableauJoursFériés2[],MATCH(DATE(AnnéeCal,MONTH(C11),DAY(C11)),IF(AfficherObservés,TableauJoursFériés2[CORRIGÉ],TableauJoursFériés2[JOUR]),0),5),INDEX(TableauJoursFériés2[],MATCH(DATE(AnnéeCal,MONTH(C11),DAY(C11)),IF(AfficherObservés,TableauJoursFériés2[CORRIGÉ],TableauJoursFériés2[JOUR]),0),2),\"\"),\"\"),\"\")","v":""},{"$f":"IFERROR(IF(AfficherJoursFériés,IF(INDEX(TableauJoursFériés2[],MATCH(DATE(AnnéeCal,MONTH(D11),DAY(D11)),IF(AfficherObservés,TableauJoursFériés2[CORRIGÉ],TableauJoursFériés2[JOUR]),0),5),INDEX(TableauJoursFériés2[],MATCH(DATE(AnnéeCal,MONTH(D11),DAY(D11)),IF(AfficherObservés,TableauJoursFériés2[CORRIGÉ],TableauJoursFériés2[JOUR]),0),2),\"\"),\"\"),\"\")","v":""},{"$f":"IFERROR(IF(AfficherJoursFériés,IF(INDEX(TableauJoursFériés2[],MATCH(DATE(AnnéeCal,MONTH(E11),DAY(E11)),IF(AfficherObservés,TableauJoursFériés2[CORRIGÉ],TableauJoursFériés2[JOUR]),0),5),INDEX(TableauJoursFériés2[],MATCH(DATE(AnnéeCal,MONTH(E11),DAY(E11)),IF(AfficherObservés,TableauJoursFériés2[CORRIGÉ],TableauJoursFériés2[JOUR]),0),2),\"\"),\"\"),\"\")","v":""},{"$f":"IFERROR(IF(AfficherJoursFériés,IF(INDEX(TableauJoursFériés2[],MATCH(DATE(AnnéeCal,MONTH(F11),DAY(F11)),IF(AfficherObservés,TableauJoursFériés2[CORRIGÉ],TableauJoursFériés2[JOUR]),0),5),INDEX(TableauJoursFériés2[],MATCH(DATE(AnnéeCal,MONTH(F11),DAY(F11)),IF(AfficherObservés,TableauJoursFériés2[CORRIGÉ],TableauJoursFériés2[JOUR]),0),2),\"\"),\"\"),\"\")","v":""},{"$f":"IFERROR(IF(AfficherJoursFériés,IF(INDEX(TableauJoursFériés2[],MATCH(DATE(AnnéeCal,MONTH(G11),DAY(G11)),IF(AfficherObservés,TableauJoursFériés2[CORRIGÉ],TableauJoursFériés2[JOUR]),0),5),INDEX(TableauJoursFériés2[],MATCH(DATE(AnnéeCal,MONTH(G11),DAY(G11)),IF(AfficherObservés,TableauJoursFériés2[CORRIGÉ],TableauJoursFériés2[JOUR]),0),2),\"\"),\"\"),\"\")","v":""},{"$f":"IFERROR(IF(AfficherJoursFériés,IF(INDEX(TableauJoursFériés2[],MATCH(DATE(AnnéeCal,MONTH(H11),DAY(H11)),IF(AfficherObservés,TableauJoursFériés2[CORRIGÉ],TableauJoursFériés2[JOUR]),0),5),INDEX(TableauJoursFériés2[],MATCH(DATE(AnnéeCal,MONTH(H11),DAY(H11)),IF(AfficherObservés,TableauJoursFériés2[CORRIGÉ],TableauJoursFériés2[JOUR]),0),2),\"\"),\"\"),\"\")","v":""}]
[null,{"$f":"Jours+DATE(AnnéeCal,MONTH($B$2),1)-WEEKDAY(DATE(AnnéeCal,MONTH($B$2),1),(DébutSemaine=\"LUNDI\")+1)+Paramètres!$A$29*7-6","v":"2024-07-22"},{"$f":"Jours+DATE(AnnéeCal,MONTH($B$2),1)-WEEKDAY(DATE(AnnéeCal,MONTH($B$2),1),(DébutSemaine=\"LUNDI\")+1)+Paramètres!$A$29*7-6+1","v":"2024-07-23"},{"$f":"Jours+DATE(AnnéeCal,MONTH($B$2),1)-WEEKDAY(DATE(AnnéeCal,MONTH($B$2),1),(DébutSemaine=\"LUNDI\")+1)+Paramètres!$A$29*7-6+2","v":"2024-07-24"},{"$f":"Jours+DATE(AnnéeCal,MONTH($B$2),1)-WEEKDAY(DATE(AnnéeCal,MONTH($B$2),1),(DébutSemaine=\"LUNDI\")+1)+Paramètres!$A$29*7-6+3","v":"2024-07-25"},{"$f":"Jours+DATE(AnnéeCal,MONTH($B$2),1)-WEEKDAY(DATE(AnnéeCal,MONTH($B$2),1),(DébutSemaine=\"LUNDI\")+1)+Paramètres!$A$29*7-6+4","v":"2024-07-26"},{"$f":"Jours+DATE(AnnéeCal,MONTH($B$2),1)-WEEKDAY(DATE(AnnéeCal,MONTH($B$2),1),(DébutSemaine=\"LUNDI\")+1)+Paramètres!$A$29*7-6+5","v":"2024-07-27"},{"$f":"Jours+DATE(AnnéeCal,MONTH($B$2),1)-WEEKDAY(DATE(AnnéeCal,MONTH($B$2),1),(DébutSemaine=\"LUNDI\")+1)+Paramètres!$A$29*7-6+6","v":"2024-07-28"}]
[null,{"$f":"IFERROR(IF(AfficherJoursFériés,IF(INDEX(TableauJoursFériés2[],MATCH(DATE(AnnéeCal,MONTH(B13),DAY(B13)),IF(AfficherObservés,TableauJoursFériés2[CORRIGÉ],TableauJoursFériés2[JOUR]),0),5),INDEX(TableauJoursFériés2[],MATCH(DATE(AnnéeCal,MONTH(B13),DAY(B13)),IF(AfficherObservés,TableauJoursFériés2[CORRIGÉ],TableauJoursFériés2[JOUR]),0),2),\"\"),\"\"),\"\")","v":""},{"$f":"IFERROR(IF(AfficherJoursFériés,IF(INDEX(TableauJoursFériés2[],MATCH(DATE(AnnéeCal,MONTH(C13),DAY(C13)),IF(AfficherObservés,TableauJoursFériés2[CORRIGÉ],TableauJoursFériés2[JOUR]),0),5),INDEX(TableauJoursFériés2[],MATCH(DATE(AnnéeCal,MONTH(C13),DAY(C13)),IF(AfficherObservés,TableauJoursFériés2[CORRIGÉ],TableauJoursFériés2[JOUR]),0),2),\"\"),\"\"),\"\")","v":""},{"$f":"IFERROR(IF(AfficherJoursFériés,IF(INDEX(TableauJoursFériés2[],MATCH(DATE(AnnéeCal,MONTH(D13),DAY(D13)),IF(AfficherObservés,TableauJoursFériés2[CORRIGÉ],TableauJoursFériés2[JOUR]),0),5),INDEX(TableauJoursFériés2[],MATCH(DATE(AnnéeCal,MONTH(D13),DAY(D13)),IF(AfficherObservés,TableauJoursFériés2[CORRIGÉ],TableauJoursFériés2[JOUR]),0),2),\"\"),\"\"),\"\")","v":""},{"$f":"IFERROR(IF(AfficherJoursFériés,IF(INDEX(TableauJoursFériés2[],MATCH(DATE(AnnéeCal,MONTH(E13),DAY(E13)),IF(AfficherObservés,TableauJoursFériés2[CORRIGÉ],TableauJoursFériés2[JOUR]),0),5),INDEX(TableauJoursFériés2[],MATCH(DATE(AnnéeCal,MONTH(E13),DAY(E13)),IF(AfficherObservés,TableauJoursFériés2[CORRIGÉ],TableauJoursFériés2[JOUR]),0),2),\"\"),\"\"),\"\")","v":""},{"$f":"IFERROR(IF(AfficherJoursFériés,IF(INDEX(TableauJoursFériés2[],MATCH(DATE(AnnéeCal,MONTH(F13),DAY(F13)),IF(AfficherObservés,TableauJoursFériés2[CORRIGÉ],TableauJoursFériés2[JOUR]),0),5),INDEX(TableauJoursFériés2[],MATCH(DATE(AnnéeCal,MONTH(F13),DAY(F13)),IF(AfficherObservés,TableauJoursFériés2[CORRIGÉ],TableauJoursFériés2[JOUR]),0),2),\"\"),\"\"),\"\")","v":""},{"$f":"IFERROR(IF(AfficherJoursFériés,IF(INDEX(TableauJoursFériés2[],MATCH(DATE(AnnéeCal,MONTH(G13),DAY(G13)),IF(AfficherObservés,TableauJoursFériés2[CORRIGÉ],TableauJoursFériés2[JOUR]),0),5),INDEX(TableauJoursFériés2[],MATCH(DATE(AnnéeCal,MONTH(G13),DAY(G13)),IF(AfficherObservés,TableauJoursFériés2[CORRIGÉ],TableauJoursFériés2[JOUR]),0),2),\"\"),\"\"),\"\")","v":""},{"$f":"IFERROR(IF(AfficherJoursFériés,IF(INDEX(TableauJoursFériés2[],MATCH(DATE(AnnéeCal,MONTH(H13),DAY(H13)),IF(AfficherObservés,TableauJoursFériés2[CORRIGÉ],TableauJoursFériés2[JOUR]),0),5),INDEX(TableauJoursFériés2[],MATCH(DATE(AnnéeCal,MONTH(H13),DAY(H13)),IF(AfficherObservés,TableauJoursFériés2[CORRIGÉ],TableauJoursFériés2[JOUR]),0),2),\"\"),\"\"),\"\")","v":""}]
[null,{"$f":"Jours+DATE(AnnéeCal,MONTH($B$2),1)-WEEKDAY(DATE(AnnéeCal,MONTH($B$2),1),(DébutSemaine=\"LUNDI\")+1)+Paramètres!$A$30*7-6","v":"2024-07-29"},{"$f":"Jours+DATE(AnnéeCal,MONTH($B$2),1)-WEEKDAY(DATE(AnnéeCal,MONTH($B$2),1),(DébutSemaine=\"LUNDI\")+1)+Paramètres!$A30*7-6+1","v":"2024-07-30"},{"$f":"Jours+DATE(AnnéeCal,MONTH($B$2),1)-WEEKDAY(DATE(AnnéeCal,MONTH($B$2),1),(DébutSemaine=\"LUNDI\")+1)+Paramètres!$A$30*7-6+2","v":"2024-07-31"},{"$f":"Jours+DATE(AnnéeCal,MONTH($B$2),1)-WEEKDAY(DATE(AnnéeCal,MONTH($B$2),1),(DébutSemaine=\"LUNDI\")+1)+Paramètres!$A$30*7-6+3","v":"2024-08-01"},{"$f":"Jours+DATE(AnnéeCal,MONTH($B$2),1)-WEEKDAY(DATE(AnnéeCal,MONTH($B$2),1),(DébutSemaine=\"LUNDI\")+1)+Paramètres!$A$30*7-6+4","v":"2024-08-02"},{"$f":"Jours+DATE(AnnéeCal,MONTH($B$2),1)-WEEKDAY(DATE(AnnéeCal,MONTH($B$2),1),(DébutSemaine=\"LUNDI\")+1)+Paramètres!$A$30*7-6+5","v":"2024-08-03"},{"$f":"Jours+DATE(AnnéeCal,MONTH($B$2),1)-WEEKDAY(DATE(AnnéeCal,MONTH($B$2),1),(DébutSemaine=\"LUNDI\")+1)+Paramètres!$A$30*7-6+6","v":"2024-08-04"}]
[null,{"$f":"IFERROR(IF(AfficherJoursFériés,IF(INDEX(TableauJoursFériés2[],MATCH(DATE(AnnéeCal,MONTH(B15),DAY(B15)),IF(AfficherObservés,TableauJoursFériés2[CORRIGÉ],TableauJoursFériés2[JOUR]),0),5),INDEX(TableauJoursFériés2[],MATCH(DATE(AnnéeCal,MONTH(B15),DAY(B15)),IF(AfficherObservés,TableauJoursFériés2[CORRIGÉ],TableauJoursFériés2[JOUR]),0),2),\"\"),\"\"),\"\")","v":""},{"$f":"IFERROR(IF(AfficherJoursFériés,IF(INDEX(TableauJoursFériés2[],MATCH(DATE(AnnéeCal,MONTH(C15),DAY(C15)),IF(AfficherObservés,TableauJoursFériés2[CORRIGÉ],TableauJoursFériés2[JOUR]),0),5),INDEX(TableauJoursFériés2[],MATCH(DATE(AnnéeCal,MONTH(C15),DAY(C15)),IF(AfficherObservés,TableauJoursFériés2[CORRIGÉ],TableauJoursFériés2[JOUR]),0),2),\"\"),\"\"),\"\")","v":""},{"$f":"IFERROR(IF(AfficherJoursFériés,IF(INDEX(TableauJoursFériés2[],MATCH(DATE(AnnéeCal,MONTH(D15),DAY(D15)),IF(AfficherObservés,TableauJoursFériés2[CORRIGÉ],TableauJoursFériés2[JOUR]),0),5),INDEX(TableauJoursFériés2[],MATCH(DATE(AnnéeCal,MONTH(D15),DAY(D15)),IF(AfficherObservés,TableauJoursFériés2[CORRIGÉ],TableauJoursFériés2[JOUR]),0),2),\"\"),\"\"),\"\")","v":""},{"$f":"IFERROR(IF(AfficherJoursFériés,IF(INDEX(TableauJoursFériés2[],MATCH(DATE(AnnéeCal,MONTH(E15),DAY(E15)),IF(AfficherObservés,TableauJoursFériés2[CORRIGÉ],TableauJoursFériés2[JOUR]),0),5),INDEX(TableauJoursFériés2[],MATCH(DATE(AnnéeCal,MONTH(E15),DAY(E15)),IF(AfficherObservés,TableauJoursFériés2[CORRIGÉ],TableauJoursFériés2[JOUR]),0),2),\"\"),\"\"),\"\")","v":""},{"$f":"IFERROR(IF(AfficherJoursFériés,IF(INDEX(TableauJoursFériés2[],MATCH(DATE(AnnéeCal,MONTH(F15),DAY(F15)),IF(AfficherObservés,TableauJoursFériés2[CORRIGÉ],TableauJoursFériés2[JOUR]),0),5),INDEX(TableauJoursFériés2[],MATCH(DATE(AnnéeCal,MONTH(F15),DAY(F15)),IF(AfficherObservés,TableauJoursFériés2[CORRIGÉ],TableauJoursFériés2[JOUR]),0),2),\"\"),\"\"),\"\")","v":""},{"$f":"IFERROR(IF(AfficherJoursFériés,IF(INDEX(TableauJoursFériés2[],MATCH(DATE(AnnéeCal,MONTH(G15),DAY(G15)),IF(AfficherObservés,TableauJoursFériés2[CORRIGÉ],TableauJoursFériés2[JOUR]),0),5),INDEX(TableauJoursFériés2[],MATCH(DATE(AnnéeCal,MONTH(G15),DAY(G15)),IF(AfficherObservés,TableauJoursFériés2[CORRIGÉ],TableauJoursFériés2[JOUR]),0),2),\"\"),\"\"),\"\")","v":""},{"$f":"IFERROR(IF(AfficherJoursFériés,IF(INDEX(TableauJoursFériés2[],MATCH(DATE(AnnéeCal,MONTH(H15),DAY(H15)),IF(AfficherObservés,TableauJoursFériés2[CORRIGÉ],TableauJoursFériés2[JOUR]),0),5),INDEX(TableauJoursFériés2[],MATCH(DATE(AnnéeCal,MONTH(H15),DAY(H15)),IF(AfficherObservés,TableauJoursFériés2[CORRIGÉ],TableauJoursFériés2[JOUR]),0),2),\"\"),\"\"),\"\")","v":""}]
[null,{"$f":"Jours+DATE(AnnéeCal,MONTH($B$2),1)-WEEKDAY(DATE(AnnéeCal,MONTH($B$2),1),(DébutSemaine=\"LUNDI\")+1)+Paramètres!$A$31*7-6","v":"2024-08-05"},{"$f":"Jours+DATE(AnnéeCal,MONTH($B$2),1)-WEEKDAY(DATE(AnnéeCal,MONTH($B$2),1),(DébutSemaine=\"LUNDI\")+1)+Paramètres!$A31*7-6+1","v":"2024-08-06"},{"$f":"Jours+DATE(AnnéeCal,MONTH($B$2),1)-WEEKDAY(DATE(AnnéeCal,MONTH($B$2),1),(DébutSemaine=\"LUNDI\")+1)+Paramètres!$A$31*7-6+2","v":"2024-08-07"},{"$f":"Jours+DATE(AnnéeCal,MONTH($B$2),1)-WEEKDAY(DATE(AnnéeCal,MONTH($B$2),1),(DébutSemaine=\"LUNDI\")+1)+Paramètres!$A$31*7-6+3","v":"2024-08-08"},{"$f":"Jours+DATE(AnnéeCal,MONTH($B$2),1)-WEEKDAY(DATE(AnnéeCal,MONTH($B$2),1),(DébutSemaine=\"LUNDI\")+1)+Paramètres!$A$31*7-6+4","v":"2024-08-09"},{"$f":"Jours+DATE(AnnéeCal,MONTH($B$2),1)-WEEKDAY(DATE(AnnéeCal,MONTH($B$2),1),(DébutSemaine=\"LUNDI\")+1)+Paramètres!$A$31*7-6+5","v":"2024-08-10"},{"$f":"Jours+DATE(AnnéeCal,MONTH($B$2),1)-WEEKDAY(DATE(AnnéeCal,MONTH($B$2),1),(DébutSemaine=\"LUNDI\")+1)+Paramètres!$A$31*7-6+6","v":"2024-08-11"}]
[null,{"$f":"IFERROR(IF(AfficherJoursFériés,IF(INDEX(TableauJoursFériés2[],MATCH(DATE(AnnéeCal,MONTH(B17),DAY(B17)),IF(AfficherObservés,TableauJoursFériés2[CORRIGÉ],TableauJoursFériés2[JOUR]),0),5),INDEX(TableauJoursFériés2[],MATCH(DATE(AnnéeCal,MONTH(B17),DAY(B17)),IF(AfficherObservés,TableauJoursFériés2[CORRIGÉ],TableauJoursFériés2[JOUR]),0),2),\"\"),\"\"),\"\")","v":""},{"$f":"IFERROR(IF(AfficherJoursFériés,IF(INDEX(TableauJoursFériés2[],MATCH(DATE(AnnéeCal,MONTH(C17),DAY(C17)),IF(AfficherObservés,TableauJoursFériés2[CORRIGÉ],TableauJoursFériés2[JOUR]),0),5),INDEX(TableauJoursFériés2[],MATCH(DATE(AnnéeCal,MONTH(C17),DAY(C17)),IF(AfficherObservés,TableauJoursFériés2[CORRIGÉ],TableauJoursFériés2[JOUR]),0),2),\"\"),\"\"),\"\")","v":""},{"$f":"IFERROR(IF(AfficherJoursFériés,IF(INDEX(TableauJoursFériés2[],MATCH(DATE(AnnéeCal,MONTH(D17),DAY(D17)),IF(AfficherObservés,TableauJoursFériés2[CORRIGÉ],TableauJoursFériés2[JOUR]),0),5),INDEX(TableauJoursFériés2[],MATCH(DATE(AnnéeCal,MONTH(D17),DAY(D17)),IF(AfficherObservés,TableauJoursFériés2[CORRIGÉ],TableauJoursFériés2[JOUR]),0),2),\"\"),\"\"),\"\")","v":""},{"$f":"IFERROR(IF(AfficherJoursFériés,IF(INDEX(TableauJoursFériés2[],MATCH(DATE(AnnéeCal,MONTH(E17),DAY(E17)),IF(AfficherObservés,TableauJoursFériés2[CORRIGÉ],TableauJoursFériés2[JOUR]),0),5),INDEX(TableauJoursFériés2[],MATCH(DATE(AnnéeCal,MONTH(E17),DAY(E17)),IF(AfficherObservés,TableauJoursFériés2[CORRIGÉ],TableauJoursFériés2[JOUR]),0),2),\"\"),\"\"),\"\")","v":""},{"$f":"IFERROR(IF(AfficherJoursFériés,IF(INDEX(TableauJoursFériés2[],MATCH(DATE(AnnéeCal,MONTH(F17),DAY(F17)),IF(AfficherObservés,TableauJoursFériés2[CORRIGÉ],TableauJoursFériés2[JOUR]),0),5),INDEX(TableauJoursFériés2[],MATCH(DATE(AnnéeCal,MONTH(F17),DAY(F17)),IF(AfficherObservés,TableauJoursFériés2[CORRIGÉ],TableauJoursFériés2[JOUR]),0),2),\"\"),\"\"),\"\")","v":""},{"$f":"IFERROR(IF(AfficherJoursFériés,IF(INDEX(TableauJoursFériés2[],MATCH(DATE(AnnéeCal,MONTH(G17),DAY(G17)),IF(AfficherObservés,TableauJoursFériés2[CORRIGÉ],TableauJoursFériés2[JOUR]),0),5),INDEX(TableauJoursFériés2[],MATCH(DATE(AnnéeCal,MONTH(G17),DAY(G17)),IF(AfficherObservés,TableauJoursFériés2[CORRIGÉ],TableauJoursFériés2[JOUR]),0),2),\"\"),\"\"),\"\")","v":""},{"$f":"IFERROR(IF(AfficherJoursFériés,IF(INDEX(TableauJoursFériés2[],MATCH(DATE(AnnéeCal,MONTH(H17),DAY(H17)),IF(AfficherObservés,TableauJoursFériés2[CORRIGÉ],TableauJoursFériés2[JOUR]),0),5),INDEX(TableauJoursFériés2[],MATCH(DATE(AnnéeCal,MONTH(H17),DAY(H17)),IF(AfficherObservés,TableauJoursFériés2[CORRIGÉ],TableauJoursFériés2[JOUR]),0),2),\"\"),\"\"),\"\")","v":""}]

{"sheet":"Août","index":9,"n_rows":18,"n_cols":8,"rows_kept":18,"cut":false,"hidden":false,"merged":[]}
[]
[null,{"$f":"UPPER(TEXT(Paramètres!Z24,\"MMMM AAAA\"))","v":"AOÛT 2024"}]
[]
[]
[]
[null,{"$f":"DébutSemaine","v":"LUNDI"},{"$f":"UPPER(TEXT(C7,\"jjjj\"))","v":"MARDI"},{"$f":"UPPER(TEXT(D7,\"jjjj\"))","v":"MERCREDI"},{"$f":"UPPER(TEXT(E7,\"jjjj\"))","v":"JEUDI"},"VENDREDI","SAMEDI","DIMANCHE"]
[null,{"$f":"Jours+DATE(AnnéeCal,MONTH($B$2),1)-WEEKDAY(DATE(AnnéeCal,MONTH($B$2),1),(DébutSemaine=\"LUNDI\")+1)+1","v":"2024-07-29"},{"$f":"Jours+DATE(AnnéeCal,MONTH($B$2),1)-WEEKDAY(DATE(AnnéeCal,MONTH($B2),1),(DébutSemaine=\"LUNDI\")+1)+2","v":"2024-07-30"},{"$f":"Jours+DATE(AnnéeCal,MONTH($B$2),1)-WEEKDAY(DATE(AnnéeCal,MONTH($B2),1),(DébutSemaine=\"LUNDI\")+1)+3","v":"2024-07-31"},{"$f":"Jours+DATE(AnnéeCal,MONTH($B$2),1)-WEEKDAY(DATE(AnnéeCal,MONTH($B2),1),(DébutSemaine=\"LUNDI\")+1)+4","v":"2024-08-01"},{"$f":"Jours+DATE(AnnéeCal,MONTH($B$2),1)-WEEKDAY(DATE(AnnéeCal,MONTH($B2),1),(DébutSemaine=\"LUNDI\")+1)+5","v":"2024-08-02"},{"$f":"Jours+DATE(AnnéeCal,MONTH($B$2),1)-WEEKDAY(DATE(AnnéeCal,MONTH($B2),1),(DébutSemaine=\"LUNDI\")+1)+6","v":"2024-08-03"},{"$f":"Jours+DATE(AnnéeCal,MONTH($B$2),1)-WEEKDAY(DATE(AnnéeCal,MONTH($B2),1),(DébutSemaine=\"LUNDI\")+1)+7","v":"2024-08-04"}]
[null,{"$f":"IFERROR(IF(AfficherJoursFériés,IF(INDEX(TableauJoursFériés2[],MATCH(DATE(AnnéeCal,MONTH(B$7),DAY(B$7)),IF(AfficherObservés,TableauJoursFériés2[CORRIGÉ],TableauJoursFériés2[JOUR]),0),5),INDEX(TableauJoursFériés2[],MATCH(DATE(AnnéeCal,MONTH(B$7),DAY(B$7)),IF(AfficherObservés,TableauJoursFériés2[CORRIGÉ],TableauJoursFériés2[JOUR]),0),2),\"\"),\"\"),\"\")","v":""},{"$f":"IFERROR(IF(AfficherJoursFériés,IF(INDEX(TableauJoursFériés2[],MATCH(DATE(AnnéeCal,MONTH(C$7),DAY(C$7)),IF(AfficherObservés,TableauJoursFériés2[CORRIGÉ],TableauJoursFériés2[JOUR]),0),5),INDEX(TableauJoursFériés2[],MATCH(DATE(AnnéeCal,MONTH(C$7),DAY(C$7)),IF(AfficherObservés,TableauJoursFériés2[CORRIGÉ],TableauJoursFériés2[JOUR]),0),2),\"\"),\"\"),\"\")","v":""},{"$f":"IFERROR(IF(AfficherJoursFériés,IF(INDEX(TableauJoursFériés2[],MATCH(DATE(AnnéeCal,MONTH(D$7),DAY(D$7)),IF(AfficherObservés,TableauJoursFériés2[CORRIGÉ],TableauJoursFériés2[JOUR]),0),5),INDEX(TableauJoursFériés2[],MATCH(DATE(AnnéeCal,MONTH(D$7),DAY(D$7)),IF(AfficherObservés,TableauJoursFériés2[CORRIGÉ],TableauJoursFériés2[JOUR]),0),2),\"\"),\"\"),\"\")","v":""},{"$f":"IFERROR(IF(AfficherJoursFériés,IF(INDEX(TableauJoursFériés2[],MATCH(DATE(AnnéeCal,MONTH(E$7),DAY(E$7)),IF(AfficherObservés,TableauJoursFériés2[CORRIGÉ],TableauJoursFériés2[JOUR]),0),5),INDEX(TableauJoursFériés2[],MATCH(DATE(AnnéeCal,MONTH(E$7),DAY(E$7)),IF(AfficherObservés,TableauJoursFériés2[CORRIGÉ],TableauJoursFériés2[JOUR]),0),2),\"\"),\"\"),\"\")","v":""},{"$f":"IFERROR(IF(AfficherJoursFériés,IF(INDEX(TableauJoursFériés2[],MATCH(DATE(AnnéeCal,MONTH(F$7),DAY(F$7)),IF(AfficherObservés,TableauJoursFériés2[CORRIGÉ],TableauJoursFériés2[JOUR]),0),5),INDEX(TableauJoursFériés2[],MATCH(DATE(AnnéeCal,MONTH(F$7),DAY(F$7)),IF(AfficherObservés,TableauJoursFériés2[CORRIGÉ],TableauJoursFériés2[JOUR]),0),2),\"\"),\"\"),\"\")","v":""},{"$f":"IFERROR(IF(AfficherJoursFériés,IF(INDEX(TableauJoursFériés2[],MATCH(DATE(AnnéeCal,MONTH(G$7),DAY(G$7)),IF(AfficherObservés,TableauJoursFériés2[CORRIGÉ],TableauJoursFériés2[JOUR]),0),5),INDEX(TableauJoursFériés2[],MATCH(DATE(AnnéeCal,MONTH(G$7),DAY(G$7)),IF(AfficherObservés,TableauJoursFériés2[CORRIGÉ],TableauJoursFériés2[JOUR]),0),2),\"\"),\"\"),\"\")","v":""},{"$f":"IFERROR(IF(AfficherJoursFériés,IF(INDEX(TableauJoursFériés2[],MATCH(DATE(AnnéeCal,MONTH(H$7),DAY(H$7)),IF(AfficherObservés,TableauJoursFériés2[CORRIGÉ],TableauJoursFériés2[JOUR]),0),5),INDEX(TableauJoursFériés2[],MATCH(DATE(AnnéeCal,MONTH(H$7),DAY(H$7)),IF(AfficherObservés,TableauJoursFériés2[CORRIGÉ],TableauJoursFériés2[JOUR]),0),2),\"\"),\"\"),\"\")","v":""}]
[null,{"$f":"Jours+DATE(AnnéeCal,MONTH($B$2),1)-WEEKDAY(DATE(AnnéeCal,MONTH($B$2),1),(DébutSemaine=\"LUNDI\")+1)+Paramètres!$A$27*7-6","v":"2024-08-05"},{"$f":"Jours+DATE(AnnéeCal,MONTH($B$2),1)-WEEKDAY(DATE(AnnéeCal,MONTH($B$2),1),(DébutSemaine=\"LUNDI\")+1)+Paramètres!$A$27*7-6+1","v":"2024-08-06"},{"$f":"Jours+DATE(AnnéeCal,MONTH($B$2),1)-WEEKDAY(DATE(AnnéeCal,MONTH($B$2),1),(DébutSemaine=\"LUNDI\")+1)+Paramètres!$A$27*7-6+2","v":"2024-08-07"},{"$f":"Jours+DATE(AnnéeCal,MONTH($B$2),1)-WEEKDAY(DATE(AnnéeCal,MONTH($B$2),1),(DébutSemaine=\"LUNDI\")+1)+Paramètres!$A$27*7-6+3","v":"2024-08-08"},{"$f":"Jours+DATE(AnnéeCal,MONTH($B$2),1)-WEEKDAY(DATE(AnnéeCal,MONTH($B$2),1),(DébutSemaine=\"LUNDI\")+1)+Paramètres!$A$27*7-6+4","v":"2024-08-09"},{"$f":"Jours+DATE(AnnéeCal,MONTH($B$2),1)-WEEKDAY(DATE(AnnéeCal,MONTH($B$2),1),(DébutSemaine=\"LUNDI\")+1)+Paramètres!$A$27*7-6+5","v":"2024-08-10"},{"$f":"Jours+DATE(AnnéeCal,MONTH($B$2),1)-WEEKDAY(DATE(AnnéeCal,MONTH($B$2),1),(DébutSemaine=\"LUNDI\")+1)+Paramètres!$A$27*7-6+6","v":"2024-08-11"}]
[null,{"$f":"IFERROR(IF(AfficherJoursFériés,IF(INDEX(TableauJoursFériés2[],MATCH(DATE(AnnéeCal,MONTH(B$9),DAY(B$9)),IF(AfficherObservés,TableauJoursFériés2[CORRIGÉ],TableauJoursFériés2[JOUR]),0),5),INDEX(TableauJoursFériés2[],MATCH(DATE(AnnéeCal,MONTH(B$9),DAY(B$9)),IF(AfficherObservés,TableauJoursFériés2[CORRIGÉ],TableauJoursFériés2[JOUR]),0),2),\"\"),\"\"),\"\")","v":""},{"$f":"IFERROR(IF(AfficherJoursFériés,IF(INDEX(TableauJoursFériés2[],MATCH(DATE(AnnéeCal,MONTH(C$9),DAY(C$9)),IF(AfficherObservés,TableauJoursFériés2[CORRIGÉ],TableauJoursFériés2[JOUR]),0),5),INDEX(TableauJoursFériés2[],MATCH(DATE(AnnéeCal,MONTH(C$9),DAY(C$9)),IF(AfficherObservés,TableauJoursFériés2[CORRIGÉ],TableauJoursFériés2[JOUR]),0),2),\"\"),\"\"),\"\")","v":""},{"$f":"IFERROR(IF(AfficherJoursFériés,IF(INDEX(TableauJoursFériés2[],MATCH(DATE(AnnéeCal,MONTH(D$9),DAY(D$9)),IF(AfficherObservés,TableauJoursFériés2[CORRIGÉ],TableauJoursFériés2[JOUR]),0),5),INDEX(TableauJoursFériés2[],MATCH(DATE(AnnéeCal,MONTH(D$9),DAY(D$9)),IF(AfficherObservés,TableauJoursFériés2[CORRIGÉ],TableauJoursFériés2[JOUR]),0),2),\"\"),\"\"),\"\")","v":""},{"$f":"IFERROR(IF(AfficherJoursFériés,IF(INDEX(TableauJoursFériés2[],MATCH(DATE(AnnéeCal,MONTH(E$9),DAY(E$9)),IF(AfficherObservés,TableauJoursFériés2[CORRIGÉ],TableauJoursFériés2[JOUR]),0),5),INDEX(TableauJoursFériés2[],MATCH(DATE(AnnéeCal,MONTH(E$9),DAY(E$9)),IF(AfficherObservés,TableauJoursFériés2[CORRIGÉ],TableauJoursFériés2[JOUR]),0),2),\"\"),\"\"),\"\")","v":""},{"$f":"IFERROR(IF(AfficherJoursFériés,IF(INDEX(TableauJoursFériés2[],MATCH(DATE(AnnéeCal,MONTH(F$9),DAY(F$9)),IF(AfficherObservés,TableauJoursFériés2[CORRIGÉ],TableauJoursFériés2[JOUR]),0),5),INDEX(TableauJoursFériés2[],MATCH(DATE(AnnéeCal,MONTH(F$9),DAY(F$9)),IF(AfficherObservés,TableauJoursFériés2[CORRIGÉ],TableauJoursFériés2[JOUR]),0),2),\"\"),\"\"),\"\")","v":""},{"$f":"IFERROR(IF(AfficherJoursFériés,IF(INDEX(TableauJoursFériés2[],MATCH(DATE(AnnéeCal,MONTH(G$9),DAY(G$9)),IF(AfficherObservés,TableauJoursFériés2[CORRIGÉ],TableauJoursFériés2[JOUR]),0),5),INDEX(TableauJoursFériés2[],MATCH(DATE(AnnéeCal,MONTH(G$9),DAY(G$9)),IF(AfficherObservés,TableauJoursFériés2[CORRIGÉ],TableauJoursFériés2[JOUR]),0),2),\"\"),\"\"),\"\")","v":""},{"$f":"IFERROR(IF(AfficherJoursFériés,IF(INDEX(TableauJoursFériés2[],MATCH(DATE(AnnéeCal,MONTH(H$9),DAY(H$9)),IF(AfficherObservés,TableauJoursFériés2[CORRIGÉ],TableauJoursFériés2[JOUR]),0),5),INDEX(TableauJoursFériés2[],MATCH(DATE(AnnéeCal,MONTH(H$9),DAY(H$9)),IF(AfficherObservés,TableauJoursFériés2[CORRIGÉ],TableauJoursFériés2[JOUR]),0),2),\"\"),\"\"),\"\")","v":""}]
[null,{"$f":"Jours+DATE(AnnéeCal,MONTH($B$2),1)-WEEKDAY(DATE(AnnéeCal,MONTH($B$2),1),(DébutSemaine=\"LUNDI\")+1)+Paramètres!$A$28*7-6","v":"2024-08-12"},{"$f":"Jours+DATE(AnnéeCal,MONTH($B$2),1)-WEEKDAY(DATE(AnnéeCal,MONTH($B$2),1),(DébutSemaine=\"LUNDI\")+1)+Paramètres!$A$28*7-6+1","v":"2024-08-13"},{"$f":"Jours+DATE(AnnéeCal,MONTH($B$2),1)-WEEKDAY(DATE(AnnéeCal,MONTH($B$2),1),(DébutSemaine=\"LUNDI\")+1)+Paramètres!$A$28*7-6+2","v":"2024-08-14"},{"$f":"Jours+DATE(AnnéeCal,MONTH($B$2),1)-WEEKDAY(DATE(AnnéeCal,MONTH($B$2),1),(DébutSemaine=\"LUNDI\")+1)+Paramètres!$A$28*7-6+3","v":"2024-08-15"},{"$f":"Jours+DATE(AnnéeCal,MONTH($B$2),1)-WEEKDAY(DATE(AnnéeCal,MONTH($B$2),1),(DébutSemaine=\"LUNDI\")+1)+Paramètres!$A$28*7-6+4","v":"2024-08-16"},{"$f":"Jours+DATE(AnnéeCal,MONTH($B$2),1)-WEEKDAY(DATE(AnnéeCal,MONTH($B$2),1),(DébutSemaine=\"LUNDI\")+1)+Paramètres!$A$28*7-6+5","v":"2024-08-17"},{"$f":"Jours+DATE(AnnéeCal,MONTH($B$2),1)-WEEKDAY(DATE(AnnéeCal,MONTH($B$2),1),(DébutSemaine=\"LUNDI\")+1)+Paramètres!$A$28*7-6+6","v":"2024-08-18"}]
[null,{"$f":"IFERROR(IF(AfficherJoursFériés,IF(INDEX(TableauJoursFériés2[],MATCH(DATE(AnnéeCal,MONTH(B11),DAY(B11)),IF(AfficherObservés,TableauJoursFériés2[CORRIGÉ],TableauJoursFériés2[JOUR]),0),5),INDEX(TableauJoursFériés2[],MATCH(DATE(AnnéeCal,MONTH(B11),DAY(B11)),IF(AfficherObservés,TableauJoursFériés2[CORRIGÉ],TableauJoursFériés2[JOUR]),0),2),\"\"),\"\"),\"\")","v":""},{"$f":"IFERROR(IF(AfficherJoursFériés,IF(INDEX(TableauJoursFériés2[],MATCH(DATE(AnnéeCal,MONTH(C11),DAY(C11)),IF(AfficherObservés,TableauJoursFériés2[CORRIGÉ],TableauJoursFériés2[JOUR]),0),5),INDEX(TableauJoursFériés2[],MATCH(DATE(AnnéeCal,MONTH(C11),DAY(C11)),IF(AfficherObservés,TableauJoursFériés2[CORRIGÉ],TableauJoursFériés2[JOUR]),0),2),\"\"),\"\"),\"\")","v":""},{"$f":"IFERROR(IF(AfficherJoursFériés,IF(INDEX(TableauJoursFériés2[],MATCH(DATE(AnnéeCal,MONTH(D11),DAY(D11)),IF(AfficherObservés,TableauJoursFériés2[CORRIGÉ],TableauJoursFériés2[JOUR]),0),5),INDEX(TableauJoursFériés2[],MATCH(DATE(AnnéeCal,MONTH(D11),DAY(D11)),IF(AfficherObservés,TableauJoursFériés2[CORRIGÉ],TableauJoursFériés2[JOUR]),0),2),\"\"),\"\"),\"\")","v":""},{"$f":"IFERROR(IF(AfficherJoursFériés,IF(INDEX(TableauJoursFériés2[],MATCH(DATE(AnnéeCal,MONTH(E11),DAY(E11)),IF(AfficherObservés,TableauJoursFériés2[CORRIGÉ],TableauJoursFériés2[JOUR]),0),5),INDEX(TableauJoursFériés2[],MATCH(DATE(AnnéeCal,MONTH(E11),DAY(E11)),IF(AfficherObservés,TableauJoursFériés2[CORRIGÉ],TableauJoursFériés2[JOUR]),0),2),\"\"),\"\"),\"\")","v":"Assomption"},{"$f":"IFERROR(IF(AfficherJoursFériés,IF(INDEX(TableauJoursFériés2[],MATCH(DATE(AnnéeCal,MONTH(F11),DAY(F11)),IF(AfficherObservés,TableauJoursFériés2[CORRIGÉ],TableauJoursFériés2[JOUR]),0),5),INDEX(TableauJoursFériés2[],MATCH(DATE(AnnéeCal,MONTH(F11),DAY(F11)),IF(AfficherObservés,TableauJoursFériés2[CORRIGÉ],TableauJoursFériés2[JOUR]),0),2),\"\"),\"\"),\"\")","v":""},{"$f":"IFERROR(IF(AfficherJoursFériés,IF(INDEX(TableauJoursFériés2[],MATCH(DATE(AnnéeCal,MONTH(G11),DAY(G11)),IF(AfficherObservés,TableauJoursFériés2[CORRIGÉ],TableauJoursFériés2[JOUR]),0),5),INDEX(TableauJoursFériés2[],MATCH(DATE(AnnéeCal,MONTH(G11),DAY(G11)),IF(AfficherObservés,TableauJoursFériés2[CORRIGÉ],TableauJoursFériés2[JOUR]),0),2),\"\"),\"\"),\"\")","v":""},{"$f":"IFERROR(IF(AfficherJoursFériés,IF(INDEX(TableauJoursFériés2[],MATCH(DATE(AnnéeCal,MONTH(H11),DAY(H11)),IF(AfficherObservés,TableauJoursFériés2[CORRIGÉ],TableauJoursFériés2[JOUR]),0),5),INDEX(TableauJoursFériés2[],MATCH(DATE(AnnéeCal,MONTH(H11),DAY(H11)),IF(AfficherObservés,TableauJoursFériés2[CORRIGÉ],TableauJoursFériés2[JOUR]),0),2),\"\"),\"\"),\"\")","v":""}]
[null,{"$f":"Jours+DATE(AnnéeCal,MONTH($B$2),1)-WEEKDAY(DATE(AnnéeCal,MONTH($B$2),1),(DébutSemaine=\"LUNDI\")+1)+Paramètres!$A$29*7-6","v":"2024-08-19"},{"$f":"Jours+DATE(AnnéeCal,MONTH($B$2),1)-WEEKDAY(DATE(AnnéeCal,MONTH($B$2),1),(DébutSemaine=\"LUNDI\")+1)+Paramètres!$A$29*7-6+1","v":"2024-08-20"},{"$f":"Jours+DATE(AnnéeCal,MONTH($B$2),1)-WEEKDAY(DATE(AnnéeCal,MONTH($B$2),1),(DébutSemaine=\"LUNDI\")+1)+Paramètres!$A$29*7-6+2","v":"2024-08-21"},{"$f":"Jours+DATE(AnnéeCal,MONTH($B$2),1)-WEEKDAY(DATE(AnnéeCal,MONTH($B$2),1),(DébutSemaine=\"LUNDI\")+1)+Paramètres!$A$29*7-6+3","v":"2024-08-22"},{"$f":"Jours+DATE(AnnéeCal,MONTH($B$2),1)-WEEKDAY(DATE(AnnéeCal,MONTH($B$2),1),(DébutSemaine=\"LUNDI\")+1)+Paramètres!$A$29*7-6+4","v":"2024-08-23"},{"$f":"Jours+DATE(AnnéeCal,MONTH($B$2),1)-WEEKDAY(DATE(AnnéeCal,MONTH($B$2),1),(DébutSemaine=\"LUNDI\")+1)+Paramètres!$A$29*7-6+5","v":"2024-08-24"},{"$f":"Jours+DATE(AnnéeCal,MONTH($B$2),1)-WEEKDAY(DATE(AnnéeCal,MONTH($B$2),1),(DébutSemaine=\"LUNDI\")+1)+Paramètres!$A$29*7-6+6","v":"2024-08-25"}]
[null,{"$f":"IFERROR(IF(AfficherJoursFériés,IF(INDEX(TableauJoursFériés2[],MATCH(DATE(AnnéeCal,MONTH(B13),DAY(B13)),IF(AfficherObservés,TableauJoursFériés2[CORRIGÉ],TableauJoursFériés2[JOUR]),0),5),INDEX(TableauJoursFériés2[],MATCH(DATE(AnnéeCal,MONTH(B13),DAY(B13)),IF(AfficherObservés,TableauJoursFériés2[CORRIGÉ],TableauJoursFériés2[JOUR]),0),2),\"\"),\"\"),\"\")","v":""},{"$f":"IFERROR(IF(AfficherJoursFériés,IF(INDEX(TableauJoursFériés2[],MATCH(DATE(AnnéeCal,MONTH(C13),DAY(C13)),IF(AfficherObservés,TableauJoursFériés2[CORRIGÉ],TableauJoursFériés2[JOUR]),0),5),INDEX(TableauJoursFériés2[],MATCH(DATE(AnnéeCal,MONTH(C13),DAY(C13)),IF(AfficherObservés,TableauJoursFériés2[CORRIGÉ],TableauJoursFériés2[JOUR]),0),2),\"\"),\"\"),\"\")","v":""},{"$f":"IFERROR(IF(AfficherJoursFériés,IF(INDEX(TableauJoursFériés2[],MATCH(DATE(AnnéeCal,MONTH(D13),DAY(D13)),IF(AfficherObservés,TableauJoursFériés2[CORRIGÉ],TableauJoursFériés2[JOUR]),0),5),INDEX(TableauJoursFériés2[],MATCH(DATE(AnnéeCal,MONTH(D13),DAY(D13)),IF(AfficherObservés,TableauJoursFériés2[CORRIGÉ],TableauJoursFériés2[JOUR]),0),2),\"\"),\"\"),\"\")","v":""},{"$f":"IFERROR(IF(AfficherJoursFériés,IF(INDEX(TableauJoursFériés2[],MATCH(DATE(AnnéeCal,MONTH(E13),DAY(E13)),IF(AfficherObservés,TableauJoursFériés2[CORRIGÉ],TableauJoursFériés2[JOUR]),0),5),INDEX(TableauJoursFériés2[],MATCH(DATE(AnnéeCal,MONTH(E13),DAY(E13)),IF(AfficherObservés,TableauJoursFériés2[CORRIGÉ],TableauJoursFériés2[JOUR]),0),2),\"\"),\"\"),\"\")","v":""},{"$f":"IFERROR(IF(AfficherJoursFériés,IF(INDEX(TableauJoursFériés2[],MATCH(DATE(AnnéeCal,MONTH(F13),DAY(F13)),IF(AfficherObservés,TableauJoursFériés2[CORRIGÉ],TableauJoursFériés2[JOUR]),0),5),INDEX(TableauJoursFériés2[],MATCH(DATE(AnnéeCal,MONTH(F13),DAY(F13)),IF(AfficherObservés,TableauJoursFériés2[CORRIGÉ],TableauJoursFériés2[JOUR]),0),2),\"\"),\"\"),\"\")","v":""},{"$f":"IFERROR(IF(AfficherJoursFériés,IF(INDEX(TableauJoursFériés2[],MATCH(DATE(AnnéeCal,MONTH(G13),DAY(G13)),IF(AfficherObservés,TableauJoursFériés2[CORRIGÉ],TableauJoursFériés2[JOUR]),0),5),INDEX(TableauJoursFériés2[],MATCH(DATE(AnnéeCal,MONTH(G13),DAY(G13)),IF(AfficherObservés,TableauJoursFériés2[CORRIGÉ],TableauJoursFériés2[JOUR]),0),2),\"\"),\"\"),\"\")","v":""},{"$f":"IFERROR(IF(AfficherJoursFériés,IF(INDEX(TableauJoursFériés2[],MATCH(DATE(AnnéeCal,MONTH(H13),DAY(H13)),IF(AfficherObservés,TableauJoursFériés2[CORRIGÉ],TableauJoursFériés2[JOUR]),0),5),INDEX(TableauJoursFériés2[],MATCH(DATE(AnnéeCal,MONTH(H13),DAY(H13)),IF(AfficherObservés,TableauJoursFériés2[CORRIGÉ],TableauJoursFériés2[JOUR]),0),2),\"\"),\"\"),\"\")","v":""}]
[null,{"$f":"Jours+DATE(AnnéeCal,MONTH($B$2),1)-WEEKDAY(DATE(AnnéeCal,MONTH($B$2),1),(DébutSemaine=\"LUNDI\")+1)+Paramètres!$A$30*7-6","v":"2024-08-26"},{"$f":"Jours+DATE(AnnéeCal,MONTH($B$2),1)-WEEKDAY(DATE(AnnéeCal,MONTH($B$2),1),(DébutSemaine=\"LUNDI\")+1)+Paramètres!$A30*7-6+1","v":"2024-08-27"},{"$f":"Jours+DATE(AnnéeCal,MONTH($B$2),1)-WEEKDAY(DATE(AnnéeCal,MONTH($B$2),1),(DébutSemaine=\"LUNDI\")+1)+Paramètres!$A$30*7-6+2","v":"2024-08-28"},{"$f":"Jours+DATE(AnnéeCal,MONTH($B$2),1)-WEEKDAY(DATE(AnnéeCal,MONTH($B$2),1),(DébutSemaine=\"LUNDI\")+1)+Paramètres!$A$30*7-6+3","v":"2024-08-29"},{"$f":"Jours+DATE(AnnéeCal,MONTH($B$2),1)-WEEKDAY(DATE(AnnéeCal,MONTH($B$2),1),(DébutSemaine=\"LUNDI\")+1)+Paramètres!$A$30*7-6+4","v":"2024-08-30"},{"$f":"Jours+DATE(AnnéeCal,MONTH($B$2),1)-WEEKDAY(DATE(AnnéeCal,MONTH($B$2),1),(DébutSemaine=\"LUNDI\")+1)+Paramètres!$A$30*7-6+5","v":"2024-08-31"},{"$f":"Jours+DATE(AnnéeCal,MONTH($B$2),1)-WEEKDAY(DATE(AnnéeCal,MONTH($B$2),1),(DébutSemaine=\"LUNDI\")+1)+Paramètres!$A$30*7-6+6","v":"2024-09-01"}]
[null,{"$f":"IFERROR(IF(AfficherJoursFériés,IF(INDEX(TableauJoursFériés2[],MATCH(DATE(AnnéeCal,MONTH(B15),DAY(B15)),IF(AfficherObservés,TableauJoursFériés2[CORRIGÉ],TableauJoursFériés2[JOUR]),0),5),INDEX(TableauJoursFériés2[],MATCH(DATE(AnnéeCal,MONTH(B15),DAY(B15)),IF(AfficherObservés,TableauJoursFériés2[CORRIGÉ],TableauJoursFériés2[JOUR]),0),2),\"\"),\"\"),\"\")","v":""},{"$f":"IFERROR(IF(AfficherJoursFériés,IF(INDEX(TableauJoursFériés2[],MATCH(DATE(AnnéeCal,MONTH(C15),DAY(C15)),IF(AfficherObservés,TableauJoursFériés2[CORRIGÉ],TableauJoursFériés2[JOUR]),0),5),INDEX(TableauJoursFériés2[],MATCH(DATE(AnnéeCal,MONTH(C15),DAY(C15)),IF(AfficherObservés,TableauJoursFériés2[CORRIGÉ],TableauJoursFériés2[JOUR]),0),2),\"\"),\"\"),\"\")","v":""},{"$f":"IFERROR(IF(AfficherJoursFériés,IF(INDEX(TableauJoursFériés2[],MATCH(DATE(AnnéeCal,MONTH(D15),DAY(D15)),IF(AfficherObservés,TableauJoursFériés2[CORRIGÉ],TableauJoursFériés2[JOUR]),0),5),INDEX(TableauJoursFériés2[],MATCH(DATE(AnnéeCal,MONTH(D15),DAY(D15)),IF(AfficherObservés,TableauJoursFériés2[CORRIGÉ],TableauJoursFériés2[JOUR]),0),2),\"\"),\"\"),\"\")","v":""},{"$f":"IFERROR(IF(AfficherJoursFériés,IF(INDEX(TableauJoursFériés2[],MATCH(DATE(AnnéeCal,MONTH(E15),DAY(E15)),IF(AfficherObservés,TableauJoursFériés2[CORRIGÉ],TableauJoursFériés2[JOUR]),0),5),INDEX(TableauJoursFériés2[],MATCH(DATE(AnnéeCal,MONTH(E15),DAY(E15)),IF(AfficherObservés,TableauJoursFériés2[CORRIGÉ],TableauJoursFériés2[JOUR]),0),2),\"\"),\"\"),\"\")","v":""},{"$f":"IFERROR(IF(AfficherJoursFériés,IF(INDEX(TableauJoursFériés2[],MATCH(DATE(AnnéeCal,MONTH(F15),DAY(F15)),IF(AfficherObservés,TableauJoursFériés2[CORRIGÉ],TableauJoursFériés2[JOUR]),0),5),INDEX(TableauJoursFériés2[],MATCH(DATE(AnnéeCal,MONTH(F15),DAY(F15)),IF(AfficherObservés,TableauJoursFériés2[CORRIGÉ],TableauJoursFériés2[JOUR]),0),2),\"\"),\"\"),\"\")","v":""},{"$f":"IFERROR(IF(AfficherJoursFériés,IF(INDEX(TableauJoursFériés2[],MATCH(DATE(AnnéeCal,MONTH(G15),DAY(G15)),IF(AfficherObservés,TableauJoursFériés2[CORRIGÉ],TableauJoursFériés2[JOUR]),0),5),INDEX(TableauJoursFériés2[],MATCH(DATE(AnnéeCal,MONTH(G15),DAY(G15)),IF(AfficherObservés,TableauJoursFériés2[CORRIGÉ],TableauJoursFériés2[JOUR]),0),2),\"\"),\"\"),\"\")","v":""},{"$f":"IFERROR(IF(AfficherJoursFériés,IF(INDEX(TableauJoursFériés2[],MATCH(DATE(AnnéeCal,MONTH(H15),DAY(H15)),IF(AfficherObservés,TableauJoursFériés2[CORRIGÉ],TableauJoursFériés2[JOUR]),0),5),INDEX(TableauJoursFériés2[],MATCH(DATE(AnnéeCal,MONTH(H15),DAY(H15)),IF(AfficherObservés,TableauJoursFériés2[CORRIGÉ],TableauJoursFériés2[JOUR]),0),2),\"\"),\"\"),\"\")","v":""}]
[null,{"$f":"Jours+DATE(AnnéeCal,MONTH($B$2),1)-WEEKDAY(DATE(AnnéeCal,MONTH($B$2),1),(DébutSemaine=\"LUNDI\")+1)+Paramètres!$A$31*7-6","v":"2024-09-02"},{"$f":"Jours+DATE(AnnéeCal,MONTH($B$2),1)-WEEKDAY(DATE(AnnéeCal,MONTH($B$2),1),(DébutSemaine=\"LUNDI\")+1)+Paramètres!$A31*7-6+1","v":"2024-09-03"},{"$f":"Jours+DATE(AnnéeCal,MONTH($B$2),1)-WEEKDAY(DATE(AnnéeCal,MONTH($B$2),1),(DébutSemaine=\"LUNDI\")+1)+Paramètres!$A$31*7-6+2","v":"2024-09-04"},{"$f":"Jours+DATE(AnnéeCal,MONTH($B$2),1)-WEEKDAY(DATE(AnnéeCal,MONTH($B$2),1),(DébutSemaine=\"LUNDI\")+1)+Paramètres!$A$31*7-6+3","v":"2024-09-05"},{"$f":"Jours+DATE(AnnéeCal,MONTH($B$2),1)-WEEKDAY(DATE(AnnéeCal,MONTH($B$2),1),(DébutSemaine=\"LUNDI\")+1)+Paramètres!$A$31*7-6+4","v":"2024-09-06"},{"$f":"Jours+DATE(AnnéeCal,MONTH($B$2),1)-WEEKDAY(DATE(AnnéeCal,MONTH($B$2),1),(DébutSemaine=\"LUNDI\")+1)+Paramètres!$A$31*7-6+5","v":"2024-09-07"},{"$f":"Jours+DATE(AnnéeCal,MONTH($B$2),1)-WEEKDAY(DATE(AnnéeCal,MONTH($B$2),1),(DébutSemaine=\"LUNDI\")+1)+Paramètres!$A$31*7-6+6","v":"2024-09-08"}]
[null,{"$f":"IFERROR(IF(AfficherJoursFériés,IF(INDEX(TableauJoursFériés2[],MATCH(DATE(AnnéeCal,MONTH(B17),DAY(B17)),IF(AfficherObservés,TableauJoursFériés2[CORRIGÉ],TableauJoursFériés2[JOUR]),0),5),INDEX(TableauJoursFériés2[],MATCH(DATE(AnnéeCal,MONTH(B17),DAY(B17)),IF(AfficherObservés,TableauJoursFériés2[CORRIGÉ],TableauJoursFériés2[JOUR]),0),2),\"\"),\"\"),\"\")","v":""},{"$f":"IFERROR(IF(AfficherJoursFériés,IF(INDEX(TableauJoursFériés2[],MATCH(DATE(AnnéeCal,MONTH(C17),DAY(C17)),IF(AfficherObservés,TableauJoursFériés2[CORRIGÉ],TableauJoursFériés2[JOUR]),0),5),INDEX(TableauJoursFériés2[],MATCH(DATE(AnnéeCal,MONTH(C17),DAY(C17)),IF(AfficherObservés,TableauJoursFériés2[CORRIGÉ],TableauJoursFériés2[JOUR]),0),2),\"\"),\"\"),\"\")","v":""},{"$f":"IFERROR(IF(AfficherJoursFériés,IF(INDEX(TableauJoursFériés2[],MATCH(DATE(AnnéeCal,MONTH(D17),DAY(D17)),IF(AfficherObservés,TableauJoursFériés2[CORRIGÉ],TableauJoursFériés2[JOUR]),0),5),INDEX(TableauJoursFériés2[],MATCH(DATE(AnnéeCal,MONTH(D17),DAY(D17)),IF(AfficherObservés,TableauJoursFériés2[CORRIGÉ],TableauJoursFériés2[JOUR]),0),2),\"\"),\"\"),\"\")","v":""},{"$f":"IFERROR(IF(AfficherJoursFériés,IF(INDEX(TableauJoursFériés2[],MATCH(DATE(AnnéeCal,MONTH(E17),DAY(E17)),IF(AfficherObservés,TableauJoursFériés2[CORRIGÉ],TableauJoursFériés2[JOUR]),0),5),INDEX(TableauJoursFériés2[],MATCH(DATE(AnnéeCal,MONTH(E17),DAY(E17)),IF(AfficherObservés,TableauJoursFériés2[CORRIGÉ],TableauJoursFériés2[JOUR]),0),2),\"\"),\"\"),\"\")","v":""},{"$f":"IFERROR(IF(AfficherJoursFériés,IF(INDEX(TableauJoursFériés2[],MATCH(DATE(AnnéeCal,MONTH(F17),DAY(F17)),IF(AfficherObservés,TableauJoursFériés2[CORRIGÉ],TableauJoursFériés2[JOUR]),0),5),INDEX(TableauJoursFériés2[],MATCH(DATE(AnnéeCal,MONTH(F17),DAY(F17)),IF(AfficherObservés,TableauJoursFériés2[CORRIGÉ],TableauJoursFériés2[JOUR]),0),2),\"\"),\"\"),\"\")","v":""},{"$f":"IFERROR(IF(AfficherJoursFériés,IF(INDEX(TableauJoursFériés2[],MATCH(DATE(AnnéeCal,MONTH(G17),DAY(G17)),IF(AfficherObservés,TableauJoursFériés2[CORRIGÉ],TableauJoursFériés2[JOUR]),0),5),INDEX(TableauJoursFériés2[],MATCH(DATE(AnnéeCal,MONTH(G17),DAY(G17)),IF(AfficherObservés,TableauJoursFériés2[CORRIGÉ],TableauJoursFériés2[JOUR]),0),2),\"\"),\"\"),\"\")","v":""},{"$f":"IFERROR(IF(AfficherJoursFériés,IF(INDEX(TableauJoursFériés2[],MATCH(DATE(AnnéeCal,MONTH(H17),DAY(H17)),IF(AfficherObservés,TableauJoursFériés2[CORRIGÉ],TableauJoursFériés2[JOUR]),0),5),INDEX(TableauJoursFériés2[],MATCH(DATE(AnnéeCal,MONTH(H17),DAY(H17)),IF(AfficherObservés,TableauJoursFériés2[CORRIGÉ],TableauJoursFériés2[JOUR]),0),2),\"\"),\"\"),\"\")","v":""}]

{"sheet":"Septembre","index":10,"n_rows":18,"n_cols":8,"rows_kept":18,"cut":false,"hidden":false,"merged":[]}
[]
[null,{"$f":"UPPER(TEXT(Paramètres!B33,\"MMMM AAAA\"))","v":"SEPTEMBRE 2024"}]
[]
[]
[]
[null,{"$f":"DébutSemaine","v":"LUNDI"},{"$f":"UPPER(TEXT(C7,\"jjjj\"))","v":"MARDI"},{"$f":"UPPER(TEXT(D7,\"jjjj\"))","v":"MERCREDI"},{"$f":"UPPER(TEXT(E7,\"jjjj\"))","v":"JEUDI"},"VENDREDI","SAMEDI","DIMANCHE"]
[null,{"$f":"Jours+DATE(AnnéeCal,MONTH($B$2),1)-WEEKDAY(DATE(AnnéeCal,MONTH($B$2),1),(DébutSemaine=\"LUNDI\")+1)+1","v":"2024-08-26"},{"$f":"Jours+DATE(AnnéeCal,MONTH($B$2),1)-WEEKDAY(DATE(AnnéeCal,MONTH($B2),1),(DébutSemaine=\"LUNDI\")+1)+2","v":"2024-08-27"},{"$f":"Jours+DATE(AnnéeCal,MONTH($B$2),1)-WEEKDAY(DATE(AnnéeCal,MONTH($B2),1),(DébutSemaine=\"LUNDI\")+1)+3","v":"2024-08-28"},{"$f":"Jours+DATE(AnnéeCal,MONTH($B$2),1)-WEEKDAY(DATE(AnnéeCal,MONTH($B2),1),(DébutSemaine=\"LUNDI\")+1)+4","v":"2024-08-29"},{"$f":"Jours+DATE(AnnéeCal,MONTH($B$2),1)-WEEKDAY(DATE(AnnéeCal,MONTH($B2),1),(DébutSemaine=\"LUNDI\")+1)+5","v":"2024-08-30"},{"$f":"Jours+DATE(AnnéeCal,MONTH($B$2),1)-WEEKDAY(DATE(AnnéeCal,MONTH($B2),1),(DébutSemaine=\"LUNDI\")+1)+6","v":"2024-08-31"},{"$f":"Jours+DATE(AnnéeCal,MONTH($B$2),1)-WEEKDAY(DATE(AnnéeCal,MONTH($B2),1),(DébutSemaine=\"LUNDI\")+1)+7","v":"2024-09-01"}]
[null,{"$f":"IFERROR(IF(AfficherJoursFériés,IF(INDEX(TableauJoursFériés2[],MATCH(DATE(AnnéeCal,MONTH(B$7),DAY(B$7)),IF(AfficherObservés,TableauJoursFériés2[CORRIGÉ],TableauJoursFériés2[JOUR]),0),5),INDEX(TableauJoursFériés2[],MATCH(DATE(AnnéeCal,MONTH(B$7),DAY(B$7)),IF(AfficherObservés,TableauJoursFériés2[CORRIGÉ],TableauJoursFériés2[JOUR]),0),2),\"\"),\"\"),\"\")","v":""},{"$f":"IFERROR(IF(AfficherJoursFériés,IF(INDEX(TableauJoursFériés2[],MATCH(DATE(AnnéeCal,MONTH(C$7),DAY(C$7)),IF(AfficherObservés,TableauJoursFériés2[CORRIGÉ],TableauJoursFériés2[JOUR]),0),5),INDEX(TableauJoursFériés2[],MATCH(DATE(AnnéeCal,MONTH(C$7),DAY(C$7)),IF(AfficherObservés,TableauJoursFériés2[CORRIGÉ],TableauJoursFériés2[JOUR]),0),2),\"\"),\"\"),\"\")","v":""},{"$f":"IFERROR(IF(AfficherJoursFériés,IF(INDEX(TableauJoursFériés2[],MATCH(DATE(AnnéeCal,MONTH(D$7),DAY(D$7)),IF(AfficherObservés,TableauJoursFériés2[CORRIGÉ],TableauJoursFériés2[JOUR]),0),5),INDEX(TableauJoursFériés2[],MATCH(DATE(AnnéeCal,MONTH(D$7),DAY(D$7)),IF(AfficherObservés,TableauJoursFériés2[CORRIGÉ],TableauJoursFériés2[JOUR]),0),2),\"\"),\"\"),\"\")","v":""},{"$f":"IFERROR(IF(AfficherJoursFériés,IF(INDEX(TableauJoursFériés2[],MATCH(DATE(AnnéeCal,MONTH(E$7),DAY(E$7)),IF(AfficherObservés,TableauJoursFériés2[CORRIGÉ],TableauJoursFériés2[JOUR]),0),5),INDEX(TableauJoursFériés2[],MATCH(DATE(AnnéeCal,MONTH(E$7),DAY(E$7)),IF(AfficherObservés,TableauJoursFériés2[CORRIGÉ],TableauJoursFériés2[JOUR]),0),2),\"\"),\"\"),\"\")","v":""},{"$f":"IFERROR(IF(AfficherJoursFériés,IF(INDEX(TableauJoursFériés2[],MATCH(DATE(AnnéeCal,MONTH(F$7),DAY(F$7)),IF(AfficherObservés,TableauJoursFériés2[CORRIGÉ],TableauJoursFériés2[JOUR]),0),5),INDEX(TableauJoursFériés2[],MATCH(DATE(AnnéeCal,MONTH(F$7),DAY(F$7)),IF(AfficherObservés,TableauJoursFériés2[CORRIGÉ],TableauJoursFériés2[JOUR]),0),2),\"\"),\"\"),\"\")","v":""},{"$f":"IFERROR(IF(AfficherJoursFériés,IF(INDEX(TableauJoursFériés2[],MATCH(DATE(AnnéeCal,MONTH(G$7),DAY(G$7)),IF(AfficherObservés,TableauJoursFériés2[CORRIGÉ],TableauJoursFériés2[JOUR]),0),5),INDEX(TableauJoursFériés2[],MATCH(DATE(AnnéeCal,MONTH(G$7),DAY(G$7)),IF(AfficherObservés,TableauJoursFériés2[CORRIGÉ],TableauJoursFériés2[JOUR]),0),2),\"\"),\"\"),\"\")","v":""},{"$f":"IFERROR(IF(AfficherJoursFériés,IF(INDEX(TableauJoursFériés2[],MATCH(DATE(AnnéeCal,MONTH(H$7),DAY(H$7)),IF(AfficherObservés,TableauJoursFériés2[CORRIGÉ],TableauJoursFériés2[JOUR]),0),5),INDEX(TableauJoursFériés2[],MATCH(DATE(AnnéeCal,MONTH(H$7),DAY(H$7)),IF(AfficherObservés,TableauJoursFériés2[CORRIGÉ],TableauJoursFériés2[JOUR]),0),2),\"\"),\"\"),\"\")","v":""}]
[null,{"$f":"Jours+DATE(AnnéeCal,MONTH($B$2),1)-WEEKDAY(DATE(AnnéeCal,MONTH($B$2),1),(DébutSemaine=\"LUNDI\")+1)+Paramètres!$A$27*7-6","v":"2024-09-02"},{"$f":"Jours+DATE(AnnéeCal,MONTH($B$2),1)-WEEKDAY(DATE(AnnéeCal,MONTH($B$2),1),(DébutSemaine=\"LUNDI\")+1)+Paramètres!$A$27*7-6+1","v":"2024-09-03"},{"$f":"Jours+DATE(AnnéeCal,MONTH($B$2),1)-WEEKDAY(DATE(AnnéeCal,MONTH($B$2),1),(DébutSemaine=\"LUNDI\")+1)+Paramètres!$A$27*7-6+2","v":"2024-09-04"},{"$f":"Jours+DATE(AnnéeCal,MONTH($B$2),1)-WEEKDAY(DATE(AnnéeCal,MONTH($B$2),1),(DébutSemaine=\"LUNDI\")+1)+Paramètres!$A$27*7-6+3","v":"2024-09-05"},{"$f":"Jours+DATE(AnnéeCal,MONTH($B$2),1)-WEEKDAY(DATE(AnnéeCal,MONTH($B$2),1),(DébutSemaine=\"LUNDI\")+1)+Paramètres!$A$27*7-6+4","v":"2024-09-06"},{"$f":"Jours+DATE(AnnéeCal,MONTH($B$2),1)-WEEKDAY(DATE(AnnéeCal,MONTH($B$2),1),(DébutSemaine=\"LUNDI\")+1)+Paramètres!$A$27*7-6+5","v":"2024-09-07"},{"$f":"Jours+DATE(AnnéeCal,MONTH($B$2),1)-WEEKDAY(DATE(AnnéeCal,MONTH($B$2),1),(DébutSemaine=\"LUNDI\")+1)+Paramètres!$A$27*7-6+6","v":"2024-09-08"}]
[null,{"$f":"IFERROR(IF(AfficherJoursFériés,IF(INDEX(TableauJoursFériés2[],MATCH(DATE(AnnéeCal,MONTH(B$9),DAY(B$9)),IF(AfficherObservés,TableauJoursFériés2[CORRIGÉ],TableauJoursFériés2[JOUR]),0),5),INDEX(TableauJoursFériés2[],MATCH(DATE(AnnéeCal,MONTH(B$9),DAY(B$9)),IF(AfficherObservés,TableauJoursFériés2[CORRIGÉ],TableauJoursFériés2[JOUR]),0),2),\"\"),\"\"),\"\")","v":""},{"$f":"IFERROR(IF(AfficherJoursFériés,IF(INDEX(TableauJoursFériés2[],MATCH(DATE(AnnéeCal,MONTH(C$9),DAY(C$9)),IF(AfficherObservés,TableauJoursFériés2[CORRIGÉ],TableauJoursFériés2[JOUR]),0),5),INDEX(TableauJoursFériés2[],MATCH(DATE(AnnéeCal,MONTH(C$9),DAY(C$9)),IF(AfficherObservés,TableauJoursFériés2[CORRIGÉ],TableauJoursFériés2[JOUR]),0),2),\"\"),\"\"),\"\")","v":""},{"$f":"IFERROR(IF(AfficherJoursFériés,IF(INDEX(TableauJoursFériés2[],MATCH(DATE(AnnéeCal,MONTH(D$9),DAY(D$9)),IF(AfficherObservés,TableauJoursFériés2[CORRIGÉ],TableauJoursFériés2[JOUR]),0),5),INDEX(TableauJoursFériés2[],MATCH(DATE(AnnéeCal,MONTH(D$9),DAY(D$9)),IF(AfficherObservés,TableauJoursFériés2[CORRIGÉ],TableauJoursFériés2[JOUR]),0),2),\"\"),\"\"),\"\")","v":""},{"$f":"IFERROR(IF(AfficherJoursFériés,IF(INDEX(TableauJoursFériés2[],MATCH(DATE(AnnéeCal,MONTH(E$9),DAY(E$9)),IF(AfficherObservés,TableauJoursFériés2[CORRIGÉ],TableauJoursFériés2[JOUR]),0),5),INDEX(TableauJoursFériés2[],MATCH(DATE(AnnéeCal,MONTH(E$9),DAY(E$9)),IF(AfficherObservés,TableauJoursFériés2[CORRIGÉ],TableauJoursFériés2[JOUR]),0),2),\"\"),\"\"),\"\")","v":""},{"$f":"IFERROR(IF(AfficherJoursFériés,IF(INDEX(TableauJoursFériés2[],MATCH(DATE(AnnéeCal,MONTH(F$9),DAY(F$9)),IF(AfficherObservés,TableauJoursFériés2[CORRIGÉ],TableauJoursFériés2[JOUR]),0),5),INDEX(TableauJoursFériés2[],MATCH(DATE(AnnéeCal,MONTH(F$9),DAY(F$9)),IF(AfficherObservés,TableauJoursFériés2[CORRIGÉ],TableauJoursFériés2[JOUR]),0),2),\"\"),\"\"),\"\")","v":""},{"$f":"IFERROR(IF(AfficherJoursFériés,IF(INDEX(TableauJoursFériés2[],MATCH(DATE(AnnéeCal,MONTH(G$9),DAY(G$9)),IF(AfficherObservés,TableauJoursFériés2[CORRIGÉ],TableauJoursFériés2[JOUR]),0),5),INDEX(TableauJoursFériés2[],MATCH(DATE(AnnéeCal,MONTH(G$9),DAY(G$9)),IF(AfficherObservés,TableauJoursFériés2[CORRIGÉ],TableauJoursFériés2[JOUR]),0),2),\"\"),\"\"),\"\")","v":""},{"$f":"IFERROR(IF(AfficherJoursFériés,IF(INDEX(TableauJoursFériés2[],MATCH(DATE(AnnéeCal,MONTH(H$9),DAY(H$9)),IF(AfficherObservés,TableauJoursFériés2[CORRIGÉ],TableauJoursFériés2[JOUR]),0),5),INDEX(TableauJoursFériés2[],MATCH(DATE(AnnéeCal,MONTH(H$9),DAY(H$9)),IF(AfficherObservés,TableauJoursFériés2[CORRIGÉ],TableauJoursFériés2[JOUR]),0),2),\"\"),\"\"),\"\")","v":""}]
[null,{"$f":"Jours+DATE(AnnéeCal,MONTH($B$2),1)-WEEKDAY(DATE(AnnéeCal,MONTH($B$2),1),(DébutSemaine=\"LUNDI\")+1)+Paramètres!$A$28*7-6","v":"2024-09-09"},{"$f":"Jours+DATE(AnnéeCal,MONTH($B$2),1)-WEEKDAY(DATE(AnnéeCal,MONTH($B$2),1),(DébutSemaine=\"LUNDI\")+1)+Paramètres!$A$28*7-6+1","v":"2024-09-10"},{"$f":"Jours+DATE(AnnéeCal,MONTH($B$2),1)-WEEKDAY(DATE(AnnéeCal,MONTH($B$2),1),(DébutSemaine=\"LUNDI\")+1)+Paramètres!$A$28*7-6+2","v":"2024-09-11"},{"$f":"Jours+DATE(AnnéeCal,MONTH($B$2),1)-WEEKDAY(DATE(AnnéeCal,MONTH($B$2),1),(DébutSemaine=\"LUNDI\")+1)+Paramètres!$A$28*7-6+3","v":"2024-09-12"},{"$f":"Jours+DATE(AnnéeCal,MONTH($B$2),1)-WEEKDAY(DATE(AnnéeCal,MONTH($B$2),1),(DébutSemaine=\"LUNDI\")+1)+Paramètres!$A$28*7-6+4","v":"2024-09-13"},{"$f":"Jours+DATE(AnnéeCal,MONTH($B$2),1)-WEEKDAY(DATE(AnnéeCal,MONTH($B$2),1),(DébutSemaine=\"LUNDI\")+1)+Paramètres!$A$28*7-6+5","v":"2024-09-14"},{"$f":"Jours+DATE(AnnéeCal,MONTH($B$2),1)-WEEKDAY(DATE(AnnéeCal,MONTH($B$2),1),(DébutSemaine=\"LUNDI\")+1)+Paramètres!$A$28*7-6+6","v":"2024-09-15"}]
[null,{"$f":"IFERROR(IF(AfficherJoursFériés,IF(INDEX(TableauJoursFériés2[],MATCH(DATE(AnnéeCal,MONTH(B11),DAY(B11)),IF(AfficherObservés,TableauJoursFériés2[CORRIGÉ],TableauJoursFériés2[JOUR]),0),5),INDEX(TableauJoursFériés2[],MATCH(DATE(AnnéeCal,MONTH(B11),DAY(B11)),IF(AfficherObservés,TableauJoursFériés2[CORRIGÉ],TableauJoursFériés2[JOUR]),0),2),\"\"),\"\"),\"\")","v":""},{"$f":"IFERROR(IF(AfficherJoursFériés,IF(INDEX(TableauJoursFériés2[],MATCH(DATE(AnnéeCal,MONTH(C11),DAY(C11)),IF(AfficherObservés,TableauJoursFériés2[CORRIGÉ],TableauJoursFériés2[JOUR]),0),5),INDEX(TableauJoursFériés2[],MATCH(DATE(AnnéeCal,MONTH(C11),DAY(C11)),IF(AfficherObservés,TableauJoursFériés2[CORRIGÉ],TableauJoursFériés2[JOUR]),0),2),\"\"),\"\"),\"\")","v":""},{"$f":"IFERROR(IF(AfficherJoursFériés,IF(INDEX(TableauJoursFériés2[],MATCH(DATE(AnnéeCal,MONTH(D11),DAY(D11)),IF(AfficherObservés,TableauJoursFériés2[CORRIGÉ],TableauJoursFériés2[JOUR]),0),5),INDEX(TableauJoursFériés2[],MATCH(DATE(AnnéeCal,MONTH(D11),DAY(D11)),IF(AfficherObservés,TableauJoursFériés2[CORRIGÉ],TableauJoursFériés2[JOUR]),0),2),\"\"),\"\"),\"\")","v":""},{"$f":"IFERROR(IF(AfficherJoursFériés,IF(INDEX(TableauJoursFériés2[],MATCH(DATE(AnnéeCal,MONTH(E11),DAY(E11)),IF(AfficherObservés,TableauJoursFériés2[CORRIGÉ],TableauJoursFériés2[JOUR]),0),5),INDEX(TableauJoursFériés2[],MATCH(DATE(AnnéeCal,MONTH(E11),DAY(E11)),IF(AfficherObservés,TableauJoursFériés2[CORRIGÉ],TableauJoursFériés2[JOUR]),0),2),\"\"),\"\"),\"\")","v":""},{"$f":"IFERROR(IF(AfficherJoursFériés,IF(INDEX(TableauJoursFériés2[],MATCH(DATE(AnnéeCal,MONTH(F11),DAY(F11)),IF(AfficherObservés,TableauJoursFériés2[CORRIGÉ],TableauJoursFériés2[JOUR]),0),5),INDEX(TableauJoursFériés2[],MATCH(DATE(AnnéeCal,MONTH(F11),DAY(F11)),IF(AfficherObservés,TableauJoursFériés2[CORRIGÉ],TableauJoursFériés2[JOUR]),0),2),\"\"),\"\"),\"\")","v":""},{"$f":"IFERROR(IF(AfficherJoursFériés,IF(INDEX(TableauJoursFériés2[],MATCH(DATE(AnnéeCal,MONTH(G11),DAY(G11)),IF(AfficherObservés,TableauJoursFériés2[CORRIGÉ],TableauJoursFériés2[JOUR]),0),5),INDEX(TableauJoursFériés2[],MATCH(DATE(AnnéeCal,MONTH(G11),DAY(G11)),IF(AfficherObservés,TableauJoursFériés2[CORRIGÉ],TableauJoursFériés2[JOUR]),0),2),\"\"),\"\"),\"\")","v":""},{"$f":"IFERROR(IF(AfficherJoursFériés,IF(INDEX(TableauJoursFériés2[],MATCH(DATE(AnnéeCal,MONTH(H11),DAY(H11)),IF(AfficherObservés,TableauJoursFériés2[CORRIGÉ],TableauJoursFériés2[JOUR]),0),5),INDEX(TableauJoursFériés2[],MATCH(DATE(AnnéeCal,MONTH(H11),DAY(H11)),IF(AfficherObservés,TableauJoursFériés2[CORRIGÉ],TableauJoursFériés2[JOUR]),0),2),\"\"),\"\"),\"\")","v":""}]
[null,{"$f":"Jours+DATE(AnnéeCal,MONTH($B$2),1)-WEEKDAY(DATE(AnnéeCal,MONTH($B$2),1),(DébutSemaine=\"LUNDI\")+1)+Paramètres!$A$29*7-6","v":"2024-09-16"},{"$f":"Jours+DATE(AnnéeCal,MONTH($B$2),1)-WEEKDAY(DATE(AnnéeCal,MONTH($B$2),1),(DébutSemaine=\"LUNDI\")+1)+Paramètres!$A$29*7-6+1","v":"2024-09-17"},{"$f":"Jours+DATE(AnnéeCal,MONTH($B$2),1)-WEEKDAY(DATE(AnnéeCal,MONTH($B$2),1),(DébutSemaine=\"LUNDI\")+1)+Paramètres!$A$29*7-6+2","v":"2024-09-18"},{"$f":"Jours+DATE(AnnéeCal,MONTH($B$2),1)-WEEKDAY(DATE(AnnéeCal,MONTH($B$2),1),(DébutSemaine=\"LUNDI\")+1)+Paramètres!$A$29*7-6+3","v":"2024-09-19"},{"$f":"Jours+DATE(AnnéeCal,MONTH($B$2),1)-WEEKDAY(DATE(AnnéeCal,MONTH($B$2),1),(DébutSemaine=\"LUNDI\")+1)+Paramètres!$A$29*7-6+4","v":"2024-09-20"},{"$f":"Jours+DATE(AnnéeCal,MONTH($B$2),1)-WEEKDAY(DATE(AnnéeCal,MONTH($B$2),1),(DébutSemaine=\"LUNDI\")+1)+Paramètres!$A$29*7-6+5","v":"2024-09-21"},{"$f":"Jours+DATE(AnnéeCal,MONTH($B$2),1)-WEEKDAY(DATE(AnnéeCal,MONTH($B$2),1),(DébutSemaine=\"LUNDI\")+1)+Paramètres!$A$29*7-6+6","v":"2024-09-22"}]
[null,{"$f":"IFERROR(IF(AfficherJoursFériés,IF(INDEX(TableauJoursFériés2[],MATCH(DATE(AnnéeCal,MONTH(B13),DAY(B13)),IF(AfficherObservés,TableauJoursFériés2[CORRIGÉ],TableauJoursFériés2[JOUR]),0),5),INDEX(TableauJoursFériés2[],MATCH(DATE(AnnéeCal,MONTH(B13),DAY(B13)),IF(AfficherObservés,TableauJoursFériés2[CORRIGÉ],TableauJoursFériés2[JOUR]),0),2),\"\"),\"\"),\"\")","v":""},{"$f":"IFERROR(IF(AfficherJoursFériés,IF(INDEX(TableauJoursFériés2[],MATCH(DATE(AnnéeCal,MONTH(C13),DAY(C13)),IF(AfficherObservés,TableauJoursFériés2[CORRIGÉ],TableauJoursFériés2[JOUR]),0),5),INDEX(TableauJoursFériés2[],MATCH(DATE(AnnéeCal,MONTH(C13),DAY(C13)),IF(AfficherObservés,TableauJoursFériés2[CORRIGÉ],TableauJoursFériés2[JOUR]),0),2),\"\"),\"\"),\"\")","v":""},{"$f":"IFERROR(IF(AfficherJoursFériés,IF(INDEX(TableauJoursFériés2[],MATCH(DATE(AnnéeCal,MONTH(D13),DAY(D13)),IF(AfficherObservés,TableauJoursFériés2[CORRIGÉ],TableauJoursFériés2[JOUR]),0),5),INDEX(TableauJoursFériés2[],MATCH(DATE(AnnéeCal,MONTH(D13),DAY(D13)),IF(AfficherObservés,TableauJoursFériés2[CORRIGÉ],TableauJoursFériés2[JOUR]),0),2),\"\"),\"\"),\"\")","v":""},{"$f":"IFERROR(IF(AfficherJoursFériés,IF(INDEX(TableauJoursFériés2[],MATCH(DATE(AnnéeCal,MONTH(E13),DAY(E13)),IF(AfficherObservés,TableauJoursFériés2[CORRIGÉ],TableauJoursFériés2[JOUR]),0),5),INDEX(TableauJoursFériés2[],MATCH(DATE(AnnéeCal,MONTH(E13),DAY(E13)),IF(AfficherObservés,TableauJoursFériés2[CORRIGÉ],TableauJoursFériés2[JOUR]),0),2),\"\"),\"\"),\"\")","v":""},{"$f":"IFERROR(IF(AfficherJoursFériés,IF(INDEX(TableauJoursFériés2[],MATCH(DATE(AnnéeCal,MONTH(F13),DAY(F13)),IF(AfficherObservés,TableauJoursFériés2[CORRIGÉ],TableauJoursFériés2[JOUR]),0),5),INDEX(TableauJoursFériés2[],MATCH(DATE(AnnéeCal,MONTH(F13),DAY(F13)),IF(AfficherObservés,TableauJoursFériés2[CORRIGÉ],TableauJoursFériés2[JOUR]),0),2),\"\"),\"\"),\"\")","v":""},{"$f":"IFERROR(IF(AfficherJoursFériés,IF(INDEX(TableauJoursFériés2[],MATCH(DATE(AnnéeCal,MONTH(G13),DAY(G13)),IF(AfficherObservés,TableauJoursFériés2[CORRIGÉ],TableauJoursFériés2[JOUR]),0),5),INDEX(TableauJoursFériés2[],MATCH(DATE(AnnéeCal,MONTH(G13),DAY(G13)),IF(AfficherObservés,TableauJoursFériés2[CORRIGÉ],TableauJoursFériés2[JOUR]),0),2),\"\"),\"\"),\"\")","v":""},{"$f":"IFERROR(IF(AfficherJoursFériés,IF(INDEX(TableauJoursFériés2[],MATCH(DATE(AnnéeCal,MONTH(H13),DAY(H13)),IF(AfficherObservés,TableauJoursFériés2[CORRIGÉ],TableauJoursFériés2[JOUR]),0),5),INDEX(TableauJoursFériés2[],MATCH(DATE(AnnéeCal,MONTH(H13),DAY(H13)),IF(AfficherObservés,TableauJoursFériés2[CORRIGÉ],TableauJoursFériés2[JOUR]),0),2),\"\"),\"\"),\"\")","v":""}]
[null,{"$f":"Jours+DATE(AnnéeCal,MONTH($B$2),1)-WEEKDAY(DATE(AnnéeCal,MONTH($B$2),1),(DébutSemaine=\"LUNDI\")+1)+Paramètres!$A$30*7-6","v":"2024-09-23"},{"$f":"Jours+DATE(AnnéeCal,MONTH($B$2),1)-WEEKDAY(DATE(AnnéeCal,MONTH($B$2),1),(DébutSemaine=\"LUNDI\")+1)+Paramètres!$A30*7-6+1","v":"2024-09-24"},{"$f":"Jours+DATE(AnnéeCal,MONTH($B$2),1)-WEEKDAY(DATE(AnnéeCal,MONTH($B$2),1),(DébutSemaine=\"LUNDI\")+1)+Paramètres!$A$30*7-6+2","v":"2024-09-25"},{"$f":"Jours+DATE(AnnéeCal,MONTH($B$2),1)-WEEKDAY(DATE(AnnéeCal,MONTH($B$2),1),(DébutSemaine=\"LUNDI\")+1)+Paramètres!$A$30*7-6+3","v":"2024-09-26"},{"$f":"Jours+DATE(AnnéeCal,MONTH($B$2),1)-WEEKDAY(DATE(AnnéeCal,MONTH($B$2),1),(DébutSemaine=\"LUNDI\")+1)+Paramètres!$A$30*7-6+4","v":"2024-09-27"},{"$f":"Jours+DATE(AnnéeCal,MONTH($B$2),1)-WEEKDAY(DATE(AnnéeCal,MONTH($B$2),1),(DébutSemaine=\"LUNDI\")+1)+Paramètres!$A$30*7-6+5","v":"2024-09-28"},{"$f":"Jours+DATE(AnnéeCal,MONTH($B$2),1)-WEEKDAY(DATE(AnnéeCal,MONTH($B$2),1),(DébutSemaine=\"LUNDI\")+1)+Paramètres!$A$30*7-6+6","v":"2024-09-29"}]
[null,{"$f":"IFERROR(IF(AfficherJoursFériés,IF(INDEX(TableauJoursFériés2[],MATCH(DATE(AnnéeCal,MONTH(B15),DAY(B15)),IF(AfficherObservés,TableauJoursFériés2[CORRIGÉ],TableauJoursFériés2[JOUR]),0),5),INDEX(TableauJoursFériés2[],MATCH(DATE(AnnéeCal,MONTH(B15),DAY(B15)),IF(AfficherObservés,TableauJoursFériés2[CORRIGÉ],TableauJoursFériés2[JOUR]),0),2),\"\"),\"\"),\"\")","v":""},{"$f":"IFERROR(IF(AfficherJoursFériés,IF(INDEX(TableauJoursFériés2[],MATCH(DATE(AnnéeCal,MONTH(C15),DAY(C15)),IF(AfficherObservés,TableauJoursFériés2[CORRIGÉ],TableauJoursFériés2[JOUR]),0),5),INDEX(TableauJoursFériés2[],MATCH(DATE(AnnéeCal,MONTH(C15),DAY(C15)),IF(AfficherObservés,TableauJoursFériés2[CORRIGÉ],TableauJoursFériés2[JOUR]),0),2),\"\"),\"\"),\"\")","v":""},{"$f":"IFERROR(IF(AfficherJoursFériés,IF(INDEX(TableauJoursFériés2[],MATCH(DATE(AnnéeCal,MONTH(D15),DAY(D15)),IF(AfficherObservés,TableauJoursFériés2[CORRIGÉ],TableauJoursFériés2[JOUR]),0),5),INDEX(TableauJoursFériés2[],MATCH(DATE(AnnéeCal,MONTH(D15),DAY(D15)),IF(AfficherObservés,TableauJoursFériés2[CORRIGÉ],TableauJoursFériés2[JOUR]),0),2),\"\"),\"\"),\"\")","v":""},{"$f":"IFERROR(IF(AfficherJoursFériés,IF(INDEX(TableauJoursFériés2[],MATCH(DATE(AnnéeCal,MONTH(E15),DAY(E15)),IF(AfficherObservés,TableauJoursFériés2[CORRIGÉ],TableauJoursFériés2[JOUR]),0),5),INDEX(TableauJoursFériés2[],MATCH(DATE(AnnéeCal,MONTH(E15),DAY(E15)),IF(AfficherObservés,TableauJoursFériés2[CORRIGÉ],TableauJoursFériés2[JOUR]),0),2),\"\"),\"\"),\"\")","v":""},{"$f":"IFERROR(IF(AfficherJoursFériés,IF(INDEX(TableauJoursFériés2[],MATCH(DATE(AnnéeCal,MONTH(F15),DAY(F15)),IF(AfficherObservés,TableauJoursFériés2[CORRIGÉ],TableauJoursFériés2[JOUR]),0),5),INDEX(TableauJoursFériés2[],MATCH(DATE(AnnéeCal,MONTH(F15),DAY(F15)),IF(AfficherObservés,TableauJoursFériés2[CORRIGÉ],TableauJoursFériés2[JOUR]),0),2),\"\"),\"\"),\"\")","v":""},{"$f":"IFERROR(IF(AfficherJoursFériés,IF(INDEX(TableauJoursFériés2[],MATCH(DATE(AnnéeCal,MONTH(G15),DAY(G15)),IF(AfficherObservés,TableauJoursFériés2[CORRIGÉ],TableauJoursFériés2[JOUR]),0),5),INDEX(TableauJoursFériés2[],MATCH(DATE(AnnéeCal,MONTH(G15),DAY(G15)),IF(AfficherObservés,TableauJoursFériés2[CORRIGÉ],TableauJoursFériés2[JOUR]),0),2),\"\"),\"\"),\"\")","v":""},{"$f":"IFERROR(IF(AfficherJoursFériés,IF(INDEX(TableauJoursFériés2[],MATCH(DATE(AnnéeCal,MONTH(H15),DAY(H15)),IF(AfficherObservés,TableauJoursFériés2[CORRIGÉ],TableauJoursFériés2[JOUR]),0),5),INDEX(TableauJoursFériés2[],MATCH(DATE(AnnéeCal,MONTH(H15),DAY(H15)),IF(AfficherObservés,TableauJoursFériés2[CORRIGÉ],TableauJoursFériés2[JOUR]),0),2),\"\"),\"\"),\"\")","v":""}]
[null,{"$f":"Jours+DATE(AnnéeCal,MONTH($B$2),1)-WEEKDAY(DATE(AnnéeCal,MONTH($B$2),1),(DébutSemaine=\"LUNDI\")+1)+Paramètres!$A$31*7-6","v":"2024-09-30"},{"$f":"Jours+DATE(AnnéeCal,MONTH($B$2),1)-WEEKDAY(DATE(AnnéeCal,MONTH($B$2),1),(DébutSemaine=\"LUNDI\")+1)+Paramètres!$A31*7-6+1","v":"2024-10-01"},{"$f":"Jours+DATE(AnnéeCal,MONTH($B$2),1)-WEEKDAY(DATE(AnnéeCal,MONTH($B$2),1),(DébutSemaine=\"LUNDI\")+1)+Paramètres!$A$31*7-6+2","v":"2024-10-02"},{"$f":"Jours+DATE(AnnéeCal,MONTH($B$2),1)-WEEKDAY(DATE(AnnéeCal,MONTH($B$2),1),(DébutSemaine=\"LUNDI\")+1)+Paramètres!$A$31*7-6+3","v":"2024-10-03"},{"$f":"Jours+DATE(AnnéeCal,MONTH($B$2),1)-WEEKDAY(DATE(AnnéeCal,MONTH($B$2),1),(DébutSemaine=\"LUNDI\")+1)+Paramètres!$A$31*7-6+4","v":"2024-10-04"},{"$f":"Jours+DATE(AnnéeCal,MONTH($B$2),1)-WEEKDAY(DATE(AnnéeCal,MONTH($B$2),1),(DébutSemaine=\"LUNDI\")+1)+Paramètres!$A$31*7-6+5","v":"2024-10-05"},{"$f":"Jours+DATE(AnnéeCal,MONTH($B$2),1)-WEEKDAY(DATE(AnnéeCal,MONTH($B$2),1),(DébutSemaine=\"LUNDI\")+1)+Paramètres!$A$31*7-6+6","v":"2024-10-06"}]
[null,{"$f":"IFERROR(IF(AfficherJoursFériés,IF(INDEX(TableauJoursFériés2[],MATCH(DATE(AnnéeCal,MONTH(B17),DAY(B17)),IF(AfficherObservés,TableauJoursFériés2[CORRIGÉ],TableauJoursFériés2[JOUR]),0),5),INDEX(TableauJoursFériés2[],MATCH(DATE(AnnéeCal,MONTH(B17),DAY(B17)),IF(AfficherObservés,TableauJoursFériés2[CORRIGÉ],TableauJoursFériés2[JOUR]),0),2),\"\"),\"\"),\"\")","v":""},{"$f":"IFERROR(IF(AfficherJoursFériés,IF(INDEX(TableauJoursFériés2[],MATCH(DATE(AnnéeCal,MONTH(C17),DAY(C17)),IF(AfficherObservés,TableauJoursFériés2[CORRIGÉ],TableauJoursFériés2[JOUR]),0),5),INDEX(TableauJoursFériés2[],MATCH(DATE(AnnéeCal,MONTH(C17),DAY(C17)),IF(AfficherObservés,TableauJoursFériés2[CORRIGÉ],TableauJoursFériés2[JOUR]),0),2),\"\"),\"\"),\"\")","v":""},{"$f":"IFERROR(IF(AfficherJoursFériés,IF(INDEX(TableauJoursFériés2[],MATCH(DATE(AnnéeCal,MONTH(D17),DAY(D17)),IF(AfficherObservés,TableauJoursFériés2[CORRIGÉ],TableauJoursFériés2[JOUR]),0),5),INDEX(TableauJoursFériés2[],MATCH(DATE(AnnéeCal,MONTH(D17),DAY(D17)),IF(AfficherObservés,TableauJoursFériés2[CORRIGÉ],TableauJoursFériés2[JOUR]),0),2),\"\"),\"\"),\"\")","v":""},{"$f":"IFERROR(IF(AfficherJoursFériés,IF(INDEX(TableauJoursFériés2[],MATCH(DATE(AnnéeCal,MONTH(E17),DAY(E17)),IF(AfficherObservés,TableauJoursFériés2[CORRIGÉ],TableauJoursFériés2[JOUR]),0),5),INDEX(TableauJoursFériés2[],MATCH(DATE(AnnéeCal,MONTH(E17),DAY(E17)),IF(AfficherObservés,TableauJoursFériés2[CORRIGÉ],TableauJoursFériés2[JOUR]),0),2),\"\"),\"\"),\"\")","v":""},{"$f":"IFERROR(IF(AfficherJoursFériés,IF(INDEX(TableauJoursFériés2[],MATCH(DATE(AnnéeCal,MONTH(F17),DAY(F17)),IF(AfficherObservés,TableauJoursFériés2[CORRIGÉ],TableauJoursFériés2[JOUR]),0),5),INDEX(TableauJoursFériés2[],MATCH(DATE(AnnéeCal,MONTH(F17),DAY(F17)),IF(AfficherObservés,TableauJoursFériés2[CORRIGÉ],TableauJoursFériés2[JOUR]),0),2),\"\"),\"\"),\"\")","v":""},{"$f":"IFERROR(IF(AfficherJoursFériés,IF(INDEX(TableauJoursFériés2[],MATCH(DATE(AnnéeCal,MONTH(G17),DAY(G17)),IF(AfficherObservés,TableauJoursFériés2[CORRIGÉ],TableauJoursFériés2[JOUR]),0),5),INDEX(TableauJoursFériés2[],MATCH(DATE(AnnéeCal,MONTH(G17),DAY(G17)),IF(AfficherObservés,TableauJoursFériés2[CORRIGÉ],TableauJoursFériés2[JOUR]),0),2),\"\"),\"\"),\"\")","v":""},{"$f":"IFERROR(IF(AfficherJoursFériés,IF(INDEX(TableauJoursFériés2[],MATCH(DATE(AnnéeCal,MONTH(H17),DAY(H17)),IF(AfficherObservés,TableauJoursFériés2[CORRIGÉ],TableauJoursFériés2[JOUR]),0),5),INDEX(TableauJoursFériés2[],MATCH(DATE(AnnéeCal,MONTH(H17),DAY(H17)),IF(AfficherObservés,TableauJoursFériés2[CORRIGÉ],TableauJoursFériés2[JOUR]),0),2),\"\"),\"\"),\"\")","v":""}]

{"sheet":"Octobre","index":11,"n_rows":18,"n_cols":8,"rows_kept":18,"cut":false,"hidden":false,"merged":[]}
[]
[null,{"$f":"UPPER(TEXT(Paramètres!J33,\"MMMM AAAA\"))","v":"OCTOBRE 2024"}]
[]
[]
[]
[null,{"$f":"DébutSemaine","v":"LUNDI"},{"$f":"UPPER(TEXT(C7,\"jjjj\"))","v":"MARDI"},{"$f":"UPPER(TEXT(D7,\"jjjj\"))","v":"MERCREDI"},{"$f":"UPPER(TEXT(E7,\"jjjj\"))","v":"JEUDI"},"VENDREDI","SAMEDI","DIMANCHE"]
[null,{"$f":"Jours+DATE(AnnéeCal,MONTH($B$2),1)-WEEKDAY(DATE(AnnéeCal,MONTH($B$2),1),(DébutSemaine=\"LUNDI\")+1)+1","v":"2024-09-30"},{"$f":"Jours+DATE(AnnéeCal,MONTH($B$2),1)-WEEKDAY(DATE(AnnéeCal,MONTH($B2),1),(DébutSemaine=\"LUNDI\")+1)+2","v":"2024-10-01"},{"$f":"Jours+DATE(AnnéeCal,MONTH($B$2),1)-WEEKDAY(DATE(AnnéeCal,MONTH($B2),1),(DébutSemaine=\"LUNDI\")+1)+3","v":"2024-10-02"},{"$f":"Jours+DATE(AnnéeCal,MONTH($B$2),1)-WEEKDAY(DATE(AnnéeCal,MONTH($B2),1),(DébutSemaine=\"LUNDI\")+1)+4","v":"2024-10-03"},{"$f":"Jours+DATE(AnnéeCal,MONTH($B$2),1)-WEEKDAY(DATE(AnnéeCal,MONTH($B2),1),(DébutSemaine=\"LUNDI\")+1)+5","v":"2024-10-04"},{"$f":"Jours+DATE(AnnéeCal,MONTH($B$2),1)-WEEKDAY(DATE(AnnéeCal,MONTH($B2),1),(DébutSemaine=\"LUNDI\")+1)+6","v":"2024-10-05"},{"$f":"Jours+DATE(AnnéeCal,MONTH($B$2),1)-WEEKDAY(DATE(AnnéeCal,MONTH($B2),1),(DébutSemaine=\"LUNDI\")+1)+7","v":"2024-10-06"}]
[null,{"$f":"IFERROR(IF(AfficherJoursFériés,IF(INDEX(TableauJoursFériés2[],MATCH(DATE(AnnéeCal,MONTH(B$7),DAY(B$7)),IF(AfficherObservés,TableauJoursFériés2[CORRIGÉ],TableauJoursFériés2[JOUR]),0),5),INDEX(TableauJoursFériés2[],MATCH(DATE(AnnéeCal,MONTH(B$7),DAY(B$7)),IF(AfficherObservés,TableauJoursFériés2[CORRIGÉ],TableauJoursFériés2[JOUR]),0),2),\"\"),\"\"),\"\")","v":""}]
[null,{"$f":"Jours+DATE(AnnéeCal,MONTH($B$2),1)-WEEKDAY(DATE(AnnéeCal,MONTH($B$2),1),(DébutSemaine=\"LUNDI\")+1)+Paramètres!$A$27*7-6","v":"2024-10-07"},{"$f":"Jours+DATE(AnnéeCal,MONTH($B$2),1)-WEEKDAY(DATE(AnnéeCal,MONTH($B$2),1),(DébutSemaine=\"LUNDI\")+1)+Paramètres!$A$27*7-6+1","v":"2024-10-08"},{"$f":"Jours+DATE(AnnéeCal,MONTH($B$2),1)-WEEKDAY(DATE(AnnéeCal,MONTH($B$2),1),(DébutSemaine=\"LUNDI\")+1)+Paramètres!$A$27*7-6+2","v":"2024-10-09"},{"$f":"Jours+DATE(AnnéeCal,MONTH($B$2),1)-WEEKDAY(DATE(AnnéeCal,MONTH($B$2),1),(DébutSemaine=\"LUNDI\")+1)+Paramètres!$A$27*7-6+3","v":"2024-10-10"},{"$f":"Jours+DATE(AnnéeCal,MONTH($B$2),1)-WEEKDAY(DATE(AnnéeCal,MONTH($B$2),1),(DébutSemaine=\"LUNDI\")+1)+Paramètres!$A$27*7-6+4","v":"2024-10-11"},{"$f":"Jours+DATE(AnnéeCal,MONTH($B$2),1)-WEEKDAY(DATE(AnnéeCal,MONTH($B$2),1),(DébutSemaine=\"LUNDI\")+1)+Paramètres!$A$27*7-6+5","v":"2024-10-12"},{"$f":"Jours+DATE(AnnéeCal,MONTH($B$2),1)-WEEKDAY(DATE(AnnéeCal,MONTH($B$2),1),(DébutSemaine=\"LUNDI\")+1)+Paramètres!$A$27*7-6+6","v":"2024-10-13"}]
[null,{"$f":"IFERROR(IF(AfficherJoursFériés,IF(INDEX(TableauJoursFériés2[],MATCH(DATE(AnnéeCal,MONTH(B$9),DAY(B$9)),IF(AfficherObservés,TableauJoursFériés2[CORRIGÉ],TableauJoursFériés2[JOUR]),0),5),INDEX(TableauJoursFériés2[],MATCH(DATE(AnnéeCal,MONTH(B$9),DAY(B$9)),IF(AfficherObservés,TableauJoursFériés2[CORRIGÉ],TableauJoursFériés2[JOUR]),0),2),\"\"),\"\"),\"\")","v":""},{"$f":"IFERROR(IF(AfficherJoursFériés,IF(INDEX(TableauJoursFériés2[],MATCH(DATE(AnnéeCal,MONTH(C$9),DAY(C$9)),IF(AfficherObservés,TableauJoursFériés2[CORRIGÉ],TableauJoursFériés2[JOUR]),0),5),INDEX(TableauJoursFériés2[],MATCH(DATE(AnnéeCal,MONTH(C$9),DAY(C$9)),IF(AfficherObservés,TableauJoursFériés2[CORRIGÉ],TableauJoursFériés2[JOUR]),0),2),\"\"),\"\"),\"\")","v":""},{"$f":"IFERROR(IF(AfficherJoursFériés,IF(INDEX(TableauJoursFériés2[],MATCH(DATE(AnnéeCal,MONTH(D$9),DAY(D$9)),IF(AfficherObservés,TableauJoursFériés2[CORRIGÉ],TableauJoursFériés2[JOUR]),0),5),INDEX(TableauJoursFériés2[],MATCH(DATE(AnnéeCal,MONTH(D$9),DAY(D$9)),IF(AfficherObservés,TableauJoursFériés2[CORRIGÉ],TableauJoursFériés2[JOUR]),0),2),\"\"),\"\"),\"\")","v":""},{"$f":"IFERROR(IF(AfficherJoursFériés,IF(INDEX(TableauJoursFériés2[],MATCH(DATE(AnnéeCal,MONTH(E$9),DAY(E$9)),IF(AfficherObservés,TableauJoursFériés2[CORRIGÉ],TableauJoursFériés2[JOUR]),0),5),INDEX(TableauJoursFériés2[],MATCH(DATE(AnnéeCal,MONTH(E$9),DAY(E$9)),IF(AfficherObservés,TableauJoursFériés2[CORRIGÉ],TableauJoursFériés2[JOUR]),0),2),\"\"),\"\"),\"\")","v":""},{"$f":"IFERROR(IF(AfficherJoursFériés,IF(INDEX(TableauJoursFériés2[],MATCH(DATE(AnnéeCal,MONTH(F$9),DAY(F$9)),IF(AfficherObservés,TableauJoursFériés2[CORRIGÉ],TableauJoursFériés2[JOUR]),0),5),INDEX(TableauJoursFériés2[],MATCH(DATE(AnnéeCal,MONTH(F$9),DAY(F$9)),IF(AfficherObservés,TableauJoursFériés2[CORRIGÉ],TableauJoursFériés2[JOUR]),0),2),\"\"),\"\"),\"\")","v":""},{"$f":"IFERROR(IF(AfficherJoursFériés,IF(INDEX(TableauJoursFériés2[],MATCH(DATE(AnnéeCal,MONTH(G$9),DAY(G$9)),IF(AfficherObservés,TableauJoursFériés2[CORRIGÉ],TableauJoursFériés2[JOUR]),0),5),INDEX(TableauJoursFériés2[],MATCH(DATE(AnnéeCal,MONTH(G$9),DAY(G$9)),IF(AfficherObservés,TableauJoursFériés2[CORRIGÉ],TableauJoursFériés2[JOUR]),0),2),\"\"),\"\"),\"\")","v":""},{"$f":"IFERROR(IF(AfficherJoursFériés,IF(INDEX(TableauJoursFériés2[],MATCH(DATE(AnnéeCal,MONTH(H$9),DAY(H$9)),IF(AfficherObservés,TableauJoursFériés2[CORRIGÉ],TableauJoursFériés2[JOUR]),0),5),INDEX(TableauJoursFériés2[],MATCH(DATE(AnnéeCal,MONTH(H$9),DAY(H$9)),IF(AfficherObservés,TableauJoursFériés2[CORRIGÉ],TableauJoursFériés2[JOUR]),0),2),\"\"),\"\"),\"\")","v":""}]
[null,{"$f":"Jours+DATE(AnnéeCal,MONTH($B$2),1)-WEEKDAY(DATE(AnnéeCal,MONTH($B$2),1),(DébutSemaine=\"LUNDI\")+1)+Paramètres!$A$28*7-6","v":"2024-10-14"},{"$f":"Jours+DATE(AnnéeCal,MONTH($B$2),1)-WEEKDAY(DATE(AnnéeCal,MONTH($B$2),1),(DébutSemaine=\"LUNDI\")+1)+Paramètres!$A$28*7-6+1","v":"2024-10-15"},{"$f":"Jours+DATE(AnnéeCal,MONTH($B$2),1)-WEEKDAY(DATE(AnnéeCal,MONTH($B$2),1),(DébutSemaine=\"LUNDI\")+1)+Paramètres!$A$28*7-6+2","v":"2024-10-16"},{"$f":"Jours+DATE(AnnéeCal,MONTH($B$2),1)-WEEKDAY(DATE(AnnéeCal,MONTH($B$2),1),(DébutSemaine=\"LUNDI\")+1)+Paramètres!$A$28*7-6+3","v":"2024-10-17"},{"$f":"Jours+DATE(AnnéeCal,MONTH($B$2),1)-WEEKDAY(DATE(AnnéeCal,MONTH($B$2),1),(DébutSemaine=\"LUNDI\")+1)+Paramètres!$A$28*7-6+4","v":"2024-10-18"},{"$f":"Jours+DATE(AnnéeCal,MONTH($B$2),1)-WEEKDAY(DATE(AnnéeCal,MONTH($B$2),1),(DébutSemaine=\"LUNDI\")+1)+Paramètres!$A$28*7-6+5","v":"2024-10-19"},{"$f":"Jours+DATE(AnnéeCal,MONTH($B$2),1)-WEEKDAY(DATE(AnnéeCal,MONTH($B$2),1),(DébutSemaine=\"LUNDI\")+1)+Paramètres!$A$28*7-6+6","v":"2024-10-20"}]
[null,{"$f":"IFERROR(IF(AfficherJoursFériés,IF(INDEX(TableauJoursFériés2[],MATCH(DATE(AnnéeCal,MONTH(B11),DAY(B11)),IF(AfficherObservés,TableauJoursFériés2[CORRIGÉ],TableauJoursFériés2[JOUR]),0),5),INDEX(TableauJoursFériés2[],MATCH(DATE(AnnéeCal,MONTH(B11),DAY(B11)),IF(AfficherObservés,TableauJoursFériés2[CORRIGÉ],TableauJoursFériés2[JOUR]),0),2),\"\"),\"\"),\"\")","v":""},{"$f":"IFERROR(IF(AfficherJoursFériés,IF(INDEX(TableauJoursFériés2[],MATCH(DATE(AnnéeCal,MONTH(C11),DAY(C11)),IF(AfficherObservés,TableauJoursFériés2[CORRIGÉ],TableauJoursFériés2[JOUR]),0),5),INDEX(TableauJoursFériés2[],MATCH(DATE(AnnéeCal,MONTH(C11),DAY(C11)),IF(AfficherObservés,TableauJoursFériés2[CORRIGÉ],TableauJoursFériés2[JOUR]),0),2),\"\"),\"\"),\"\")","v":""},{"$f":"IFERROR(IF(AfficherJoursFériés,IF(INDEX(TableauJoursFériés2[],MATCH(DATE(AnnéeCal,MONTH(D11),DAY(D11)),IF(AfficherObservés,TableauJoursFériés2[CORRIGÉ],TableauJoursFériés2[JOUR]),0),5),INDEX(TableauJoursFériés2[],MATCH(DATE(AnnéeCal,MONTH(D11),DAY(D11)),IF(AfficherObservés,TableauJoursFériés2[CORRIGÉ],TableauJoursFériés2[JOUR]),0),2),\"\"),\"\"),\"\")","v":""},{"$f":"IFERROR(IF(AfficherJoursFériés,IF(INDEX(TableauJoursFériés2[],MATCH(DATE(AnnéeCal,MONTH(E11),DAY(E11)),IF(AfficherObservés,TableauJoursFériés2[CORRIGÉ],TableauJoursFériés2[JOUR]),0),5),INDEX(TableauJoursFériés2[],MATCH(DATE(AnnéeCal,MONTH(E11),DAY(E11)),IF(AfficherObservés,TableauJoursFériés2[CORRIGÉ],TableauJoursFériés2[JOUR]),0),2),\"\"),\"\"),\"\")","v":""},{"$f":"IFERROR(IF(AfficherJoursFériés,IF(INDEX(TableauJoursFériés2[],MATCH(DATE(AnnéeCal,MONTH(F11),DAY(F11)),IF(AfficherObservés,TableauJoursFériés2[CORRIGÉ],TableauJoursFériés2[JOUR]),0),5),INDEX(TableauJoursFériés2[],MATCH(DATE(AnnéeCal,MONTH(F11),DAY(F11)),IF(AfficherObservés,TableauJoursFériés2[CORRIGÉ],TableauJoursFériés2[JOUR]),0),2),\"\"),\"\"),\"\")","v":""},{"$f":"IFERROR(IF(AfficherJoursFériés,IF(INDEX(TableauJoursFériés2[],MATCH(DATE(AnnéeCal,MONTH(G11),DAY(G11)),IF(AfficherObservés,TableauJoursFériés2[CORRIGÉ],TableauJoursFériés2[JOUR]),0),5),INDEX(TableauJoursFériés2[],MATCH(DATE(AnnéeCal,MONTH(G11),DAY(G11)),IF(AfficherObservés,TableauJoursFériés2[CORRIGÉ],TableauJoursFériés2[JOUR]),0),2),\"\"),\"\"),\"\")","v":""},{"$f":"IFERROR(IF(AfficherJoursFériés,IF(INDEX(TableauJoursFériés2[],MATCH(DATE(AnnéeCal,MONTH(H11),DAY(H11)),IF(AfficherObservés,TableauJoursFériés2[CORRIGÉ],TableauJoursFériés2[JOUR]),0),5),INDEX(TableauJoursFériés2[],MATCH(DATE(AnnéeCal,MONTH(H11),DAY(H11)),IF(AfficherObservés,TableauJoursFériés2[CORRIGÉ],TableauJoursFériés2[JOUR]),0),2),\"\"),\"\"),\"\")","v":""}]
[null,{"$f":"Jours+DATE(AnnéeCal,MONTH($B$2),1)-WEEKDAY(DATE(AnnéeCal,MONTH($B$2),1),(DébutSemaine=\"LUNDI\")+1)+Paramètres!$A$29*7-6","v":"2024-10-21"},{"$f":"Jours+DATE(AnnéeCal,MONTH($B$2),1)-WEEKDAY(DATE(AnnéeCal,MONTH($B$2),1),(DébutSemaine=\"LUNDI\")+1)+Paramètres!$A$29*7-6+1","v":"2024-10-22"},{"$f":"Jours+DATE(AnnéeCal,MONTH($B$2),1)-WEEKDAY(DATE(AnnéeCal,MONTH($B$2),1),(DébutSemaine=\"LUNDI\")+1)+Paramètres!$A$29*7-6+2","v":"2024-10-23"},{"$f":"Jours+DATE(AnnéeCal,MONTH($B$2),1)-WEEKDAY(DATE(AnnéeCal,MONTH($B$2),1),(DébutSemaine=\"LUNDI\")+1)+Paramètres!$A$29*7-6+3","v":"2024-10-24"},{"$f":"Jours+DATE(AnnéeCal,MONTH($B$2),1)-WEEKDAY(DATE(AnnéeCal,MONTH($B$2),1),(DébutSemaine=\"LUNDI\")+1)+Paramètres!$A$29*7-6+4","v":"2024-10-25"},{"$f":"Jours+DATE(AnnéeCal,MONTH($B$2),1)-WEEKDAY(DATE(AnnéeCal,MONTH($B$2),1),(DébutSemaine=\"LUNDI\")+1)+Paramètres!$A$29*7-6+5","v":"2024-10-26"},{"$f":"Jours+DATE(AnnéeCal,MONTH($B$2),1)-WEEKDAY(DATE(AnnéeCal,MONTH($B$2),1),(DébutSemaine=\"LUNDI\")+1)+Paramètres!$A$29*7-6+6","v":"2024-10-27"}]
[null,{"$f":"IFERROR(IF(AfficherJoursFériés,IF(INDEX(TableauJoursFériés2[],MATCH(DATE(AnnéeCal,MONTH(B13),DAY(B13)),IF(AfficherObservés,TableauJoursFériés2[CORRIGÉ],TableauJoursFériés2[JOUR]),0),5),INDEX(TableauJoursFériés2[],MATCH(DATE(AnnéeCal,MONTH(B13),DAY(B13)),IF(AfficherObservés,TableauJoursFériés2[CORRIGÉ],TableauJoursFériés2[JOUR]),0),2),\"\"),\"\"),\"\")","v":""},{"$f":"IFERROR(IF(AfficherJoursFériés,IF(INDEX(TableauJoursFériés2[],MATCH(DATE(AnnéeCal,MONTH(C13),DAY(C13)),IF(AfficherObservés,TableauJoursFériés2[CORRIGÉ],TableauJoursFériés2[JOUR]),0),5),INDEX(TableauJoursFériés2[],MATCH(DATE(AnnéeCal,MONTH(C13),DAY(C13)),IF(AfficherObservés,TableauJoursFériés2[CORRIGÉ],TableauJoursFériés2[JOUR]),0),2),\"\"),\"\"),\"\")","v":""},{"$f":"IFERROR(IF(AfficherJoursFériés,IF(INDEX(TableauJoursFériés2[],MATCH(DATE(AnnéeCal,MONTH(D13),DAY(D13)),IF(AfficherObservés,TableauJoursFériés2[CORRIGÉ],TableauJoursFériés2[JOUR]),0),5),INDEX(TableauJoursFériés2[],MATCH(DATE(AnnéeCal,MONTH(D13),DAY(D13)),IF(AfficherObservés,TableauJoursFériés2[CORRIGÉ],TableauJoursFériés2[JOUR]),0),2),\"\"),\"\"),\"\")","v":""},{"$f":"IFERROR(IF(AfficherJoursFériés,IF(INDEX(TableauJoursFériés2[],MATCH(DATE(AnnéeCal,MONTH(E13),DAY(E13)),IF(AfficherObservés,TableauJoursFériés2[CORRIGÉ],TableauJoursFériés2[JOUR]),0),5),INDEX(TableauJoursFériés2[],MATCH(DATE(AnnéeCal,MONTH(E13),DAY(E13)),IF(AfficherObservés,TableauJoursFériés2[CORRIGÉ],TableauJoursFériés2[JOUR]),0),2),\"\"),\"\"),\"\")","v":""},{"$f":"IFERROR(IF(AfficherJoursFériés,IF(INDEX(TableauJoursFériés2[],MATCH(DATE(AnnéeCal,MONTH(F13),DAY(F13)),IF(AfficherObservés,TableauJoursFériés2[CORRIGÉ],TableauJoursFériés2[JOUR]),0),5),INDEX(TableauJoursFériés2[],MATCH(DATE(AnnéeCal,MONTH(F13),DAY(F13)),IF(AfficherObservés,TableauJoursFériés2[CORRIGÉ],TableauJoursFériés2[JOUR]),0),2),\"\"),\"\"),\"\")","v":""},{"$f":"IFERROR(IF(AfficherJoursFériés,IF(INDEX(TableauJoursFériés2[],MATCH(DATE(AnnéeCal,MONTH(G13),DAY(G13)),IF(AfficherObservés,TableauJoursFériés2[CORRIGÉ],TableauJoursFériés2[JOUR]),0),5),INDEX(TableauJoursFériés2[],MATCH(DATE(AnnéeCal,MONTH(G13),DAY(G13)),IF(AfficherObservés,TableauJoursFériés2[CORRIGÉ],TableauJoursFériés2[JOUR]),0),2),\"\"),\"\"),\"\")","v":""},{"$f":"IFERROR(IF(AfficherJoursFériés,IF(INDEX(TableauJoursFériés2[],MATCH(DATE(AnnéeCal,MONTH(H13),DAY(H13)),IF(AfficherObservés,TableauJoursFériés2[CORRIGÉ],TableauJoursFériés2[JOUR]),0),5),INDEX(TableauJoursFériés2[],MATCH(DATE(AnnéeCal,MONTH(H13),DAY(H13)),IF(AfficherObservés,TableauJoursFériés2[CORRIGÉ],TableauJoursFériés2[JOUR]),0),2),\"\"),\"\"),\"\")","v":""}]
[null,{"$f":"Jours+DATE(AnnéeCal,MONTH($B$2),1)-WEEKDAY(DATE(AnnéeCal,MONTH($B$2),1),(DébutSemaine=\"LUNDI\")+1)+Paramètres!$A$30*7-6","v":"2024-10-28"},{"$f":"Jours+DATE(AnnéeCal,MONTH($B$2),1)-WEEKDAY(DATE(AnnéeCal,MONTH($B$2),1),(DébutSemaine=\"LUNDI\")+1)+Paramètres!$A30*7-6+1","v":"2024-10-29"},{"$f":"Jours+DATE(AnnéeCal,MONTH($B$2),1)-WEEKDAY(DATE(AnnéeCal,MONTH($B$2),1),(DébutSemaine=\"LUNDI\")+1)+Paramètres!$A$30*7-6+2","v":"2024-10-30"},{"$f":"Jours+DATE(AnnéeCal,MONTH($B$2),1)-WEEKDAY(DATE(AnnéeCal,MONTH($B$2),1),(DébutSemaine=\"LUNDI\")+1)+Paramètres!$A$30*7-6+3","v":"2024-10-31"},{"$f":"Jours+DATE(AnnéeCal,MONTH($B$2),1)-WEEKDAY(DATE(AnnéeCal,MONTH($B$2),1),(DébutSemaine=\"LUNDI\")+1)+Paramètres!$A$30*7-6+4","v":"2024-11-01"},{"$f":"Jours+DATE(AnnéeCal,MONTH($B$2),1)-WEEKDAY(DATE(AnnéeCal,MONTH($B$2),1),(DébutSemaine=\"LUNDI\")+1)+Paramètres!$A$30*7-6+5","v":"2024-11-02"},{"$f":"Jours+DATE(AnnéeCal,MONTH($B$2),1)-WEEKDAY(DATE(AnnéeCal,MONTH($B$2),1),(DébutSemaine=\"LUNDI\")+1)+Paramètres!$A$30*7-6+6","v":"2024-11-03"}]
[null,{"$f":"IFERROR(IF(AfficherJoursFériés,IF(INDEX(TableauJoursFériés2[],MATCH(DATE(AnnéeCal,MONTH(B15),DAY(B15)),IF(AfficherObservés,TableauJoursFériés2[CORRIGÉ],TableauJoursFériés2[JOUR]),0),5),INDEX(TableauJoursFériés2[],MATCH(DATE(AnnéeCal,MONTH(B15),DAY(B15)),IF(AfficherObservés,TableauJoursFériés2[CORRIGÉ],TableauJoursFériés2[JOUR]),0),2),\"\"),\"\"),\"\")","v":""},{"$f":"IFERROR(IF(AfficherJoursFériés,IF(INDEX(TableauJoursFériés2[],MATCH(DATE(AnnéeCal,MONTH(C15),DAY(C15)),IF(AfficherObservés,TableauJoursFériés2[CORRIGÉ],TableauJoursFériés2[JOUR]),0),5),INDEX(TableauJoursFériés2[],MATCH(DATE(AnnéeCal,MONTH(C15),DAY(C15)),IF(AfficherObservés,TableauJoursFériés2[CORRIGÉ],TableauJoursFériés2[JOUR]),0),2),\"\"),\"\"),\"\")","v":""},{"$f":"IFERROR(IF(AfficherJoursFériés,IF(INDEX(TableauJoursFériés2[],MATCH(DATE(AnnéeCal,MONTH(D15),DAY(D15)),IF(AfficherObservés,TableauJoursFériés2[CORRIGÉ],TableauJoursFériés2[JOUR]),0),5),INDEX(TableauJoursFériés2[],MATCH(DATE(AnnéeCal,MONTH(D15),DAY(D15)),IF(AfficherObservés,TableauJoursFériés2[CORRIGÉ],TableauJoursFériés2[JOUR]),0),2),\"\"),\"\"),\"\")","v":""},{"$f":"IFERROR(IF(AfficherJoursFériés,IF(INDEX(TableauJoursFériés2[],MATCH(DATE(AnnéeCal,MONTH(E15),DAY(E15)),IF(AfficherObservés,TableauJoursFériés2[CORRIGÉ],TableauJoursFériés2[JOUR]),0),5),INDEX(TableauJoursFériés2[],MATCH(DATE(AnnéeCal,MONTH(E15),DAY(E15)),IF(AfficherObservés,TableauJoursFériés2[CORRIGÉ],TableauJoursFériés2[JOUR]),0),2),\"\"),\"\"),\"\")","v":""},{"$f":"IFERROR(IF(AfficherJoursFériés,IF(INDEX(TableauJoursFériés2[],MATCH(DATE(AnnéeCal,MONTH(F15),DAY(F15)),IF(AfficherObservés,TableauJoursFériés2[CORRIGÉ],TableauJoursFériés2[JOUR]),0),5),INDEX(TableauJoursFériés2[],MATCH(DATE(AnnéeCal,MONTH(F15),DAY(F15)),IF(AfficherObservés,TableauJoursFériés2[CORRIGÉ],TableauJoursFériés2[JOUR]),0),2),\"\"),\"\"),\"\")","v":"Toussaint"},{"$f":"IFERROR(IF(AfficherJoursFériés,IF(INDEX(TableauJoursFériés2[],MATCH(DATE(AnnéeCal,MONTH(G15),DAY(G15)),IF(AfficherObservés,TableauJoursFériés2[CORRIGÉ],TableauJoursFériés2[JOUR]),0),5),INDEX(TableauJoursFériés2[],MATCH(DATE(AnnéeCal,MONTH(G15),DAY(G15)),IF(AfficherObservés,TableauJoursFériés2[CORRIGÉ],TableauJoursFériés2[JOUR]),0),2),\"\"),\"\"),\"\")","v":""},{"$f":"IFERROR(IF(AfficherJoursFériés,IF(INDEX(TableauJoursFériés2[],MATCH(DATE(AnnéeCal,MONTH(H15),DAY(H15)),IF(AfficherObservés,TableauJoursFériés2[CORRIGÉ],TableauJoursFériés2[JOUR]),0),5),INDEX(TableauJoursFériés2[],MATCH(DATE(AnnéeCal,MONTH(H15),DAY(H15)),IF(AfficherObservés,TableauJoursFériés2[CORRIGÉ],TableauJoursFériés2[JOUR]),0),2),\"\"),\"\"),\"\")","v":""}]
[null,{"$f":"Jours+DATE(AnnéeCal,MONTH($B$2),1)-WEEKDAY(DATE(AnnéeCal,MONTH($B$2),1),(DébutSemaine=\"LUNDI\")+1)+Paramètres!$A$31*7-6","v":"2024-11-04"},{"$f":"Jours+DATE(AnnéeCal,MONTH($B$2),1)-WEEKDAY(DATE(AnnéeCal,MONTH($B$2),1),(DébutSemaine=\"LUNDI\")+1)+Paramètres!$A31*7-6+1","v":"2024-11-05"},{"$f":"Jours+DATE(AnnéeCal,MONTH($B$2),1)-WEEKDAY(DATE(AnnéeCal,MONTH($B$2),1),(DébutSemaine=\"LUNDI\")+1)+Paramètres!$A$31*7-6+2","v":"2024-11-06"},{"$f":"Jours+DATE(AnnéeCal,MONTH($B$2),1)-WEEKDAY(DATE(AnnéeCal,MONTH($B$2),1),(DébutSemaine=\"LUNDI\")+1)+Paramètres!$A$31*7-6+3","v":"2024-11-07"},{"$f":"Jours+DATE(AnnéeCal,MONTH($B$2),1)-WEEKDAY(DATE(AnnéeCal,MONTH($B$2),1),(DébutSemaine=\"LUNDI\")+1)+Paramètres!$A$31*7-6+4","v":"2024-11-08"},{"$f":"Jours+DATE(AnnéeCal,MONTH($B$2),1)-WEEKDAY(DATE(AnnéeCal,MONTH($B$2),1),(DébutSemaine=\"LUNDI\")+1)+Paramètres!$A$31*7-6+5","v":"2024-11-09"},{"$f":"Jours+DATE(AnnéeCal,MONTH($B$2),1)-WEEKDAY(DATE(AnnéeCal,MONTH($B$2),1),(DébutSemaine=\"LUNDI\")+1)+Paramètres!$A$31*7-6+6","v":"2024-11-10"}]
[null,{"$f":"IFERROR(IF(AfficherJoursFériés,IF(INDEX(TableauJoursFériés2[],MATCH(DATE(AnnéeCal,MONTH(B17),DAY(B17)),IF(AfficherObservés,TableauJoursFériés2[CORRIGÉ],TableauJoursFériés2[JOUR]),0),5),INDEX(TableauJoursFériés2[],MATCH(DATE(AnnéeCal,MONTH(B17),DAY(B17)),IF(AfficherObservés,TableauJoursFériés2[CORRIGÉ],TableauJoursFériés2[JOUR]),0),2),\"\"),\"\"),\"\")","v":""},{"$f":"IFERROR(IF(AfficherJoursFériés,IF(INDEX(TableauJoursFériés2[],MATCH(DATE(AnnéeCal,MONTH(C17),DAY(C17)),IF(AfficherObservés,TableauJoursFériés2[CORRIGÉ],TableauJoursFériés2[JOUR]),0),5),INDEX(TableauJoursFériés2[],MATCH(DATE(AnnéeCal,MONTH(C17),DAY(C17)),IF(AfficherObservés,TableauJoursFériés2[CORRIGÉ],TableauJoursFériés2[JOUR]),0),2),\"\"),\"\"),\"\")","v":""},{"$f":"IFERROR(IF(AfficherJoursFériés,IF(INDEX(TableauJoursFériés2[],MATCH(DATE(AnnéeCal,MONTH(D17),DAY(D17)),IF(AfficherObservés,TableauJoursFériés2[CORRIGÉ],TableauJoursFériés2[JOUR]),0),5),INDEX(TableauJoursFériés2[],MATCH(DATE(AnnéeCal,MONTH(D17),DAY(D17)),IF(AfficherObservés,TableauJoursFériés2[CORRIGÉ],TableauJoursFériés2[JOUR]),0),2),\"\"),\"\"),\"\")","v":""},{"$f":"IFERROR(IF(AfficherJoursFériés,IF(INDEX(TableauJoursFériés2[],MATCH(DATE(AnnéeCal,MONTH(E17),DAY(E17)),IF(AfficherObservés,TableauJoursFériés2[CORRIGÉ],TableauJoursFériés2[JOUR]),0),5),INDEX(TableauJoursFériés2[],MATCH(DATE(AnnéeCal,MONTH(E17),DAY(E17)),IF(AfficherObservés,TableauJoursFériés2[CORRIGÉ],TableauJoursFériés2[JOUR]),0),2),\"\"),\"\"),\"\")","v":""},{"$f":"IFERROR(IF(AfficherJoursFériés,IF(INDEX(TableauJoursFériés2[],MATCH(DATE(AnnéeCal,MONTH(F17),DAY(F17)),IF(AfficherObservés,TableauJoursFériés2[CORRIGÉ],TableauJoursFériés2[JOUR]),0),5),INDEX(TableauJoursFériés2[],MATCH(DATE(AnnéeCal,MONTH(F17),DAY(F17)),IF(AfficherObservés,TableauJoursFériés2[CORRIGÉ],TableauJoursFériés2[JOUR]),0),2),\"\"),\"\"),\"\")","v":""},{"$f":"IFERROR(IF(AfficherJoursFériés,IF(INDEX(TableauJoursFériés2[],MATCH(DATE(AnnéeCal,MONTH(G17),DAY(G17)),IF(AfficherObservés,TableauJoursFériés2[CORRIGÉ],TableauJoursFériés2[JOUR]),0),5),INDEX(TableauJoursFériés2[],MATCH(DATE(AnnéeCal,MONTH(G17),DAY(G17)),IF(AfficherObservés,TableauJoursFériés2[CORRIGÉ],TableauJoursFériés2[JOUR]),0),2),\"\"),\"\"),\"\")","v":""},{"$f":"IFERROR(IF(AfficherJoursFériés,IF(INDEX(TableauJoursFériés2[],MATCH(DATE(AnnéeCal,MONTH(H17),DAY(H17)),IF(AfficherObservés,TableauJoursFériés2[CORRIGÉ],TableauJoursFériés2[JOUR]),0),5),INDEX(TableauJoursFériés2[],MATCH(DATE(AnnéeCal,MONTH(H17),DAY(H17)),IF(AfficherObservés,TableauJoursFériés2[CORRIGÉ],TableauJoursFériés2[JOUR]),0),2),\"\"),\"\"),\"\")","v":""}]

{"sheet":"Novembre","index":12,"n_rows":18,"n_cols":8,"rows_kept":18,"cut":false,"hidden":false,"merged":[]}
[]
[null,{"$f":"UPPER(TEXT(Paramètres!R33,\"MMMM AAAA\"))","v":"NOVEMBRE 2024"}]
[]
[]
[]
[null,{"$f":"DébutSemaine","v":"LUNDI"},{"$f":"UPPER(TEXT(C7,\"jjjj\"))","v":"MARDI"},{"$f":"UPPER(TEXT(D7,\"jjjj\"))","v":"MERCREDI"},{"$f":"UPPER(TEXT(E7,\"jjjj\"))","v":"JEUDI"},"VENDREDI","SAMEDI","DIMANCHE"]
[null,{"$f":"Jours+DATE(AnnéeCal,MONTH($B$2),1)-WEEKDAY(DATE(AnnéeCal,MONTH($B$2),1),(DébutSemaine=\"LUNDI\")+1)+1","v":"2024-10-28"},{"$f":"Jours+DATE(AnnéeCal,MONTH($B$2),1)-WEEKDAY(DATE(AnnéeCal,MONTH($B2),1),(DébutSemaine=\"LUNDI\")+1)+2","v":"2024-10-29"},{"$f":"Jours+DATE(AnnéeCal,MONTH($B$2),1)-WEEKDAY(DATE(AnnéeCal,MONTH($B2),1),(DébutSemaine=\"LUNDI\")+1)+3","v":"2024-10-30"},{"$f":"Jours+DATE(AnnéeCal,MONTH($B$2),1)-WEEKDAY(DATE(AnnéeCal,MONTH($B2),1),(DébutSemaine=\"LUNDI\")+1)+4","v":"2024-10-31"},{"$f":"Jours+DATE(AnnéeCal,MONTH($B$2),1)-WEEKDAY(DATE(AnnéeCal,MONTH($B2),1),(DébutSemaine=\"LUNDI\")+1)+5","v":"2024-11-01"},{"$f":"Jours+DATE(AnnéeCal,MONTH($B$2),1)-WEEKDAY(DATE(AnnéeCal,MONTH($B2),1),(DébutSemaine=\"LUNDI\")+1)+6","v":"2024-11-02"},{"$f":"Jours+DATE(AnnéeCal,MONTH($B$2),1)-WEEKDAY(DATE(AnnéeCal,MONTH($B2),1),(DébutSemaine=\"LUNDI\")+1)+7","v":"2024-11-03"}]
[null,{"$f":"IFERROR(IF(AfficherJoursFériés,IF(INDEX(TableauJoursFériés2[],MATCH(DATE(AnnéeCal,MONTH(B$7),DAY(B$7)),IF(AfficherObservés,TableauJoursFériés2[CORRIGÉ],TableauJoursFériés2[JOUR]),0),5),INDEX(TableauJoursFériés2[],MATCH(DATE(AnnéeCal,MONTH(B$7),DAY(B$7)),IF(AfficherObservés,TableauJoursFériés2[CORRIGÉ],TableauJoursFériés2[JOUR]),0),2),\"\"),\"\"),\"\")","v":""},{"$f":"IFERROR(IF(AfficherJoursFériés,IF(INDEX(TableauJoursFériés2[],MATCH(DATE(AnnéeCal,MONTH(C7),DAY(C7)),IF(AfficherObservés,TableauJoursFériés2[CORRIGÉ],TableauJoursFériés2[JOUR]),0),5),INDEX(TableauJoursFériés2[],MATCH(DATE(AnnéeCal,MONTH(C7),DAY(C7)),IF(AfficherObservés,TableauJoursFériés2[CORRIGÉ],TableauJoursFériés2[JOUR]),0),2),\"\"),\"\"),\"\")","v":""},{"$f":"IFERROR(IF(AfficherJoursFériés,IF(INDEX(TableauJoursFériés2[],MATCH(DATE(AnnéeCal,MONTH(D7),DAY(D7)),IF(AfficherObservés,TableauJoursFériés2[CORRIGÉ],TableauJoursFériés2[JOUR]),0),5),INDEX(TableauJoursFériés2[],MATCH(DATE(AnnéeCal,MONTH(D7),DAY(D7)),IF(AfficherObservés,TableauJoursFériés2[CORRIGÉ],TableauJoursFériés2[JOUR]),0),2),\"\"),\"\"),\"\")","v":""},{"$f":"IFERROR(IF(AfficherJoursFériés,IF(INDEX(TableauJoursFériés2[],MATCH(DATE(AnnéeCal,MONTH(E7),DAY(E7)),IF(AfficherObservés,TableauJoursFériés2[CORRIGÉ],TableauJoursFériés2[JOUR]),0),5),INDEX(TableauJoursFériés2[],MATCH(DATE(AnnéeCal,MONTH(E7),DAY(E7)),IF(AfficherObservés,TableauJoursFériés2[CORRIGÉ],TableauJoursFériés2[JOUR]),0),2),\"\"),\"\"),\"\")","v":""},{"$f":"IFERROR(IF(AfficherJoursFériés,IF(INDEX(TableauJoursFériés2[],MATCH(DATE(AnnéeCal,MONTH(F7),DAY(F7)),IF(AfficherObservés,TableauJoursFériés2[CORRIGÉ],TableauJoursFériés2[JOUR]),0),5),INDEX(TableauJoursFériés2[],MATCH(DATE(AnnéeCal,MONTH(F7),DAY(F7)),IF(AfficherObservés,TableauJoursFériés2[CORRIGÉ],TableauJoursFériés2[JOUR]),0),2),\"\"),\"\"),\"\")","v":"Toussaint"},{"$f":"IFERROR(IF(AfficherJoursFériés,IF(INDEX(TableauJoursFériés2[],MATCH(DATE(AnnéeCal,MONTH(G7),DAY(G7)),IF(AfficherObservés,TableauJoursFériés2[CORRIGÉ],TableauJoursFériés2[JOUR]),0),5),INDEX(TableauJoursFériés2[],MATCH(DATE(AnnéeCal,MONTH(G7),DAY(G7)),IF(AfficherObservés,TableauJoursFériés2[CORRIGÉ],TableauJoursFériés2[JOUR]),0),2),\"\"),\"\"),\"\")","v":""},{"$f":"IFERROR(IF(AfficherJoursFériés,IF(INDEX(TableauJoursFériés2[],MATCH(DATE(AnnéeCal,MONTH(H7),DAY(H7)),IF(AfficherObservés,TableauJoursFériés2[CORRIGÉ],TableauJoursFériés2[JOUR]),0),5),INDEX(TableauJoursFériés2[],MATCH(DATE(AnnéeCal,MONTH(H7),DAY(H7)),IF(AfficherObservés,TableauJoursFériés2[CORRIGÉ],TableauJoursFériés2[JOUR]),0),2),\"\"),\"\"),\"\")","v":""}]
[null,{"$f":"Jours+DATE(AnnéeCal,MONTH($B$2),1)-WEEKDAY(DATE(AnnéeCal,MONTH($B$2),1),(DébutSemaine=\"LUNDI\")+1)+Paramètres!$A$27*7-6","v":"2024-11-04"},{"$f":"Jours+DATE(AnnéeCal,MONTH($B$2),1)-WEEKDAY(DATE(AnnéeCal,MONTH($B$2),1),(DébutSemaine=\"LUNDI\")+1)+Paramètres!$A$27*7-6+1","v":"2024-11-05"},{"$f":"Jours+DATE(AnnéeCal,MONTH($B$2),1)-WEEKDAY(DATE(AnnéeCal,MONTH($B$2),1),(DébutSemaine=\"LUNDI\")+1)+Paramètres!$A$27*7-6+2","v":"2024-11-06"},{"$f":"Jours+DATE(AnnéeCal,MONTH($B$2),1)-WEEKDAY(DATE(AnnéeCal,MONTH($B$2),1),(DébutSemaine=\"LUNDI\")+1)+Paramètres!$A$27*7-6+3","v":"2024-11-07"},{"$f":"Jours+DATE(AnnéeCal,MONTH($B$2),1)-WEEKDAY(DATE(AnnéeCal,MONTH($B$2),1),(DébutSemaine=\"LUNDI\")+1)+Paramètres!$A$27*7-6+4","v":"2024-11-08"},{"$f":"Jours+DATE(AnnéeCal,MONTH($B$2),1)-WEEKDAY(DATE(AnnéeCal,MONTH($B$2),1),(DébutSemaine=\"LUNDI\")+1)+Paramètres!$A$27*7-6+5","v":"2024-11-09"},{"$f":"Jours+DATE(AnnéeCal,MONTH($B$2),1)-WEEKDAY(DATE(AnnéeCal,MONTH($B$2),1),(DébutSemaine=\"LUNDI\")+1)+Paramètres!$A$27*7-6+6","v":"2024-11-10"}]
[null,{"$f":"IFERROR(IF(AfficherJoursFériés,IF(INDEX(TableauJoursFériés2[],MATCH(DATE(AnnéeCal,MONTH(B$9),DAY(B$9)),IF(AfficherObservés,TableauJoursFériés2[CORRIGÉ],TableauJoursFériés2[JOUR]),0),5),INDEX(TableauJoursFériés2[],MATCH(DATE(AnnéeCal,MONTH(B$9),DAY(B$9)),IF(AfficherObservés,TableauJoursFériés2[CORRIGÉ],TableauJoursFériés2[JOUR]),0),2),\"\"),\"\"),\"\")","v":""},{"$f":"IFERROR(IF(AfficherJoursFériés,IF(INDEX(TableauJoursFériés2[],MATCH(DATE(AnnéeCal,MONTH(C$9),DAY(C$9)),IF(AfficherObservés,TableauJoursFériés2[CORRIGÉ],TableauJoursFériés2[JOUR]),0),5),INDEX(TableauJoursFériés2[],MATCH(DATE(AnnéeCal,MONTH(C$9),DAY(C$9)),IF(AfficherObservés,TableauJoursFériés2[CORRIGÉ],TableauJoursFériés2[JOUR]),0),2),\"\"),\"\"),\"\")","v":""},{"$f":"IFERROR(IF(AfficherJoursFériés,IF(INDEX(TableauJoursFériés2[],MATCH(DATE(AnnéeCal,MONTH(D$9),DAY(D$9)),IF(AfficherObservés,TableauJoursFériés2[CORRIGÉ],TableauJoursFériés2[JOUR]),0),5),INDEX(TableauJoursFériés2[],MATCH(DATE(AnnéeCal,MONTH(D$9),DAY(D$9)),IF(AfficherObservés,TableauJoursFériés2[CORRIGÉ],TableauJoursFériés2[JOUR]),0),2),\"\"),\"\"),\"\")","v":""},{"$f":"IFERROR(IF(AfficherJoursFériés,IF(INDEX(TableauJoursFériés2[],MATCH(DATE(AnnéeCal,MONTH(E$9),DAY(E$9)),IF(AfficherObservés,TableauJoursFériés2[CORRIGÉ],TableauJoursFériés2[JOUR]),0),5),INDEX(TableauJoursFériés2[],MATCH(DATE(AnnéeCal,MONTH(E$9),DAY(E$9)),IF(AfficherObservés,TableauJoursFériés2[CORRIGÉ],TableauJoursFériés2[JOUR]),0),2),\"\"),\"\"),\"\")","v":""},{"$f":"IFERROR(IF(AfficherJoursFériés,IF(INDEX(TableauJoursFériés2[],MATCH(DATE(AnnéeCal,MONTH(F$9),DAY(F$9)),IF(AfficherObservés,TableauJoursFériés2[CORRIGÉ],TableauJoursFériés2[JOUR]),0),5),INDEX(TableauJoursFériés2[],MATCH(DATE(AnnéeCal,MONTH(F$9),DAY(F$9)),IF(AfficherObservés,TableauJoursFériés2[CORRIGÉ],TableauJoursFériés2[JOUR]),0),2),\"\"),\"\"),\"\")","v":""},{"$f":"IFERROR(IF(AfficherJoursFériés,IF(INDEX(TableauJoursFériés2[],MATCH(DATE(AnnéeCal,MONTH(G$9),DAY(G$9)),IF(AfficherObservés,TableauJoursFériés2[CORRIGÉ],TableauJoursFériés2[JOUR]),0),5),INDEX(TableauJoursFériés2[],MATCH(DATE(AnnéeCal,MONTH(G$9),DAY(G$9)),IF(AfficherObservés,TableauJoursFériés2[CORRIGÉ],TableauJoursFériés2[JOUR]),0),2),\"\"),\"\"),\"\")","v":""},{"$f":"IFERROR(IF(AfficherJoursFériés,IF(INDEX(TableauJoursFériés2[],MATCH(DATE(AnnéeCal,MONTH(H$9),DAY(H$9)),IF(AfficherObservés,TableauJoursFériés2[CORRIGÉ],TableauJoursFériés2[JOUR]),0),5),INDEX(TableauJoursFériés2[],MATCH(DATE(AnnéeCal,MONTH(H$9),DAY(H$9)),IF(AfficherObservés,TableauJoursFériés2[CORRIGÉ],TableauJoursFériés2[JOUR]),0),2),\"\"),\"\"),\"\")","v":""}]
[null,{"$f":"Jours+DATE(AnnéeCal,MONTH($B$2),1)-WEEKDAY(DATE(AnnéeCal,MONTH($B$2),1),(DébutSemaine=\"LUNDI\")+1)+Paramètres!$A$28*7-6","v":"2024-11-11"},{"$f":"Jours+DATE(AnnéeCal,MONTH($B$2),1)-WEEKDAY(DATE(AnnéeCal,MONTH($B$2),1),(DébutSemaine=\"LUNDI\")+1)+Paramètres!$A$28*7-6+1","v":"2024-11-12"},{"$f":"Jours+DATE(AnnéeCal,MONTH($B$2),1)-WEEKDAY(DATE(AnnéeCal,MONTH($B$2),1),(DébutSemaine=\"LUNDI\")+1)+Paramètres!$A$28*7-6+2","v":"2024-11-13"},{"$f":"Jours+DATE(AnnéeCal,MONTH($B$2),1)-WEEKDAY(DATE(AnnéeCal,MONTH($B$2),1),(DébutSemaine=\"LUNDI\")+1)+Paramètres!$A$28*7-6+3","v":"2024-11-14"},{"$f":"Jours+DATE(AnnéeCal,MONTH($B$2),1)-WEEKDAY(DATE(AnnéeCal,MONTH($B$2),1),(DébutSemaine=\"LUNDI\")+1)+Paramètres!$A$28*7-6+4","v":"2024-11-15"},{"$f":"Jours+DATE(AnnéeCal,MONTH($B$2),1)-WEEKDAY(DATE(AnnéeCal,MONTH($B$2),1),(DébutSemaine=\"LUNDI\")+1)+Paramètres!$A$28*7-6+5","v":"2024-11-16"},{"$f":"Jours+DATE(AnnéeCal,MONTH($B$2),1)-WEEKDAY(DATE(AnnéeCal,MONTH($B$2),1),(DébutSemaine=\"LUNDI\")+1)+Paramètres!$A$28*7-6+6","v":"2024-11-17"}]
[null,{"$f":"IFERROR(IF(AfficherJoursFériés,IF(INDEX(TableauJoursFériés2[],MATCH(DATE(AnnéeCal,MONTH(B11),DAY(B11)),IF(AfficherObservés,TableauJoursFériés2[CORRIGÉ],TableauJoursFériés2[JOUR]),0),5),INDEX(TableauJoursFériés2[],MATCH(DATE(AnnéeCal,MONTH(B11),DAY(B11)),IF(AfficherObservés,TableauJoursFériés2[CORRIGÉ],TableauJoursFériés2[JOUR]),0),2),\"\"),\"\"),\"\")","v":"Armistice 1918"},{"$f":"IFERROR(IF(AfficherJoursFériés,IF(INDEX(TableauJoursFériés2[],MATCH(DATE(AnnéeCal,MONTH(C11),DAY(C11)),IF(AfficherObservés,TableauJoursFériés2[CORRIGÉ],TableauJoursFériés2[JOUR]),0),5),INDEX(TableauJoursFériés2[],MATCH(DATE(AnnéeCal,MONTH(C11),DAY(C11)),IF(AfficherObservés,TableauJoursFériés2[CORRIGÉ],TableauJoursFériés2[JOUR]),0),2),\"\"),\"\"),\"\")","v":""},{"$f":"IFERROR(IF(AfficherJoursFériés,IF(INDEX(TableauJoursFériés2[],MATCH(DATE(AnnéeCal,MONTH(D11),DAY(D11)),IF(AfficherObservés,TableauJoursFériés2[CORRIGÉ],TableauJoursFériés2[JOUR]),0),5),INDEX(TableauJoursFériés2[],MATCH(DATE(AnnéeCal,MONTH(D11),DAY(D11)),IF(AfficherObservés,TableauJoursFériés2[CORRIGÉ],TableauJoursFériés2[JOUR]),0),2),\"\"),\"\"),\"\")","v":""},{"$f":"IFERROR(IF(AfficherJoursFériés,IF(INDEX(TableauJoursFériés2[],MATCH(DATE(AnnéeCal,MONTH(E11),DAY(E11)),IF(AfficherObservés,TableauJoursFériés2[CORRIGÉ],TableauJoursFériés2[JOUR]),0),5),INDEX(TableauJoursFériés2[],MATCH(DATE(AnnéeCal,MONTH(E11),DAY(E11)),IF(AfficherObservés,TableauJoursFériés2[CORRIGÉ],TableauJoursFériés2[JOUR]),0),2),\"\"),\"\"),\"\")","v":""},{"$f":"IFERROR(IF(AfficherJoursFériés,IF(INDEX(TableauJoursFériés2[],MATCH(DATE(AnnéeCal,MONTH(F11),DAY(F11)),IF(AfficherObservés,TableauJoursFériés2[CORRIGÉ],TableauJoursFériés2[JOUR]),0),5),INDEX(TableauJoursFériés2[],MATCH(DATE(AnnéeCal,MONTH(F11),DAY(F11)),IF(AfficherObservés,TableauJoursFériés2[CORRIGÉ],TableauJoursFériés2[JOUR]),0),2),\"\"),\"\"),\"\")","v":""},{"$f":"IFERROR(IF(AfficherJoursFériés,IF(INDEX(TableauJoursFériés2[],MATCH(DATE(AnnéeCal,MONTH(G11),DAY(G11)),IF(AfficherObservés,TableauJoursFériés2[CORRIGÉ],TableauJoursFériés2[JOUR]),0),5),INDEX(TableauJoursFériés2[],MATCH(DATE(AnnéeCal,MONTH(G11),DAY(G11)),IF(AfficherObservés,TableauJoursFériés2[CORRIGÉ],TableauJoursFériés2[JOUR]),0),2),\"\"),\"\"),\"\")","v":""},{"$f":"IFERROR(IF(AfficherJoursFériés,IF(INDEX(TableauJoursFériés2[],MATCH(DATE(AnnéeCal,MONTH(H11),DAY(H11)),IF(AfficherObservés,TableauJoursFériés2[CORRIGÉ],TableauJoursFériés2[JOUR]),0),5),INDEX(TableauJoursFériés2[],MATCH(DATE(AnnéeCal,MONTH(H11),DAY(H11)),IF(AfficherObservés,TableauJoursFériés2[CORRIGÉ],TableauJoursFériés2[JOUR]),0),2),\"\"),\"\"),\"\")","v":""}]
[null,{"$f":"Jours+DATE(AnnéeCal,MONTH($B$2),1)-WEEKDAY(DATE(AnnéeCal,MONTH($B$2),1),(DébutSemaine=\"LUNDI\")+1)+Paramètres!$A$29*7-6","v":"2024-11-18"},{"$f":"Jours+DATE(AnnéeCal,MONTH($B$2),1)-WEEKDAY(DATE(AnnéeCal,MONTH($B$2),1),(DébutSemaine=\"LUNDI\")+1)+Paramètres!$A$29*7-6+1","v":"2024-11-19"},{"$f":"Jours+DATE(AnnéeCal,MONTH($B$2),1)-WEEKDAY(DATE(AnnéeCal,MONTH($B$2),1),(DébutSemaine=\"LUNDI\")+1)+Paramètres!$A$29*7-6+2","v":"2024-11-20"},{"$f":"Jours+DATE(AnnéeCal,MONTH($B$2),1)-WEEKDAY(DATE(AnnéeCal,MONTH($B$2),1),(DébutSemaine=\"LUNDI\")+1)+Paramètres!$A$29*7-6+3","v":"2024-11-21"},{"$f":"Jours+DATE(AnnéeCal,MONTH($B$2),1)-WEEKDAY(DATE(AnnéeCal,MONTH($B$2),1),(DébutSemaine=\"LUNDI\")+1)+Paramètres!$A$29*7-6+4","v":"2024-11-22"},{"$f":"Jours+DATE(AnnéeCal,MONTH($B$2),1)-WEEKDAY(DATE(AnnéeCal,MONTH($B$2),1),(DébutSemaine=\"LUNDI\")+1)+Paramètres!$A$29*7-6+5","v":"2024-11-23"},{"$f":"Jours+DATE(AnnéeCal,MONTH($B$2),1)-WEEKDAY(DATE(AnnéeCal,MONTH($B$2),1),(DébutSemaine=\"LUNDI\")+1)+Paramètres!$A$29*7-6+6","v":"2024-11-24"}]
[null,{"$f":"IFERROR(IF(AfficherJoursFériés,IF(INDEX(TableauJoursFériés2[],MATCH(DATE(AnnéeCal,MONTH(B13),DAY(B13)),IF(AfficherObservés,TableauJoursFériés2[CORRIGÉ],TableauJoursFériés2[JOUR]),0),5),INDEX(TableauJoursFériés2[],MATCH(DATE(AnnéeCal,MONTH(B13),DAY(B13)),IF(AfficherObservés,TableauJoursFériés2[CORRIGÉ],TableauJoursFériés2[JOUR]),0),2),\"\"),\"\"),\"\")","v":""},{"$f":"IFERROR(IF(AfficherJoursFériés,IF(INDEX(TableauJoursFériés2[],MATCH(DATE(AnnéeCal,MONTH(C13),DAY(C13)),IF(AfficherObservés,TableauJoursFériés2[CORRIGÉ],TableauJoursFériés2[JOUR]),0),5),INDEX(TableauJoursFériés2[],MATCH(DATE(AnnéeCal,MONTH(C13),DAY(C13)),IF(AfficherObservés,TableauJoursFériés2[CORRIGÉ],TableauJoursFériés2[JOUR]),0),2),\"\"),\"\"),\"\")","v":""},{"$f":"IFERROR(IF(AfficherJoursFériés,IF(INDEX(TableauJoursFériés2[],MATCH(DATE(AnnéeCal,MONTH(D13),DAY(D13)),IF(AfficherObservés,TableauJoursFériés2[CORRIGÉ],TableauJoursFériés2[JOUR]),0),5),INDEX(TableauJoursFériés2[],MATCH(DATE(AnnéeCal,MONTH(D13),DAY(D13)),IF(AfficherObservés,TableauJoursFériés2[CORRIGÉ],TableauJoursFériés2[JOUR]),0),2),\"\"),\"\"),\"\")","v":""},{"$f":"IFERROR(IF(AfficherJoursFériés,IF(INDEX(TableauJoursFériés2[],MATCH(DATE(AnnéeCal,MONTH(E13),DAY(E13)),IF(AfficherObservés,TableauJoursFériés2[CORRIGÉ],TableauJoursFériés2[JOUR]),0),5),INDEX(TableauJoursFériés2[],MATCH(DATE(AnnéeCal,MONTH(E13),DAY(E13)),IF(AfficherObservés,TableauJoursFériés2[CORRIGÉ],TableauJoursFériés2[JOUR]),0),2),\"\"),\"\"),\"\")","v":""},{"$f":"IFERROR(IF(AfficherJoursFériés,IF(INDEX(TableauJoursFériés2[],MATCH(DATE(AnnéeCal,MONTH(F13),DAY(F13)),IF(AfficherObservés,TableauJoursFériés2[CORRIGÉ],TableauJoursFériés2[JOUR]),0),5),INDEX(TableauJoursFériés2[],MATCH(DATE(AnnéeCal,MONTH(F13),DAY(F13)),IF(AfficherObservés,TableauJoursFériés2[CORRIGÉ],TableauJoursFériés2[JOUR]),0),2),\"\"),\"\"),\"\")","v":""},{"$f":"IFERROR(IF(AfficherJoursFériés,IF(INDEX(TableauJoursFériés2[],MATCH(DATE(AnnéeCal,MONTH(G13),DAY(G13)),IF(AfficherObservés,TableauJoursFériés2[CORRIGÉ],TableauJoursFériés2[JOUR]),0),5),INDEX(TableauJoursFériés2[],MATCH(DATE(AnnéeCal,MONTH(G13),DAY(G13)),IF(AfficherObservés,TableauJoursFériés2[CORRIGÉ],TableauJoursFériés2[JOUR]),0),2),\"\"),\"\"),\"\")","v":""},{"$f":"IFERROR(IF(AfficherJoursFériés,IF(INDEX(TableauJoursFériés2[],MATCH(DATE(AnnéeCal,MONTH(H13),DAY(H13)),IF(AfficherObservés,TableauJoursFériés2[CORRIGÉ],TableauJoursFériés2[JOUR]),0),5),INDEX(TableauJoursFériés2[],MATCH(DATE(AnnéeCal,MONTH(H13),DAY(H13)),IF(AfficherObservés,TableauJoursFériés2[CORRIGÉ],TableauJoursFériés2[JOUR]),0),2),\"\"),\"\"),\"\")","v":""}]
[null,{"$f":"Jours+DATE(AnnéeCal,MONTH($B$2),1)-WEEKDAY(DATE(AnnéeCal,MONTH($B$2),1),(DébutSemaine=\"LUNDI\")+1)+Paramètres!$A$30*7-6","v":"2024-11-25"},{"$f":"Jours+DATE(AnnéeCal,MONTH($B$2),1)-WEEKDAY(DATE(AnnéeCal,MONTH($B$2),1),(DébutSemaine=\"LUNDI\")+1)+Paramètres!$A30*7-6+1","v":"2024-11-26"},{"$f":"Jours+DATE(AnnéeCal,MONTH($B$2),1)-WEEKDAY(DATE(AnnéeCal,MONTH($B$2),1),(DébutSemaine=\"LUNDI\")+1)+Paramètres!$A$30*7-6+2","v":"2024-11-27"},{"$f":"Jours+DATE(AnnéeCal,MONTH($B$2),1)-WEEKDAY(DATE(AnnéeCal,MONTH($B$2),1),(DébutSemaine=\"LUNDI\")+1)+Paramètres!$A$30*7-6+3","v":"2024-11-28"},{"$f":"Jours+DATE(AnnéeCal,MONTH($B$2),1)-WEEKDAY(DATE(AnnéeCal,MONTH($B$2),1),(DébutSemaine=\"LUNDI\")+1)+Paramètres!$A$30*7-6+4","v":"2024-11-29"},{"$f":"Jours+DATE(AnnéeCal,MONTH($B$2),1)-WEEKDAY(DATE(AnnéeCal,MONTH($B$2),1),(DébutSemaine=\"LUNDI\")+1)+Paramètres!$A$30*7-6+5","v":"2024-11-30"},{"$f":"Jours+DATE(AnnéeCal,MONTH($B$2),1)-WEEKDAY(DATE(AnnéeCal,MONTH($B$2),1),(DébutSemaine=\"LUNDI\")+1)+Paramètres!$A$30*7-6+6","v":"2024-12-01"}]
[null,{"$f":"IFERROR(IF(AfficherJoursFériés,IF(INDEX(TableauJoursFériés2[],MATCH(DATE(AnnéeCal,MONTH(B15),DAY(B15)),IF(AfficherObservés,TableauJoursFériés2[CORRIGÉ],TableauJoursFériés2[JOUR]),0),5),INDEX(TableauJoursFériés2[],MATCH(DATE(AnnéeCal,MONTH(B15),DAY(B15)),IF(AfficherObservés,TableauJoursFériés2[CORRIGÉ],TableauJoursFériés2[JOUR]),0),2),\"\"),\"\"),\"\")","v":""},{"$f":"IFERROR(IF(AfficherJoursFériés,IF(INDEX(TableauJoursFériés2[],MATCH(DATE(AnnéeCal,MONTH(C15),DAY(C15)),IF(AfficherObservés,TableauJoursFériés2[CORRIGÉ],TableauJoursFériés2[JOUR]),0),5),INDEX(TableauJoursFériés2[],MATCH(DATE(AnnéeCal,MONTH(C15),DAY(C15)),IF(AfficherObservés,TableauJoursFériés2[CORRIGÉ],TableauJoursFériés2[JOUR]),0),2),\"\"),\"\"),\"\")","v":""},{"$f":"IFERROR(IF(AfficherJoursFériés,IF(INDEX(TableauJoursFériés2[],MATCH(DATE(AnnéeCal,MONTH(D15),DAY(D15)),IF(AfficherObservés,TableauJoursFériés2[CORRIGÉ],TableauJoursFériés2[JOUR]),0),5),INDEX(TableauJoursFériés2[],MATCH(DATE(AnnéeCal,MONTH(D15),DAY(D15)),IF(AfficherObservés,TableauJoursFériés2[CORRIGÉ],TableauJoursFériés2[JOUR]),0),2),\"\"),\"\"),\"\")","v":""},{"$f":"IFERROR(IF(AfficherJoursFériés,IF(INDEX(TableauJoursFériés2[],MATCH(DATE(AnnéeCal,MONTH(E15),DAY(E15)),IF(AfficherObservés,TableauJoursFériés2[CORRIGÉ],TableauJoursFériés2[JOUR]),0),5),INDEX(TableauJoursFériés2[],MATCH(DATE(AnnéeCal,MONTH(E15),DAY(E15)),IF(AfficherObservés,TableauJoursFériés2[CORRIGÉ],TableauJoursFériés2[JOUR]),0),2),\"\"),\"\"),\"\")","v":""},{"$f":"IFERROR(IF(AfficherJoursFériés,IF(INDEX(TableauJoursFériés2[],MATCH(DATE(AnnéeCal,MONTH(F15),DAY(F15)),IF(AfficherObservés,TableauJoursFériés2[CORRIGÉ],TableauJoursFériés2[JOUR]),0),5),INDEX(TableauJoursFériés2[],MATCH(DATE(AnnéeCal,MONTH(F15),DAY(F15)),IF(AfficherObservés,TableauJoursFériés2[CORRIGÉ],TableauJoursFériés2[JOUR]),0),2),\"\"),\"\"),\"\")","v":""},{"$f":"IFERROR(IF(AfficherJoursFériés,IF(INDEX(TableauJoursFériés2[],MATCH(DATE(AnnéeCal,MONTH(G15),DAY(G15)),IF(AfficherObservés,TableauJoursFériés2[CORRIGÉ],TableauJoursFériés2[JOUR]),0),5),INDEX(TableauJoursFériés2[],MATCH(DATE(AnnéeCal,MONTH(G15),DAY(G15)),IF(AfficherObservés,TableauJoursFériés2[CORRIGÉ],TableauJoursFériés2[JOUR]),0),2),\"\"),\"\"),\"\")","v":""},{"$f":"IFERROR(IF(AfficherJoursFériés,IF(INDEX(TableauJoursFériés2[],MATCH(DATE(AnnéeCal,MONTH(H15),DAY(H15)),IF(AfficherObservés,TableauJoursFériés2[CORRIGÉ],TableauJoursFériés2[JOUR]),0),5),INDEX(TableauJoursFériés2[],MATCH(DATE(AnnéeCal,MONTH(H15),DAY(H15)),IF(AfficherObservés,TableauJoursFériés2[CORRIGÉ],TableauJoursFériés2[JOUR]),0),2),\"\"),\"\"),\"\")","v":""}]
[null,{"$f":"Jours+DATE(AnnéeCal,MONTH($B$2),1)-WEEKDAY(DATE(AnnéeCal,MONTH($B$2),1),(DébutSemaine=\"LUNDI\")+1)+Paramètres!$A$31*7-6","v":"2024-12-02"},{"$f":"Jours+DATE(AnnéeCal,MONTH($B$2),1)-WEEKDAY(DATE(AnnéeCal,MONTH($B$2),1),(DébutSemaine=\"LUNDI\")+1)+Paramètres!$A31*7-6+1","v":"2024-12-03"},{"$f":"Jours+DATE(AnnéeCal,MONTH($B$2),1)-WEEKDAY(DATE(AnnéeCal,MONTH($B$2),1),(DébutSemaine=\"LUNDI\")+1)+Paramètres!$A$31*7-6+2","v":"2024-12-04"},{"$f":"Jours+DATE(AnnéeCal,MONTH($B$2),1)-WEEKDAY(DATE(AnnéeCal,MONTH($B$2),1),(DébutSemaine=\"LUNDI\")+1)+Paramètres!$A$31*7-6+3","v":"2024-12-05"},{"$f":"Jours+DATE(AnnéeCal,MONTH($B$2),1)-WEEKDAY(DATE(AnnéeCal,MONTH($B$2),1),(DébutSemaine=\"LUNDI\")+1)+Paramètres!$A$31*7-6+4","v":"2024-12-06"},{"$f":"Jours+DATE(AnnéeCal,MONTH($B$2),1)-WEEKDAY(DATE(AnnéeCal,MONTH($B$2),1),(DébutSemaine=\"LUNDI\")+1)+Paramètres!$A$31*7-6+5","v":"2024-12-07"},{"$f":"Jours+DATE(AnnéeCal,MONTH($B$2),1)-WEEKDAY(DATE(AnnéeCal,MONTH($B$2),1),(DébutSemaine=\"LUNDI\")+1)+Paramètres!$A$31*7-6+6","v":"2024-12-08"}]
[null,{"$f":"IFERROR(IF(AfficherJoursFériés,IF(INDEX(TableauJoursFériés2[],MATCH(DATE(AnnéeCal,MONTH(B17),DAY(B17)),IF(AfficherObservés,TableauJoursFériés2[CORRIGÉ],TableauJoursFériés2[JOUR]),0),5),INDEX(TableauJoursFériés2[],MATCH(DATE(AnnéeCal,MONTH(B17),DAY(B17)),IF(AfficherObservés,TableauJoursFériés2[CORRIGÉ],TableauJoursFériés2[JOUR]),0),2),\"\"),\"\"),\"\")","v":""},{"$f":"IFERROR(IF(AfficherJoursFériés,IF(INDEX(TableauJoursFériés2[],MATCH(DATE(AnnéeCal,MONTH(C17),DAY(C17)),IF(AfficherObservés,TableauJoursFériés2[CORRIGÉ],TableauJoursFériés2[JOUR]),0),5),INDEX(TableauJoursFériés2[],MATCH(DATE(AnnéeCal,MONTH(C17),DAY(C17)),IF(AfficherObservés,TableauJoursFériés2[CORRIGÉ],TableauJoursFériés2[JOUR]),0),2),\"\"),\"\"),\"\")","v":""},{"$f":"IFERROR(IF(AfficherJoursFériés,IF(INDEX(TableauJoursFériés2[],MATCH(DATE(AnnéeCal,MONTH(D17),DAY(D17)),IF(AfficherObservés,TableauJoursFériés2[CORRIGÉ],TableauJoursFériés2[JOUR]),0),5),INDEX(TableauJoursFériés2[],MATCH(DATE(AnnéeCal,MONTH(D17),DAY(D17)),IF(AfficherObservés,TableauJoursFériés2[CORRIGÉ],TableauJoursFériés2[JOUR]),0),2),\"\"),\"\"),\"\")","v":""},{"$f":"IFERROR(IF(AfficherJoursFériés,IF(INDEX(TableauJoursFériés2[],MATCH(DATE(AnnéeCal,MONTH(E17),DAY(E17)),IF(AfficherObservés,TableauJoursFériés2[CORRIGÉ],TableauJoursFériés2[JOUR]),0),5),INDEX(TableauJoursFériés2[],MATCH(DATE(AnnéeCal,MONTH(E17),DAY(E17)),IF(AfficherObservés,TableauJoursFériés2[CORRIGÉ],TableauJoursFériés2[JOUR]),0),2),\"\"),\"\"),\"\")","v":""},{"$f":"IFERROR(IF(AfficherJoursFériés,IF(INDEX(TableauJoursFériés2[],MATCH(DATE(AnnéeCal,MONTH(F17),DAY(F17)),IF(AfficherObservés,TableauJoursFériés2[CORRIGÉ],TableauJoursFériés2[JOUR]),0),5),INDEX(TableauJoursFériés2[],MATCH(DATE(AnnéeCal,MONTH(F17),DAY(F17)),IF(AfficherObservés,TableauJoursFériés2[CORRIGÉ],TableauJoursFériés2[JOUR]),0),2),\"\"),\"\"),\"\")","v":""},{"$f":"IFERROR(IF(AfficherJoursFériés,IF(INDEX(TableauJoursFériés2[],MATCH(DATE(AnnéeCal,MONTH(G17),DAY(G17)),IF(AfficherObservés,TableauJoursFériés2[CORRIGÉ],TableauJoursFériés2[JOUR]),0),5),INDEX(TableauJoursFériés2[],MATCH(DATE(AnnéeCal,MONTH(G17),DAY(G17)),IF(AfficherObservés,TableauJoursFériés2[CORRIGÉ],TableauJoursFériés2[JOUR]),0),2),\"\"),\"\"),\"\")","v":""},{"$f":"IFERROR(IF(AfficherJoursFériés,IF(INDEX(TableauJoursFériés2[],MATCH(DATE(AnnéeCal,MONTH(H17),DAY(H17)),IF(AfficherObservés,TableauJoursFériés2[CORRIGÉ],TableauJoursFériés2[JOUR]),0),5),INDEX(TableauJoursFériés2[],MATCH(DATE(AnnéeCal,MONTH(H17),DAY(H17)),IF(AfficherObservés,TableauJoursFériés2[CORRIGÉ],TableauJoursFériés2[JOUR]),0),2),\"\"),\"\"),\"\")","v":""}]

{"sheet":"Décembre","index":13,"n_rows":18,"n_cols":8,"rows_kept":18,"cut":false,"hidden":false,"merged":[]}
[]
[null,{"$f":"UPPER(TEXT(Paramètres!Z33,\"MMMM AAAA\"))","v":"DÉCEMBRE 2024"}]
[]
[]
[]
[null,{"$f":"DébutSemaine","v":"LUNDI"},{"$f":"UPPER(TEXT(C7,\"jjjj\"))","v":"MARDI"},{"$f":"UPPER(TEXT(D7,\"jjjj\"))","v":"MERCREDI"},{"$f":"UPPER(TEXT(E7,\"jjjj\"))","v":"JEUDI"},"VENDREDI","SAMEDI","DIMANCHE"]
[null,{"$f":"Jours+DATE(AnnéeCal,MONTH($B$2),1)-WEEKDAY(DATE(AnnéeCal,MONTH($B$2),1),(DébutSemaine=\"LUNDI\")+1)+1","v":"2024-11-25"},{"$f":"Jours+DATE(AnnéeCal,MONTH($B$2),1)-WEEKDAY(DATE(AnnéeCal,MONTH($B2),1),(DébutSemaine=\"LUNDI\")+1)+2","v":"2024-11-26"},{"$f":"Jours+DATE(AnnéeCal,MONTH($B$2),1)-WEEKDAY(DATE(AnnéeCal,MONTH($B2),1),(DébutSemaine=\"LUNDI\")+1)+3","v":"2024-11-27"},{"$f":"Jours+DATE(AnnéeCal,MONTH($B$2),1)-WEEKDAY(DATE(AnnéeCal,MONTH($B2),1),(DébutSemaine=\"LUNDI\")+1)+4","v":"2024-11-28"},{"$f":"Jours+DATE(AnnéeCal,MONTH($B$2),1)-WEEKDAY(DATE(AnnéeCal,MONTH($B2),1),(DébutSemaine=\"LUNDI\")+1)+5","v":"2024-11-29"},{"$f":"Jours+DATE(AnnéeCal,MONTH($B$2),1)-WEEKDAY(DATE(AnnéeCal,MONTH($B2),1),(DébutSemaine=\"LUNDI\")+1)+6","v":"2024-11-30"},{"$f":"Jours+DATE(AnnéeCal,MONTH($B$2),1)-WEEKDAY(DATE(AnnéeCal,MONTH($B2),1),(DébutSemaine=\"LUNDI\")+1)+7","v":"2024-12-01"}]
[null,{"$f":"IFERROR(IF(AfficherJoursFériés,IF(INDEX(TableauJoursFériés2[],MATCH(DATE(AnnéeCal,MONTH(B$7),DAY(B$7)),IF(AfficherObservés,TableauJoursFériés2[CORRIGÉ],TableauJoursFériés2[JOUR]),0),5),INDEX(TableauJoursFériés2[],MATCH(DATE(AnnéeCal,MONTH(B$7),DAY(B$7)),IF(AfficherObservés,TableauJoursFériés2[CORRIGÉ],TableauJoursFériés2[JOUR]),0),2),\"\"),\"\"),\"\")","v":""},{"$f":"IFERROR(IF(AfficherJoursFériés,IF(INDEX(TableauJoursFériés2[],MATCH(DATE(AnnéeCal,MONTH(C7),DAY(C7)),IF(AfficherObservés,TableauJoursFériés2[CORRIGÉ],TableauJoursFériés2[JOUR]),0),5),INDEX(TableauJoursFériés2[],MATCH(DATE(AnnéeCal,MONTH(C7),DAY(C7)),IF(AfficherObservés,TableauJoursFériés2[CORRIGÉ],TableauJoursFériés2[JOUR]),0),2),\"\"),\"\"),\"\")","v":""},{"$f":"IFERROR(IF(AfficherJoursFériés,IF(INDEX(TableauJoursFériés2[],MATCH(DATE(AnnéeCal,MONTH(D7),DAY(D7)),IF(AfficherObservés,TableauJoursFériés2[CORRIGÉ],TableauJoursFériés2[JOUR]),0),5),INDEX(TableauJoursFériés2[],MATCH(DATE(AnnéeCal,MONTH(D7),DAY(D7)),IF(AfficherObservés,TableauJoursFériés2[CORRIGÉ],TableauJoursFériés2[JOUR]),0),2),\"\"),\"\"),\"\")","v":""},{"$f":"IFERROR(IF(AfficherJoursFériés,IF(INDEX(TableauJoursFériés2[],MATCH(DATE(AnnéeCal,MONTH(E7),DAY(E7)),IF(AfficherObservés,TableauJoursFériés2[CORRIGÉ],TableauJoursFériés2[JOUR]),0),5),INDEX(TableauJoursFériés2[],MATCH(DATE(AnnéeCal,MONTH(E7),DAY(E7)),IF(AfficherObservés,TableauJoursFériés2[CORRIGÉ],TableauJoursFériés2[JOUR]),0),2),\"\"),\"\"),\"\")","v":""},{"$f":"IFERROR(IF(AfficherJoursFériés,IF(INDEX(TableauJoursFériés2[],MATCH(DATE(AnnéeCal,MONTH(F7),DAY(F7)),IF(AfficherObservés,TableauJoursFériés2[CORRIGÉ],TableauJoursFériés2[JOUR]),0),5),INDEX(TableauJoursFériés2[],MATCH(DATE(AnnéeCal,MONTH(F7),DAY(F7)),IF(AfficherObservés,TableauJoursFériés2[CORRIGÉ],TableauJoursFériés2[JOUR]),0),2),\"\"),\"\"),\"\")","v":""},{"$f":"IFERROR(IF(AfficherJoursFériés,IF(INDEX(TableauJoursFériés2[],MATCH(DATE(AnnéeCal,MONTH(G7),DAY(G7)),IF(AfficherObservés,TableauJoursFériés2[CORRIGÉ],TableauJoursFériés2[JOUR]),0),5),INDEX(TableauJoursFériés2[],MATCH(DATE(AnnéeCal,MONTH(G7),DAY(G7)),IF(AfficherObservés,TableauJoursFériés2[CORRIGÉ],TableauJoursFériés2[JOUR]),0),2),\"\"),\"\"),\"\")","v":""},{"$f":"IFERROR(IF(AfficherJoursFériés,IF(INDEX(TableauJoursFériés2[],MATCH(DATE(AnnéeCal,MONTH(H7),DAY(H7)),IF(AfficherObservés,TableauJoursFériés2[CORRIGÉ],TableauJoursFériés2[JOUR]),0),5),INDEX(TableauJoursFériés2[],MATCH(DATE(AnnéeCal,MONTH(H7),DAY(H7)),IF(AfficherObservés,TableauJoursFériés2[CORRIGÉ],TableauJoursFériés2[JOUR]),0),2),\"\"),\"\"),\"\")","v":""}]
[null,{"$f":"Jours+DATE(AnnéeCal,MONTH($B$2),1)-WEEKDAY(DATE(AnnéeCal,MONTH($B$2),1),(DébutSemaine=\"LUNDI\")+1)+Paramètres!$A$27*7-6","v":"2024-12-02"},{"$f":"Jours+DATE(AnnéeCal,MONTH($B$2),1)-WEEKDAY(DATE(AnnéeCal,MONTH($B$2),1),(DébutSemaine=\"LUNDI\")+1)+Paramètres!$A$27*7-6+1","v":"2024-12-03"},{"$f":"Jours+DATE(AnnéeCal,MONTH($B$2),1)-WEEKDAY(DATE(AnnéeCal,MONTH($B$2),1),(DébutSemaine=\"LUNDI\")+1)+Paramètres!$A$27*7-6+2","v":"2024-12-04"},{"$f":"Jours+DATE(AnnéeCal,MONTH($B$2),1)-WEEKDAY(DATE(AnnéeCal,MONTH($B$2),1),(DébutSemaine=\"LUNDI\")+1)+Paramètres!$A$27*7-6+3","v":"2024-12-05"},{"$f":"Jours+DATE(AnnéeCal,MONTH($B$2),1)-WEEKDAY(DATE(AnnéeCal,MONTH($B$2),1),(DébutSemaine=\"LUNDI\")+1)+Paramètres!$A$27*7-6+4","v":"2024-12-06"},{"$f":"Jours+DATE(AnnéeCal,MONTH($B$2),1)-WEEKDAY(DATE(AnnéeCal,MONTH($B$2),1),(DébutSemaine=\"LUNDI\")+1)+Paramètres!$A$27*7-6+5","v":"2024-12-07"},{"$f":"Jours+DATE(AnnéeCal,MONTH($B$2),1)-WEEKDAY(DATE(AnnéeCal,MONTH($B$2),1),(DébutSemaine=\"LUNDI\")+1)+Paramètres!$A$27*7-6+6","v":"2024-12-08"}]
[null,{"$f":"IFERROR(IF(AfficherJoursFériés,IF(INDEX(TableauJoursFériés2[],MATCH(DATE(AnnéeCal,MONTH(B$9),DAY(B$9)),IF(AfficherObservés,TableauJoursFériés2[CORRIGÉ],TableauJoursFériés2[JOUR]),0),5),INDEX(TableauJoursFériés2[],MATCH(DATE(AnnéeCal,MONTH(B$9),DAY(B$9)),IF(AfficherObservés,TableauJoursFériés2[CORRIGÉ],TableauJoursFériés2[JOUR]),0),2),\"\"),\"\"),\"\")","v":""},{"$f":"IFERROR(IF(AfficherJoursFériés,IF(INDEX(TableauJoursFériés2[],MATCH(DATE(AnnéeCal,MONTH(C$9),DAY(C$9)),IF(AfficherObservés,TableauJoursFériés2[CORRIGÉ],TableauJoursFériés2[JOUR]),0),5),INDEX(TableauJoursFériés2[],MATCH(DATE(AnnéeCal,MONTH(C$9),DAY(C$9)),IF(AfficherObservés,TableauJoursFériés2[CORRIGÉ],TableauJoursFériés2[JOUR]),0),2),\"\"),\"\"),\"\")","v":""},{"$f":"IFERROR(IF(AfficherJoursFériés,IF(INDEX(TableauJoursFériés2[],MATCH(DATE(AnnéeCal,MONTH(D$9),DAY(D$9)),IF(AfficherObservés,TableauJoursFériés2[CORRIGÉ],TableauJoursFériés2[JOUR]),0),5),INDEX(TableauJoursFériés2[],MATCH(DATE(AnnéeCal,MONTH(D$9),DAY(D$9)),IF(AfficherObservés,TableauJoursFériés2[CORRIGÉ],TableauJoursFériés2[JOUR]),0),2),\"\"),\"\"),\"\")","v":""},{"$f":"IFERROR(IF(AfficherJoursFériés,IF(INDEX(TableauJoursFériés2[],MATCH(DATE(AnnéeCal,MONTH(E$9),DAY(E$9)),IF(AfficherObservés,TableauJoursFériés2[CORRIGÉ],TableauJoursFériés2[JOUR]),0),5),INDEX(TableauJoursFériés2[],MATCH(DATE(AnnéeCal,MONTH(E$9),DAY(E$9)),IF(AfficherObservés,TableauJoursFériés2[CORRIGÉ],TableauJoursFériés2[JOUR]),0),2),\"\"),\"\"),\"\")","v":""},{"$f":"IFERROR(IF(AfficherJoursFériés,IF(INDEX(TableauJoursFériés2[],MATCH(DATE(AnnéeCal,MONTH(F$9),DAY(F$9)),IF(AfficherObservés,TableauJoursFériés2[CORRIGÉ],TableauJoursFériés2[JOUR]),0),5),INDEX(TableauJoursFériés2[],MATCH(DATE(AnnéeCal,MONTH(F$9),DAY(F$9)),IF(AfficherObservés,TableauJoursFériés2[CORRIGÉ],TableauJoursFériés2[JOUR]),0),2),\"\"),\"\"),\"\")","v":""},{"$f":"IFERROR(IF(AfficherJoursFériés,IF(INDEX(TableauJoursFériés2[],MATCH(DATE(AnnéeCal,MONTH(G$9),DAY(G$9)),IF(AfficherObservés,TableauJoursFériés2[CORRIGÉ],TableauJoursFériés2[JOUR]),0),5),INDEX(TableauJoursFériés2[],MATCH(DATE(AnnéeCal,MONTH(G$9),DAY(G$9)),IF(AfficherObservés,TableauJoursFériés2[CORRIGÉ],TableauJoursFériés2[JOUR]),0),2),\"\"),\"\"),\"\")","v":""},{"$f":"IFERROR(IF(AfficherJoursFériés,IF(INDEX(TableauJoursFériés2[],MATCH(DATE(AnnéeCal,MONTH(H$9),DAY(H$9)),IF(AfficherObservés,TableauJoursFériés2[CORRIGÉ],TableauJoursFériés2[JOUR]),0),5),INDEX(TableauJoursFériés2[],MATCH(DATE(AnnéeCal,MONTH(H$9),DAY(H$9)),IF(AfficherObservés,TableauJoursFériés2[CORRIGÉ],TableauJoursFériés2[JOUR]),0),2),\"\"),\"\"),\"\")","v":""}]
[null,{"$f":"Jours+DATE(AnnéeCal,MONTH($B$2),1)-WEEKDAY(DATE(AnnéeCal,MONTH($B$2),1),(DébutSemaine=\"LUNDI\")+1)+Paramètres!$A$28*7-6","v":"2024-12-09"},{"$f":"Jours+DATE(AnnéeCal,MONTH($B$2),1)-WEEKDAY(DATE(AnnéeCal,MONTH($B$2),1),(DébutSemaine=\"LUNDI\")+1)+Paramètres!$A$28*7-6+1","v":"2024-12-10"},{"$f":"Jours+DATE(AnnéeCal,MONTH($B$2),1)-WEEKDAY(DATE(AnnéeCal,MONTH($B$2),1),(DébutSemaine=\"LUNDI\")+1)+Paramètres!$A$28*7-6+2","v":"2024-12-11"},{"$f":"Jours+DATE(AnnéeCal,MONTH($B$2),1)-WEEKDAY(DATE(AnnéeCal,MONTH($B$2),1),(DébutSemaine=\"LUNDI\")+1)+Paramètres!$A$28*7-6+3","v":"2024-12-12"},{"$f":"Jours+DATE(AnnéeCal,MONTH($B$2),1)-WEEKDAY(DATE(AnnéeCal,MONTH($B$2),1),(DébutSemaine=\"LUNDI\")+1)+Paramètres!$A$28*7-6+4","v":"2024-12-13"},{"$f":"Jours+DATE(AnnéeCal,MONTH($B$2),1)-WEEKDAY(DATE(AnnéeCal,MONTH($B$2),1),(DébutSemaine=\"LUNDI\")+1)+Paramètres!$A$28*7-6+5","v":"2024-12-14"},{"$f":"Jours+DATE(AnnéeCal,MONTH($B$2),1)-WEEKDAY(DATE(AnnéeCal,MONTH($B$2),1),(DébutSemaine=\"LUNDI\")+1)+Paramètres!$A$28*7-6+6","v":"2024-12-15"}]
[null,{"$f":"IFERROR(IF(AfficherJoursFériés,IF(INDEX(TableauJoursFériés2[],MATCH(DATE(AnnéeCal,MONTH(B11),DAY(B11)),IF(AfficherObservés,TableauJoursFériés2[CORRIGÉ],TableauJoursFériés2[JOUR]),0),5),INDEX(TableauJoursFériés2[],MATCH(DATE(AnnéeCal,MONTH(B11),DAY(B11)),IF(AfficherObservés,TableauJoursFériés2[CORRIGÉ],TableauJoursFériés2[JOUR]),0),2),\"\"),\"\"),\"\")","v":""},{"$f":"IFERROR(IF(AfficherJoursFériés,IF(INDEX(TableauJoursFériés2[],MATCH(DATE(AnnéeCal,MONTH(C11),DAY(C11)),IF(AfficherObservés,TableauJoursFériés2[CORRIGÉ],TableauJoursFériés2[JOUR]),0),5),INDEX(TableauJoursFériés2[],MATCH(DATE(AnnéeCal,MONTH(C11),DAY(C11)),IF(AfficherObservés,TableauJoursFériés2[CORRIGÉ],TableauJoursFériés2[JOUR]),0),2),\"\"),\"\"),\"\")","v":""},{"$f":"IFERROR(IF(AfficherJoursFériés,IF(INDEX(TableauJoursFériés2[],MATCH(DATE(AnnéeCal,MONTH(D11),DAY(D11)),IF(AfficherObservés,TableauJoursFériés2[CORRIGÉ],TableauJoursFériés2[JOUR]),0),5),INDEX(TableauJoursFériés2[],MATCH(DATE(AnnéeCal,MONTH(D11),DAY(D11)),IF(AfficherObservés,TableauJoursFériés2[CORRIGÉ],TableauJoursFériés2[JOUR]),0),2),\"\"),\"\"),\"\")","v":""},{"$f":"IFERROR(IF(AfficherJoursFériés,IF(INDEX(TableauJoursFériés2[],MATCH(DATE(AnnéeCal,MONTH(E11),DAY(E11)),IF(AfficherObservés,TableauJoursFériés2[CORRIGÉ],TableauJoursFériés2[JOUR]),0),5),INDEX(TableauJoursFériés2[],MATCH(DATE(AnnéeCal,MONTH(E11),DAY(E11)),IF(AfficherObservés,TableauJoursFériés2[CORRIGÉ],TableauJoursFériés2[JOUR]),0),2),\"\"),\"\"),\"\")","v":""},{"$f":"IFERROR(IF(AfficherJoursFériés,IF(INDEX(TableauJoursFériés2[],MATCH(DATE(AnnéeCal,MONTH(F11),DAY(F11)),IF(AfficherObservés,TableauJoursFériés2[CORRIGÉ],TableauJoursFériés2[JOUR]),0),5),INDEX(TableauJoursFériés2[],MATCH(DATE(AnnéeCal,MONTH(F11),DAY(F11)),IF(AfficherObservés,TableauJoursFériés2[CORRIGÉ],TableauJoursFériés2[JOUR]),0),2),\"\"),\"\"),\"\")","v":""},{"$f":"IFERROR(IF(AfficherJoursFériés,IF(INDEX(TableauJoursFériés2[],MATCH(DATE(AnnéeCal,MONTH(G11),DAY(G11)),IF(AfficherObservés,TableauJoursFériés2[CORRIGÉ],TableauJoursFériés2[JOUR]),0),5),INDEX(TableauJoursFériés2[],MATCH(DATE(AnnéeCal,MONTH(G11),DAY(G11)),IF(AfficherObservés,TableauJoursFériés2[CORRIGÉ],TableauJoursFériés2[JOUR]),0),2),\"\"),\"\"),\"\")","v":""},{"$f":"IFERROR(IF(AfficherJoursFériés,IF(INDEX(TableauJoursFériés2[],MATCH(DATE(AnnéeCal,MONTH(H11),DAY(H11)),IF(AfficherObservés,TableauJoursFériés2[CORRIGÉ],TableauJoursFériés2[JOUR]),0),5),INDEX(TableauJoursFériés2[],MATCH(DATE(AnnéeCal,MONTH(H11),DAY(H11)),IF(AfficherObservés,TableauJoursFériés2[CORRIGÉ],TableauJoursFériés2[JOUR]),0),2),\"\"),\"\"),\"\")","v":""}]
[null,{"$f":"Jours+DATE(AnnéeCal,MONTH($B$2),1)-WEEKDAY(DATE(AnnéeCal,MONTH($B$2),1),(DébutSemaine=\"LUNDI\")+1)+Paramètres!$A$29*7-6","v":"2024-12-16"},{"$f":"Jours+DATE(AnnéeCal,MONTH($B$2),1)-WEEKDAY(DATE(AnnéeCal,MONTH($B$2),1),(DébutSemaine=\"LUNDI\")+1)+Paramètres!$A$29*7-6+1","v":"2024-12-17"},{"$f":"Jours+DATE(AnnéeCal,MONTH($B$2),1)-WEEKDAY(DATE(AnnéeCal,MONTH($B$2),1),(DébutSemaine=\"LUNDI\")+1)+Paramètres!$A$29*7-6+2","v":"2024-12-18"},{"$f":"Jours+DATE(AnnéeCal,MONTH($B$2),1)-WEEKDAY(DATE(AnnéeCal,MONTH($B$2),1),(DébutSemaine=\"LUNDI\")+1)+Paramètres!$A$29*7-6+3","v":"2024-12-19"},{"$f":"Jours+DATE(AnnéeCal,MONTH($B$2),1)-WEEKDAY(DATE(AnnéeCal,MONTH($B$2),1),(DébutSemaine=\"LUNDI\")+1)+Paramètres!$A$29*7-6+4","v":"2024-12-20"},{"$f":"Jours+DATE(AnnéeCal,MONTH($B$2),1)-WEEKDAY(DATE(AnnéeCal,MONTH($B$2),1),(DébutSemaine=\"LUNDI\")+1)+Paramètres!$A$29*7-6+5","v":"2024-12-21"},{"$f":"Jours+DATE(AnnéeCal,MONTH($B$2),1)-WEEKDAY(DATE(AnnéeCal,MONTH($B$2),1),(DébutSemaine=\"LUNDI\")+1)+Paramètres!$A$29*7-6+6","v":"2024-12-22"}]
[null,{"$f":"IFERROR(IF(AfficherJoursFériés,IF(INDEX(TableauJoursFériés2[],MATCH(DATE(AnnéeCal,MONTH(B13),DAY(B13)),IF(AfficherObservés,TableauJoursFériés2[CORRIGÉ],TableauJoursFériés2[JOUR]),0),5),INDEX(TableauJoursFériés2[],MATCH(DATE(AnnéeCal,MONTH(B13),DAY(B13)),IF(AfficherObservés,TableauJoursFériés2[CORRIGÉ],TableauJoursFériés2[JOUR]),0),2),\"\"),\"\"),\"\")","v":""},{"$f":"IFERROR(IF(AfficherJoursFériés,IF(INDEX(TableauJoursFériés2[],MATCH(DATE(AnnéeCal,MONTH(C13),DAY(C13)),IF(AfficherObservés,TableauJoursFériés2[CORRIGÉ],TableauJoursFériés2[JOUR]),0),5),INDEX(TableauJoursFériés2[],MATCH(DATE(AnnéeCal,MONTH(C13),DAY(C13)),IF(AfficherObservés,TableauJoursFériés2[CORRIGÉ],TableauJoursFériés2[JOUR]),0),2),\"\"),\"\"),\"\")","v":""},{"$f":"IFERROR(IF(AfficherJoursFériés,IF(INDEX(TableauJoursFériés2[],MATCH(DATE(AnnéeCal,MONTH(D13),DAY(D13)),IF(AfficherObservés,TableauJoursFériés2[CORRIGÉ],TableauJoursFériés2[JOUR]),0),5),INDEX(TableauJoursFériés2[],MATCH(DATE(AnnéeCal,MONTH(D13),DAY(D13)),IF(AfficherObservés,TableauJoursFériés2[CORRIGÉ],TableauJoursFériés2[JOUR]),0),2),\"\"),\"\"),\"\")","v":""},{"$f":"IFERROR(IF(AfficherJoursFériés,IF(INDEX(TableauJoursFériés2[],MATCH(DATE(AnnéeCal,MONTH(E13),DAY(E13)),IF(AfficherObservés,TableauJoursFériés2[CORRIGÉ],TableauJoursFériés2[JOUR]),0),5),INDEX(TableauJoursFériés2[],MATCH(DATE(AnnéeCal,MONTH(E13),DAY(E13)),IF(AfficherObservés,TableauJoursFériés2[CORRIGÉ],TableauJoursFériés2[JOUR]),0),2),\"\"),\"\"),\"\")","v":""},{"$f":"IFERROR(IF(AfficherJoursFériés,IF(INDEX(TableauJoursFériés2[],MATCH(DATE(AnnéeCal,MONTH(F13),DAY(F13)),IF(AfficherObservés,TableauJoursFériés2[CORRIGÉ],TableauJoursFériés2[JOUR]),0),5),INDEX(TableauJoursFériés2[],MATCH(DATE(AnnéeCal,MONTH(F13),DAY(F13)),IF(AfficherObservés,TableauJoursFériés2[CORRIGÉ],TableauJoursFériés2[JOUR]),0),2),\"\"),\"\"),\"\")","v":""},{"$f":"IFERROR(IF(AfficherJoursFériés,IF(INDEX(TableauJoursFériés2[],MATCH(DATE(AnnéeCal,MONTH(G13),DAY(G13)),IF(AfficherObservés,TableauJoursFériés2[CORRIGÉ],TableauJoursFériés2[JOUR]),0),5),INDEX(TableauJoursFériés2[],MATCH(DATE(AnnéeCal,MONTH(G13),DAY(G13)),IF(AfficherObservés,TableauJoursFériés2[CORRIGÉ],TableauJoursFériés2[JOUR]),0),2),\"\"),\"\"),\"\")","v":""},{"$f":"IFERROR(IF(AfficherJoursFériés,IF(INDEX(TableauJoursFériés2[],MATCH(DATE(AnnéeCal,MONTH(H13),DAY(H13)),IF(AfficherObservés,TableauJoursFériés2[CORRIGÉ],TableauJoursFériés2[JOUR]),0),5),INDEX(TableauJoursFériés2[],MATCH(DATE(AnnéeCal,MONTH(H13),DAY(H13)),IF(AfficherObservés,TableauJoursFériés2[CORRIGÉ],TableauJoursFériés2[JOUR]),0),2),\"\"),\"\"),\"\")","v":""}]
[null,{"$f":"Jours+DATE(AnnéeCal,MONTH($B$2),1)-WEEKDAY(DATE(AnnéeCal,MONTH($B$2),1),(DébutSemaine=\"LUNDI\")+1)+Paramètres!$A$30*7-6","v":"2024-12-23"},{"$f":"Jours+DATE(AnnéeCal,MONTH($B$2),1)-WEEKDAY(DATE(AnnéeCal,MONTH($B$2),1),(DébutSemaine=\"LUNDI\")+1)+Paramètres!$A30*7-6+1","v":"2024-12-24"},{"$f":"Jours+DATE(AnnéeCal,MONTH($B$2),1)-WEEKDAY(DATE(AnnéeCal,MONTH($B$2),1),(DébutSemaine=\"LUNDI\")+1)+Paramètres!$A$30*7-6+2","v":"2024-12-25"},{"$f":"Jours+DATE(AnnéeCal,MONTH($B$2),1)-WEEKDAY(DATE(AnnéeCal,MONTH($B$2),1),(DébutSemaine=\"LUNDI\")+1)+Paramètres!$A$30*7-6+3","v":"2024-12-26"},{"$f":"Jours+DATE(AnnéeCal,MONTH($B$2),1)-WEEKDAY(DATE(AnnéeCal,MONTH($B$2),1),(DébutSemaine=\"LUNDI\")+1)+Paramètres!$A$30*7-6+4","v":"2024-12-27"},{"$f":"Jours+DATE(AnnéeCal,MONTH($B$2),1)-WEEKDAY(DATE(AnnéeCal,MONTH($B$2),1),(DébutSemaine=\"LUNDI\")+1)+Paramètres!$A$30*7-6+5","v":"2024-12-28"},{"$f":"Jours+DATE(AnnéeCal,MONTH($B$2),1)-WEEKDAY(DATE(AnnéeCal,MONTH($B$2),1),(DébutSemaine=\"LUNDI\")+1)+Paramètres!$A$30*7-6+6","v":"2024-12-29"}]
[null,{"$f":"IFERROR(IF(AfficherJoursFériés,IF(INDEX(TableauJoursFériés2[],MATCH(DATE(AnnéeCal,MONTH(B15),DAY(B15)),IF(AfficherObservés,TableauJoursFériés2[CORRIGÉ],TableauJoursFériés2[JOUR]),0),5),INDEX(TableauJoursFériés2[],MATCH(DATE(AnnéeCal,MONTH(B15),DAY(B15)),IF(AfficherObservés,TableauJoursFériés2[CORRIGÉ],TableauJoursFériés2[JOUR]),0),2),\"\"),\"\"),\"\")","v":""},{"$f":"IFERROR(IF(AfficherJoursFériés,IF(INDEX(TableauJoursFériés2[],MATCH(DATE(AnnéeCal,MONTH(C15),DAY(C15)),IF(AfficherObservés,TableauJoursFériés2[CORRIGÉ],TableauJoursFériés2[JOUR]),0),5),INDEX(TableauJoursFériés2[],MATCH(DATE(AnnéeCal,MONTH(C15),DAY(C15)),IF(AfficherObservés,TableauJoursFériés2[CORRIGÉ],TableauJoursFériés2[JOUR]),0),2),\"\"),\"\"),\"\")","v":""},{"$f":"IFERROR(IF(AfficherJoursFériés,IF(INDEX(TableauJoursFériés2[],MATCH(DATE(AnnéeCal,MONTH(D15),DAY(D15)),IF(AfficherObservés,TableauJoursFériés2[CORRIGÉ],TableauJoursFériés2[JOUR]),0),5),INDEX(TableauJoursFériés2[],MATCH(DATE(AnnéeCal,MONTH(D15),DAY(D15)),IF(AfficherObservés,TableauJoursFériés2[CORRIGÉ],TableauJoursFériés2[JOUR]),0),2),\"\"),\"\"),\"\")","v":"Noël"},{"$f":"IFERROR(IF(AfficherJoursFériés,IF(INDEX(TableauJoursFériés2[],MATCH(DATE(AnnéeCal,MONTH(E15),DAY(E15)),IF(AfficherObservés,TableauJoursFériés2[CORRIGÉ],TableauJoursFériés2[JOUR]),0),5),INDEX(TableauJoursFériés2[],MATCH(DATE(AnnéeCal,MONTH(E15),DAY(E15)),IF(AfficherObservés,TableauJoursFériés2[CORRIGÉ],TableauJoursFériés2[JOUR]),0),2),\"\"),\"\"),\"\")","v":""},{"$f":"IFERROR(IF(AfficherJoursFériés,IF(INDEX(TableauJoursFériés2[],MATCH(DATE(AnnéeCal,MONTH(F15),DAY(F15)),IF(AfficherObservés,TableauJoursFériés2[CORRIGÉ],TableauJoursFériés2[JOUR]),0),5),INDEX(TableauJoursFériés2[],MATCH(DATE(AnnéeCal,MONTH(F15),DAY(F15)),IF(AfficherObservés,TableauJoursFériés2[CORRIGÉ],TableauJoursFériés2[JOUR]),0),2),\"\"),\"\"),\"\")","v":""},{"$f":"IFERROR(IF(AfficherJoursFériés,IF(INDEX(TableauJoursFériés2[],MATCH(DATE(AnnéeCal,MONTH(G15),DAY(G15)),IF(AfficherObservés,TableauJoursFériés2[CORRIGÉ],TableauJoursFériés2[JOUR]),0),5),INDEX(TableauJoursFériés2[],MATCH(DATE(AnnéeCal,MONTH(G15),DAY(G15)),IF(AfficherObservés,TableauJoursFériés2[CORRIGÉ],TableauJoursFériés2[JOUR]),0),2),\"\"),\"\"),\"\")","v":""},{"$f":"IFERROR(IF(AfficherJoursFériés,IF(INDEX(TableauJoursFériés2[],MATCH(DATE(AnnéeCal,MONTH(H15),DAY(H15)),IF(AfficherObservés,TableauJoursFériés2[CORRIGÉ],TableauJoursFériés2[JOUR]),0),5),INDEX(TableauJoursFériés2[],MATCH(DATE(AnnéeCal,MONTH(H15),DAY(H15)),IF(AfficherObservés,TableauJoursFériés2[CORRIGÉ],TableauJoursFériés2[JOUR]),0),2),\"\"),\"\"),\"\")","v":""}]
[null,{"$f":"Jours+DATE(AnnéeCal,MONTH($B$2),1)-WEEKDAY(DATE(AnnéeCal,MONTH($B$2),1),(DébutSemaine=\"LUNDI\")+1)+Paramètres!$A$31*7-6","v":"2024-12-30"},{"$f":"Jours+DATE(AnnéeCal,MONTH($B$2),1)-WEEKDAY(DATE(AnnéeCal,MONTH($B$2),1),(DébutSemaine=\"LUNDI\")+1)+Paramètres!$A31*7-6+1","v":"2024-12-31"},{"$f":"Jours+DATE(AnnéeCal,MONTH($B$2),1)-WEEKDAY(DATE(AnnéeCal,MONTH($B$2),1),(DébutSemaine=\"LUNDI\")+1)+Paramètres!$A$31*7-6+2","v":"2025-01-01"},{"$f":"Jours+DATE(AnnéeCal,MONTH($B$2),1)-WEEKDAY(DATE(AnnéeCal,MONTH($B$2),1),(DébutSemaine=\"LUNDI\")+1)+Paramètres!$A$31*7-6+3","v":"2025-01-02"},{"$f":"Jours+DATE(AnnéeCal,MONTH($B$2),1)-WEEKDAY(DATE(AnnéeCal,MONTH($B$2),1),(DébutSemaine=\"LUNDI\")+1)+Paramètres!$A$31*7-6+4","v":"2025-01-03"},{"$f":"Jours+DATE(AnnéeCal,MONTH($B$2),1)-WEEKDAY(DATE(AnnéeCal,MONTH($B$2),1),(DébutSemaine=\"LUNDI\")+1)+Paramètres!$A$31*7-6+5","v":"2025-01-04"},{"$f":"Jours+DATE(AnnéeCal,MONTH($B$2),1)-WEEKDAY(DATE(AnnéeCal,MONTH($B$2),1),(DébutSemaine=\"LUNDI\")+1)+Paramètres!$A$31*7-6+6","v":"2025-01-05"}]
[null,{"$f":"IFERROR(IF(AfficherJoursFériés,IF(INDEX(TableauJoursFériés2[],MATCH(DATE(AnnéeCal,MONTH(B17),DAY(B17)),IF(AfficherObservés,TableauJoursFériés2[CORRIGÉ],TableauJoursFériés2[JOUR]),0),5),INDEX(TableauJoursFériés2[],MATCH(DATE(AnnéeCal,MONTH(B17),DAY(B17)),IF(AfficherObservés,TableauJoursFériés2[CORRIGÉ],TableauJoursFériés2[JOUR]),0),2),\"\"),\"\"),\"\")","v":""},{"$f":"IFERROR(IF(AfficherJoursFériés,IF(INDEX(TableauJoursFériés2[],MATCH(DATE(AnnéeCal,MONTH(C17),DAY(C17)),IF(AfficherObservés,TableauJoursFériés2[CORRIGÉ],TableauJoursFériés2[JOUR]),0),5),INDEX(TableauJoursFériés2[],MATCH(DATE(AnnéeCal,MONTH(C17),DAY(C17)),IF(AfficherObservés,TableauJoursFériés2[CORRIGÉ],TableauJoursFériés2[JOUR]),0),2),\"\"),\"\"),\"\")","v":""},{"$f":"IFERROR(IF(AfficherJoursFériés,IF(INDEX(TableauJoursFériés2[],MATCH(DATE(AnnéeCal,MONTH(D17),DAY(D17)),IF(AfficherObservés,TableauJoursFériés2[CORRIGÉ],TableauJoursFériés2[JOUR]),0),5),INDEX(TableauJoursFériés2[],MATCH(DATE(AnnéeCal,MONTH(D17),DAY(D17)),IF(AfficherObservés,TableauJoursFériés2[CORRIGÉ],TableauJoursFériés2[JOUR]),0),2),\"\"),\"\"),\"\")","v":"Premier jour de l’an"},{"$f":"IFERROR(IF(AfficherJoursFériés,IF(INDEX(TableauJoursFériés2[],MATCH(DATE(AnnéeCal,MONTH(E17),DAY(E17)),IF(AfficherObservés,TableauJoursFériés2[CORRIGÉ],TableauJoursFériés2[JOUR]),0),5),INDEX(TableauJoursFériés2[],MATCH(DATE(AnnéeCal,MONTH(E17),DAY(E17)),IF(AfficherObservés,TableauJoursFériés2[CORRIGÉ],TableauJoursFériés2[JOUR]),0),2),\"\"),\"\"),\"\")","v":""},{"$f":"IFERROR(IF(AfficherJoursFériés,IF(INDEX(TableauJoursFériés2[],MATCH(DATE(AnnéeCal,MONTH(F17),DAY(F17)),IF(AfficherObservés,TableauJoursFériés2[CORRIGÉ],TableauJoursFériés2[JOUR]),0),5),INDEX(TableauJoursFériés2[],MATCH(DATE(AnnéeCal,MONTH(F17),DAY(F17)),IF(AfficherObservés,TableauJoursFériés2[CORRIGÉ],TableauJoursFériés2[JOUR]),0),2),\"\"),\"\"),\"\")","v":""},{"$f":"IFERROR(IF(AfficherJoursFériés,IF(INDEX(TableauJoursFériés2[],MATCH(DATE(AnnéeCal,MONTH(G17),DAY(G17)),IF(AfficherObservés,TableauJoursFériés2[CORRIGÉ],TableauJoursFériés2[JOUR]),0),5),INDEX(TableauJoursFériés2[],MATCH(DATE(AnnéeCal,MONTH(G17),DAY(G17)),IF(AfficherObservés,TableauJoursFériés2[CORRIGÉ],TableauJoursFériés2[JOUR]),0),2),\"\"),\"\"),\"\")","v":""},{"$f":"IFERROR(IF(AfficherJoursFériés,IF(INDEX(TableauJoursFériés2[],MATCH(DATE(AnnéeCal,MONTH(H17),DAY(H17)),IF(AfficherObservés,TableauJoursFériés2[CORRIGÉ],TableauJoursFériés2[JOUR]),0),5),INDEX(TableauJoursFériés2[],MATCH(DATE(AnnéeCal,MONTH(H17),DAY(H17)),IF(AfficherObservés,TableauJoursFériés2[CORRIGÉ],TableauJoursFériés2[JOUR]),0),2),\"\"),\"\"),\"\")","v":""}]